Workbook

Sheet Contents
A1: 80 | M1: ESC USE ONLY
D2: ESSENTIAL SERVICES COMMISSION
D3: Water Price Review - 2023
D4: Financial Model Template
B7: Table of Contents | F7: Water Business: | H7: =+N24 -> Barwon Water | I7: =+O24 -> BW
B8: Section & Sheet Titles | F8: Regulatory Period: | H8: 2023-24 to 2027-28 (Fifth) | N8: [Decision] | O8: [Month] | P8: [Year] | Q8: [Version]
F9: Model Name: | H9: =I7&"_Price Review Template_"&O9&P9&Q9 -> BW_Price Review Template_Oct2021 - v1 | N9: Draft | O9: Oct | P9: 2021 | Q9: - v1 | R9: << Select
B10: 1 | C10: Model Quality Check | F10: Decision type: | H10: =+N9&" Decision" -> Draft Decision | N10: Draft | O10: Jan | P10: 2016 | Q10: - v1
B11: 2 | C11: =+KeyAssumptionsPriceControl_FO!B1 -> Key Assumptions Price Control | N11: Final | O11: Feb | P11: 2017 | Q11: - v2
B12: 3 | C12: =+Expenditure_Detail!B1 -> Expenditure - Detail | F12: Model Key: | O12: Mar | P12: 2018 | Q12: - v3
B13: 4 | C13: =Opex_FO!B1 -> Operating Expenditure - Forecast | O13: Apr | P13: 2019 | Q13: - v4
B14: 5 | C14: =Opex_Breakdown!B1 -> Operating Expenditure - Breakdown | G14: BLUE | H14: =+I7&" - DATA INPUT CELL" -> BW - DATA INPUT CELL | O14: May | P14: 2020 | Q14: - v5
B15: 6 | C15: =+'Capex_FO input'!B1 -> Capital Expenditure - Forecast Input | O15: Jun | P15: 2021 | Q15: - v6
B16: 7 | C16: =Capex_FO_AC!B1 -> Capital Expenditure - Asset Category Breakdown | G16: PURPLE | H16: NOTES / INSTRUCTIONS | O16: Jul | P16: 2022 | Q16: - v7
B17: 8 | C17: =ExpSummary_FO!B1 -> Expenditure Summary | O17: Aug | P17: 2023 | Q17: - v8
B18: 9 | C18: =RollForward_FO!B1 -> Rolled forward regulatory asset base (RAB) | G18: GREY | H18: MODEL PARAMETERS / ASSUMPTIONS | O18: Sep | P18: 2024 | Q18: - v9
B19: 10 | C19: =PrevPerAdj_FO!B1 -> Previous period adjustments | O19: Oct | P19: 2025 | Q19: - v10
B20: 11 | C20: =RevenuePriceCap_FO!C1 -> Revenue forecast (price caps) | G20: WHITE | H20: FORMULA / HARDCODED VALUES | O20: Nov | P20: 2026 | Q20: - v11
B21: 12 | C21: Revenue forecast (tariff basket) | O21: Dec | P21: 2027 | Q21: - v12
B22: 13 | C22: =NotPres_FO!B1 -> Non Prescribed Services | G22: ORANGE | H22: FORMULA DIFFERENT TO ADJACENT CELL
B23: 14 | C23: ='Finance&Tax_FO'!B1 -> Cash, debt and tax assumptions | N23: [Business]
B24: 15 | C24: ='Rev&RAV_FO'!B1 -> Revenue requirement detail | G24: GREEN | H24: DATA FROM 2018 DECISION OR PERFORMANCE REPORT | N24: Barwon Water | O24: =+VLOOKUP(N24,N25:O42,2,FALSE) -> BW
B25: 16 | C25: =Indicators_FO!B1 -> Financial indicators | N25: Barwon Water | O25: BW
B26: 17 | C26: =Outcomes!B1 -> Outcomes | G26: RED | H26: ERROR CHECK | N26: Central Highlands Water | O26: CHW
B27: 18 | C27: =GSL!B1 -> Guaranteed Service Levels (GSL) | N27: Greater Western Water | O27: GWW
B28: 19 | C28: Dashboard - Pricing | N28: Coliban Water | O28: CW
B29: 20 | C29: Dashboard - Opex | N29: East Gippsland Water | O29: EGW
B30: 21 | C30: Dashboard - Capex | N30: Gippsland Water | O30: CGW
B31: 22 | C31: Dashboard - Data | N31: Goulburn Valley Water | O31: GVW
B32: 23 | C32: Household Bill | N32: GWM Water | O32: GWMW | P32: diff model
N33: Lower Murray Water - Urban | O33: LMW-U | P33: diff model
N34: Lower Murray Water - Rural | O34: LMW-R
N35: North East Water | O35: NEW
N36: South East Water | O36: SEW
N37: South Gippsland Water | O37: SGW
N38: Southern Rural Water | O38: SRW | P38: diff model
N39: Wannon Water | O39: WNW
N40: Westernport Water | O40: WPW
N41: Yarra Valley Water | O41: YVW

Sheet Adjustments log (hidden)
A3: 1 | B3: Operating expenditure
B4: $m 2022-23
C6: 2023-24 | D6: 2024-25 | E6: 2025-26 | F6: 2026-27 | G6: 2027-28 | H6: Total
B7: Proposed - controllable operating expenditure | H7: =SUM(C7:G7) -> 0
B8: DD adjustments
B9: xx | H9: =SUM(C9:G9) -> 0
B10: xx | H10: =SUM(C10:G10) -> 0
B11: xx | H11: =SUM(C11:G11) -> 0
B12: xx | H12: =SUM(C12:G12) -> 0
B13: xx | H13: =SUM(C13:G13) -> 0
B14: FD adjustments
B15: xx | H15: =SUM(C15:G15) -> 0
B16: xx | H16: =SUM(C16:G16) -> 0
B17: xx | H17: =SUM(C17:G17) -> 0
B18: xx | H18: =SUM(C18:G18) -> 0
B19: xx | H19: =SUM(C19:G19) -> 0
B20: Total adjustments | C20: =SUM(C8:C19) -> 0 | D20: 0 | E20: 0 | F20: 0 | G20: 0 | H20: 0
B21: Final decision - controllable operating expenditure | C21: =C7+C20 -> 0 | D21: 0 | E21: 0 | F21: 0 | G21: 0 | H21: 0
B23: Proposed - non-controllable operating expenditure | H23: =SUM(C23:G23) -> 0
B24: DD adjustments
B25: xx | H25: =SUM(C25:G25) -> 0
B26: xx | H26: =SUM(C26:G26) -> 0
B27: xx | H27: =SUM(C27:G27) -> 0
B28: xx | H28: =SUM(C28:G28) -> 0
B29: FD adjustments
B30: xx | H30: =SUM(C30:G30) -> 0
B31: xx | H31: =SUM(C31:G31) -> 0
B32: Total adjustments | C32: =SUM(C24:C31) -> 0 | D32: 0 | E32: 0 | F32: 0 | G32: 0 | H32: 0
B33: Final decision - non-controllable operating expenditure | C33: =C23+C32 -> 0 | D33: 0 | E33: 0 | F33: 0 | G33: 0 | H33: 0
B35: Proposed - total operating expenditure | C35: =C7+C23 -> 0 | D35: 0 | E35: 0 | F35: 0 | G35: 0 | H35: 0
B36: Total adjustments | C36: =C20+C32 -> 0 | D36: 0 | E36: 0 | F36: 0 | G36: 0 | H36: 0
B37: Final decision - total operating expenditure | C37: =SUM(C35:C36) -> 0 | D37: 0 | E37: 0 | F37: 0 | G37: 0 | H37: 0
B39: Check
A42: 2 | B42: Capital expenditure
B43: $m 2022-23
C45: 2023-24 | D45: 2024-25 | E45: 2025-26 | F45: 2026-27 | G45: 2027-28 | H45: Total
B46: Proposed - capital expenditure | H46: =SUM(C46:G46) -> 0
B47: DD adjustments
B48: xx | H48: =SUM(C48:G48) -> 0
B49: xx | H49: =SUM(C49:G49) -> 0
B50: xx | H50: =SUM(C50:G50) -> 0
B51: xx | H51: =SUM(C51:G51) -> 0
B52: FD adjustments
B53: xx | H53: =SUM(C53:G53) -> 0
B54: xx
B55: Total adjustments | C55: =SUM(C47:C54) -> 0 | D55: 0 | E55: 0 | F55: 0 | G55: 0 | H55: 0
B56: Draft decision - capital expenditure | C56: =C46+C55 -> 0 | D56: 0 | E56: 0 | F56: 0 | G56: 0 | H56: 0
B58: Check

Sheet Model Quality Check
A1: 80 | B1: Model Quality Check
B2: =+Contents!H7 -> Barwon Water
B3: Go to Table of Contents
K4: FIRST REG PERIOD | O4: SECOND REG PERIOD | T4: THIRD REG PERIOD | Y4: FOURTH REG PERIOD | AD4: FIFTH REG PERIOD | AI4: SIXTH REG PERIOD
F6: Straight Line | J6: 2006 | K6: 2007 | L6: 2008 | M6: 2009 | N6: 2010 | O6: 2011 | P6: 2012 | Q6: 2013 | R6: 2014 | S6: 2015 | T6: 2016 | U6: 2017 | V6: 2018 | W6: 2019 | X6: 2020 | Y6: 2021 | Z6: 2022 | AA6: 2023 | AB6: 2024 | AC6: 2025 | AD6: 2026 | AE6: 2027 | AF6: 2028 | AG6: 2029 | AH6: 2030 | AI6: 2031 | AJ6: 2032 | AK6: 2033
F7: Declining Balance | J7: =+CONCATENATE(J6-1,"-",RIGHT(J6,2)) -> 2005-06 | K7: 2006-07 | L7: 2007-08 | M7: 2008-09 | N7: 2009-10 | O7: 2010-11 | P7: 2011-12 | Q7: 2012-13 | R7: 2013-14 | S7: 2014-15 | T7: 2015-16 | U7: 2016-17 | V7: 2017-18 | W7: =+CONCATENATE(W6-1,"-",RIGHT(W6,2)) -> 2018-19 | X7: 2019-20 | Y7: 2020-21 | Z7: 2021-22 | AA7: 2022-23 | AB7: 2023-24 | AC7: 2024-25 | AD7: 2025-26 | AE7: 2026-27 | AF7: =+CONCATENATE(AF6-1,"-",RIGHT(AF6,2)) -> 2027-28 | AG7: 2028-29 | AH7: 2029-30 | AI7: 2030-31 | AJ7: 2031-32 | AK7: 2032-33
D9: Model ready for submission: | I9: =SUM(AA15:AK49) -> 2 | R9: (If No, please ensure that the error check is corrected at the source)
D11: All financial indicators satisfied: | I11: =SUM(AB54:AK59) -> 3
E14: 1. | F14: Opex_FO
G15: Reconciliation to 'Opex_Breakdown' tab row 37 | AB15: =Opex_FO!AC100 -> 0 | AC15: =Opex_FO!AD100 -> 0 | AD15: =Opex_FO!AE100 -> 0 | AE15: =Opex_FO!AF100 -> 0 | AF15: =Opex_FO!AG100 -> 0 | AG15: =Opex_FO!AH100 -> 0 | AH15: =Opex_FO!AI100 -> 0 | AI15: =Opex_FO!AJ100 -> 0 | AJ15: =Opex_FO!AK100 -> 0 | AK15: =Opex_FO!AL100 -> 0
E17: 2. | F17: Opex_Breakdown
G18: Reconciliation to 'Opex_FO' tab row 95 | AB18: =Opex_Breakdown!AC42 -> 0 | AC18: =Opex_Breakdown!AD42 -> 0 | AD18: =Opex_Breakdown!AE42 -> 0 | AE18: =Opex_Breakdown!AF42 -> 0 | AF18: =Opex_Breakdown!AG42 -> 0 | AG18: =Opex_Breakdown!AH42 -> 0 | AH18: =Opex_Breakdown!AI42 -> 0 | AI18: =Opex_Breakdown!AJ42 -> 0 | AJ18: =Opex_Breakdown!AK42 -> 0 | AK18: =Opex_Breakdown!AL42 -> 0
G20: Reconciliation of Opex by service and function | AB20: =Opex_Breakdown!AC27 -> 0 | AC20: =Opex_Breakdown!AD27 -> 0 | AD20: =Opex_Breakdown!AE27 -> 0 | AE20: =Opex_Breakdown!AF27 -> 0 | AF20: =Opex_Breakdown!AG27 -> 0 | AG20: =Opex_Breakdown!AH27 -> 0 | AH20: =Opex_Breakdown!AI27 -> 0 | AI20: =Opex_Breakdown!AJ27 -> 0 | AJ20: =Opex_Breakdown!AK27 -> 0 | AK20: =Opex_Breakdown!AL27 -> 0
E22: 3. | F22: Capex_FO input
G23: Reconciliation of total prescribed capex between cost driver and capital type | AB23: ='Capex_FO input'!D26 -> 0 | AC23: ='Capex_FO input'!E26 -> 0 | AD23: ='Capex_FO input'!F26 -> 0 | AE23: ='Capex_FO input'!G26 -> 0 | AF23: ='Capex_FO input'!H26 -> 0 | AG23: ='Capex_FO input'!I26 -> 0 | AH23: ='Capex_FO input'!J26 -> 0 | AI23: ='Capex_FO input'!K26 -> 0 | AJ23: ='Capex_FO input'!L26 -> 0 | AK23: ='Capex_FO input'!M26 -> 0
E25: 4. | F25: Capex_FO_AC
G26: Reconciliation to 'Capex_FO input' tab row 29 | AA26: =Capex_FO_AC!AB30 -> 1 | AB26: =Capex_FO_AC!AC30 -> 0 | AC26: =Capex_FO_AC!AD30 -> 0 | AD26: =Capex_FO_AC!AE30 -> 0 | AE26: =Capex_FO_AC!AF30 -> 0 | AF26: =Capex_FO_AC!AG30 -> 0 | AG26: =Capex_FO_AC!AH30 -> 0 | AH26: =Capex_FO_AC!AI30 -> 0 | AI26: =Capex_FO_AC!AJ30 -> 0 | AJ26: =Capex_FO_AC!AK30 -> 0 | AK26: =Capex_FO_AC!AL30 -> 0
E28: 5. | F28: RollForward_FO
G29: Reconciliation of existing assets book value to RAB | AB29: =IF(ROUND(RollForward_FO!G84,2)=ROUND(RollForward_FO!G82,2),0,1) -> 1
E31: 6. | F31: RevenuePriceCap_FO
G32: Price control - Fifth period | AB32: =IF(KeyAssumptionsPriceControl_FO!I48=1,IF(RevenuePriceCap_FO!AD34="PRICE CONTROL OK",0,1),0) -> 0 | AC32: =IF(KeyAssumptionsPriceControl_FO!I48=1,RevenuePriceCap_FO!AD34,"") -> PRICE CONTROL OK
G34: Price control - Sixth period | AB34: =IF(KeyAssumptionsPriceControl_FO!I48=1,IF(RevenuePriceCap_FO!AI34="PRICE CONTROL OK",0,1),0) -> 0 | AC34: =IF(KeyAssumptionsPriceControl_FO!I48=1,RevenuePriceCap_FO!AI34,"") -> PRICE CONTROL OK
G36: Tariff revenue reconciliation | AB36: =RevenuePriceCap_FO!AC458 -> 0 | AC36: =RevenuePriceCap_FO!AD458 -> 0 | AD36: =RevenuePriceCap_FO!AE458 -> 0 | AE36: =RevenuePriceCap_FO!AF458 -> 0 | AF36: =RevenuePriceCap_FO!AG458 -> 0 | AG36: =RevenuePriceCap_FO!AH458 -> 0 | AH36: =RevenuePriceCap_FO!AI458 -> 0 | AI36: =RevenuePriceCap_FO!AJ458 -> 0 | AJ36: =RevenuePriceCap_FO!AK458 -> 0 | AK36: =RevenuePriceCap_FO!AL458 -> 0
E38: 7. | F38: RevenueTariffBasket_FO
G39: Price control - Fifth period | AB39: =IF(KeyAssumptionsPriceControl_FO!I48=2,IF(RevenueTariffBasket_FO!AD34="PRICE CONTROL OK",0,1),0) -> 0 | AC39: =IF(KeyAssumptionsPriceControl_FO!I48=2,RevenueTariffBasket_FO!AD34,"") -> 
G41: Price control - Sixth period | AB41: =IF(KeyAssumptionsPriceControl_FO!I48=2,IF(RevenueTariffBasket_FO!AI41="PRICE CONTROL OK",0,1),0) -> 0 | AC41: =IF(KeyAssumptionsPriceControl_FO!I48=2,RevenueTariffBasket_FO!AI34,"") -> 
G43: Tariff revenue reconciliation | AB43: =RevenueTariffBasket_FO!AC458 -> 0 | AC43: =RevenueTariffBasket_FO!AD458 -> 0 | AD43: =RevenueTariffBasket_FO!AE458 -> 0 | AE43: =RevenueTariffBasket_FO!AF458 -> 0 | AF43: =RevenueTariffBasket_FO!AG458 -> 0 | AG43: =RevenueTariffBasket_FO!AH458 -> 0 | AH43: =RevenueTariffBasket_FO!AI458 -> 0 | AI43: =RevenueTariffBasket_FO!AJ458 -> 0 | AJ43: =RevenueTariffBasket_FO!AK458 -> 0 | AK43: =RevenueTariffBasket_FO!AL458 -> 0
E45: 8. | F45: Rev&RAV_FO
G46: Rolled forward RAV reconciliation | AB46: ='Rev&RAV_FO'!AC80 -> 0 | AC46: ='Rev&RAV_FO'!AD80 -> 0 | AD46: ='Rev&RAV_FO'!AE80 -> 0 | AE46: ='Rev&RAV_FO'!AF80 -> 0 | AF46: ='Rev&RAV_FO'!AG80 -> 0 | AG46: ='Rev&RAV_FO'!AH80 -> 0 | AH46: ='Rev&RAV_FO'!AI80 -> 0 | AI46: ='Rev&RAV_FO'!AJ80 -> 0 | AJ46: ='Rev&RAV_FO'!AK80 -> 0 | AK46: ='Rev&RAV_FO'!AL80 -> 0
E48: 9. | F48: GSL
G49: Reconciliation to 'Opex_Breakdown' tab row 23 | AB49: =IF(ROUND(GSL!AC40,2)=ROUND(GSL!AC39,2),0,1) -> 0 | AC49: =IF(ROUND(GSL!AD40,2)=ROUND(GSL!AD39,2),0,1) -> 0 | AD49: =IF(ROUND(GSL!AE40,2)=ROUND(GSL!AE39,2),0,1) -> 0 | AE49: =IF(ROUND(GSL!AF40,2)=ROUND(GSL!AF39,2),0,1) -> 0 | AF49: =IF(ROUND(GSL!AG40,2)=ROUND(GSL!AG39,2),0,1) -> 0 | AG49: =IF(ROUND(GSL!AH40,2)=ROUND(GSL!AH39,2),0,1) -> 0 | AH49: =IF(ROUND(GSL!AI40,2)=ROUND(GSL!AI39,2),0,1) -> 0 | AI49: =IF(ROUND(GSL!AJ40,2)=ROUND(GSL!AJ39,2),0,1) -> 0 | AJ49: =IF(ROUND(GSL!AK40,2)=ROUND(GSL!AK39,2),0,1) -> 0 | AK49: =IF(ROUND(GSL!AL40,2)=ROUND(GSL!AL39,2),0,1) -> 0
E53: 1. | F53: Primary Indicator
G54: FFO interest cover | AB54: =Indicators_FO!AC$226 -> 0 | AC54: =Indicators_FO!AD$226 -> 0 | AD54: =Indicators_FO!AE$226 -> 0 | AE54: =Indicators_FO!AF$226 -> 0 | AF54: =Indicators_FO!AG$226 -> 0 | AG54: =Indicators_FO!AH$226 -> 0 | AH54: =Indicators_FO!AI$226 -> 0 | AI54: =Indicators_FO!AJ$226 -> 0 | AJ54: =Indicators_FO!AK$226 -> 0 | AK54: =Indicators_FO!AL$226 -> 0
E56: 2. | F56: Secondary indicators
G57: Net debt / RAV | AB57: =Indicators_FO!AC$235 -> 0 | AC57: =Indicators_FO!AD$235 -> 0 | AD57: =Indicators_FO!AE$235 -> 0 | AE57: =Indicators_FO!AF$235 -> 0 | AF57: =Indicators_FO!AG$235 -> 0 | AG57: =Indicators_FO!AH$235 -> 0 | AH57: =Indicators_FO!AI$235 -> 0 | AI57: =Indicators_FO!AJ$235 -> 0 | AJ57: =Indicators_FO!AK$235 -> 0 | AK57: =Indicators_FO!AL$235 -> 0
G58: FFO / Net debt | AB58: =Indicators_FO!AC$243 -> 0 | AC58: =Indicators_FO!AD$243 -> 0 | AD58: =Indicators_FO!AE$243 -> 0 | AE58: =Indicators_FO!AF$243 -> 0 | AF58: =Indicators_FO!AG$243 -> 0 | AG58: =Indicators_FO!AH$243 -> 0 | AH58: =Indicators_FO!AI$243 -> 0 | AI58: =Indicators_FO!AJ$243 -> 1 | AJ58: =Indicators_FO!AK$243 -> 1 | AK58: =Indicators_FO!AL$243 -> 1
G59: Internal financing ratio | AB59: =Indicators_FO!AC$252 -> 0 | AC59: =Indicators_FO!AD$252 -> 0 | AD59: =Indicators_FO!AE$252 -> 0 | AE59: =Indicators_FO!AF$252 -> 0 | AF59: =Indicators_FO!AG$252 -> 0 | AG59: =Indicators_FO!AH$252 -> 0 | AH59: =Indicators_FO!AI$252 -> 0 | AI59: =Indicators_FO!AJ$252 -> 0 | AJ59: =Indicators_FO!AK$252 -> 0 | AK59: =Indicators_FO!AL$252 -> 0

Sheet KeyAssumptionsPriceControl_FO
A1: 80 | B1: Key Assumptions Price Control
B2: =+Contents!H7 -> Barwon Water
B3: Go to Table of Contents
L4: FIRST REG PERIOD | P4: SECOND REG PERIOD | U4: THIRD REG PERIOD | Z4: FOURTH REG PERIOD | AE4: FIFTH REG PERIOD | AJ4: SIXTH REG PERIOD
F6: Straight Line | K6: 2006 | L6: 2007 | M6: 2008 | N6: 2009 | O6: 2010 | P6: 2011 | Q6: 2012 | R6: 2013 | S6: 2014 | T6: 2015 | U6: 2016 | V6: 2017 | W6: 2018 | X6: 2019 | Y6: 2020 | Z6: 2021 | AA6: 2022 | AB6: 2023 | AC6: 2024 | AD6: 2025 | AE6: 2026 | AF6: 2027 | AG6: 2028 | AH6: 2029 | AI6: 2030 | AJ6: 2031 | AK6: 2032 | AL6: 2033
F7: Declining Balance | I7: 2003-04 | J7: 2004-05 | K7: =+CONCATENATE(K6-1,"-",RIGHT(K6,2)) -> 2005-06 | L7: =+CONCATENATE(L6-1,"-",RIGHT(L6,2)) -> 2006-07 | M7: 2007-08 | N7: 2008-09 | O7: 2009-10 | P7: 2010-11 | Q7: 2011-12 | R7: 2012-13 | S7: 2013-14 | T7: 2014-15 | U7: 2015-16 | V7: 2016-17 | W7: 2017-18 | X7: 2018-19 | Y7: 2019-20 | Z7: 2020-21 | AA7: 2021-22 | AB7: 2022-23 | AC7: 2023-24 | AD7: 2024-25 | AE7: 2025-26 | AF7: 2026-27 | AG7: 2027-28 | AH7: =+CONCATENATE(AH6-1,"-",RIGHT(AH6,2)) -> 2028-29 | AI7: =+CONCATENATE(AI6-1,"-",RIGHT(AI6,2)) -> 2029-30 | AJ7: =+CONCATENATE(AJ6-1,"-",RIGHT(AJ6,2)) -> 2030-31 | AK7: =+CONCATENATE(AK6-1,"-",RIGHT(AK6,2)) -> 2031-32 | AL7: =+CONCATENATE(AL6-1,"-",RIGHT(AL6,2)) -> 2032-33
E11: Inflation assumptions
AB12: Estimate
F13: March quarter annual CPI | I13: 141.3 | J13: 144.1 | K13: 147.5 | L13: 151.9 | M13: 155.6 | N13: 162.2 | O13: 166.2 | P13: 171 | Q13: 176.7 | R13: 99.9 | S13: 102.4 | T13: 105.4 | U13: 106.8 | V13: 108.2 | W13: 110.5 | X13: 112.6 | Y13: 114.1 | Z13: 116.6 | AA13: 117.9 | AB13: 123.9000017
F14: Inflation | J14: =+J13/I13-1 -> 0.01981599434 | K14: 0.02359472588 | L14: 0.02983050847 | M14: 0.02435813035 | N14: 0.04241645244 | O14: 0.02466091245 | P14: 0.02888086643 | Q14: 0.03333333333 | R14: 0.01584606678 | S14: =+IF(S13=0,$Z$44,S13/R13-1) -> 0.02502502503 | T14: 0.029296875 | U14: 0.01328273245 | V14: 0.01310861423 | W14: 0.02125693161 | X14: 0.01900452489 | Y14: 0.01332149201 | Z14: 0.02191060473 | AA14: 0.01114922813 | AB14: 0.0508906 | AC14: =+IF(AC13=0,$AC$44,AC13/AB13-1) -> 0.03 | AD14: 0.03 | AE14: 0.03 | AF14: 0.03 | AG14: 0.03 | AH14: 0.03 | AI14: 0.03 | AJ14: 0.03 | AK14: 0.03 | AL14: 0.03
F15: Inflation factor | I15: 0.7871866295 | J15: 0.8027855153 | K15: 0.8217270195 | L15: 0.8462395543 | M15: 0.8668523677 | N15: 0.9036211699 | O15: 0.9259052925 | P15: 0.9526462396 | Q15: 0.9844011142 | R15: =+R13/$AB$13 -> 0.8062953882 | S15: 0.8264729505 | T15: 0.8506860252 | U15: 0.86198546 | V15: 0.8732848949 | W15: 0.8918482522 | X15: 0.9087974045 | Y15: 0.9209039419 | Z15: 0.9410815041 | AA15: 0.9515738365 | AB15: 1 | AC15: =+AB15*(1+AC14) -> 1.03 | AD15: 1.0609 | AE15: 1.092727 | AF15: 1.12550881 | AG15: 1.159274074 | AH15: 1.194052297 | AI15: 1.229873865 | AJ15: 1.266770081 | AK15: 1.304773184 | AL15: 1.343916379
I16: CPI index re-referenced in 2012-13, shaded values have been hardcoded to lock in RAB value.
E21: Cost of debt - 10 year trailing average (Nominal)
AA22: Estimate | AB22: Estimate | AC22: Estimate | AD22: Estimate | AE22: Estimate | AF22: Estimate | AG22: Estimate | AH22: Estimate | AI22: Estimate | AJ22: Estimate | AK22: Estimate | AL22: Estimate
E23: Cost of debt | L23: 0.06981666667 | M23: 0.07414 | N23: 0.0691525788 | O23: 0.07361870984 | P23: 0.07046784142 | Q23: 0.06308887941 | R23: 0.0526945046 | S23: 0.070525 | T23: 0.05360833333 | U23: 0.05270138413 | V23: 0.04908333333 | W23: 0.045283 | X23: 0.046133 | Y23: 0.03305833333 | Z23: 0.03045 | AA23: 0.037533 | AB23: 0.037533 | AC23: =AB23 -> 0.037533 | AD23: 0.037533 | AE23: 0.037533 | AF23: 0.037533 | AG23: 0.037533 | AH23: 0.037533 | AI23: 0.037533 | AJ23: 0.037533 | AK23: 0.037533 | AL23: 0.037533
E24: Re-financing weightings - average 10 yrs | L24: =1/10 -> 0.1 | M24: =1/10 -> 0.1 | N24: =1/10 -> 0.1 | O24: =1/10 -> 0.1 | P24: =1/10 -> 0.1 | Q24: 0.1 | R24: 0.1 | S24: 0.1 | T24: 0.1 | U24: 0.1 | V24: 0.1 | W24: 0.1 | X24: 0.1 | Y24: 0.1 | Z24: 0.1 | AA24: 0.1 | AB24: 0.1 | AC24: 0.1 | AD24: 0.1 | AE24: 0.1 | AF24: 0.1 | AG24: 0.1 | AH24: 0.1 | AI24: 0.1 | AJ24: 0.1 | AK24: 0.1 | AL24: 0.1
E26: Cost of debt - 10 year trailing average | V26: =IF(U23<>"",SUMPRODUCT(L23:U23,L24:U24),"") -> 0.06498138982 | W26: 0.06290805649 | X26: 0.06002235649 | Y26: 0.05772039861 | Z26: 0.05366436096 | AA26: 0.04966257681 | AB26: =IF(AA23<>"",SUMPRODUCT(R23:AA23,R24:AA24),"") -> 0.04710698887 | AC26: =IF(AB23<>"",SUMPRODUCT(S23:AB23,S24:AB24),"") -> 0.04559083841 | AD26: =IF(AC23<>"",SUMPRODUCT(T23:AC23,T24:AC24),"") -> 0.04229163841 | AE26: 0.04068410508 | AF26: 0.03916726667 | AG26: 0.03801223333 | AH26: 0.03723723333 | AI26: 0.03637723333 | AJ26: 0.0368247 | AK26: 0.037533 | AL26: 0.037533
E30: WACC assumptions (retained for historical purposes only) | Z30: Regulatory Rate of Return (RRR) - Nominal
K32: 1st period | M32: 2nd period | O32: 3rd period | Z32: Cost of Debt | AC32: =+AC26 -> 0.04559083841 | AD32: =+AD26 -> 0.04229163841 | AE32: 0.04068410508 | AF32: 0.03916726667 | AG32: 0.03801223333 | AH32: 0.03723723333 | AI32: 0.03637723333 | AJ32: 0.0368247 | AK32: 0.037533 | AL32: 0.037533
E33: Parameters
F34: Risk Free Rate (Real) | K34: =Determination_Lookup!W8 -> 0.0267 | M34: =Determination_Lookup!X8 -> 0.0323 | O34: =Determination_Lookup!Y8 -> 0.005959
F35: Debt Premium | K35: =Determination_Lookup!W9 -> 0.0116 | M35: =Determination_Lookup!X9 -> 0.0175 | O35: =Determination_Lookup!Y9 -> 0.0399
F36: Equity Premium | K36: =Determination_Lookup!W10 -> 0.06 | M36: =Determination_Lookup!X10 -> 0.06 | O36: =Determination_Lookup!Y10 -> 0.06 | Z36: Regulatory Rate of Return (RRR) - Real
F37: Equity Beta | K37: =Determination_Lookup!W11 -> 0.75 | M37: =Determination_Lookup!X11 -> 0.65 | O37: =Determination_Lookup!Y11 -> 0.65
F38: Gearing (Debt/Assets) | K38: =Determination_Lookup!W12 -> 0.6 | M38: =Determination_Lookup!X12 -> 0.6 | O38: =Determination_Lookup!Y12 -> 0.6 | Z38: Cost of Debt | AC38: =(1+AC32)/(1+AC44)-1 -> 0.01513673632 | AD38: =(1+AD32)/(1+AD44)-1 -> 0.01193362953 | AE38: 0.01037291755 | AF38: 0.0089002589 | AG38: 0.007778867314 | AH38: 0.007026440129 | AI38: 0.006191488673 | AJ38: 0.00662592233 | AK38: 0.007313592233 | AL38: 0.007313592233
F39: Forecast Inflation | K39: =Determination_Lookup!W13 -> 0.0255 | M39: =Determination_Lookup!X13 -> 0.025 | O39: =Determination_Lookup!Y13 -> 0.0275
F40: Franking credit value | K40: =Determination_Lookup!W14 -> 0.5 | M40: =Determination_Lookup!X14 -> 0.5 | O40: =Determination_Lookup!Y14 -> 0.5 | Z40: Return on Equity | AC40: =IF(AE64<>0,(AE64/100),IF(AE62<>0,(AE62/100),(AE60/100))) -> 0.045 | AD40: =+$AC$40 -> 0.045 | AE40: 0.045 | AF40: 0.045 | AG40: 0.045 | AH40: 0.045 | AI40: 0.045 | AJ40: 0.045 | AK40: 0.045 | AL40: 0.045
E42: 'Vanilla' After Tax WACC (Real) | K42: =ROUND(((K34+K36*K37)*(1-K38))+((K34+K35)*K38),3) -> 0.052 | M42: =ROUND(((M34+M36*M37)*(1-M38))+((M34+M35)*M38),3) -> 0.058 | O42: =ROUND(((O34+O36*O37)*(1-O38))+((O34+O35)*O38),3) -> 0.045 | Z42: RRR (real) | AC42: =ROUND((AC40*(1-AC43)+AC38*AC43),4) -> 0.0271 | AD42: 0.0252 | AE42: 0.0242 | AF42: 0.0233 | AG42: 0.0227 | AH42: 0.0222 | AI42: 0.0217 | AJ42: 0.022 | AK42: 0.0224 | AL42: 0.0224
Z43: Gearing | AC43: 0.6 | AD43: =+AC43 -> 0.6 | AE43: 0.6 | AF43: 0.6 | AG43: 0.6 | AH43: 0.6 | AI43: 0.6 | AJ43: 0.6 | AK43: 0.6 | AL43: 0.6
Z44: Forecast Inflation | AC44: 0.03 | AD44: =+AC44 -> 0.03 | AE44: 0.03 | AF44: 0.03 | AG44: 0.03 | AH44: 0.03 | AI44: 0.03 | AJ44: 0.03 | AK44: 0.03 | AL44: 0.03
L45: Regulatory Rate of Return (RRR) [retained for historical purposes only]
E46: Form of price control selected
O47: 4th period
E48: Price caps | I48: 1 | L48: Cost of Debt | O48: =Determination_Lookup!W25 -> 0.03618998679 | Z48: PREMO Assessment Matrix (linked to Regulatory Rate of Return calculation above)
L49: Return on Equity | O49: =Determination_Lookup!W26 -> 0.049 | U49: PREMO Graded Scoring System (for reference only)
E50: Revenue cap / Hybrid Tariff Basket | L50: Gearing | O50: =Determination_Lookup!W27 -> 0.6
L51: Forecast Inflation | O51: =Determination_Lookup!W28 -> 0.023 | AB51: Water business self-assessment
L52: RRR (real) | O52: =Determination_Lookup!W29 -> 0.0413
AB53: Leading | AC53: Advanced | AD53: Standard | AE53: Basic
Z54: ESC assessment of submission | AA54: Leading | AB54: 4.9
U55: Risk | AA55: Advanced | AB55: 4.3 | AC55: 4.5
U56: Engagement | V56: [Select] | AA56: Standard | AB56: 3.7 | AC56: 3.9 | AD56: 4.1
U57: Management | V57: [Select] | AA57: Basic | AD57: 3.5 | AE57: 3.7
U58: Outcomes | V58: [Select]
U60: Total Score | Z60: Water business self-assessment (Maximum allowable ROE) | AD60: Advanced | AE60: =+VLOOKUP(AD60,$AD$71:$AE$75,2,FALSE) -> 4.5
Z62: ROE Override (Must be less than Maximum allowable ROE) | AE62: =+IF(AD62<=AE60,AD62,"CHECK") -> 0
U64: Rating | Z64: ESC assessment of submission | AD64: Advanced | AE64: =IFERROR(IF(AD64=AD60,AE60,VLOOKUP(AD60&AD64,AD78:AE82,2,FALSE)),0) -> 4.5
AD66: Difference | AE66: =IFERROR(IF(AE64=0,"",AE64-AE60),"") -> 0
U70: ESC USE ONLY | AD70: Business self assessment
AD71: [Select]
AD72: Leading | AE72: =+AB54 -> 4.9
AD73: Advanced | AE73: =+AC55 -> 4.5
AD74: Standard | AE74: =+AD56 -> 4.1
AD75: Basic | AE75: =+AE57 -> 3.7
AD77: downgrading
AD78: =AD53&AA57 -> StandardBasic | AE78: =+AD57 -> 3.5
AD79: =+AC53&AA56 -> AdvancedStandard | AE79: =+AC56 -> 3.9
AD80: =+AB53&AA55 -> LeadingAdvanced | AE80: =+AB55 -> 4.3
AD81: =+AB53&AA56 -> LeadingStandard | AE81: =+AB56 -> 3.7
AD82: =+AD60&"Basic" -> AdvancedBasic | AE82: CHECK

Sheet Expenditure_Detail
A1: 80 | B1: Expenditure - Detail
B2: =Model_Name -> Barwon Water
B3: Go to Table of Contents
L4: FIRST REG PERIOD | P4: SECOND REG PERIOD | U4: THIRD REG PERIOD | Z4: FOURTH REG PERIOD | AE4: FIFTH REG PERIOD | AJ4: SIXTH REG PERIOD
K5: 2006 | L5: 2007 | M5: 2008 | N5: 2009 | O5: 2010 | P5: 2011 | Q5: 2012 | R5: 2013 | S5: 2014 | T5: 2015 | U5: 2016 | V5: 2017 | W5: 2018 | X5: 2019 | Y5: 2020 | Z5: 2021 | AA5: 2022 | AB5: 2023 | AC5: 2024 | AD5: 2025 | AE5: 2026 | AF5: 2027 | AG5: 2028 | AH5: 2029 | AI5: 2030 | AJ5: 2031 | AK5: 2032 | AL5: 2033
B6: $m, 01/01/23 | K6: =+CONCATENATE(K5-1,"-",RIGHT(K5,2)) -> 2005-06 | L6: =+CONCATENATE(L5-1,"-",RIGHT(L5,2)) -> 2006-07 | M6: 2007-08 | N6: 2008-09 | O6: 2009-10 | P6: 2010-11 | Q6: 2011-12 | R6: 2012-13 | S6: 2013-14 | T6: 2014-15 | U6: 2015-16 | V6: 2016-17 | W6: 2017-18 | X6: 2018-19 | Y6: 2019-20 | Z6: 2020-21 | AA6: 2021-22 | AB6: 2022-23 | AC6: 2023-24 | AD6: 2024-25 | AE6: 2025-26 | AF6: 2026-27 | AG6: 2027-28 | AH6: =+CONCATENATE(AH5-1,"-",RIGHT(AH5,2)) -> 2028-29 | AI6: =+CONCATENATE(AI5-1,"-",RIGHT(AI5,2)) -> 2029-30 | AJ6: =+CONCATENATE(AJ5-1,"-",RIGHT(AJ5,2)) -> 2030-31 | AK6: =+CONCATENATE(AK5-1,"-",RIGHT(AK5,2)) -> 2031-32 | AL6: =+CONCATENATE(AL5-1,"-",RIGHT(AL5,2)) -> 2032-33
B8: This worksheet outlines the key cost drivers of operating expenditure - capitalised costs are excluded. This tab does not link to the Rev&RAV_FO worksheet
C11: Expenditure Summary
D13: Total Labour costs | W13: =W34 -> 40.87678573 | X13: 41.88962131 | Y13: 42.82162252 | Z13: 42.57480311 | AA13: 44.01156781 | AB13: 46.78200602 | AC13: 47.87981279 | AD13: 47.79500866 | AE13: 47.79343591 | AF13: 47.28930062 | AG13: 47.04987565 | AH13: =AH34 -> 47.04987565 | AI13: =AI34 -> 47.04987565 | AJ13: =AJ34 -> 47.04987565 | AK13: =AK34 -> 47.04987565 | AL13: =AL34 -> 47.04987565
D14: Total Energy costs | W14: =W92 -> 4.90925166 | X14: 6.680587182 | Y14: 6.387458068 | Z14: 5.157304557 | AA14: 4.396458269 | AB14: 4.87021968 | AC14: 4.772395766 | AD14: 4.638732774 | AE14: 4.641107032 | AF14: =AF92 -> 4.686541788 | AG14: 4.538661416 | AH14: =AH92 -> 4.538660464 | AI14: =AI92 -> 4.538660464 | AJ14: =AJ92 -> 4.538660464 | AK14: =AK92 -> 4.538660464 | AL14: =AL92 -> 4.538660464
D15: Total IT costs | W15: =W103 -> 9.519250859 | X15: 7.979017119 | Y15: 7.591683974 | Z15: 8.894000124 | AA15: 9.498967136 | AB15: 11.49718021 | AC15: 12.90130396 | AD15: 13.65691742 | AE15: 15.04287063 | AF15: 15.07864945 | AG15: 14.10601872 | AH15: =AH103 -> 14.10601576 | AI15: =AI103 -> 14.10601576 | AJ15: =AJ103 -> 14.10601576 | AK15: =AK103 -> 14.10601576 | AL15: =AL103 -> 14.10601576
D16: Total Chemical costs | W16: =W114 -> 2.611074022 | X16: 3.094976365 | Y16: 3.134609507 | Z16: 3.137540785 | AA16: 3.577297489 | AB16: 3.54521904 | AC16: 3.764452849 | AD16: 3.837585447 | AE16: 3.906781214 | AF16: 3.976541343 | AG16: 4.045535757 | AH16: =AH114 -> 4.045534907 | AI16: =AI114 -> 4.045534907 | AJ16: =AJ114 -> 4.045534907 | AK16: =AK114 -> 4.045534907 | AL16: =AL114 -> 4.045534907
C21: Labour assumptions
D23: Current FTEs (at 30 June) | W23: 309 | X23: 313.4 | Y23: 307.9 | Z23: 319.6 | AA23: 321.6131579
D24: Actual and forecast labour costs for current FTEs ($m) | W24: 40.87678573 | X24: 41.88962131 | Y24: 42.82162252 | Z24: 42.57480311 | AA24: 44.01156781 | AB24: 44.53092467 | AC24: 44.98179392 | AD24: 47.79500866 | AE24: 47.79343591 | AF24: 47.52990573 | AG24: 47.04987565 | AH24: 47.04987565 | AI24: 47.04987565 | AJ24: 47.04987565 | AK24: 47.04987565 | AL24: 47.04987565
D25: Cost per FTE ($000) | W25: =+W24/W23*10^3 -> 132.2873325 | X25: =+X24/X23*10^3 -> 133.6618421 | Y25: =+Y24/Y23*10^3 -> 139.0763966 | Z25: =+Z24/Z23*10^3 -> 133.2127757 | AA25: =+AA24/AA23*10^3 -> 136.846291 | AB25: =+AB24/$AA$23*10^3 -> 138.4611406 | AC25: 139.8630399 | AD25: 148.6102402 | AE25: 148.6053501 | AF25: 147.7859489 | AG25: 146.2933792 | AH25: 146.2933792 | AI25: 146.2933792 | AJ25: 146.2933792 | AK25: 146.2933792 | AL25: 146.2933792
D26: Annual growth in labour costs for current FTEs | X26: =+X25/W25-1 -> 0.01039033436 | Y26: 0.04050935162 | Z26: -0.0421611509 | AA26: 0.02727602762 | AB26: 0.01180046275 | AC26: 0.01012485708 | AD26: 0.06254118594 | AE26: -3.290606346e-05 | AF26: -0.005513941042 | AG26: -0.0100995377 | AH26: =+AH25/AG25-1 -> 0 | AI26: =+AI25/AH25-1 -> 0 | AJ26: =+AJ25/AI25-1 -> 0 | AK26: =+AK25/AJ25-1 -> 0 | AL26: =+AL25/AK25-1 -> 0
D28: Change in FTEs in future periods (net no. annual change) | AB28: 17.28684211 | AC28: 22.7 | AD28: 0 | AE28: 0 | AF28: -2 | AG28: 0 | AH28: 0 | AI28: 0 | AJ28: 0 | AK28: 0 | AL28: 0
D29: Increase or decrease in labour costs ($m) | AB29: 2.251081346 | AC29: 2.898018872 | AD29: 0 | AE29: 0 | AF29: -0.2406051021 | AG29: 0 | AH29: 0 | AI29: 0 | AJ29: 0 | AK29: 0 | AL29: 0
D33: Total FTEs | W33: =+W23 -> 309 | X33: 313.4 | Y33: 307.9 | Z33: 319.6 | AA33: 321.6131579 | AB33: =+$AA$23+SUM($AB28:AB28) -> 338.9 | AC33: =+$AA$23+SUM($AB28:AC28) -> 361.6 | AD33: =+$AA$23+SUM($AB28:AD28) -> 361.6 | AE33: =+$AA$23+SUM($AB28:AE28) -> 361.6 | AF33: =+$AA$23+SUM($AB28:AF28) -> 359.6 | AG33: =+$AA$23+SUM($AB28:AG28) -> 359.6 | AH33: =+$AA$23+SUM($AB28:AH28) -> 359.6 | AI33: =+$AA$23+SUM($AB28:AI28) -> 359.6 | AJ33: =+$AA$23+SUM($AB28:AJ28) -> 359.6 | AK33: =+$AA$23+SUM($AB28:AK28) -> 359.6 | AL33: =+$AA$23+SUM($AB28:AL28) -> 359.6
D34: Total labour costs ($m) | W34: 40.87678573 | X34: 41.88962131 | Y34: 42.82162252 | Z34: 42.57480311 | AA34: 44.01156781 | AB34: =+AB29+AB24 -> 46.78200602 | AC34: 47.87981279 | AD34: 47.79500866 | AE34: 47.79343591 | AF34: 47.28930062 | AG34: 47.04987565 | AH34: 47.04987565 | AI34: 47.04987565 | AJ34: 47.04987565 | AK34: 47.04987565 | AL34: 47.04987565
D35: Cost per FTE | W35: =+W34/W33 -> 0.1322873325 | X35: 0.1336618421 | Y35: 0.1390763966 | Z35: 0.1332127757 | AA35: 0.136846291 | AB35: 0.1380407377 | AC35: 0.1324109867 | AD35: 0.132176462 | AE35: 0.1321721126 | AF35: 0.1315052854 | AG35: 0.1308394762 | AH35: =+AH34/AH33 -> 0.1308394762 | AI35: =+AI34/AI33 -> 0.1308394762 | AJ35: =+AJ34/AJ33 -> 0.1308394762 | AK35: =+AK34/AK33 -> 0.1308394762 | AL35: =+AL34/AL33 -> 0.1308394762
D36: Annual growth in total labour costs | X36: =+X34/W34-1 -> 0.02477776954 | Y36: 0.02224897691 | Z36: -0.00576389681 | AA36: 0.03374683127 | AB36: 0.06294795551 | AC36: 0.02346643224 | AD36: -0.001771187668 | AE36: -3.290606346e-05 | AF36: -0.01054821191 | AG36: -0.00506298401 | AH36: =+AH34/AG34-1 -> 0 | AI36: 0 | AJ36: 0 | AK36: 0 | AL36: 0
D37: Annual growth in total labour costs per FTE | X37: =+X35/W35-1 -> 0.01039033436 | Y37: 0.04050935162 | Z37: -0.0421611509 | AA37: 0.02727602762 | AB37: 0.008728381965 | AC37: -0.04078325806 | AD37: -0.001771187668 | AE37: -3.290606346e-05 | AF37: -0.00504514301 | AG37: -0.00506298401 | AH37: 0 | AI37: 0 | AJ37: 0 | AK37: 0 | AL37: 0
C42: Energy assumptions
D44: Electricity - traditional sources
D46: BASE LOAD
D48: Large sites
D49: Total kWh | W49: 24044124 | X49: 27691114 | Y49: 28749093 | Z49: 25758367 | AA49: 23865214 | AB49: 27590790.67 | AC49: 26512674.95 | AD49: 26512674.95 | AE49: 26512674.95 | AF49: 26512674.95 | AG49: 26512674.95 | AH49: 26512674.95 | AI49: 26512674.95 | AJ49: 26512674.95 | AK49: 26512674.95 | AL49: 26512674.95
D50: Total electricity costs ($m) | W50: 3.793151839 | X50: 5.389832464 | Y50: 5.033821995 | Z50: 3.868651114 | AA50: 3.302989958 | AB50: 4.392326979 | AC50: 4.275019811 | AD50: 4.147792589 | AE50: 4.140794134 | AF50: 4.171498112 | AG50: 4.030589919 | AH50: 4.030589073 | AI50: 4.030589073 | AJ50: 4.030589073 | AK50: 4.030589073 | AL50: 4.030589073
D51: Average c/kWh | W51: =+W50/W49*100*10^6 -> 15.77579553 | X51: 19.46412291 | Y51: 17.50949846 | Z51: 15.01900767 | AA51: 13.8401858 | AB51: 15.91954008 | AC51: =+AC50/AC49*100*10^6 -> 16.12443791 | AD51: 15.64456471 | AE51: 15.61816807 | AF51: 15.73397675 | AG51: 15.20250192 | AH51: 15.20249873 | AI51: 15.20249873 | AJ51: 15.20249873 | AK51: 15.20249873 | AL51: 15.20249873
D52: % increase p.a. | X52: =+X51/W51-1 -> 0.2337966014 | Y52: =+Y51/X51-1 -> -0.1004219127 | Z52: =+Z51/Y51-1 -> -0.142236558 | AA52: =+AA51/Z51-1 -> -0.07848866559 | AB52: =+AB51/AA51-1 -> 0.1502403448 | AC52: =+AC51/AB51-1 -> 0.01287083836 | AD52: -0.02976061559 | AE52: -0.001687272293 | AF52: 0.007414997508 | AG52: -0.03377879812 | AH52: -2.099630954e-07 | AI52: 0 | AJ52: 0 | AK52: 0 | AL52: 0
D54: Medium sites
D55: Total kWh
D56: Total electricity costs ($m)
D57: Average c/kWh | W57: =+W56/W55*100*10^6 ->  | AC57: =+AC56/AC55*100*10^6 -> 
D58: % increase p.a. | X58: =+X57/W57-1 ->  | Y58: =+Y57/X57-1 ->  | Z58: =+Z57/Y57-1 ->  | AA58: =+AA57/Z57-1 ->  | AB58: =+AB57/AA57-1 ->  | AC58: =+AC57/AB57-1 -> 
D60: Small sites
D61: Total kWh | W61: 5204085 | X61: 5583844.416 | Y61: 5570210.015 | Z61: 6123708.413 | AA61: 5854420.928 | AB61: 2018882.768 | AC61: 2039071.596 | AD61: 2059462.312 | AE61: 2080056.935 | AF61: 2100857.504 | AG61: 2121866.08 | AH61: 2121866.08 | AI61: 2121866.08 | AJ61: 2121866.08 | AK61: 2121866.08 | AL61: 2121866.08
D62: Total electricity costs ($m) | W62: 1.11609982 | X62: 1.290754718 | Y62: 1.353636073 | Z62: 1.288653443 | AA62: 1.093468311 | AB62: 0.4778927011 | AC62: 0.4973759552 | AD62: 0.490940185 | AE62: 0.5003128984 | AF62: 0.5150436761 | AG62: 0.508071497 | AH62: 0.5080713904 | AI62: 0.5080713904 | AJ62: 0.5080713904 | AK62: 0.5080713904 | AL62: 0.5080713904
D63: Average c/kWh | W63: =+W62/W61*100*10^6 -> 21.44661012 | X63: 23.11587899 | Y63: 24.30134715 | Z63: 21.04367739 | AA63: 18.67765104 | AB63: 23.67114667 | AC63: =+AC62/AC61*100*10^6 -> 24.3922752 | AD63: 23.83826993 | AE63: 24.05284634 | AF63: 24.51587864 | AG63: 23.94456002 | AH63: 23.944555 | AI63: 23.944555 | AJ63: 23.944555 | AK63: 23.944555 | AL63: 23.944555
D64: % increase p.a. | X64: =+X63/W63-1 -> 0.07783369303 | Y64: =+Y63/X63-1 -> 0.05128371549 | Z64: =+Z63/Y63-1 -> -0.1340530525 | AA64: =+AA63/Z63-1 -> -0.1124340725 | AB64: =+AB63/AA63-1 -> 0.2673513718 | AC64: =+AC63/AB63-1 -> 0.03046445291 | AD64: -0.02271232461 | AE64: 0.009001341641 | AF64: 0.01925062384 | AG64: -0.02330402353 | AH64: -2.099630948e-07 | AI64: 0 | AJ64: 0 | AK64: 0 | AL64: 0
D67: NEW PROJECTS
D69: Large sites
D70: Total kWh
D71: Total electricity costs ($m)
D72: Average c/kWh | W72: =+W71/W70*100*10^6 ->  | AC72: =+AC71/AC70*100*10^6 -> 
D73: % increase p.a. | X73: =+X72/W72-1 ->  | Y73: =+Y72/X72-1 ->  | Z73: =+Z72/Y72-1 ->  | AA73: =+AA72/Z72-1 ->  | AB73: =+AB72/AA72-1 ->  | AC73: =+AC72/AB72-1 -> 
D75: Medium sites
D76: Total kWh
D77: Total electricity costs ($m)
D78: Average c/kWh | W78: =+W77/W76*100*10^6 ->  | AC78: =+AC77/AC76*100*10^6 -> 
D79: % increase p.a. | X79: =+X78/W78-1 ->  | Y79: =+Y78/X78-1 ->  | Z79: =+Z78/Y78-1 ->  | AA79: =+AA78/Z78-1 ->  | AB79: =+AB78/AA78-1 ->  | AC79: =+AC78/AB78-1 -> 
D81: Small sites
D82: Total kWh
D83: Total electricity costs ($m)
D84: Average c/kWh | W84: =+W83/W82*100*10^6 ->  | X84: =+X83/X82*100*10^6 ->  | AH84: =+AH83/AH82*100*10^6 ->  | AI84: =+AI83/AI82*100*10^6 ->  | AJ84: =+AJ83/AJ82*100*10^6 ->  | AK84: =+AK83/AK82*100*10^6 ->  | AL84: =+AL83/AL82*100*10^6 -> 
D85: % increase p.a. | X85: =+X84/W84-1 ->  | Y85: =+Y84/X84-1 ->  | Z85: =+Z84/Y84-1 ->  | AA85: =+AA84/Z84-1 ->  | AB85: =+AB84/AA84-1 ->  | AC85: =+AC84/AB84-1 -> 
D88: Greenhouse Gas Offsets
D89: % increase p.a. | X89: =X88/W88-1 ->  | AH89: =AH88/AG88-1 ->  | AI89: =AI88/AH88-1 ->  | AJ89: =AJ88/AI88-1 ->  | AK89: =AK88/AJ88-1 ->  | AL89: =AL88/AK88-1 -> 
D92: TOTAL ENERGY COSTS | W92: =+SUM(W50,W56,W62,W71,W77,W83,W88) -> 4.90925166 | X92: 6.680587182 | Y92: 6.387458068 | Z92: 5.157304557 | AA92: 4.396458269 | AB92: 4.87021968 | AC92: 4.772395766 | AD92: 4.638732774 | AE92: 4.641107032 | AF92: 4.686541788 | AG92: =+SUM(AG50,AG56,AG62,AG71,AG77,AG83,AG88) -> 4.538661416 | AH92: 4.538660464 | AI92: 4.538660464 | AJ92: 4.538660464 | AK92: 4.538660464 | AL92: 4.538660464
D93: % increase p.a. | W93: =W92/V92-1 ->  | X93: 0.3608157914 | Y93: -0.04387774693 | Z93: -0.1925888982 | AA93: -0.1475278954 | AB93: 0.1077597879 | AC93: -0.02008613997 | AD93: -0.02800752453 | AE93: 0.0005118332926 | AF93: 0.009789637605 | AG93: -0.0315542629 | AH93: =AH92/AG92-1 -> -2.099630954e-07 | AI93: =AI92/AH92-1 -> 0 | AJ93: =AJ92/AI92-1 -> 0 | AK93: =AK92/AJ92-1 -> 0 | AL93: =AL92/AK92-1 -> 0
C98: IT cost assumptions
D100: Water related IT costs | W100: 4.874138342 | X100: 4.085493055 | Y100: 3.887167014 | Z100: 4.55399145 | AA100: 4.863752476 | AB100: 5.886896745 | AC100: 6.605849684 | AD100: 6.992746155 | AE100: 7.70239524 | AF100: 7.720715057 | AG100: 7.222699321 | AH100: 7.222697804 | AI100: 7.222697804 | AJ100: 7.222697804 | AK100: 7.222697804 | AL100: 7.222697804
D101: Sewerage and trade waste related IT costs | W101: 3.576101127 | X101: 2.997480845 | Y101: 2.851971234 | Z101: 3.341212911 | AA101: 3.568481132 | AB101: 4.31915071 | AC101: 4.846638491 | AD101: 5.130500131 | AE101: 5.651161778 | AF101: 5.664602823 | AG101: 5.299214213 | AH101: 5.2992131 | AI101: 5.2992131 | AJ101: 5.2992131 | AK101: 5.2992131 | AL101: 5.2992131
D102: Other IT costs | W102: 1.069011389 | X102: 0.8960432182 | Y102: 0.8525457256 | Z102: 0.9987957634 | AA102: 1.066733528 | AB102: 1.291132755 | AC102: 1.448815781 | AD102: 1.533671134 | AE102: 1.689313609 | AF102: 1.693331569 | AG102: 1.584105188 | AH102: 1.584104855 | AI102: 1.584104855 | AJ102: 1.584104855 | AK102: 1.584104855 | AL102: 1.584104855
D103: Total IT costs | W103: =SUM(W100:W102) -> 9.519250859 | X103: 7.979017119 | Y103: 7.591683974 | Z103: 8.894000124 | AA103: 9.498967136 | AB103: 11.49718021 | AC103: =SUM(AC100:AC102) -> 12.90130396 | AD103: 13.65691742 | AE103: 15.04287063 | AF103: 15.07864945 | AG103: 14.10601872 | AH103: 14.10601576 | AI103: 14.10601576 | AJ103: 14.10601576 | AK103: 14.10601576 | AL103: 14.10601576
D104: % increase p.a. | X104: =X103/W103-1 -> -0.1618019908 | Y104: -0.04854396717 | Z104: 0.1715450953 | AA104: 0.06801967656 | AB104: 0.2103610893 | AC104: 0.1221276626 | AD104: 0.05856876695 | AE104: 0.1014836046 | AF104: 0.002378457083 | AG104: -0.06450383578 | AH104: =AH103/AG103-1 -> -2.099630952e-07 | AI104: =AI103/AH103-1 -> 0 | AJ104: =AJ103/AI103-1 -> 0 | AK104: =AK103/AJ103-1 -> 0 | AL104: =AL103/AK103-1 -> 0
C109: Chemical cost assumptions
D111: Water related chemical costs | W111: 1.305752065 | X111: 1.610464305 | Y111: 1.292844433 | Z111: 1.388421731 | AA111: 1.592620592 | AB111: 1.71701748 | AC111: 1.758630081 | AD111: 1.804598767 | AE111: 1.846787005 | AF111: 1.884502526 | AG111: 1.920842776 | AH111: 1.920842373 | AI111: 1.920842373 | AJ111: 1.920842373 | AK111: 1.920842373 | AL111: 1.920842373
D112: Sewerage and trade waste related chemical costs | W112: 0.9220576591 | X112: 1.113623048 | Y112: 1.498040038 | Z112: 1.464133786 | AA112: 1.708830672 | AB112: 1.4629746 | AC112: 1.618083123 | AD112: 1.649786737 | AE112: 1.675229275 | AF112: 1.706053235 | AG112: 1.737270105 | AH112: 1.73726974 | AI112: 1.73726974 | AJ112: 1.73726974 | AK112: 1.73726974 | AL112: 1.73726974
D113: Other chemical costs | W113: 0.3832642986 | X113: 0.3708890124 | Y113: 0.3437250362 | Z113: 0.2849852681 | AA113: 0.2758462243 | AB113: 0.36522696 | AC113: 0.3877396438 | AD113: 0.383199943 | AE113: 0.384764933 | AF113: 0.3859855821 | AG113: 0.3874228757 | AH113: 0.3874227944 | AI113: 0.3874227944 | AJ113: 0.3874227944 | AK113: 0.3874227944 | AL113: 0.3874227944
D114: Total chemical costs | W114: 2.611074022 | X114: 3.094976365 | Y114: 3.134609507 | Z114: 3.137540785 | AA114: 3.577297489 | AB114: 3.54521904 | AC114: 3.764452849 | AD114: 3.837585447 | AE114: 3.906781214 | AF114: 3.976541343 | AG114: 4.045535757 | AH114: 4.045534907 | AI114: 4.045534907 | AJ114: 4.045534907 | AK114: 4.045534907 | AL114: 4.045534907
D115: % increase p.a. | X115: =X114/W114-1 -> 0.1853269339 | Y115: 0.01280563634 | Z115: 0.0009351334709 | AA115: 0.1401596772 | AB115: -0.008967229818 | AC115: 0.06183928445 | AD115: 0.01942715208 | AE115: 0.01803106872 | AF115: 0.01785616482 | AG115: 0.01735035753 | AH115: =AH114/AG114-1 -> -2.099630951e-07 | AI115: =AI114/AH114-1 -> 0 | AJ115: =AJ114/AI114-1 -> 0 | AK115: =AK114/AJ114-1 -> 0 | AL115: =AL114/AK114-1 -> 0

Sheet Opex_FO
A1: 80 | B1: Operating Expenditure - Forecast
B2: =Model_Name -> Barwon Water
B3: Go to Table of Contents
L4: FIRST REG PERIOD | P4: SECOND REG PERIOD | U4: THIRD REG PERIOD | Z4: FOURTH REG PERIOD | AE4: FIFTH REG PERIOD | AJ4: SIXTH REG PERIOD
K5: 2006 | L5: 2007 | M5: 2008 | N5: 2009 | O5: 2010 | P5: 2011 | Q5: 2012 | R5: 2013 | S5: 2014 | T5: 2015 | U5: 2016 | V5: 2017 | W5: 2018 | X5: 2019 | Y5: 2020 | Z5: 2021 | AA5: 2022 | AB5: 2023 | AC5: 2024 | AD5: 2025 | AE5: 2026 | AF5: 2027 | AG5: 2028 | AH5: 2029 | AI5: 2030 | AJ5: 2031 | AK5: 2032 | AL5: 2033
B6: =Expenditure_Detail!$B$6 -> $m, 01/01/23 | K6: =+CONCATENATE(K5-1,"-",RIGHT(K5,2)) -> 2005-06 | L6: =+CONCATENATE(L5-1,"-",RIGHT(L5,2)) -> 2006-07 | M6: 2007-08 | N6: 2008-09 | O6: 2009-10 | P6: 2010-11 | Q6: 2011-12 | R6: 2012-13 | S6: 2013-14 | T6: 2014-15 | U6: 2015-16 | V6: 2016-17 | W6: 2017-18 | X6: 2018-19 | Y6: 2019-20 | Z6: 2020-21 | AA6: 2021-22 | AB6: 2022-23 | AC6: 2023-24 | AD6: 2024-25 | AE6: 2025-26 | AF6: 2026-27 | AG6: 2027-28 | AH6: =+CONCATENATE(AH5-1,"-",RIGHT(AH5,2)) -> 2028-29 | AI6: =+CONCATENATE(AI5-1,"-",RIGHT(AI5,2)) -> 2029-30 | AJ6: =+CONCATENATE(AJ5-1,"-",RIGHT(AJ5,2)) -> 2030-31 | AK6: =+CONCATENATE(AK5-1,"-",RIGHT(AK5,2)) -> 2031-32 | AL6: =+CONCATENATE(AL5-1,"-",RIGHT(AL5,2)) -> 2032-33
C9: Parameters | G9: 4th period | I9: 5th period
D11: Cost efficiency improvement rate (% per annum) | G11: =Determination_Lookup!X33 -> 0.02253389274 | I11: =IFERROR(AVERAGE(AC11:AG11),"-") -> 0.0195 | AC11: 0.0195 | AD11: 0.0195 | AE11: 0.0195 | AF11: 0.0195 | AG11: 0.0195 | AH11: =AG11 -> 0.0195 | AI11: 0.0195 | AJ11: 0.0195 | AK11: 0.0195 | AL11: 0.0195
D13: Customer growth forecast (% per annum) | G13: =Determination_Lookup!X34 -> 0.01625148962 | I13: =IFERROR(AVERAGE(AC13:AG13),"-") -> 0.02092123088 | Y13: =IF(Y15="","",Y15/X15-1) -> 0.02541204119 | Z13: =IF(Z15="","",Z15/Y15-1) -> 0.02988468312 | AA13: =IF(AA15="","",AA15/Z15-1) -> 0.02197248754 | AB13: 0.02206904891 | AC13: 0.02158070716 | AD13: 0.02118853034 | AE13: 0.02108346814 | AF13: 0.02070367892 | AG13: 0.02004976982 | AH13: 0.01974814942 | AI13: 0.01942714534 | AJ13: 0.01906620091 | AK13: 0.01845216327 | AL13: 0.01787324569
F14: Net baseline opex growth | G14: =IFERROR(G13-G11,"-") -> -0.006282403124 | I14: =IFERROR(I13-I11,"-") -> 0.001421230876
D15: Water customers (No.) - Residential & Non-Residential - [BED 1] | W15: =RevenuePriceCap_FO!W70+RevenuePriceCap_FO!W79 -> 158109 | X15: =RevenuePriceCap_FO!X70+RevenuePriceCap_FO!X79 -> 161695 | Y15: =RevenuePriceCap_FO!Y70+RevenuePriceCap_FO!Y79 -> 165804 | Z15: =RevenuePriceCap_FO!Z70+RevenuePriceCap_FO!Z79 -> 170759 | AA15: =RevenuePriceCap_FO!AA70+RevenuePriceCap_FO!AA79 -> 174511 | AB15: =+AA$15*(1+AB$13) -> 178362.2918 | AC15: 182211.4762 | AD15: 186072.2696 | AE15: 189995.3183 | AF15: 193928.9204 | AG15: 197817.1506 | AH15: =+AG$15*(1+AH$13) -> 201723.6733 | AI15: =+AH$15*(1+AI$13) -> 205642.5884 | AJ15: =+AI$15*(1+AJ$13) -> 209563.4113 | AK15: =+AJ$15*(1+AK$13) -> 213430.3096 | AL15: =+AK$15*(1+AL$13) -> 217245.0019
D17: Sewer customers (No.) - Residential & Non-Residential - [BED 2] | W17: =RevenuePriceCap_FO!W76+RevenuePriceCap_FO!W85 -> 141376 | X17: =RevenuePriceCap_FO!X76+RevenuePriceCap_FO!X85 -> 146272 | Y17: =RevenuePriceCap_FO!Y76+RevenuePriceCap_FO!Y85 -> 150417 | Z17: =RevenuePriceCap_FO!Z76+RevenuePriceCap_FO!Z85 -> 155238 | AA17: =RevenuePriceCap_FO!AA76+RevenuePriceCap_FO!AA85 -> 158879 | AB17: =+AA$17*(1+AB$13) -> 162385.3084 | AC17: 165889.6982 | AD17: 169404.6571 | AE17: 172976.2948 | AF17: 176557.5405 | AG17: 180097.4785 | AH17: =+AG$17*(1+AH$13) -> 183654.0704 | AI17: =+AH$17*(1+AI$13) -> 187221.9448 | AJ17: =+AI$17*(1+AJ$13) -> 190791.556 | AK17: =+AJ$17*(1+AK$13) -> 194312.0729 | AL17: =+AK$17*(1+AL$13) -> 197785.0603
D19: Total metered volume of water delivered to customers (ML) - [BED 10] | W19: =(RevenuePriceCap_FO!W73+RevenuePriceCap_FO!W82)/1000 -> 33485.67869 | X19: =(RevenuePriceCap_FO!X73+RevenuePriceCap_FO!X82)/1000 -> 36057.08981 | Y19: =(RevenuePriceCap_FO!Y73+RevenuePriceCap_FO!Y82)/1000 -> 34053.31396 | Z19: =(RevenuePriceCap_FO!Z73+RevenuePriceCap_FO!Z82)/1000 -> 33532.62166 | AA19: =(RevenuePriceCap_FO!AA73+RevenuePriceCap_FO!AA82)/1000 -> 34816.75377 | AB19: =(RevenuePriceCap_FO!AB73+RevenuePriceCap_FO!AB82)/1000 -> 36101.98036 | AC19: =(RevenuePriceCap_FO!AC73+RevenuePriceCap_FO!AC82)/1000 -> 36869.23695 | AD19: =(RevenuePriceCap_FO!AD73+RevenuePriceCap_FO!AD82)/1000 -> 37423.52172 | AE19: =(RevenuePriceCap_FO!AE73+RevenuePriceCap_FO!AE82)/1000 -> 38032.67696 | AF19: =(RevenuePriceCap_FO!AF73+RevenuePriceCap_FO!AF82)/1000 -> 38716.23283 | AG19: =(RevenuePriceCap_FO!AG73+RevenuePriceCap_FO!AG82)/1000 -> 39533.70986 | AH19: =(RevenuePriceCap_FO!AH73+RevenuePriceCap_FO!AH82)/1000 -> 40258.3711 | AI19: =(RevenuePriceCap_FO!AI73+RevenuePriceCap_FO!AI82)/1000 -> 40996.31553 | AJ19: =(RevenuePriceCap_FO!AJ73+RevenuePriceCap_FO!AJ82)/1000 -> 41747.78664 | AK19: =(RevenuePriceCap_FO!AK73+RevenuePriceCap_FO!AK82)/1000 -> 42513.03237 | AL19: =(RevenuePriceCap_FO!AL73+RevenuePriceCap_FO!AL82)/1000 -> 43292.30522
D20: Residential, Non-Residential & Recycled (Residential & Non-Residential)
C24: Baseline Forecast
D26: Baseline year - total prescribed operating expenditure in 2021-22: | AA26: =+Opex_Breakdown!AA37 -> 132.0217496
D28: Less non-controllable expenditure items incurred in 2021-22:
E29: External bulk water charges (excl. temporary purchases) | AA29: =+Opex_Breakdown!AA29 -> 0
E30: External temporary water purchases | AA30: =+Opex_Breakdown!AA30 -> 0 | AC30: Comparison with approved 2021-22 total controllable opex
E31: Licence fees | AA31: =+Opex_Breakdown!AA31 -> 0.4883903195 | AC31: per 2018 determination model
E32: Environment Contribution | AA32: =+Opex_Breakdown!AA32 -> 10.08681632
E33: Other non-controllable | AA33: =+Opex_Breakdown!AA33 -> 0
AA34: =SUM(AA29:AA33) -> 10.57520664 | AD34: 2021-22 | AE34: Difference | AF34: %
D36: Baseline year - total controllable operating expenditure in 2021-22: | AA36: =+AA26-AA34 -> 121.446543 | AD36: =Determination_Lookup!Q18 -> 98.64574744 | AE36: =+AA52-AD36 -> 16.39223438 | AF36: =+AE36/AD36 -> 0.1661727424
D38: Adjustments for non-recurring expenditure items incurred in 2021-22 and any efficiency savings to be realised from 2021-22: | AC38: ($, 2022-23)
D40: 1 | E40: Salt Torquay Developer reimbursement | AA40: 6.182488541
D41: 2 | E41: Bore installation | AA41: 0.126926346
D42: 3 | E42: Water for our future | AA42: 0.09914627366
D43: 4
D44: 5
D45: 6
D46: 7
D47: 8
D48: 9
D49: 10
AA50: =SUM(AA40:AA49) -> 6.40856116
D52: Adjusted baseline controllable operating expenditure (2021-22) | AA52: =+AA36-AA50 -> 115.0379818
D54: Adjusted baseline controllable operating expenditure (Forecast) | AB54: =+AA52*(1+$AB$13-$G$11) -> 114.9845071 | AC54: =+AB$54*(1+AC$13-AC$11) -> 115.2237562 | AD54: 115.418315 | AE54: 115.6010762 | AF54: 115.7402228 | AG54: 115.8038533 | AH54: 115.83259 | AI54: 115.824151 | AJ54: 115.7739066 | AK54: 115.6525945 | AL54: 115.4644561
C58: Operating expenditure - reconciliation
D61: Adjusted baseline controllable operating expenditure (Forecast) | AC61: =+AC54 -> 115.2237562 | AD61: 115.418315 | AE61: 115.6010762 | AF61: 115.7402228 | AG61: 115.8038533 | AH61: 115.83259 | AI61: 115.824151 | AJ61: 115.7739066 | AK61: 115.6525945 | AL61: 115.4644561
H62: Controllable
D63: Forecast variations to baseline operating expenditure (above or below baseline) | H63: only
D65: 1 | E65: Customer Outcome 1. Healthier environment - Implementation of Barham Catchment priority actions | H65: Water | AC65: 0.1597707774 | AD65: 0.6095998485 | AE65: 0.5290403067 | AF65: 0.1682163481 | AG65: 0.1422603835
D66: 2 | E66: Customer Outcome 1. Safe, secure, sustainable water - Contribution to readiness investigations for future major water supply | H66: Water | AC66: 0 | AD66: 0 | AE66: 0.6613003833 | AF66: 0.6541746872 | AG66: 0.5506853557
D67: 3 | E67: Customer Outcome 2. Innovative, reliable services - Smart networks | H67: Water | AC67: 0.512821257 | AD67: 0.6455517253 | AE67: 0.8167108292 | AF67: 0.5520445052 | AG67: 0.5770004979
D68: 4 | E68: Customer Outcome 2. Innovative, reliable services - Cyber security uplift | H68: Water | AC68: 1.075124489 | AD68: 1.06263927 | AE68: 1.058235842 | AF68: 1.067769716 | AG68: 1.069631916
D69: 5 | E69: Customer Outcome 3. Healthier environment - Upper Barwon River Health initiatives (CCMA Living Barwon initiatives) | H69: Water | AC69: 0.1680833214 | AD69: 0.1756824091 | AE69: 0.1846445992 | AF69: 0.1960041002 | AG69: 0.2059991113
D70: 6 | E70: Customer Outcome 3. Healthier environment - Stretch RAP – including strengthening relationship with Eastern Maar | H70: Water | AC70: 0.1283431864 | AD70: 0.129300308 | AE70: 0.1311541179 | AF70: 0.1346995772 | AG70: 0.1372560487
D71: 7 | E71: Customer Outcome 3. Healthier environment - Prepare and implement decommissioning plan for Barwon Downs | H71: Water | AC71: 0 | AD71: 0 | AE71: 0 | AF71: 0.8410817407 | AG71: 0
D72: 8 | E72: Customer Outcome 4. Trust, value & affordablity - Increase to hardship program (direct customer support payments) | H72: Water | AC72: 0.1672242339 | AD72: 0.1655945573 | AE72: 0.1652132321 | AF72: 0.1670032653 | AG72: 0.1675907122
D73: 9
D74: 10
D75: 11
D76: 12
D77: 13
D78: 14
D79: 15
D81: Total changes required to baseline operating expenditure | AC81: =SUM(AC65:AC80) -> 2.211367266 | AD81: 2.788368119 | AE81: 3.54629931 | AF81: 3.78099394 | AG81: 2.850424025 | AH81: 0 | AI81: 0 | AJ81: 0 | AK81: 0 | AL81: 0
D84: Total controllable operating expenditure | AC84: =+AC81+AC61 -> 117.4351235 | AD84: 118.2066831 | AE84: 119.1473755 | AF84: 119.5212168 | AG84: 118.6542773 | AH84: 115.83259 | AI84: 115.824151 | AJ84: 115.7739066 | AK84: 115.6525945 | AL84: 115.4644561
D86: Non-controllable operating expenditure
D87: External bulk water charges (excl. temporary purchases) | AC87: =+Opex_Breakdown!AC29 -> 6.153211765 | AD87: =+Opex_Breakdown!AD29 -> 6.207594925 | AE87: =+Opex_Breakdown!AE29 -> 6.265860943 | AF87: =+Opex_Breakdown!AF29 -> 6.334236928 | AG87: =+Opex_Breakdown!AG29 -> 6.413481676 | AH87: =+Opex_Breakdown!AH29 -> 6.413481676 | AI87: =+Opex_Breakdown!AI29 -> 6.413481676 | AJ87: =+Opex_Breakdown!AJ29 -> 6.413481676 | AK87: =+Opex_Breakdown!AK29 -> 6.413481676 | AL87: =+Opex_Breakdown!AL29 -> 6.413481676
D88: External temporary water purchases | AC88: =+Opex_Breakdown!AC30 -> 0 | AD88: =+Opex_Breakdown!AD30 -> 0 | AE88: =+Opex_Breakdown!AE30 -> 0 | AF88: =+Opex_Breakdown!AF30 -> 0 | AG88: =+Opex_Breakdown!AG30 -> 0 | AH88: =+Opex_Breakdown!AH30 -> 0 | AI88: =+Opex_Breakdown!AI30 -> 0 | AJ88: =+Opex_Breakdown!AJ30 -> 0 | AK88: =+Opex_Breakdown!AK30 -> 0 | AL88: =+Opex_Breakdown!AL30 -> 0
D89: Licence fees | AC89: =+Opex_Breakdown!AC31 -> 0.475349 | AD89: =+Opex_Breakdown!AD31 -> 0.4753490004 | AE89: =+Opex_Breakdown!AE31 -> 0.4753489985 | AF89: =+Opex_Breakdown!AF31 -> 0.4753490048 | AG89: =+Opex_Breakdown!AG31 -> 0.4753490039 | AH89: =+Opex_Breakdown!AH31 -> 0.4753490039 | AI89: =+Opex_Breakdown!AI31 -> 0.4753490039 | AJ89: =+Opex_Breakdown!AJ31 -> 0.4753490039 | AK89: =+Opex_Breakdown!AK31 -> 0.4753490039 | AL89: =+Opex_Breakdown!AL31 -> 0.4753490039
D90: Environment Contribution | AC90: =+Opex_Breakdown!AC32 -> 9.318786408 | AD90: =+Opex_Breakdown!AD32 -> 9.047365444 | AE90: =+Opex_Breakdown!AE32 -> 8.783849946 | AF90: =+Opex_Breakdown!AF32 -> 8.528009656 | AG90: =+Opex_Breakdown!AG32 -> 8.279621026 | AH90: =+Opex_Breakdown!AH32 -> 8.279621026 | AI90: =+Opex_Breakdown!AI32 -> 8.279621026 | AJ90: =+Opex_Breakdown!AJ32 -> 8.279621026 | AK90: =+Opex_Breakdown!AK32 -> 8.279621026 | AL90: =+Opex_Breakdown!AL32 -> 8.279621026
D91: Other non-controllable | AC91: =+Opex_Breakdown!AC33 -> 0 | AD91: =+Opex_Breakdown!AD33 -> 0 | AE91: =+Opex_Breakdown!AE33 -> 0 | AF91: =+Opex_Breakdown!AF33 -> 0 | AG91: =+Opex_Breakdown!AG33 -> 0 | AH91: =+Opex_Breakdown!AH33 -> 0 | AI91: =+Opex_Breakdown!AI33 -> 0 | AJ91: =+Opex_Breakdown!AJ33 -> 0 | AK91: =+Opex_Breakdown!AK33 -> 0 | AL91: =+Opex_Breakdown!AL33 -> 0
D92: Total non-controllable operating expenditure | AC92: =SUM(AC87:AC91) -> 15.94734717 | AD92: 15.73030937 | AE92: 15.52505989 | AF92: 15.33759559 | AG92: 15.16845171 | AH92: 15.16845171 | AI92: 15.16845171 | AJ92: 15.16845171 | AK92: 15.16845171 | AL92: 15.16845171
D95: Total prescribed operating expenditure | AC95: =+AC92+AC84 -> 133.3824706 | AD95: 133.9369925 | AE95: 134.6724354 | AF95: 134.8588123 | AG95: 133.822729 | AH95: 131.0010417 | AI95: 130.9926027 | AJ95: 130.9423583 | AK95: 130.8210462 | AL95: 130.6329078
AB98: To reconcile to 'Opex_Breakdown' tab row 37 >> | AC98: =+Opex_Breakdown!AC37 -> 133.3824706 | AD98: =+Opex_Breakdown!AD37 -> 133.9369925 | AE98: =+Opex_Breakdown!AE37 -> 134.6724354 | AF98: =+Opex_Breakdown!AF37 -> 134.8588123 | AG98: =+Opex_Breakdown!AG37 -> 133.822729 | AH98: =+Opex_Breakdown!AH37 -> 131.0010417 | AI98: =+Opex_Breakdown!AI37 -> 130.9926027 | AJ98: =+Opex_Breakdown!AJ37 -> 130.9423583 | AK98: =+Opex_Breakdown!AK37 -> 130.8210462 | AL98: =+Opex_Breakdown!AL37 -> 130.6329078
AB99: Difference | AC99: =+AC98-AC95 -> 0 | AD99: 0 | AE99: 0 | AF99: 0 | AG99: 0 | AH99: 0 | AI99: 0 | AJ99: 0 | AK99: 0 | AL99: 0
AB100: Test | AC100: =IF(ROUND(AC98,2)=ROUND(AC95,2),0,1) -> 0 | AD100: =IF(ROUND(AD98,2)=ROUND(AD95,2),0,1) -> 0 | AE100: 0 | AF100: 0 | AG100: 0 | AH100: 0 | AI100: 0 | AJ100: 0 | AK100: 0 | AL100: 0
AC139: =+AC$160 -> 2023-24 | AD139: 2024-25 | AE139: 2025-26 | AF139: 2026-27 | AG139: 2027-28 | AH139: 2028-29 | AI139: 2029-30 | AJ139: 2030-31 | AK139: 2031-32 | AL139: 2032-33
AB140: Total controllable opex | AC140: =+AC84 -> 117.4351235 | AD140: 118.2066831 | AE140: 119.1473755 | AF140: 119.5212168 | AG140: 118.6542773 | AH140: 115.83259 | AI140: 115.824151 | AJ140: 115.7739066 | AK140: 115.6525945 | AL140: 115.4644561
AB141: Change - $ | AD141: =+AD140-AC140 -> 0.7715596609 | AE141: 0.940692416 | AF141: 0.3738412094 | AG141: -0.8669394338 | AH141: -2.821687366 | AI141: -0.0084389435 | AJ141: -0.05024441083 | AK141: -0.1213121512 | AL141: -0.1881383566
AB142: Change - % | AC142: =IFERROR(AC141/AB140,"") ->  | AD142: 0.006570092815 | AE142: 0.007958030723 | AF142: 0.003137636962 | AG142: -0.007253435476 | AH142: -0.02378074714 | AI142: -7.285465604e-05 | AJ142: -0.0004337990859 | AK142: -0.001047836726 | AL142: -0.001626754311
AC144: =+AC$160 -> 2023-24 | AD144: 2024-25 | AE144: 2025-26 | AF144: 2026-27 | AG144: 2027-28 | AH144: 2028-29 | AI144: 2029-30 | AJ144: 2030-31 | AK144: 2031-32 | AL144: 2032-33
AB145: Total non-controllable opex | AC145: =+AC92 -> 15.94734717 | AD145: 15.73030937 | AE145: 15.52505989 | AF145: 15.33759559 | AG145: 15.16845171 | AH145: 15.16845171 | AI145: 15.16845171 | AJ145: 15.16845171 | AK145: 15.16845171 | AL145: 15.16845171
AB146: Change - $ | AD146: =+AD145-AC145 -> -0.2170378026 | AE146: -0.2052494819 | AF146: -0.1874642987 | AG146: -0.1691438839 | AH146: 0 | AI146: 0 | AJ146: 0 | AK146: 0 | AL146: 0
AB147: Change - % | AC147: =IFERROR(AC146/AB145,"") ->  | AD147: -0.01360964932 | AE147: -0.01304802576 | AF147: -0.01207494851 | AG147: -0.01102805736 | AH147: 0 | AI147: 0 | AJ147: 0 | AK147: 0 | AL147: 0
AC149: =+AC$160 -> 2023-24 | AD149: 2024-25 | AE149: 2025-26 | AF149: 2026-27 | AG149: 2027-28 | AH149: 2028-29 | AI149: 2029-30 | AJ149: 2030-31 | AK149: 2031-32 | AL149: 2032-33
AB150: Total prescribed opex | AC150: =+AC140+AC145 -> 133.3824706 | AD150: 133.9369925 | AE150: 134.6724354 | AF150: 134.8588123 | AG150: 133.822729 | AH150: 131.0010417 | AI150: 130.9926027 | AJ150: 130.9423583 | AK150: 130.8210462 | AL150: 130.6329078
AB151: Change - $ | AD151: =+AD150-AC150 -> 0.5545218583 | AE151: 0.7354429341 | AF151: 0.1863769107 | AG151: -1.036083318 | AH151: -2.821687366 | AI151: -0.0084389435 | AJ151: -0.05024441083 | AK151: -0.1213121512 | AL151: -0.1881383566
AB152: Change - % | AC152: =IFERROR(AC151/AB150,"") ->  | AD152: 0.004157381818 | AE152: 0.005490961984 | AF152: 0.001383927677 | AG152: -0.007682726102 | AH152: -0.02108526247 | AI152: -6.441890379e-05 | AJ152: -0.00038356678 | AK152: -0.000926454608 | AL152: -0.00143813524
AB155: Controllable vs. Non-controllable opex - % | AC155: =+AC$160 -> 2023-24 | AD155: 2024-25 | AE155: 2025-26 | AF155: 2026-27 | AG155: 2027-28 | AH155: 2028-29 | AI155: 2029-30 | AJ155: 2030-31 | AK155: 2031-32 | AL155: 2032-33
AB156: Controllable opex - % | AC156: =+AC84/AC95 -> 0.880438958 | AD156: 0.882554408 | AE156: 0.8847198401 | AF156: 0.8862692373 | AG156: 0.88665265 | AH156: 0.884211213 | AI156: 0.8842037536 | AJ156: 0.8841593209 | AK156: 0.8840519003 | AL156: 0.8838849111
AB157: Non-controllable opex - % | AC157: =+AC92/AC95 -> 0.119561042 | AD157: 0.117445592 | AE157: 0.1152801599 | AF157: 0.1137307627 | AG157: 0.11334735 | AH157: 0.115788787 | AI157: 0.1157962464 | AJ157: 0.1158406791 | AK157: 0.1159480997 | AL157: 0.1161150889
AC158: =SUM(AC156:AC157) -> 1 | AD158: 1 | AE158: 1 | AF158: 1 | AG158: 1 | AH158: 1 | AI158: 1 | AJ158: 1 | AK158: 1 | AL158: 1
AA160: =+AA6 -> 2021-22 | AB160: 2022-23 | AC160: 2023-24 | AD160: 2024-25 | AE160: 2025-26 | AF160: 2026-27 | AG160: 2027-28 | AH160: =+AH6 -> 2028-29 | AI160: =+AI6 -> 2029-30 | AJ160: =+AJ6 -> 2030-31 | AK160: =+AK6 -> 2031-32 | AL160: =+AL6 -> 2032-33
Y161: Fourth reg period opex | Z161: Third Reg period Opex | AA161: =+AA169-SUM(AA162:AA168) -> 132.0217496 | AB161: =+AB169-SUM(AB162:AB168) -> 125.0428191
Z162: Adjusted baseline opex | AC162: =+AC61 -> 115.2237562 | AD162: 115.418315 | AE162: 115.6010762 | AF162: 115.7402228 | AG162: 115.8038533 | AH162: 115.83259 | AI162: 115.824151 | AJ162: 115.7739066 | AK162: 115.6525945 | AL162: 115.4644561
Z163: Forecast variations to baseline operating expenditure | AC163: =+AC81 -> 2.211367266 | AD163: 2.788368119 | AE163: 3.54629931 | AF163: 3.78099394 | AG163: 2.850424025 | AH163: 0 | AI163: 0 | AJ163: 0 | AK163: 0 | AL163: 0
Z164: Licence fees | AA164: =+AA193 -> 0 | AB164: =+AB193 -> 0 | AC164: =+AC89 -> 0.475349 | AD164: 0.4753490004 | AE164: 0.4753489985 | AF164: 0.4753490048 | AG164: 0.4753490039 | AH164: =+AH89 -> 0.4753490039 | AI164: 0.4753490039 | AJ164: 0.4753490039 | AK164: 0.4753490039 | AL164: 0.4753490039
Z165: Environment Contribution | AA165: =+AA194 -> 0 | AB165: =+AB194 -> 0 | AC165: 9.318786408 | AD165: 9.047365444 | AE165: 8.783849946 | AF165: 8.528009656 | AG165: 8.279621026 | AH165: 8.279621026 | AI165: 8.279621026 | AJ165: 8.279621026 | AK165: 8.279621026 | AL165: 8.279621026
Z166: External bulk water charges | AA166: =+AA191 -> 0 | AB166: =+AB191 -> 0 | AC166: =+AC87 -> 6.153211765 | AD166: 6.207594925 | AE166: 6.265860943 | AF166: 6.334236928 | AG166: 6.413481676 | AH166: =+AH87 -> 6.413481676 | AI166: 6.413481676 | AJ166: 6.413481676 | AK166: 6.413481676 | AL166: 6.413481676
Z167: External temporary water purchases | AA167: =+AA192 -> 0 | AB167: =+AB192 -> 0 | AC167: 0 | AD167: 0 | AE167: 0 | AF167: 0 | AG167: 0 | AH167: 0 | AI167: 0 | AJ167: 0 | AK167: 0 | AL167: 0
Z168: Other non-controllable | AA168: =+AA195 -> 0 | AB168: =+AB195 -> 0 | AC168: =+AC91 -> 0 | AD168: 0 | AE168: 0 | AF168: 0 | AG168: 0 | AH168: 0 | AI168: 0 | AJ168: 0 | AK168: 0 | AL168: 0
Z169: Total prescribed opex | AA169: =+Opex_Breakdown!AA37 -> 132.0217496 | AB169: =+Opex_Breakdown!AB37 -> 125.0428191 | AC169: =SUM(AC162:AC168) -> 133.3824706 | AD169: 133.9369925 | AE169: 134.6724354 | AF169: 134.8588123 | AG169: 133.822729 | AH169: 131.0010417 | AI169: 130.9926027 | AJ169: 130.9423583 | AK169: 130.8210462 | AL169: 130.6329078
AC171: =+AC$160 -> 2023-24 | AD171: 2024-25 | AE171: 2025-26 | AF171: 2026-27 | AG171: 2027-28 | AH171: 2028-29 | AI171: 2029-30 | AJ171: 2030-31 | AK171: 2031-32 | AL171: 2032-33
AB172: Adjusted baseline opex | AC172: =+AC162/AC$169 -> 0.8638598134 | AD172: 0.8617359018 | AE172: 0.8583870624 | AF172: 0.858232553 | AG172: 0.8653526508 | AH172: 0.884211213 | AI172: 0.8842037536 | AJ172: 0.8841593209 | AK172: 0.8840519003 | AL172: 0.8838849111
AB173: Forecast variations to baseline operating expenditure | AC173: =+AC163/AC$169 -> 0.01657914458 | AD173: 0.02081850627 | AE173: 0.02633277774 | AF173: 0.02803668425 | AG173: 0.02129999923 | AH173: 0 | AI173: 0 | AJ173: 0 | AK173: 0 | AL173: 0
AB174: Licence fees | AC174: =+AC164/AC$169 -> 0.003563804132 | AD174: 0.003549049381 | AE174: 0.003529668094 | AF174: 0.003524790086 | AG174: 0.003552079735 | AH174: 0.003628589497 | AI174: 0.003628823262 | AJ174: 0.003630215692 | AK174: 0.003633582041 | AL174: 0.003638815149
AB175: Environment Contribution | AC175: =+AC165/AC$169 -> 0.06986515067 | AD175: 0.06754941466 | AE175: 0.06522381449 | AF175: 0.06323657689 | AG175: 0.06187006561 | AH175: 0.06320271137 | AI175: 0.06320678308 | AJ175: 0.06323103641 | AK175: 0.06328967142 | AL175: 0.06338082161
AB176: External bulk water charges (excl. temporary purchases) | AC176: =+AC166/AC$169 -> 0.04613208719 | AD176: 0.04634712792 | AE176: 0.04652667729 | AF176: 0.04696939575 | AG176: 0.04792520465 | AH176: 0.0489574861 | AI176: 0.04896064009 | AJ176: 0.04897942697 | AK176: 0.04902484626 | AL176: 0.04909545216
AB177: External temporary water purchases | AC177: =+AC167/AC$169 -> 0 | AD177: 0 | AE177: 0 | AF177: 0 | AG177: 0 | AH177: 0 | AI177: 0 | AJ177: 0 | AK177: 0 | AL177: 0
AB178: Other non-controllable | AC178: =+AC168/AC$169 -> 0 | AD178: 0 | AE178: 0 | AF178: 0 | AG178: 0 | AH178: 0 | AI178: 0 | AJ178: 0 | AK178: 0 | AL178: 0
AB179: Total prescribed opex | AC179: =+AC169/AC$169 -> 1 | AD179: 1 | AE179: 1 | AF179: 1 | AG179: 1 | AH179: 1 | AI179: 1 | AJ179: 1 | AK179: 1 | AL179: 1
AC181: =+AC$160 -> 2023-24 | AD181: 2024-25 | AE181: 2025-26 | AF181: 2026-27 | AG181: 2027-28 | AH181: 2028-29 | AI181: 2029-30 | AJ181: 2030-31 | AK181: 2031-32 | AL181: 2032-33
AB182: Water | AC182: =+SUMIF($H$65:$H$80,$AB182,AC$65:AC$80) -> 2.211367266 | AD182: =+SUMIF($H$65:$H$80,$AB182,AD$65:AD$80) -> 2.788368119 | AE182: 3.54629931 | AF182: 3.78099394 | AG182: 2.850424025 | AH182: 0 | AI182: 0 | AJ182: 0 | AK182: 0 | AL182: 0
AB183: Sewerage | AC183: 0 | AD183: 0 | AE183: 0 | AF183: 0 | AG183: 0 | AH183: 0 | AI183: 0 | AJ183: 0 | AK183: 0 | AL183: 0
AB184: Recycled Water | AC184: 0 | AD184: 0 | AE184: 0 | AF184: 0 | AG184: 0 | AH184: 0 | AI184: 0 | AJ184: 0 | AK184: 0 | AL184: 0
AB185: Rural water | AC185: 0 | AD185: 0 | AE185: 0 | AF185: 0 | AG185: 0 | AH185: 0 | AI185: 0 | AJ185: 0 | AK185: 0 | AL185: 0
AB186: Bulk Water | AC186: 0 | AD186: 0 | AE186: 0 | AF186: 0 | AG186: 0 | AH186: 0 | AI186: 0 | AJ186: 0 | AK186: 0 | AL186: 0
AB187: Forecast variations to baseline operating expenditure | AC187: =SUM(AC182:AC186) -> 2.211367266 | AD187: 2.788368119 | AE187: 3.54629931 | AF187: 3.78099394 | AG187: 2.850424025 | AH187: 0 | AI187: 0 | AJ187: 0 | AK187: 0 | AL187: 0
AA190: =+AA6 -> 2021-22 | AB190: 2022-23 | AC190: 2023-24 | AD190: 2024-25 | AE190: 2025-26 | AF190: 2026-27 | AG190: 2027-28 | AH190: =+AH6 -> 2028-29 | AI190: =+AI6 -> 2029-30 | AJ190: =+AJ6 -> 2030-31 | AK190: =+AK6 -> 2031-32 | AL190: =+AL6 -> 2032-33
Z191: External bulk water charges (excl. temporary purchases) | AA191: =+AA87 -> 0 | AB191: 0 | AC191: 6.153211765 | AD191: 6.207594925 | AE191: 6.265860943 | AF191: 6.334236928 | AG191: 6.413481676 | AH191: =+AH87 -> 6.413481676 | AI191: 6.413481676 | AJ191: 6.413481676 | AK191: 6.413481676 | AL191: 6.413481676
Z192: External temporary water purchases | AA192: =+AA88 -> 0 | AB192: 0 | AC192: 0 | AD192: 0 | AE192: 0 | AF192: 0 | AG192: 0 | AH192: 0 | AI192: 0 | AJ192: 0 | AK192: 0 | AL192: 0
Z193: Licence fees | AA193: =+AA89 -> 0 | AB193: 0 | AC193: 0.475349 | AD193: 0.4753490004 | AE193: 0.4753489985 | AF193: 0.4753490048 | AG193: 0.4753490039 | AH193: 0.4753490039 | AI193: 0.4753490039 | AJ193: 0.4753490039 | AK193: 0.4753490039 | AL193: 0.4753490039
Z194: Environment Contribution | AA194: =+AA90 -> 0 | AB194: 0 | AC194: 9.318786408 | AD194: 9.047365444 | AE194: 8.783849946 | AF194: 8.528009656 | AG194: 8.279621026 | AH194: 8.279621026 | AI194: 8.279621026 | AJ194: 8.279621026 | AK194: 8.279621026 | AL194: 8.279621026
Z195: Other non-controllable | AA195: =+AA91 -> 0 | AB195: 0 | AC195: 0 | AD195: 0 | AE195: 0 | AF195: 0 | AG195: 0 | AH195: 0 | AI195: 0 | AJ195: 0 | AK195: 0 | AL195: 0
Z196: Total Non-controllable operating expenditure | AA196: =SUM(AA191:AA195) -> 0 | AB196: 0 | AC196: 15.94734717 | AD196: 15.73030937 | AE196: 15.52505989 | AF196: 15.33759559 | AG196: 15.16845171 | AH196: =SUM(AH191:AH195) -> 15.16845171 | AI196: =SUM(AI191:AI195) -> 15.16845171 | AJ196: =SUM(AJ191:AJ195) -> 15.16845171 | AK196: =SUM(AK191:AK195) -> 15.16845171 | AL196: =SUM(AL191:AL195) -> 15.16845171
AB198: Check | AC198: =IF(ROUND(AC169,2)=ROUND(AC95,2),0,1) -> 0 | AD198: =IF(ROUND(AD169,2)=ROUND(AD95,2),0,1) -> 0 | AE198: 0 | AF198: 0 | AG198: 0 | AH198: 0 | AI198: 0 | AJ198: 0 | AK198: 0 | AL198: 0
AC199: =IF(ROUND(AC187,2)=ROUND(AC163,2),0,1) -> 0 | AD199: =IF(ROUND(AD187,2)=ROUND(AD163,2),0,1) -> 0 | AE199: 0 | AF199: 0 | AG199: 0 | AH199: 0 | AI199: 0 | AJ199: 0 | AK199: 0 | AL199: 0
AC200: =IF(ROUND(AC150,2)=ROUND(AC169,2),0,1) -> 0 | AD200: =IF(ROUND(AD150,2)=ROUND(AD169,2),0,1) -> 0 | AE200: 0 | AF200: 0 | AG200: 0 | AH200: 0 | AI200: 0 | AJ200: 0 | AK200: 0 | AL200: 0
AC201: =IF(ROUND(AC196,2)=ROUND(AC145,2),0,1) -> 0 | AD201: =IF(ROUND(AD196,2)=ROUND(AD145,2),0,1) -> 0 | AE201: 0 | AF201: 0 | AG201: 0 | AH201: 0 | AI201: 0 | AJ201: 0 | AK201: 0 | AL201: 0

Sheet Opex_Breakdown
A1: 80 | B1: Operating Expenditure - Breakdown
B2: =+Contents!H7 -> Barwon Water
B3: Go to Table of Contents
L4: FIRST REG PERIOD | P4: SECOND REG PERIOD | U4: THIRD REG PERIOD | Z4: FOURTH REG PERIOD | AE4: FIFTH REG PERIOD | AJ4: SIXTH REG PERIOD
K6: 2006 | L6: 2007 | M6: 2008 | N6: 2009 | O6: 2010 | P6: 2011 | Q6: 2012 | R6: 2013 | S6: 2014 | T6: 2015 | U6: 2016 | V6: 2017 | W6: 2018 | X6: 2019 | Y6: 2020 | Z6: 2021 | AA6: 2022 | AB6: 2023 | AC6: 2024 | AD6: 2025 | AE6: 2026 | AF6: 2027 | AG6: 2028 | AH6: 2029 | AI6: 2030 | AJ6: 2031 | AK6: 2032 | AL6: 2033
B7: =Expenditure_Detail!$B$6 -> $m, 01/01/23 | K7: =+CONCATENATE(K6-1,"-",RIGHT(K6,2)) -> 2005-06 | L7: =+CONCATENATE(L6-1,"-",RIGHT(L6,2)) -> 2006-07 | M7: 2007-08 | N7: 2008-09 | O7: 2009-10 | P7: 2010-11 | Q7: 2011-12 | R7: 2012-13 | S7: 2013-14 | T7: 2014-15 | U7: 2015-16 | V7: 2016-17 | W7: 2017-18 | X7: =+CONCATENATE(X6-1,"-",RIGHT(X6,2)) -> 2018-19 | Y7: 2019-20 | Z7: 2020-21 | AA7: 2021-22 | AB7: 2022-23 | AC7: 2023-24 | AD7: 2024-25 | AE7: 2025-26 | AF7: 2026-27 | AG7: 2027-28 | AH7: =+CONCATENATE(AH6-1,"-",RIGHT(AH6,2)) -> 2028-29 | AI7: =+CONCATENATE(AI6-1,"-",RIGHT(AI6,2)) -> 2029-30 | AJ7: =+CONCATENATE(AJ6-1,"-",RIGHT(AJ6,2)) -> 2030-31 | AK7: =+CONCATENATE(AK6-1,"-",RIGHT(AK6,2)) -> 2031-32 | AL7: =+CONCATENATE(AL6-1,"-",RIGHT(AL6,2)) -> 2032-33
D10: Operating Expenditure Summary
E12: =C48 -> Water | W12: =+W57-W50-W54 -> 49.41783253 | X12: 49.5360951 | Y12: 59.71584871 | Z12: 54.74928035 | AA12: 54.4221801 | AB12: 51.81057084 | AC12: =+AC57-AC50-AC54 -> 52.62737215 | AD12: 52.97277151 | AE12: 54.16756746 | AF12: 53.89354506 | AG12: 53.68860673 | AH12: 52.40947882 | AI12: 52.40566039 | AJ12: 52.38292595 | AK12: 52.32803499 | AL12: 52.24290671
E13: =C59 -> Sewerage | W13: =W68-W61-W65 -> 51.80456389 | X13: 49.65936599 | Y13: 44.94981574 | Z13: 47.27678594 | AA13: 56.40554994 | AB13: 52.73314303 | AC13: =AC68-AC61-AC65 -> 54.07242966 | AD13: 54.42579772 | AE13: 54.21904485 | AF13: 54.72938546 | AG13: 54.0593324 | AH13: 52.77573548 | AI13: 52.77189065 | AJ13: 52.74899902 | AK13: 52.69372851 | AL13: 52.60801161
E14: =C70 -> Recycled Water | W14: =W79-W72-W76 -> 9.306329405 | X14: 9.686523207 | Y14: 8.196143742 | Z14: 6.442547784 | AA14: 10.61881293 | AB14: 10.42540625 | AC14: =AC79-AC72-AC76 -> 10.73532166 | AD14: 10.8081139 | AE14: 10.76076324 | AF14: 10.89828624 | AG14: 10.9063382 | AH14: 10.64737566 | AI14: 10.64659997 | AJ14: 10.64198164 | AK14: 10.63083095 | AL14: 10.61353777
E15: =C81 -> Rural Water | W15: =W90-W83-W87 -> 0 | X15: 0 | Y15: 0 | Z15: 0 | AA15: 0 | AB15: 0 | AC15: =AC90-AC83-AC87 -> 0 | AD15: 0 | AE15: 0 | AF15: 0 | AG15: 0 | AH15: 0 | AI15: 0 | AJ15: 0 | AK15: 0 | AL15: 0
E16: Bulk Water | W16: =W100-W97 -> 0 | X16: 0 | Y16: 0 | Z16: 0 | AA16: 0 | AB16: 0 | AC16: =AC100-AC97 -> 0 | AD16: 0 | AE16: 0 | AF16: 0 | AG16: 0 | AH16: 0 | AI16: 0 | AJ16: 0 | AK16: 0 | AL16: 0
E17: Total controllable operating expenditure | W17: =SUM(W12:W16) -> 110.5287258 | X17: 108.8819843 | Y17: 112.8618082 | Z17: 108.4686141 | AA17: 121.446543 | AB17: 114.9691201 | AC17: 117.4351235 | AD17: 118.2066831 | AE17: 119.1473755 | AF17: 119.5212168 | AG17: 118.6542773 | AH17: =SUM(AH12:AH16) -> 115.83259 | AI17: =SUM(AI12:AI16) -> 115.824151 | AJ17: =SUM(AJ12:AJ16) -> 115.7739066 | AK17: =SUM(AK12:AK16) -> 115.6525945 | AL17: =SUM(AL12:AL16) -> 115.4644561
E20: Operations & Maintenance | W20: =W49+W60+W71+W82+W93 -> 27.53390588 | X20: 28.57524461 | Y20: 22.12817479 | Z20: 32.92217181 | AA20: 27.15454651 | AB20: 26.82141275 | AC20: 27.90659785 | AD20: 28.2707643 | AE20: 29.11920711 | AF20: 28.69225239 | AG20: 28.10249736 | AH20: =AH49+AH60+AH71+AH82+AH93 -> 27.43522536 | AI20: =AI49+AI60+AI71+AI82+AI93 -> 27.43322664 | AJ20: =AJ49+AJ60+AJ71+AJ82+AJ93 -> 27.42132653 | AK20: =AK49+AK60+AK71+AK82+AK93 -> 27.39259441 | AL20: =AL49+AL60+AL71+AL82+AL93 -> 27.34803487
E21: Treatment | W21: =W51+W62+W73+W84+W94 -> 34.58035038 | X21: 31.24123605 | Y21: 24.85572836 | Z21: 24.06357889 | AA21: 24.49025304 | AB21: 23.43264352 | AC21: 24.2798142 | AD21: 24.29360218 | AE21: 24.05100304 | AF21: 24.36405673 | AG21: 23.9430599 | AH21: =AH51+AH62+AH73+AH84+AH94 -> 23.37455051 | AI21: 23.37284763 | AJ21: 23.36270884 | AK21: 23.33822935 | AL21: 23.30026505
E22: Customer Service and billing | W22: =W52+W63+W74+W85+W95 -> 6.03351516 | X22: 5.864691338 | Y22: 5.629345045 | Z22: 9.007438562 | AA22: 9.166697775 | AB22: 8.476372 | AC22: 9.29744902 | AD22: 9.326736832 | AE22: 9.370449525 | AF22: 9.383888779 | AG22: 9.319703748 | AH22: 9.098414612 | AI22: 9.097751772 | AJ22: 9.093805306 | AK22: 9.084276799 | AL22: 9.069499404
E23: GSL Payments | W23: =W53+W64+W75+W86+W96 -> 0.02365180393 | X23: 0.0006460131827 | Y23: 0.002174331806 | Z23: 0 | AA23: 0 | AB23: 0 | AC23: 0 | AD23: 0 | AE23: 0 | AF23: 0 | AG23: 0 | AH23: 0 | AI23: 0 | AJ23: 0 | AK23: 0 | AL23: 0
E24: Corporate | W24: =W55+W66+W77+W88+W98 -> 42.35730261 | X24: 43.20016628 | Y24: 60.24638567 | Z24: 41.79860398 | AA24: 60.63504565 | AB24: 56.23869185 | AC24: 55.9512624 | AD24: 56.31557981 | AE24: 56.60671588 | AF24: 57.08101887 | AG24: 57.28901631 | AH24: =AH55+AH66+AH77+AH88+AH98 -> 55.92439947 | AI24: 55.92032497 | AJ24: 55.89606592 | AK24: 55.83749389 | AL24: 55.74665678
E25: Other operating expenditure | W25: =W56+W67+W78+W89+W99 -> 0 | X25: 0 | Y25: 0 | Z25: 0.6768208287 | AA25: 0 | AB25: 0 | AC25: 0 | AD25: 0 | AE25: 0 | AF25: 0 | AG25: 0 | AH25: 0 | AI25: 0 | AJ25: 0 | AK25: 0 | AL25: 0
E26: Total controllable operating expenditure | W26: =SUM(W20:W25) -> 110.5287258 | X26: 108.8819843 | Y26: 112.8618082 | Z26: 108.4686141 | AA26: 121.446543 | AB26: 114.9691201 | AC26: 117.4351235 | AD26: 118.2066831 | AE26: 119.1473755 | AF26: 119.5212168 | AG26: 118.6542773 | AH26: =SUM(AH20:AH25) -> 115.83259 | AI26: =SUM(AI20:AI25) -> 115.824151 | AJ26: =SUM(AJ20:AJ25) -> 115.7739066 | AK26: =SUM(AK20:AK25) -> 115.6525945 | AL26: =SUM(AL20:AL25) -> 115.4644561
AC27: =IF(ROUND(AC26,2)=ROUND(AC17,2),0,1) -> 0 | AD27: =IF(ROUND(AD26,2)=ROUND(AD17,2),0,1) -> 0 | AE27: 0 | AF27: 0 | AG27: 0 | AH27: 0 | AI27: 0 | AJ27: 0 | AK27: 0 | AL27: 0
E29: External bulk water charges (excl. temporary purchases) | W29: =W50+W61+W72+W83 -> 0 | X29: =X50+X61+X72+X83 -> 0 | Y29: =Y50+Y61+Y72+Y83 -> 0 | Z29: 0 | AA29: 0 | AB29: 0 | AC29: 6.153211765 | AD29: 6.207594925 | AE29: 6.265860943 | AF29: 6.334236928 | AG29: 6.413481676 | AH29: =AH50+AH61+AH72+AH83 -> 6.413481676 | AI29: =AI50+AI61+AI72+AI83 -> 6.413481676 | AJ29: =AJ50+AJ61+AJ72+AJ83 -> 6.413481676 | AK29: =AK50+AK61+AK72+AK83 -> 6.413481676 | AL29: =AL50+AL61+AL72+AL83 -> 6.413481676
E30: External temporary water purchases | W30: =+W102 -> 0 | X30: 0 | Y30: 0 | Z30: 0 | AA30: 0 | AB30: 0 | AC30: 0 | AD30: 0 | AE30: 0 | AF30: 0 | AG30: 0 | AH30: =+AH102 -> 0 | AI30: =+AI102 -> 0 | AJ30: =+AJ102 -> 0 | AK30: =+AK102 -> 0 | AL30: =+AL102 -> 0
E31: Licence fees | W31: =+W109 -> 0.4146452371 | X31: 0.4549432227 | Y31: 0.3922929348 | Z31: 0.4352653603 | AA31: 0.4883903195 | AB31: 0.475349 | AC31: 0.475349 | AD31: 0.4753490004 | AE31: 0.4753489985 | AF31: 0.4753490048 | AG31: 0.4753490039 | AH31: =+AH109 -> 0.4753490039 | AI31: =+AI109 -> 0.4753490039 | AJ31: =+AJ109 -> 0.4753490039 | AK31: =+AK109 -> 0.4753490039 | AL31: =+AL109 -> 0.4753490039
E32: Environment Contribution | W32: =W111 -> 7.457546711 | X32: 9.253987697 | Y32: 9.132331417 | Z32: 10.19927653 | AA32: 10.08681632 | AB32: 9.59835 | AC32: 9.318786408 | AD32: 9.047365444 | AE32: 8.783849946 | AF32: 8.528009656 | AG32: 8.279621026 | AH32: =AH111 -> 8.279621026 | AI32: =AI111 -> 8.279621026 | AJ32: =AJ111 -> 8.279621026 | AK32: =AK111 -> 8.279621026 | AL32: =AL111 -> 8.279621026
E33: Other non-controllable | W33: =+W124 -> 0 | X33: 0 | Y33: 0 | Z33: 0 | AA33: 0 | AB33: 0 | AC33: 0 | AD33: 0 | AE33: 0 | AF33: 0 | AG33: =+AG124 -> 0 | AH33: 0 | AI33: 0 | AJ33: 0 | AK33: 0 | AL33: 0
E34: Total non-controllable operating expenditure | W34: =SUM(W29:W33) -> 7.872191948 | X34: 9.708930919 | Y34: 9.524624351 | Z34: 10.63454189 | AA34: 10.57520664 | AB34: 10.073699 | AC34: 15.94734717 | AD34: 15.73030937 | AE34: 15.52505989 | AF34: 15.33759559 | AG34: 15.16845171 | AH34: =SUM(AH29:AH33) -> 15.16845171 | AI34: =SUM(AI29:AI33) -> 15.16845171 | AJ34: =SUM(AJ29:AJ33) -> 15.16845171 | AK34: =SUM(AK29:AK33) -> 15.16845171 | AL34: =SUM(AL29:AL33) -> 15.16845171
E37: Total prescribed operating expenditure | W37: =+W34+W17 -> 118.4009178 | X37: 118.5909152 | Y37: 122.3864325 | Z37: 119.103156 | AA37: 132.0217496 | AB37: 125.0428191 | AC37: 133.3824706 | AD37: 133.9369925 | AE37: 134.6724354 | AF37: 134.8588123 | AG37: 133.822729 | AH37: =+AH34+AH17 -> 131.0010417 | AI37: =+AI34+AI17 -> 130.9926027 | AJ37: =+AJ34+AJ17 -> 130.9423583 | AK37: =+AK34+AK17 -> 130.8210462 | AL37: =+AL34+AL17 -> 130.6329078
AB40: To reconcile to 'Opex_FO' tab row 95>> | AC40: =+Opex_FO!AC95 -> 133.3824706 | AD40: =+Opex_FO!AD95 -> 133.9369925 | AE40: =+Opex_FO!AE95 -> 134.6724354 | AF40: =+Opex_FO!AF95 -> 134.8588123 | AG40: =+Opex_FO!AG95 -> 133.822729 | AH40: =+Opex_FO!AH95 -> 131.0010417 | AI40: =+Opex_FO!AI95 -> 130.9926027 | AJ40: =+Opex_FO!AJ95 -> 130.9423583 | AK40: =+Opex_FO!AK95 -> 130.8210462 | AL40: =+Opex_FO!AL95 -> 130.6329078
AB41: Difference | AC41: =+AC40-AC37 -> 0 | AD41: 0 | AE41: 0 | AF41: 0 | AG41: 0 | AH41: 0 | AI41: 0 | AJ41: 0 | AK41: 0 | AL41: 0
AB42: Test | AC42: =IF(ROUND(AC40,2)=ROUND(AC37,2),0,1) -> 0 | AD42: 0 | AE42: 0 | AF42: 0 | AG42: 0 | AH42: 0 | AI42: 0 | AJ42: 0 | AK42: 0 | AL42: 0
B46: Total operating expenditure
C48: Water
D49: Operations & Maintenance | W49: 16.85063618 | X49: 18.1190193 | Y49: 14.26579098 | Z49: 18.52943207 | AA49: 15.79366838 | AB49: 15.67561671 | AC49: 16.15453786 | AD49: 16.23072769 | AE49: 17.13127703 | AF49: 16.7174449 | AG49: 16.25420779 | AH49: 15.86826423 | AI49: 15.86710819 | AJ49: 15.86022529 | AK49: 15.84360691 | AL49: 15.81783411
D50: External bulk charges (excl. temporary purchases) | W50: =+W131 -> 0 | X50: 0 | Y50: 0 | Z50: 0 | AA50: 0 | AB50: 0 | AC50: 6.153211765 | AD50: 6.207594925 | AE50: 6.265860943 | AF50: 6.334236928 | AG50: 6.413481676 | AH50: =+AH131 -> 6.413481676 | AI50: =+AI131 -> 6.413481676 | AJ50: =+AJ131 -> 6.413481676 | AK50: =+AK131 -> 6.413481676 | AL50: =+AL131 -> 6.413481676 | AM50: see reconciliation below
D51: Treatment | W51: 4.835585317 | X51: 3.411625346 | Y51: 6.431673481 | Z51: 5.325573961 | AA51: 3.279415912 | AB51: 3.361861654 | AC51: 3.429491266 | AD51: 3.4993707 | AE51: 3.624042736 | AF51: 3.516849359 | AG51: 3.702318452 | AH51: 3.614409772 | AI51: 3.614146454 | AJ51: 3.612578693 | AK51: 3.608793426 | AL51: 3.602923001
D52: Customer Service and billing | W52: 3.686801086 | X52: 3.476982114 | Y52: 3.334337824 | Z52: 5.944301423 | AA52: 4.642211813 | AB52: 4.292616076 | AC52: 4.70842704 | AD52: 4.723259015 | AE52: 4.745396057 | AF52: 4.752201983 | AG52: 4.719697311 | AH52: 4.607631759 | AI52: 4.607296083 | AJ52: 4.605297508 | AK52: 4.600472068 | AL52: 4.592988479
D53: GSL Payments | W53: 0.02256661932 | X53: 0 | Y53: 0 | Z53: 0 | AA53: 0 | AB53: 0 | AC53: 0 | AD53: 0 | AE53: 0 | AF53: 0 | AG53: 0 | AH53: 0 | AI53: 0 | AJ53: 0 | AK53: 0 | AL53: 0
D54: Licence Fees | W54: 0.1519704695 | X54: 0.1747362051 | Y54: 0.231907978 | Z54: 0.1643734866 | AA54: 0.2473313036 | AB54: 0.2407269005 | AC54: 0.2407269005 | AD54: 0.2407269007 | AE54: 0.2407268997 | AF54: 0.2407269029 | AG54: 0.2407269025 | AH54: 0.2406579569 | AI54: 0.2406579574 | AJ54: 0.2406579609 | AK54: 0.2406579693 | AL54: 0.2406579823
D55: Corporate | W55: 24.02224333 | X55: 24.52846833 | Y55: 35.68404643 | Z55: 24.51795816 | AA55: 30.706884 | AB55: 28.4804764 | AC55: 28.33491598 | AD55: 28.51941411 | AE55: 28.66685164 | AF55: 28.90704882 | AG55: 29.01238317 | AH55: 28.31917305 | AI55: 28.31710966 | AJ55: 28.30482446 | AK55: 28.27516259 | AL55: 28.22916112
D56: Other operating expenditure | W56: 0 | X56: 0 | Y56: 0 | Z56: 0.4320147349 | AA56: 0 | AB56: 0 | AC56: 0 | AD56: 0 | AE56: 0 | AF56: 0 | AG56: 0 | AH56: 0 | AI56: 0 | AJ56: 0 | AK56: 0 | AL56: 0
C57: =+CONCATENATE("Total ",C48) -> Total Water | K57: =+SUM(K49:K56) -> 0 | L57: =+SUM(L49:L56) -> 0 | M57: 0 | N57: 0 | O57: 0 | P57: 0 | Q57: 0 | R57: 0 | S57: 0 | T57: 0 | U57: 0 | V57: 0 | W57: =+SUM(W49:W56) -> 49.569803 | X57: 49.7108313 | Y57: 59.94775669 | Z57: 54.91365383 | AA57: 54.66951141 | AB57: 52.05129774 | AC57: 59.02131082 | AD57: 59.42109334 | AE57: 60.6741553 | AF57: 60.46850889 | AG57: 60.3428153 | AH57: =+SUM(AH49:AH56) -> 59.06361845 | AI57: =+SUM(AI49:AI56) -> 59.05980002 | AJ57: =+SUM(AJ49:AJ56) -> 59.03706558 | AK57: =+SUM(AK49:AK56) -> 58.98217463 | AL57: =+SUM(AL49:AL56) -> 58.89704637
C59: Sewerage
D60: =+D49 -> Operations & Maintenance | W60: 10.19690322 | X60: 10.06407725 | Y60: 6.35231037 | Z60: 11.62003528 | AA60: 11.36087813 | AB60: 11.14579604 | AC60: 11.75205999 | AD60: 12.04003662 | AE60: 11.98793008 | AF60: 11.97480748 | AG60: 11.84828957 | AH60: 11.56696113 | AI60: 11.56611845 | AJ60: 11.56110124 | AK60: 11.5489875 | AL60: 11.53020076
D61: =+D50 -> External bulk charges (excl. temporary purchases) | W61: =+W132 -> 0 | X61: 0 | Y61: 0 | Z61: 0 | AA61: 0 | AB61: 0 | AC61: 0 | AD61: 0 | AE61: 0 | AF61: 0 | AG61: 0 | AH61: =+AH132 -> 0 | AI61: =+AI132 -> 0 | AJ61: =+AJ132 -> 0 | AK61: =+AK132 -> 0 | AL61: =+AL132 -> 0 | AM61: see reconciliation below
D62: Treatment | W62: 26.44396781 | X62: 24.14477947 | Y62: 16.89549962 | Z62: 18.31081041 | AA62: 17.76703074 | AB62: 16.29751615 | AC62: 16.82199608 | AD62: 16.73357156 | AE62: 16.44807055 | AF62: 16.78093024 | AG62: 16.18119502 | AH62: 15.79698509 | AI62: 15.79583425 | AJ62: 15.78898225 | AK62: 15.77243853 | AL62: 15.7467815
D63: Customer Service and billing | W63: 1.72046682 | X63: 1.751700829 | Y63: 1.85470503 | Z63: 3.063137139 | AA63: 3.582229891 | AB63: 3.312459284 | AC63: 3.633325829 | AD63: 3.644771136 | AE63: 3.661853506 | AF63: 3.667105396 | AG63: 3.642022696 | AH63: 3.555545692 | AI63: 3.555286663 | AJ63: 3.553744434 | AK63: 3.550020813 | AL63: 3.544245993
D64: GSL Payments | W64: 0.001085184613 | X64: 0.0006460131827 | Y64: 0.002174331806 | Z64: 0 | AA64: 0 | AB64: 0 | AC64: 0 | AD64: 0 | AE64: 0 | AF64: 0 | AG64: 0 | AH64: 0 | AI64: 0 | AJ64: 0 | AK64: 0 | AL64: 0
D65: Licence Fees | W65: 0.2482036099 | X65: 0.2611695958 | Y65: 0.1300418568 | Z65: 0.2200600228 | AA65: 0.1908567779 | AB65: 0.1857603947 | AC65: 0.1857603947 | AD65: 0.1857603948 | AE65: 0.1857603941 | AF65: 0.1857603965 | AG65: 0.1857603962 | AH65: 0.1857071933 | AI65: 0.1857071938 | AJ65: 0.1857071964 | AK65: 0.1857072029 | AL65: 0.1857072129
D66: Corporate | W66: 13.44214086 | X66: 13.69816242 | Y66: 19.84512639 | Z66: 14.03799701 | AA66: 23.69541118 | AB66: 21.97737156 | AC66: 21.86504776 | AD66: 22.00741841 | AE66: 22.12119071 | AF66: 22.30654234 | AG66: 22.38782512 | AH66: 21.85624357 | AI66: 21.8546513 | AJ66: 21.84517108 | AK66: 21.82228167 | AL66: 21.78678336
D67: Other operating expenditure | W67: 0 | X67: 0 | Y67: 0 | Z67: 0.2448060937 | AA67: 0 | AB67: 0 | AC67: 0 | AD67: 0 | AE67: 0 | AF67: 0 | AG67: 0 | AH67: 0 | AI67: 0 | AJ67: 0 | AK67: 0 | AL67: 0
C68: =+CONCATENATE("Total ",C59) -> Total Sewerage | W68: =+SUM(W60:W67) -> 52.0527675 | X68: 49.92053558 | Y68: 45.0798576 | Z68: 47.49684596 | AA68: 56.59640672 | AB68: 52.91890342 | AC68: 54.25819005 | AD68: 54.61155812 | AE68: 54.40480524 | AF68: 54.91514586 | AG68: 54.2450928 | AH68: =+SUM(AH60:AH67) -> 52.96144268 | AI68: =+SUM(AI60:AI67) -> 52.95759785 | AJ68: =+SUM(AJ60:AJ67) -> 52.93470621 | AK68: =+SUM(AK60:AK67) -> 52.87943571 | AL68: =+SUM(AL60:AL67) -> 52.79371882
C70: Recycled Water
D71: =+D60 -> Operations & Maintenance | W71: 0.4863664751 | X71: 0.3921480504 | Y71: 1.510073439 | Z71: 2.772704456 | AA71: 0 | AB71: 0 | AC71: 0 | AD71: 0 | AE71: 0 | AF71: 0 | AG71: 0 | AH71: 0 | AI71: 0 | AJ71: 0 | AK71: 0 | AL71: 0
D72: =+D61 -> External bulk charges (excl. temporary purchases) | W72: =+W133 -> 0 | X72: 0 | Y72: 0 | Z72: 0 | AA72: 0 | AB72: 0 | AC72: 0 | AD72: 0 | AE72: 0 | AF72: 0 | AG72: 0 | AH72: =+AH133 -> 0 | AI72: =+AI133 -> 0 | AJ72: =+AJ133 -> 0 | AK72: =+AK133 -> 0 | AL72: =+AL133 -> 0 | AM72: see reconciliation below
D73: Treatment | W73: 3.300797254 | X73: 3.684831235 | Y73: 1.528555259 | Z73: 0.4271945208 | AA73: 3.443806389 | AB73: 3.773265724 | AC73: 4.028326851 | AD73: 4.060659919 | AE73: 3.978889753 | AF73: 4.066277126 | AG73: 4.059546433 | AH73: 3.963155652 | AI73: 3.962866927 | AJ73: 3.961147896 | AK73: 3.956997397 | AL73: 3.950560548
D74: Customer Service and billing | W74: 0.6262472538 | X74: 0.6360083955 | Y74: 0.4403021907 | Z74: 0 | AA74: 0.9422560707 | AB74: 0.8712966403 | AC74: 0.955696151 | AD74: 0.958706681 | AE74: 0.9631999622 | AF74: 0.9645813995 | AG74: 0.9579837417 | AH74: 0.9352371609 | AI74: 0.9351690268 | AJ74: 0.9347633647 | AK74: 0.9337839179 | AL74: 0.9322649313
D75: GSL Payments | W75: 0 | X75: 0 | Y75: 0 | Z75: 0 | AA75: 0 | AB75: 0 | AC75: 0 | AD75: 0 | AE75: 0 | AF75: 0 | AG75: 0 | AH75: 0 | AI75: 0 | AJ75: 0 | AK75: 0 | AL75: 0
D76: Licence Fees | W76: 0.01447115767 | X76: 0.01903742189 | Y76: 0.03034309993 | Z76: 0.05083185086 | AA76: 0.050202238 | AB76: 0.04886170483 | AC76: 0.04886170483 | AD76: 0.04886170487 | AE76: 0.04886170468 | AF76: 0.04886170532 | AG76: 0.04886170523 | AH76: 0.04884771095 | AI76: 0.04884771107 | AJ76: 0.04884771177 | AK76: 0.04884771347 | AL76: 0.04884771611
D77: Corporate | W77: 4.892918422 | X77: 4.973535526 | Y77: 4.717212852 | Z77: 3.242648807 | AA77: 6.232750469 | AB77: 5.780843888 | AC77: 5.751298663 | AD77: 5.788747295 | AE77: 5.818673527 | AF77: 5.867427712 | AG77: 5.888808023 | AH77: 5.748982845 | AI77: 5.748564018 | AJ77: 5.746070379 | AK77: 5.740049635 | AL77: 5.730712295
D78: Other operating expenditure | W78: 0 | X78: 0 | Y78: 0 | Z78: 0 | AA78: 0 | AB78: 0 | AC78: 0 | AD78: 0 | AE78: 0 | AF78: 0 | AG78: 0 | AH78: 0 | AI78: 0 | AJ78: 0 | AK78: 0 | AL78: 0
C79: =+CONCATENATE("Total ",C70) -> Total Recycled Water | W79: =+SUM(W71:W78) -> 9.320800563 | X79: 9.705560629 | Y79: 8.226486841 | Z79: 6.493379635 | AA79: 10.66901517 | AB79: 10.47426796 | AC79: 10.78418337 | AD79: 10.8569756 | AE79: 10.80962495 | AF79: 10.94714794 | AG79: 10.9551999 | AH79: =+SUM(AH71:AH78) -> 10.69622337 | AI79: =+SUM(AI71:AI78) -> 10.69544768 | AJ79: =+SUM(AJ71:AJ78) -> 10.69082935 | AK79: =+SUM(AK71:AK78) -> 10.67967866 | AL79: =+SUM(AL71:AL78) -> 10.66238549
C81: Rural Water
D82: =+D60 -> Operations & Maintenance
D83: =+D61 -> External bulk charges (excl. temporary purchases) | W83: =+W134 -> 0 | X83: 0 | Y83: 0 | Z83: 0 | AA83: 0 | AB83: 0 | AC83: 0 | AD83: 0 | AE83: 0 | AF83: 0 | AG83: 0 | AH83: =+AH134 -> 0 | AI83: =+AI134 -> 0 | AJ83: =+AJ134 -> 0 | AK83: =+AK134 -> 0 | AL83: =+AL134 -> 0 | AM83: see reconciliation below
D84: Treatment
D85: Customer Service and billing
D86: GSL Payments
D87: Licence Fees
D88: Corporate
D89: Other operating expenditure
C90: =+CONCATENATE("Total ",C81) -> Total Rural Water | W90: =+SUM(W82:W89) -> 0 | X90: 0 | Y90: 0 | Z90: 0 | AA90: 0 | AB90: 0 | AC90: 0 | AD90: 0 | AE90: 0 | AF90: 0 | AG90: 0 | AH90: =+SUM(AH82:AH89) -> 0 | AI90: =+SUM(AI82:AI89) -> 0 | AJ90: =+SUM(AJ82:AJ89) -> 0 | AK90: =+SUM(AK82:AK89) -> 0 | AL90: =+SUM(AL82:AL89) -> 0
C92: Bulk Water
D93: Operations & Maintenance
D94: Treatment
D95: Customer Service and billing
D96: GSL Payments
D97: Licence Fees
D98: Corporate
D99: Other operating expenditure
C100: Total Bulk water | W100: =+SUM(W93:W99) -> 0 | X100: 0 | Y100: 0 | Z100: 0 | AA100: 0 | AB100: 0 | AC100: 0 | AD100: 0 | AE100: 0 | AF100: 0 | AG100: 0 | AH100: =+SUM(AH93:AH99) -> 0 | AI100: =+SUM(AI93:AI99) -> 0 | AJ100: =+SUM(AJ93:AJ99) -> 0 | AK100: =+SUM(AK93:AK99) -> 0 | AL100: =+SUM(AL93:AL99) -> 0
C102: External temporary water purchases
C105: Licence fees
D106: Essential Services Commission | W106: 0.1247320715 | X106: 0.165359187 | Y106: 0.09771703205 | Z106: 0.1431735715 | AA106: 0.3184019867 | AB106: 0.179331 | AC106: 0.179331 | AD106: 0.1793309977 | AE106: 0.1793309983 | AF106: 0.1793309984 | AG106: 0.1793309959 | AH106: 0.1793309959 | AI106: 0.1793309959 | AJ106: 0.1793309959 | AK106: 0.1793309959 | AL106: 0.1793309959
D107: Department of Human Services | W107: 0.08146565273 | X107: 0.08084750202 | Y107: 0.08177834471 | Z107: 0.08002494967 | AA107: 0.08965821329 | AB107: 0.213963 | AC107: 0.213963 | AD107: 0.2139630046 | AE107: 0.2139630025 | AF107: 0.2139630072 | AG107: 0.2139630082 | AH107: 0.2139630082 | AI107: 0.2139630082 | AJ107: 0.2139630082 | AK107: 0.2139630082 | AL107: 0.2139630082
D108: Environment Protection Authority | W108: 0.2084475128 | X108: 0.2087365336 | Y108: 0.212797558 | Z108: 0.2120668392 | AA108: 0.0803301195 | AB108: 0.082055 | AC108: 0.082055 | AD108: 0.08205499808 | AE108: 0.0820549977 | AF108: 0.08205499918 | AG108: 0.08205499972 | AH108: 0.08205499972 | AI108: 0.08205499972 | AJ108: 0.08205499972 | AK108: 0.08205499972 | AL108: 0.08205499972
C109: =+CONCATENATE("Total ",C105) -> Total Licence fees | W109: =+SUM(W106:W108) -> 0.4146452371 | X109: 0.4549432227 | Y109: 0.3922929348 | Z109: 0.4352653603 | AA109: 0.4883903195 | AB109: 0.475349 | AC109: 0.475349 | AD109: 0.4753490004 | AE109: 0.4753489985 | AF109: 0.4753490048 | AG109: 0.4753490039 | AH109: =+SUM(AH106:AH108) -> 0.4753490039 | AI109: =+SUM(AI106:AI108) -> 0.4753490039 | AJ109: =+SUM(AJ106:AJ108) -> 0.4753490039 | AK109: =+SUM(AK106:AK108) -> 0.4753490039 | AL109: =+SUM(AL106:AL108) -> 0.4753490039
C111: Environment Contribution | W111: 7.457546711 | X111: 9.253987697 | Y111: 9.132331417 | Z111: 10.19927653 | AA111: 10.08681632 | AB111: 9.59835 | AC111: 9.318786408 | AD111: 9.047365444 | AE111: 8.783849946 | AF111: 8.528009656 | AG111: 8.279621026 | AH111: 8.279621026 | AI111: 8.279621026 | AJ111: 8.279621026 | AK111: 8.279621026 | AL111: 8.279621026
C113: Other non-controllable
D114: [Non-controllable 1]
D115: [Non-controllable 2]
D116: [Non-controllable 3]
D117: [Non-controllable 4]
D118: [Non-controllable 5]
D119: [Non-controllable 6]
D120: [Non-controllable 7]
D121: [Non-controllable 8]
D122: [Non-controllable 9]
D123: [Non-controllable 10]
W124: =SUM(W114:W123) -> 0 | X124: 0 | Y124: 0 | Z124: 0 | AA124: 0 | AB124: 0 | AC124: 0 | AD124: 0 | AE124: 0 | AF124: 0 | AG124: 0 | AH124: =SUM(AH114:AH123) -> 0 | AI124: =SUM(AI114:AI123) -> 0 | AJ124: =SUM(AJ114:AJ123) -> 0 | AK124: =SUM(AK114:AK123) -> 0 | AL124: =SUM(AL114:AL123) -> 0
C127: External bulk charges (excl. temporary purchases)
C128: Reconciliation
C130: Service | W130: =+W7 -> 2017-18 | X130: =+X7 -> 2018-19 | Y130: 2019-20 | Z130: 2020-21 | AA130: 2021-22 | AB130: 2022-23 | AC130: 2023-24 | AD130: 2024-25 | AE130: 2025-26 | AF130: 2026-27 | AG130: 2027-28 | AH130: =+AH7 -> 2028-29 | AI130: =+AI7 -> 2029-30 | AJ130: =+AJ7 -> 2030-31 | AK130: =+AK7 -> 2031-32 | AL130: =+AL7 -> 2032-33
D131: Water | W131: =+SUMIF($I$138:$I$179,$D$131,W$138:W$179) -> 0 | X131: 0 | Y131: 0 | Z131: 0 | AA131: 0 | AB131: 0 | AC131: 6.153211765 | AD131: 6.207594925 | AE131: 6.265860943 | AF131: 6.334236928 | AG131: 6.413481676 | AH131: 6.413481676 | AI131: 6.413481676 | AJ131: 6.413481676 | AK131: 6.413481676 | AL131: 6.413481676
D132: Sewerage | W132: =+SUMIF($I$138:$I$179,$D$132,W$138:W$179) -> 0 | X132: 0 | Y132: 0 | Z132: 0 | AA132: 0 | AB132: 0 | AC132: 0 | AD132: 0 | AE132: 0 | AF132: 0 | AG132: 0 | AH132: 0 | AI132: 0 | AJ132: 0 | AK132: 0 | AL132: 0
D133: Recycled Water | W133: =+SUMIF($I$138:$I$179,$D$133,W$138:W$179) -> 0 | X133: 0 | Y133: 0 | Z133: 0 | AA133: 0 | AB133: 0 | AC133: 0 | AD133: 0 | AE133: 0 | AF133: 0 | AG133: 0 | AH133: 0 | AI133: 0 | AJ133: 0 | AK133: 0 | AL133: 0
D134: Rural Water | W134: =+SUMIF($I$138:$I$179,$D$134,W$138:W$179) -> 0 | X134: 0 | Y134: 0 | Z134: 0 | AA134: 0 | AB134: 0 | AC134: 0 | AD134: 0 | AE134: 0 | AF134: 0 | AG134: 0 | AH134: 0 | AI134: 0 | AJ134: 0 | AK134: 0 | AL134: 0
C135: Total External Bulk Charges | W135: =SUM(W131:W134) -> 0 | X135: 0 | Y135: 0 | Z135: 0 | AA135: 0 | AB135: 0 | AC135: 6.153211765 | AD135: 6.207594925 | AE135: 6.265860943 | AF135: 6.334236928 | AG135: 6.413481676 | AH135: =SUM(AH131:AH134) -> 6.413481676 | AI135: =SUM(AI131:AI134) -> 6.413481676 | AJ135: =SUM(AJ131:AJ134) -> 6.413481676 | AK135: =SUM(AK131:AK134) -> 6.413481676 | AL135: =SUM(AL131:AL134) -> 6.413481676
C137: Description | H137: Source | I137: Service | J137: Price
B138: 1 | C138: Melblurne Water Headworks Charge | H138: Melbourne Water | I138: Water | J138: Fixed | AC138: 5.369876471 | AD138: 5.434813303 | AE138: 5.500693323 | AF138: 5.568367222 | AG138: 5.63636283 | AH138: 5.63636283 | AI138: 5.63636283 | AJ138: 5.63636283 | AK138: 5.63636283 | AL138: 5.63636283 | AO138: ESC USE ONLY
B139: 2 | C139: Melblurne Water Volumetric Charge | H139: Melbourne Water | I139: Water | J139: Variable | AC139: 0.7833352941 | AD139: 0.7727816225 | AE139: 0.7651676203 | AF139: 0.7658697059 | AG139: 0.7771188463 | AH139: 0.7771188463 | AI139: 0.7771188463 | AJ139: 0.7771188463 | AK139: 0.7771188463 | AL139: 0.7771188463
B140: 3 | H140: [Source] | I140: [Service] | J140: [Price] | AO140: [Service]
B141: 4 | H141: [Source] | I141: [Service] | J141: [Price] | AO141: Water
B142: 5 | H142: [Source] | I142: [Service] | J142: [Price] | AO142: Sewerage
B143: 6 | H143: [Source] | I143: [Service] | J143: [Price] | AO143: Recycled Water
B144: 7 | H144: [Source] | I144: [Service] | J144: [Price] | AO144: Rural Water
B145: 8 | H145: [Source] | I145: [Service] | J145: [Price]
B146: 9 | H146: [Source] | I146: [Service] | J146: [Price] | AO146: [Source]
B147: 10 | H147: [Source] | I147: [Service] | J147: [Price] | AO147: Melbourne Water
B148: 11 | H148: [Source] | I148: [Service] | J148: [Price] | AO148: Goulburn-Murray Water
B149: 12 | H149: [Source] | I149: [Service] | J149: [Price] | AO149: Other Sources
B150: 13 | H150: [Source] | I150: [Service] | J150: [Price]
B151: 14 | H151: [Source] | I151: [Service] | J151: [Price]
B152: 15 | H152: [Source] | I152: [Service] | J152: [Price]
B153: 16 | H153: [Source] | I153: [Service] | J153: [Price]
B154: 17 | H154: [Source] | I154: [Service] | J154: [Price]
B155: 18 | H155: [Source] | I155: [Service] | J155: [Price]
B156: 19 | H156: [Source] | I156: [Service] | J156: [Price]
B157: 20 | H157: [Source] | I157: [Service] | J157: [Price]
B158: 21 | H158: [Source] | I158: [Service] | J158: [Price]
B159: 22 | H159: [Source] | I159: [Service] | J159: [Price]
B160: 23 | H160: [Source] | I160: [Service] | J160: [Price]
B161: 24 | H161: [Source] | I161: [Service] | J161: [Price]
B162: 25 | H162: [Source] | I162: [Service] | J162: [Price]
B163: 26 | H163: [Source] | I163: [Service] | J163: [Price]
B164: 27 | H164: [Source] | I164: [Service] | J164: [Price]
B165: 28 | H165: [Source] | I165: [Service] | J165: [Price]
B166: 29 | H166: [Source] | I166: [Service] | J166: [Price]
B167: 30 | H167: [Source] | I167: [Service] | J167: [Price]
B168: 31 | H168: [Source] | I168: [Service] | J168: [Price]
B169: 32 | H169: [Source] | I169: [Service] | J169: [Price]
B170: 33 | H170: [Source] | I170: [Service] | J170: [Price]
B171: 34 | H171: [Source] | I171: [Service] | J171: [Price]
B172: 35 | H172: [Source] | I172: [Service] | J172: [Price]
B173: 36 | H173: [Source] | I173: [Service] | J173: [Price]
B174: 37 | H174: [Source] | I174: [Service] | J174: [Price]
B175: 38 | H175: [Source] | I175: [Service] | J175: [Price]
B176: 39 | H176: [Source] | I176: [Service] | J176: [Price]
B177: 40 | H177: [Source] | I177: [Service] | J177: [Price]

Sheet Capex_FO input
B1: Capital Expenditure - Forecast Input | Q1: =Q36 -> Gross capital expenditure | AB1: =AB36 -> Government contributions | AM1: =AM36 -> Customer contributions | AX1: =AX36 -> Net capital expenditure | BI1: =BI36 -> Regulatory Depreciation | BT1: =BT36 -> Accumulated capex | CE1: =CE36 -> Gross capital expenditure | CP1: =CP36 -> Tax Depreciation
B2: =+Contents!H7 -> Barwon Water | Q2: =Q37 -> $m, 01/01/23 | AB2: =AB37 -> $m, 01/01/23 | AM2: =AM37 -> $m, 01/01/23 | AX2: =AX37 -> $m, 01/01/23 | BI2: =BI37 -> $m, 01/01/23 | BT2: =BT37 -> $m, 01/01/23 | CE2: =CE37 -> Nominal,$ | CP2: =CP37 -> Nominal,$
B3: Go to Table of Contents | Q3: =Q39 -> 2023-24 | R3: =R39 -> 2024-25 | S3: 2025-26 | T3: 2026-27 | U3: 2027-28 | V3: 2028-29 | W3: 2029-30 | X3: 2030-31 | Y3: =Y39 -> 2031-32 | Z3: =Z39 -> 2032-33 | AB3: 2023-24 | AC3: 2024-25 | AD3: 2025-26 | AE3: 2026-27 | AF3: 2027-28 | AG3: 2028-29 | AH3: 2029-30 | AI3: 2030-31 | AJ3: 2031-32 | AK3: 2032-33 | AM3: 2023-24 | AN3: 2024-25 | AO3: 2025-26 | AP3: 2026-27 | AQ3: 2027-28 | AR3: 2028-29 | AS3: 2029-30 | AT3: 2030-31 | AU3: 2031-32 | AV3: 2032-33 | AX3: 2023-24 | AY3: 2024-25 | AZ3: 2025-26 | BA3: 2026-27 | BB3: 2027-28 | BC3: 2028-29 | BD3: 2029-30 | BE3: 2030-31 | BF3: 2031-32 | BG3: 2032-33 | BI3: 2023-24 | BJ3: 2024-25 | BK3: 2025-26 | BL3: 2026-27 | BM3: 2027-28 | BN3: 2028-29 | BO3: 2029-30 | BP3: 2030-31 | BQ3: 2031-32 | BR3: 2032-33 | BT3: 2023-24 | BU3: 2024-25 | BV3: 2025-26 | BW3: 2026-27 | BX3: 2027-28 | BY3: 2028-29 | BZ3: 2029-30 | CA3: 2030-31 | CB3: =CB39 -> 2031-32 | CC3: =CC39 -> 2032-33 | CE3: 2023-24 | CF3: 2024-25 | CG3: 2025-26 | CH3: 2026-27 | CI3: 2027-28 | CJ3: 2028-29 | CK3: 2029-30 | CL3: 2030-31 | CM3: =CM39 -> 2031-32 | CN3: =CN39 -> 2032-33 | CP3: 2023-24 | CQ3: 2024-25 | CR3: =CR39 -> 2025-26 | CS3: 2026-27 | CT3: 2027-28 | CU3: 2028-29 | CV3: 2029-30 | CW3: 2030-31 | CX3: =CX39 -> 2031-32 | CY3: =CY39 -> 2032-33
C7: Input Summary | F7: FIFTH REG PERIOD | K7: SIXTH REG PERIOD
D9: =+Q39 -> 2023-24 | E9: =+R39 -> 2024-25 | F9: 2025-26 | G9: 2026-27 | H9: 2027-28 | I9: 2028-29 | J9: 2029-30 | K9: 2030-31 | L9: =+Y39 -> 2031-32 | M9: =+Z39 -> 2032-33
C10: By Cost Driver
C11: Net capital expenditure - Renewals | D11: =+SUMIF($F$42:$F$1332,"Renewals",AX$42:AX$1332) -> 53.77527068 | E11: =+SUMIF($F$42:$F$1332,"Renewals",AY$42:AY$1332) -> 47.7578022 | F11: 47.75166404 | G11: 49.80208352 | H11: 49.133858 | I11: 44.47849083 | J11: 39.36559614 | K11: 44.48662144 | L11: =+SUMIF($F$42:$F$1332,"Renewals",BF$42:BF$1332) -> 46.13837512 | M11: =+SUMIF($F$42:$F$1332,"Renewals",BG$42:BG$1332) -> 43.4672062
C12: Net capital expenditure - Growth | D12: =+SUMIF($F$42:$F$1332,"Growth",AX$42:AX$1332) -> 15.09175454 | E12: 11.68446762 | F12: 30.22315242 | G12: 19.28918035 | H12: 31.87132357 | I12: 79.62829906 | J12: 133.1932151 | K12: 64.62595122 | L12: =+SUMIF($F$42:$F$1332,"Growth",BF$42:BF$1332) -> 62.50657971 | M12: =+SUMIF($F$42:$F$1332,"Growth",BG$42:BG$1332) -> 35.6135459
C13: Net capital expenditure - Improvements / Compliance | D13: =+SUMIF($F$42:$F$1332,"Improvements / Compliance",AX$42:AX$1332) -> 37.28411817 | E13: 30.89982576 | F13: 16.46758316 | G13: 18.35498669 | H13: 16.36128641 | I13: 27.90759217 | J13: 20.67293445 | K13: 33.8643224 | L13: =+SUMIF($F$42:$F$1332,"Improvements / Compliance",BF$42:BF$1332) -> 18.07086594 | M13: =+SUMIF($F$42:$F$1332,"Improvements / Compliance",BG$42:BG$1332) -> 17.10888352
C14: Government Contributions | D14: =+AB41 -> 3.4039 | E14: 2.9210419 | F14: 0 | G14: 0 | H14: 0 | I14: 0 | J14: 0 | K14: 0 | L14: =+AJ41 -> 0 | M14: =+AK41 -> 0
C15: Customer Contributions | D15: =+AM41 -> 13.31730225 | E15: 13.35745859 | F15: 13.57284259 | G15: 13.60934835 | H15: 13.45237357 | I15: 13.71803305 | J15: 13.98453528 | K15: 14.25116723 | L15: =+AU41 -> 14.5141321 | M15: =+AV41 -> 14.77354675
C16: Total prescribed capex | D16: =SUM(D11:D15) -> 122.8723456 | E16: 106.6205961 | F16: 108.0152422 | G16: 101.0555989 | H16: 110.8188415 | I16: 165.7324151 | J16: 207.2162809 | K16: 157.2280623 | L16: =SUM(L11:L15) -> 141.2299529 | M16: =SUM(M11:M15) -> 110.9631824
C18: By Capital Type
C19: Top 10 Major Projects | D19: =+SUMIF($H$42:$H$1332,$C$19,Q$42:Q$1332) -> 29.82309205 | E19: 23.09143333 | F19: 18.89921655 | G19: 13.04603965 | H19: 21.71529019 | I19: 0 | J19: 0 | K19: 0 | L19: =+SUMIF($H$42:$H$1332,$C$19,Y$42:Y$1332) -> 0 | M19: =+SUMIF($H$42:$H$1332,$C$19,Z$42:Z$1332) -> 0
C20: Significant projects | D20: =+SUMIF($H$42:$H$1332,$C$20,Q$42:Q$1332) -> 16.91042816 | E20: 9.994332163 | F20: 6.181338509 | G20: 5.04427488 | H20: 1.187506378 | I20: 0 | J20: 0 | K20: 0 | L20: =+SUMIF($H$42:$H$1332,$C$20,Y$42:Y$1332) -> 0 | M20: =+SUMIF($H$42:$H$1332,$C$20,Z$42:Z$1332) -> 0
C21: Capital Programs / Allocation | D21: =+SUMIF($H$42:$H$1332,$C$21,Q$42:Q$1332) -> 30.07682207 | E21: 41.47434202 | F21: 53.11393481 | G21: 55.59266686 | H21: 52.69865398 | I21: 81.07564725 | J21: 61.24425304 | K21: 48.94342299 | L21: =+SUMIF($H$42:$H$1332,$C$21,Y$42:Y$1332) -> 71.52186853 | M21: =+SUMIF($H$42:$H$1332,$C$21,Z$42:Z$1332) -> 61.11287351
C22: Other Capital expenditure | D22: =+SUMIF($H$42:$H$1332,$C$22,Q$42:Q$1332) -> 46.06200335 | E22: 32.06048855 | F22: 29.82075233 | G22: 27.37261752 | H22: 35.21739099 | I22: 84.65676785 | J22: 145.9720279 | K22: 108.2846393 | L22: =+SUMIF($H$42:$H$1332,$C$22,Y$42:Y$1332) -> 69.70808434 | M22: =+SUMIF($H$42:$H$1332,$C$22,Z$42:Z$1332) -> 49.85030886
C23: Total prescribed capex | D23: =SUM(D19:D22) -> 122.8723456 | E23: 106.6205961 | F23: 108.0152422 | G23: 101.0555989 | H23: 110.8188415 | I23: 165.7324151 | J23: 207.2162809 | K23: 157.2280623 | L23: =SUM(L19:L22) -> 141.2299529 | M23: =SUM(M19:M22) -> 110.9631824
C25: Difference | D25: =+D23-D16 -> 0 | E25: 0 | F25: 0 | G25: 0 | H25: 0 | I25: 0 | J25: 0 | K25: 0 | L25: =+L23-L16 -> 0 | M25: =+M23-M16 -> 0
C26: Test | D26: =IF(+D23=D16,0,1) -> 0 | E26: 0 | F26: 0 | G26: 0 | H26: 0 | I26: 0 | J26: 0 | K26: 0 | L26: 0 | M26: 0
C29: Total prescribed capex | D29: =+D23 -> 122.8723456 | E29: 106.6205961 | F29: 108.0152422 | G29: 101.0555989 | H29: 110.8188415 | I29: 165.7324151 | J29: 207.2162809 | K29: 157.2280623 | L29: =+L23 -> 141.2299529 | M29: =+M23 -> 110.9631824
C32: Regulatory Depreciation | D32: =+BI41 -> 1.277860335 | E32: 4.531842913 | F32: 8.345862329 | G32: 11.90368727 | H32: 15.13879868 | I32: 18.15140704 | J32: 21.42655771 | K32: 25.30591168 | L32: =+BQ41 -> 27.33417686 | M32: =+BR41 -> 28.80742096
B35: =Expenditure_Detail!$B$6 -> $m, 01/01/23
Q36: Gross capital expenditure | AB36: Government contributions | AM36: Customer contributions | AX36: Net capital expenditure | BI36: Regulatory Depreciation | BT36: Accumulated capex | CE36: Gross capital expenditure | CP36: Tax Depreciation
Q37: =Expenditure_Detail!$B$6 -> $m, 01/01/23 | AB37: =Expenditure_Detail!$B$6 -> $m, 01/01/23 | AM37: =Expenditure_Detail!$B$6 -> $m, 01/01/23 | AX37: =Expenditure_Detail!$B$6 -> $m, 01/01/23 | BI37: =Expenditure_Detail!$B$6 -> $m, 01/01/23 | BT37: =Expenditure_Detail!$B$6 -> $m, 01/01/23 | CE37: Nominal,$ | CP37: Nominal,$
Q39: 2023-24 | R39: 2024-25 | S39: 2025-26 | T39: 2026-27 | U39: 2027-28 | V39: 2028-29 | W39: 2029-30 | X39: 2030-31 | Y39: 2031-32 | Z39: 2032-33 | AB39: 2023-24 | AC39: 2024-25 | AD39: 2025-26 | AE39: 2026-27 | AF39: 2027-28 | AG39: 2028-29 | AH39: 2029-30 | AI39: 2030-31 | AJ39: 2031-32 | AK39: 2032-33 | AM39: 2023-24 | AN39: 2024-25 | AO39: 2025-26 | AP39: 2026-27 | AQ39: 2027-28 | AR39: 2028-29 | AS39: 2029-30 | AT39: 2030-31 | AU39: 2031-32 | AV39: 2032-33 | AX39: 2023-24 | AY39: 2024-25 | AZ39: 2025-26 | BA39: 2026-27 | BB39: 2027-28 | BC39: 2028-29 | BD39: 2029-30 | BE39: 2030-31 | BF39: 2031-32 | BG39: 2032-33 | BI39: 2023-24 | BJ39: 2024-25 | BK39: 2025-26 | BL39: 2026-27 | BM39: 2027-28 | BN39: 2028-29 | BO39: 2029-30 | BP39: 2030-31 | BQ39: 2031-32 | BR39: 2032-33 | BT39: 2023-24 | BU39: 2024-25 | BV39: 2025-26 | BW39: 2026-27 | BX39: 2027-28 | BY39: 2028-29 | BZ39: 2029-30 | CA39: 2030-31 | CB39: 2031-32 | CC39: 2032-33 | CE39: 2023-24 | CF39: 2024-25 | CG39: 2025-26 | CH39: 2026-27 | CI39: 2027-28 | CJ39: 2028-29 | CK39: 2029-30 | CL39: 2030-31 | CM39: 2031-32 | CN39: 2032-33 | CP39: 2023-24 | CQ39: 2024-25 | CR39: 2025-26 | CS39: 2026-27 | CT39: 2027-28 | CU39: 2028-29 | CV39: 2029-30 | CW39: 2030-31 | CX39: 2031-32 | CY39: 2032-33
BI40: 1 | BJ40: 2 | BK40: 3 | BL40: 4 | BM40: 5 | BN40: 6 | BO40: 7 | BP40: 8 | BQ40: 9 | BR40: 10 | CP40: 1 | CQ40: 2 | CR40: 3 | CS40: 4 | CT40: 5 | CU40: 6 | CV40: 7 | CW40: 8 | CX40: 9 | CY40: 10
C41: Project/program Name | E41: Service | F41: Major cost driver | G41: Asset category | H41: Capital type | J41: Reg Depreciation Method | K41: Year asset operational | L41: Asset life (Regulatory) | M41: Asset life (Tax) | Q41: =SUM(Q42:Q1332) -> 122.8723456 | R41: 106.6205961 | S41: 108.0152422 | T41: 101.0555989 | U41: 110.8188415 | V41: 165.7324151 | W41: 207.2162809 | X41: 157.2280623 | Y41: =SUM(Y42:Y1332) -> 141.2299529 | Z41: =SUM(Z42:Z1332) -> 110.9631824 | AB41: =SUM(AB42:AB1332) -> 3.4039 | AC41: 2.9210419 | AD41: 0 | AE41: 0 | AF41: 0 | AG41: 0 | AH41: 0 | AI41: 0 | AJ41: 0 | AK41: 0 | AM41: =SUM(AM42:AM1332) -> 13.31730225 | AN41: 13.35745859 | AO41: 13.57284259 | AP41: 13.60934835 | AQ41: 13.45237357 | AR41: 13.71803305 | AS41: 13.98453528 | AT41: 14.25116723 | AU41: 14.5141321 | AV41: 14.77354675 | AX41: =SUM(AX42:AX1332) -> 106.1511434 | AY41: 90.34209557 | AZ41: 94.44239961 | BA41: 87.44625056 | BB41: 97.36646798 | BC41: 152.014382 | BD41: 193.2317456 | BE41: 142.9768951 | BF41: 126.7158208 | BG41: 96.18963562 | BI41: =SUM(BI42:BI1332) -> 1.277860335 | BJ41: 4.531842913 | BK41: 8.345862329 | BL41: 11.90368727 | BM41: 15.13879868 | BN41: 18.15140704 | BO41: 21.42655771 | BP41: 25.30591168 | BQ41: =SUM(BQ42:BQ1332) -> 27.33417686 | BR41: =SUM(BR42:BR1332) -> 28.80742096 | BT41: =SUM(BT42:BT1332) -> 71.85719499 | BU41: 104.4439476 | BV41: 87.23149546 | BW41: 106.3032921 | BX41: 97.83125354 | BY41: 116.756994 | BZ41: 208.31789 | CA41: 142.4254852 | CB41: =SUM(CB42:CB1332) -> 146.0055692 | CC41: =SUM(CC42:CC1332) -> 105.7037142 | CE41: =SUM(CE42:CE1332) -> 126.558516 | CF41: 113.1137904 | CG41: 118.0311716 | CH41: 113.7389669 | CI41: 128.4694099 | CJ41: 197.8931709 | CK41: 254.8498884 | CL41: 199.1718053 | CM41: =SUM(CM42:CM1332) -> 184.2730553 | CN41: =SUM(CN42:CN1332) -> 149.1252383 | CP41: =SUM(CP42:CP1332) -> 2.222253186 | CQ41: 6.738839893 | CR41: 11.60273134 | CS41: 16.75326993 | CT41: 20.77976214 | CU41: 25.50726541 | CV41: 31.29995572 | CW41: 37.01853864 | CX41: =SUM(CX42:CX1332) -> 41.86834917 | CY41: =SUM(CY42:CY1332) -> 45.46844876
C42: Colac WRP Upgrade | E42: Sewerage | F42: Growth | G42: Treatment | H42: Top 10 Major Projects | J42: Straight line | K42: 2023-24 | L42: 70 | M42: 50 | Q42: 14.59148252 | R42: 0 | S42: 0 | T42: 0 | U42: 0 | V42: 0 | W42: 0 | X42: 0 | Y42: 0 | Z42: 0 | AB42: 3.4039 | AC42: 2.9210419 | AM42: 1.068896813 | AN42: 1.072119912 | AO42: 1.089407442 | AP42: 1.092337532 | AQ42: 1.079738145 | AR42: 1.101060976 | AS42: 1.122451447 | AT42: 1.143852332 | AU42: 1.164958882 | AV42: 1.185780478 | AX42: =+Q42-AB42-AM42 -> 10.11868571 | AY42: =+R42-AC42-AN42 -> -3.993161812 | AZ42: =+S42-AD42-AO42 -> -1.089407442 | BA42: =+T42-AE42-AP42 -> -1.092337532 | BB42: =+U42-AF42-AQ42 -> -1.079738145 | BC42: =+V42-AG42-AR42 -> -1.101060976 | BD42: =+W42-AH42-AS42 -> -1.122451447 | BE42: =+X42-AI42-AT42 -> -1.143852332 | BF42: =+Y42-AJ42-AU42 -> -1.164958882 | BG42: =+Z42-AK42-AV42 -> -1.185780478 | BI42: =IF($L42=0,0, IF($L42<=0.5,BT42, IF($J42="straight line", IF((LEFT(BI$39,4)*1)-INT($L42)<LEFT($BI$39,4)*1,0,((OFFSET(BT42,0,-INT($L42+0.5),1,1))/$L42)*(IF($L42-INT($L42)>0.5,$L42-0.5-INT($L42),IF($L42-INT($L42)<=0.5,$L42-0.5-INT($L42)+1,0)))) +BT42/$L42*0.5, IF($J42="Declining Balance",-$BI$38,0)))) -> 0.07227632647 | BJ42: =IF($L42=0,0, IF($L42<=0.5,BU42, IF(AND($J42="straight line",$L42<1.51),(BT42-((BT42/$L42)*0.5))+BU42/$L42*0.5, IF($J42="straight line", IF((LEFT(BJ$39,4)*1)-INT($L42)<LEFT($BI$39,4)*1,0,((OFFSET(BU42,0,-INT($L42+0.5),1,1))/$L42)*(IF($L42-INT($L42)>0.5,$L42-0.5-INT($L42),IF($L42-INT($L42)<=0.5,$L42-0.5-INT($L42)+1,0)))) +BU42/$L42*0.5 +SUM(OFFSET(BU42,0,MAX(-INT($L42+(0.5-(10^-12))),-BJ$40)+1,1,MIN(INT($L42+(0.5-(10^-12))),BJ$40)-1))*1/$L42, IF($J42="Declining Balance",-$BI$38,0))))) -> 0.1160300686 | BK42: =IF($L42=0,0, IF($L42<=0.5,BV42, IF(AND($J42="straight line",$L42<1.51),(BU42-((BU42/$L42)*0.5))+BV42/$L42*0.5, IF($J42="straight line", IF((LEFT(BK$39,4)*1)-INT($L42)<LEFT($BI$39,4)*1,0,((OFFSET(BV42,0,-INT($L42+0.5),1,1))/$L42)*(IF($L42-INT($L42)>0.5,$L42-0.5-INT($L42),IF($L42-INT($L42)<=0.5,$L42-0.5-INT($L42)+1,0)))) +BV42/$L42*0.5 +SUM(OFFSET(BV42,0,MAX(-INT($L42+(0.5-(10^-12))),-BK$40)+1,1,MIN(INT($L42+(0.5-(10^-12))),BK$40)-1))*1/$L42, IF($J42="Declining Balance",-$BI$38,0))))) -> 0.07972600246 | BL42: =IF($L42=0,0, IF($L42<=0.5,BW42, IF(AND($J42="straight line",$L42<1.51),(BV42-((BV42/$L42)*0.5))+BW42/$L42*0.5, IF($J42="straight line", IF((LEFT(BL$39,4)*1)-INT($L42)<LEFT($BI$39,4)*1,0,((OFFSET(BW42,0,-INT($L42+0.5),1,1))/$L42)*(IF($L42-INT($L42)>0.5,$L42-0.5-INT($L42),IF($L42-INT($L42)<=0.5,$L42-0.5-INT($L42)+1,0)))) +BW42/$L42*0.5 +SUM(OFFSET(BW42,0,MAX(-INT($L42+(0.5-(10^-12))),-BL$40)+1,1,MIN(INT($L42+(0.5-(10^-12))),BL$40)-1))*1/$L42, IF($J42="Declining Balance",-$BI$38,0))))) -> 0.06414210979 | BM42: =IF($L42=0,0, IF($L42<=0.5,BX42, IF(AND($J42="straight line",$L42<1.51),(BW42-((BW42/$L42)*0.5))+BX42/$L42*0.5, IF($J42="straight line", IF((LEFT(BM$39,4)*1)-INT($L42)<LEFT($BI$39,4)*1,0,((OFFSET(BX42,0,-INT($L42+0.5),1,1))/$L42)*(IF($L42-INT($L42)>0.5,$L42-0.5-INT($L42),IF($L42-INT($L42)<=0.5,$L42-0.5-INT($L42)+1,0)))) +BX42/$L42*0.5 +SUM(OFFSET(BX42,0,MAX(-INT($L42+(0.5-(10^-12))),-BM$40)+1,1,MIN(INT($L42+(0.5-(10^-12))),BM$40)-1))*1/$L42, IF($J42="Declining Balance",-$BI$38,0))))) -> 0.04862728352 | BN42: =IF($L42=0,0, IF($L42<=0.5,BY42, IF(AND($J42="straight line",$L42<1.51),(BX42-((BX42/$L42)*0.5))+BY42/$L42*0.5, IF($J42="straight line", IF((LEFT(BN$39,4)*1)-INT($L42)<LEFT($BI$39,4)*1,0,((OFFSET(BY42,0,-INT($L42+0.5),1,1))/$L42)*(IF($L42-INT($L42)>0.5,$L42-0.5-INT($L42),IF($L42-INT($L42)<=0.5,$L42-0.5-INT($L42)+1,0)))) +BY42/$L42*0.5 +SUM(OFFSET(BY42,0,MAX(-INT($L42+(0.5-(10^-12))),-BN$40)+1,1,MIN(INT($L42+(0.5-(10^-12))),BN$40)-1))*1/$L42, IF($J42="Declining Balance",-$BI$38,0))))) -> 0.03305014694 | BO42: =IF($L42=0,0, IF($L42<=0.5,BZ42, IF(AND($J42="straight line",$L42<1.51),(BY42-((BY42/$L42)*0.5))+BZ42/$L42*0.5, IF($J42="straight line", IF((LEFT(BO$39,4)*1)-INT($L42)<LEFT($BI$39,4)*1,0,((OFFSET(BZ42,0,-INT($L42+0.5),1,1))/$L42)*(IF($L42-INT($L42)>0.5,$L42-0.5-INT($L42),IF($L42-INT($L42)<=0.5,$L42-0.5-INT($L42)+1,0)))) +BZ42/$L42*0.5 +SUM(OFFSET(BZ42,0,MAX(-INT($L42+(0.5-(10^-12))),-BO$40)+1,1,MIN(INT($L42+(0.5-(10^-12))),BO$40)-1))*1/$L42, IF($J42="Declining Balance",-$BI$38,0))))) -> 0.01716791535 | BP42: =IF($L42=0,0, IF($L42<=0.5,CA42, IF(AND($J42="straight line",$L42<1.51),(BZ42-((BZ42/$L42)*0.5))+CA42/$L42*0.5, IF($J42="straight line", IF((LEFT(BP$39,4)*1)-INT($L42)<LEFT($BI$39,4)*1,0,((OFFSET(CA42,0,-INT($L42+0.5),1,1))/$L42)*(IF($L42-INT($L42)>0.5,$L42-0.5-INT($L42),IF($L42-INT($L42)<=0.5,$L42-0.5-INT($L42)+1,0)))) +CA42/$L42*0.5 +SUM(OFFSET(CA42,0,MAX(-INT($L42+(0.5-(10^-12))),-BP$40)+1,1,MIN(INT($L42+(0.5-(10^-12))),BP$40)-1))*1/$L42, IF($J42="Declining Balance",-$BI$38,0))))) -> 0.0009800312082 | BQ42: =IF($L42=0,0, IF($L42<=0.5,CB42, IF(AND($J42="straight line",$L42<1.51),(CA42-((CA42/$L42)*0.5))+CB42/$L42*0.5, IF($J42="straight line", IF((LEFT(BQ$39,4)*1)-INT($L42)<LEFT($BI$39,4)*1,0,((OFFSET(CB42,0,-INT($L42+0.5),1,1))/$L42)*(IF($L42-INT($L42)>0.5,$L42-0.5-INT($L42),IF($L42-INT($L42)<=0.5,$L42-0.5-INT($L42)+1,0)))) +CB42/$L42*0.5 +SUM(OFFSET(CB42,0,MAX(-INT($L42+(0.5-(10^-12))),-BQ$40)+1,1,MIN(INT($L42+(0.5-(10^-12))),BQ$40)-1))*1/$L42, IF($J42="Declining Balance",-$BI$38,0))))) -> -0.01551147746 | BR42: =IF($L42=0,0, IF($L42<=0.5,CC42, IF(AND($J42="straight line",$L42<1.51),(CB42-((CB42/$L42)*0.5))+CC42/$L42*0.5, IF($J42="straight line", IF((LEFT(BR$39,4)*1)-INT($L42)<LEFT($BI$39,4)*1,0,((OFFSET(CC42,0,-INT($L42+0.5),1,1))/$L42)*(IF($L42-INT($L42)>0.5,$L42-0.5-INT($L42),IF($L42-INT($L42)<=0.5,$L42-0.5-INT($L42)+1,0)))) +CC42/$L42*0.5 +SUM(OFFSET(CC42,0,MAX(-INT($L42+(0.5-(10^-12))),-BR$40)+1,1,MIN(INT($L42+(0.5-(10^-12))),BR$40)-1))*1/$L42, IF($J42="Declining Balance",-$BI$38,0))))) -> -0.0323024729 | BT42: =+IF($K42="Ongoing",AX42,IF(RIGHT($K42,2)=RIGHT(BT$39,2),SUM($AX42:AX42),0)+IF(RIGHT(BT$39,2)>RIGHT($K42,2),AX42,0)) -> 10.11868571 | BU42: =+IF($K42="Ongoing",AY42,IF(RIGHT($K42,2)=RIGHT(BU$39,2),SUM($AX42:AY42),0)+IF(RIGHT(BU$39,2)>RIGHT($K42,2),AY42,0)) -> -3.993161812 | BV42: =+IF($K42="Ongoing",AZ42,IF(RIGHT($K42,2)=RIGHT(BV$39,2),SUM($AX42:AZ42),0)+IF(RIGHT(BV$39,2)>RIGHT($K42,2),AZ42,0)) -> -1.089407442 | BW42: =+IF($K42="Ongoing",BA42,IF(RIGHT($K42,2)=RIGHT(BW$39,2),SUM($AX42:BA42),0)+IF(RIGHT(BW$39,2)>RIGHT($K42,2),BA42,0)) -> -1.092337532 | BX42: =+IF($K42="Ongoing",BB42,IF(RIGHT($K42,2)=RIGHT(BX$39,2),SUM($AX42:BB42),0)+IF(RIGHT(BX$39,2)>RIGHT($K42,2),BB42,0)) -> -1.079738145 | BY42: =+IF($K42="Ongoing",BC42,IF(RIGHT($K42,2)=RIGHT(BY$39,2),SUM($AX42:BC42),0)+IF(RIGHT(BY$39,2)>RIGHT($K42,2),BC42,0)) -> -1.101060976 | BZ42: =+IF($K42="Ongoing",BD42,IF(RIGHT($K42,2)=RIGHT(BZ$39,2),SUM($AX42:BD42),0)+IF(RIGHT(BZ$39,2)>RIGHT($K42,2),BD42,0)) -> -1.122451447 | CA42: =+IF($K42="Ongoing",BE42,IF(RIGHT($K42,2)=RIGHT(CA$39,2),SUM($AX42:BE42),0)+IF(RIGHT(CA$39,2)>RIGHT($K42,2),BE42,0)) -> -1.143852332 | CB42: =+IF($K42="Ongoing",BF42,IF(RIGHT($K42,2)=RIGHT(CB$39,2),SUM($AX42:BF42),0)+IF(RIGHT(CB$39,2)>RIGHT($K42,2),BF42,0)) -> -1.164958882 | CC42: =+IF($K42="Ongoing",BG42,IF(RIGHT($K42,2)=RIGHT(CC$39,2),SUM($AX42:BG42),0)+IF(RIGHT(CC$39,2)>RIGHT($K42,2),BG42,0)) -> -1.185780478 | CE42: =+Q42*KeyAssumptionsPriceControl_FO!AC$15 -> 15.02922699 | CF42: =+R42*KeyAssumptionsPriceControl_FO!AD$15 -> 0 | CG42: =+S42*KeyAssumptionsPriceControl_FO!AE$15 -> 0 | CH42: =+T42*KeyAssumptionsPriceControl_FO!AF$15 -> 0 | CI42: =+U42*KeyAssumptionsPriceControl_FO!AG$15 -> 0 | CJ42: =+V42*KeyAssumptionsPriceControl_FO!AH$15 -> 0 | CK42: =+W42*KeyAssumptionsPriceControl_FO!AI$15 -> 0 | CL42: =+X42*KeyAssumptionsPriceControl_FO!AJ$15 -> 0 | CM42: =+Y42*KeyAssumptionsPriceControl_FO!AK$15 -> 0 | CN42: =+Z42*KeyAssumptionsPriceControl_FO!AL$15 -> 0 | CP42: =IF($M42=0,0, IF($M42<=0.5,CE42, IF($J42="straight line", IF((LEFT(CP$39,4)*1)-INT($M42)<LEFT($CP$39,4)*1,0,((OFFSET(CE42,0,-INT($M42+0.5),1,1))/$M42)*(IF($M42-INT($M42)>0.5,$M42-0.5-INT($M42),IF($M42-INT($M42)<=0.5,$M42-0.5-INT($M42)+1,0)))) +CE42/$M42*0.5, IF($J42="Declining Balance",-$CP$38,0)))) -> 0.1502922699 | CQ42: =IF($M42=0,0, IF($M42<=0.5,CF42, IF(AND($J42="straight line",$M42<1.51),(CE42-((CE42/$M42)*0.5))+CF42/$M42*0.5, IF($J42="straight line", IF((LEFT(CQ$39,4)*1)-INT($M42)<LEFT($CP$39,4)*1,0,((OFFSET(CF42,0,-INT($M42+0.5),1,1))/$M42)*(IF($M42-INT($M42)>0.5,$M42-0.5-INT($M42),IF($M42-INT($M42)<=0.5,$M42-0.5-INT($M42)+1,0)))) +CF42/$M42*0.5 +SUM(OFFSET(CF42,0,MAX(-INT($M42+(0.5-(10^-12))),-CQ$40)+1,1,MIN(INT($M42+(0.5-(10^-12))),CQ$40)-1))*1/$M42, IF($J42="Declining Balance",-$CP$38,0))))) -> 0.3005845399 | CR42: =IF($M42=0,0, IF($M42<=0.5,CG42, IF(AND($J42="straight line",$M42<1.51),(CF42-((CF42/$M42)*0.5))+CG42/$M42*0.5, IF($J42="straight line", IF((LEFT(CR$39,4)*1)-INT($M42)<LEFT($CP$39,4)*1,0,((OFFSET(CG42,0,-INT($M42+0.5),1,1))/$M42)*(IF($M42-INT($M42)>0.5,$M42-0.5-INT($M42),IF($M42-INT($M42)<=0.5,$M42-0.5-INT($M42)+1,0)))) +CG42/$M42*0.5 +SUM(OFFSET(CG42,0,MAX(-INT($M42+(0.5-(10^-12))),-CR$40)+1,1,MIN(INT($M42+(0.5-(10^-12))),CR$40)-1))*1/$M42, IF($J42="Declining Balance",-$CP$38,0))))) -> 0.3005845399 | CS42: =IF($M42=0,0, IF($M42<=0.5,CH42, IF(AND($J42="straight line",$M42<1.51),(CG42-((CG42/$M42)*0.5))+CH42/$M42*0.5, IF($J42="straight line", IF((LEFT(CS$39,4)*1)-INT($M42)<LEFT($CP$39,4)*1,0,((OFFSET(CH42,0,-INT($M42+0.5),1,1))/$M42)*(IF($M42-INT($M42)>0.5,$M42-0.5-INT($M42),IF($M42-INT($M42)<=0.5,$M42-0.5-INT($M42)+1,0)))) +CH42/$M42*0.5 +SUM(OFFSET(CH42,0,MAX(-INT($M42+(0.5-(10^-12))),-CS$40)+1,1,MIN(INT($M42+(0.5-(10^-12))),CS$40)-1))*1/$M42, IF($J42="Declining Balance",-$CP$38,0))))) -> 0.3005845399 | CT42: =IF($M42=0,0, IF($M42<=0.5,CI42, IF(AND($J42="straight line",$M42<1.51),(CH42-((CH42/$M42)*0.5))+CI42/$M42*0.5, IF($J42="straight line", IF((LEFT(CT$39,4)*1)-INT($M42)<LEFT($CP$39,4)*1,0,((OFFSET(CI42,0,-INT($M42+0.5),1,1))/$M42)*(IF($M42-INT($M42)>0.5,$M42-0.5-INT($M42),IF($M42-INT($M42)<=0.5,$M42-0.5-INT($M42)+1,0)))) +CI42/$M42*0.5 +SUM(OFFSET(CI42,0,MAX(-INT($M42+(0.5-(10^-12))),-CT$40)+1,1,MIN(INT($M42+(0.5-(10^-12))),CT$40)-1))*1/$M42, IF($J42="Declining Balance",-$CP$38,0))))) -> 0.3005845399 | CU42: =IF($M42=0,0, IF($M42<=0.5,CJ42, IF(AND($J42="straight line",$M42<1.51),(CI42-((CI42/$M42)*0.5))+CJ42/$M42*0.5, IF($J42="straight line", IF((LEFT(CU$39,4)*1)-INT($M42)<LEFT($CP$39,4)*1,0,((OFFSET(CJ42,0,-INT($M42+0.5),1,1))/$M42)*(IF($M42-INT($M42)>0.5,$M42-0.5-INT($M42),IF($M42-INT($M42)<=0.5,$M42-0.5-INT($M42)+1,0)))) +CJ42/$M42*0.5 +SUM(OFFSET(CJ42,0,MAX(-INT($M42+(0.5-(10^-12))),-CU$40)+1,1,MIN(INT($M42+(0.5-(10^-12))),CU$40)-1))*1/$M42, IF($J42="Declining Balance",-$CP$38,0))))) -> 0.3005845399 | CV42: =IF($M42=0,0, IF($M42<=0.5,CK42, IF(AND($J42="straight line",$M42<1.51),(CJ42-((CJ42/$M42)*0.5))+CK42/$M42*0.5, IF($J42="straight line", IF((LEFT(CV$39,4)*1)-INT($M42)<LEFT($CP$39,4)*1,0,((OFFSET(CK42,0,-INT($M42+0.5),1,1))/$M42)*(IF($M42-INT($M42)>0.5,$M42-0.5-INT($M42),IF($M42-INT($M42)<=0.5,$M42-0.5-INT($M42)+1,0)))) +CK42/$M42*0.5 +SUM(OFFSET(CK42,0,MAX(-INT($M42+(0.5-(10^-12))),-CV$40)+1,1,MIN(INT($M42+(0.5-(10^-12))),CV$40)-1))*1/$M42, IF($J42="Declining Balance",-$CP$38,0))))) -> 0.3005845399 | CW42: =IF($M42=0,0, IF($M42<=0.5,CL42, IF(AND($J42="straight line",$M42<1.51),(CK42-((CK42/$M42)*0.5))+CL42/$M42*0.5, IF($J42="straight line", IF((LEFT(CW$39,4)*1)-INT($M42)<LEFT($CP$39,4)*1,0,((OFFSET(CL42,0,-INT($M42+0.5),1,1))/$M42)*(IF($M42-INT($M42)>0.5,$M42-0.5-INT($M42),IF($M42-INT($M42)<=0.5,$M42-0.5-INT($M42)+1,0)))) +CL42/$M42*0.5 +SUM(OFFSET(CL42,0,MAX(-INT($M42+(0.5-(10^-12))),-CW$40)+1,1,MIN(INT($M42+(0.5-(10^-12))),CW$40)-1))*1/$M42, IF($J42="Declining Balance",-$CP$38,0))))) -> 0.3005845399 | CX42: =IF($M42=0,0, IF($M42<=0.5,CM42, IF(AND($J42="straight line",$M42<1.51),(CL42-((CL42/$M42)*0.5))+CM42/$M42*0.5, IF($J42="straight line", IF((LEFT(CX$39,4)*1)-INT($M42)<LEFT($CP$39,4)*1,0,((OFFSET(CM42,0,-INT($M42+0.5),1,1))/$M42)*(IF($M42-INT($M42)>0.5,$M42-0.5-INT($M42),IF($M42-INT($M42)<=0.5,$M42-0.5-INT($M42)+1,0)))) +CM42/$M42*0.5 +SUM(OFFSET(CM42,0,MAX(-INT($M42+(0.5-(10^-12))),-CX$40)+1,1,MIN(INT($M42+(0.5-(10^-12))),CX$40)-1))*1/$M42, IF($J42="Declining Balance",-$CP$38,0))))) -> 0.3005845399 | CY42: =IF($M42=0,0, IF($M42<=0.5,CN42, IF(AND($J42="straight line",$M42<1.51),(CM42-((CM42/$M42)*0.5))+CN42/$M42*0.5, IF($J42="straight line", IF((LEFT(CY$39,4)*1)-INT($M42)<LEFT($CP$39,4)*1,0,((OFFSET(CN42,0,-INT($M42+0.5),1,1))/$M42)*(IF($M42-INT($M42)>0.5,$M42-0.5-INT($M42),IF($M42-INT($M42)<=0.5,$M42-0.5-INT($M42)+1,0)))) +CN42/$M42*0.5 +SUM(OFFSET(CN42,0,MAX(-INT($M42+(0.5-(10^-12))),-CY$40)+1,1,MIN(INT($M42+(0.5-(10^-12))),CY$40)-1))*1/$M42, IF($J42="Declining Balance",-$CP$38,0))))) -> 0.3005845399
C43: Colac Birregurra Pipeline and Associated | E43: Water | F43: Improvements / Compliance | G43: Pipelines/network | H43: Top 10 Major Projects | J43: Straight line | K43: 2024-25 | L43: 70 | M43: 50 | Q43: 2.638787474 | R43: 7.484657025 | S43: 0 | T43: 0 | U43: 0 | V43: 0 | W43: 0 | X43: 0 | Y43: 0 | Z43: 0 | AM43: 0 | AN43: 0 | AO43: 0 | AP43: 0 | AQ43: 0 | AR43: 0 | AS43: 0 | AT43: 0 | AU43: 0 | AV43: 0 | AX43: 2.638787474 | AY43: 7.484657025 | AZ43: 0 | BA43: 0 | BB43: 0 | BC43: 0 | BD43: 0 | BE43: 0 | BF43: 0 | BG43: 0 | BI43: =IF($L43=0,0, IF($L43<=0.5,BT43, IF($J43="straight line", IF((LEFT(BI$39,4)*1)-INT($L43)<LEFT($BI$39,4)*1,0,((OFFSET(BT43,0,-INT($L43+0.5),1,1))/$L43)*(IF($L43-INT($L43)>0.5,$L43-0.5-INT($L43),IF($L43-INT($L43)<=0.5,$L43-0.5-INT($L43)+1,0)))) +BT43/$L43*0.5, IF($J43="Declining Balance",-$BI$38,0)))) -> 0 | BJ43: =IF($L43=0,0, IF($L43<=0.5,BU43, IF(AND($J43="straight line",$L43<1.51),(BT43-((BT43/$L43)*0.5))+BU43/$L43*0.5, IF($J43="straight line", IF((LEFT(BJ$39,4)*1)-INT($L43)<LEFT($BI$39,4)*1,0,((OFFSET(BU43,0,-INT($L43+0.5),1,1))/$L43)*(IF($L43-INT($L43)>0.5,$L43-0.5-INT($L43),IF($L43-INT($L43)<=0.5,$L43-0.5-INT($L43)+1,0)))) +BU43/$L43*0.5 +SUM(OFFSET(BU43,0,MAX(-INT($L43+(0.5-(10^-12))),-BJ$40)+1,1,MIN(INT($L43+(0.5-(10^-12))),BJ$40)-1))*1/$L43, IF($J43="Declining Balance",-$BI$38,0))))) -> 0.07231031785 | BK43: 0.1446206357 | BL43: 0.1446206357 | BM43: 0.1446206357 | BN43: 0.1446206357 | BO43: 0.1446206357 | BP43: 0.1446206357 | BQ43: 0.1446206357 | BR43: 0.1446206357 | BT43: =+IF($K43="Ongoing",AX43,IF(RIGHT($K43,2)=RIGHT(BT$39,2),SUM($AX43:AX43),0)+IF(RIGHT(BT$39,2)>RIGHT($K43,2),AX43,0)) -> 0 | BU43: =+IF($K43="Ongoing",AY43,IF(RIGHT($K43,2)=RIGHT(BU$39,2),SUM($AX43:AY43),0)+IF(RIGHT(BU$39,2)>RIGHT($K43,2),AY43,0)) -> 10.1234445 | BV43: =+IF($K43="Ongoing",AZ43,IF(RIGHT($K43,2)=RIGHT(BV$39,2),SUM($AX43:AZ43),0)+IF(RIGHT(BV$39,2)>RIGHT($K4+3,2),AZ43,0)) -> 0 | BW43: =+IF($K43="Ongoing",BA43,IF(RIGHT($K43,2)=RIGHT(BW$39,2),SUM($AX43:BA43),0)+IF(RIGHT(BW$39,2)>RIGHT($K43,2),BA43,0)) -> 0 | BX43: =+IF($K43="Ongoing",BB43,IF(RIGHT($K43,2)=RIGHT(BX$39,2),SUM($AX43:BB43),0)+IF(RIGHT(BX$39,2)>RIGHT($K43,2),BB43,0)) -> 0 | BY43: =+IF($K43="Ongoing",BC43,IF(RIGHT($K43,2)=RIGHT(BY$39,2),SUM($AX43:BC43),0)+IF(RIGHT(BY$39,2)>RIGHT($K43,2),BC43,0)) -> 0 | BZ43: =+IF($K43="Ongoing",BD43,IF(RIGHT($K43,2)=RIGHT(BZ$39,2),SUM($AX43:BD43),0)+IF(RIGHT(BZ$39,2)>RIGHT($K43,2),BD43,0)) -> 0 | CA43: =+IF($K43="Ongoing",BE43,IF(RIGHT($K43,2)=RIGHT(CA$39,2),SUM($AX43:BE43),0)+IF(RIGHT(CA$39,2)>RIGHT($K43,2),BE43,0)) -> 0 | CB43: =+IF($K43="Ongoing",BF43,IF(RIGHT($K43,2)=RIGHT(CB$39,2),SUM($AX43:BF43),0)+IF(RIGHT(CB$39,2)>RIGHT($K43,2),BF43,0)) -> 0 | CC43: =+IF($K43="Ongoing",BG43,IF(RIGHT($K43,2)=RIGHT(CC$39,2),SUM($AX43:BG43),0)+IF(RIGHT(CC$39,2)>RIGHT($K43,2),BG43,0)) -> 0 | CE43: =+Q43*KeyAssumptionsPriceControl_FO!AC$15 -> 2.717951098 | CF43: =+R43*KeyAssumptionsPriceControl_FO!AD$15 -> 7.940472638 | CG43: =+S43*KeyAssumptionsPriceControl_FO!AE$15 -> 0 | CH43: =+T43*KeyAssumptionsPriceControl_FO!AF$15 -> 0 | CI43: =+U43*KeyAssumptionsPriceControl_FO!AG$15 -> 0 | CJ43: =+V43*KeyAssumptionsPriceControl_FO!AH$15 -> 0 | CK43: =+W43*KeyAssumptionsPriceControl_FO!AI$15 -> 0 | CL43: =+X43*KeyAssumptionsPriceControl_FO!AJ$15 -> 0 | CM43: =+Y43*KeyAssumptionsPriceControl_FO!AK$15 -> 0 | CN43: =+Z43*KeyAssumptionsPriceControl_FO!AL$15 -> 0 | CP43: 0.02717951098 | CQ43: 0.1337637483 | CR43: 0.2131684747 | CS43: 0.2131684747 | CT43: 0.2131684747 | CU43: 0.2131684747 | CV43: 0.2131684747 | CW43: 0.2131684747 | CX43: 0.2131684747 | CY43: 0.2131684747
C44: Recycled Water on the Bellarine Stage 3 | E44: Recycled Water | F44: Improvements / Compliance | G44: Pipelines/network | H44: Top 10 Major Projects | J44: Straight line | K44: 2024-25 | L44: 70 | M44: 50 | Q44: 9.751213877 | R44: 3.88829522 | S44: 0 | T44: 0 | U44: 0 | V44: 0 | W44: 0 | X44: 0 | Y44: 0 | Z44: 0 | AM44: 0 | AN44: 0 | AO44: 0 | AP44: 0 | AQ44: 0 | AR44: 0 | AS44: 0 | AT44: 0 | AU44: 0 | AV44: 0 | AX44: 9.751213877 | AY44: 3.88829522 | AZ44: 0 | BA44: 0 | BB44: 0 | BC44: 0 | BD44: 0 | BE44: 0 | BF44: 0 | BG44: 0 | BI44: 0 | BJ44: 0.09742506498 | BK44: 0.19485013 | BL44: 0.19485013 | BM44: 0.19485013 | BN44: 0.19485013 | BO44: 0.19485013 | BP44: 0.19485013 | BQ44: 0.19485013 | BR44: 0.19485013 | BT44: =+IF($K44="Ongoing",AX44,IF(RIGHT($K44,2)=RIGHT(BT$39,2),SUM($AX44:AX44),0)+IF(RIGHT(BT$39,2)>RIGHT($K44,2),AX44,0)) -> 0 | BU44: =+IF($K44="Ongoing",AY44,IF(RIGHT($K44,2)=RIGHT(BU$39,2),SUM($AX44:AY44),0)+IF(RIGHT(BU$39,2)>RIGHT($K44,2),AY44,0)) -> 13.6395091 | BV44: =+IF($K44="Ongoing",AZ44,IF(RIGHT($K44,2)=RIGHT(BV$39,2),SUM($AX44:AZ44),0)+IF(RIGHT(BV$39,2)>RIGHT($K44,2),AZ44,0)) -> 0 | BW44: =+IF($K44="Ongoing",BA44,IF(RIGHT($K44,2)=RIGHT(BW$39,2),SUM($AX44:BA44),0)+IF(RIGHT(BW$39,2)>RIGHT($K44,2),BA44,0)) -> 0 | BX44: =+IF($K44="Ongoing",BB44,IF(RIGHT($K44,2)=RIGHT(BX$39,2),SUM($AX44:BB44),0)+IF(RIGHT(BX$39,2)>RIGHT($K44,2),BB44,0)) -> 0 | BY44: =+IF($K44="Ongoing",BC44,IF(RIGHT($K44,2)=RIGHT(BY$39,2),SUM($AX44:BC44),0)+IF(RIGHT(BY$39,2)>RIGHT($K44,2),BC44,0)) -> 0 | BZ44: =+IF($K44="Ongoing",BD44,IF(RIGHT($K44,2)=RIGHT(BZ$39,2),SUM($AX44:BD44),0)+IF(RIGHT(BZ$39,2)>RIGHT($K44,2),BD44,0)) -> 0 | CA44: =+IF($K44="Ongoing",BE44,IF(RIGHT($K44,2)=RIGHT(CA$39,2),SUM($AX44:BE44),0)+IF(RIGHT(CA$39,2)>RIGHT($K44,2),BE44,0)) -> 0 | CB44: =+IF($K44="Ongoing",BF44,IF(RIGHT($K44,2)=RIGHT(CB$39,2),SUM($AX44:BF44),0)+IF(RIGHT(CB$39,2)>RIGHT($K44,2),BF44,0)) -> 0 | CC44: =+IF($K44="Ongoing",BG44,IF(RIGHT($K44,2)=RIGHT(CC$39,2),SUM($AX44:BG44),0)+IF(RIGHT(CC$39,2)>RIGHT($K44,2),BG44,0)) -> 0 | CE44: =+Q44*KeyAssumptionsPriceControl_FO!AC$15 -> 10.04375029 | CF44: =+R44*KeyAssumptionsPriceControl_FO!AD$15 -> 4.125092399 | CG44: =+S44*KeyAssumptionsPriceControl_FO!AE$15 -> 0 | CH44: =+T44*KeyAssumptionsPriceControl_FO!AF$15 -> 0 | CI44: =+U44*KeyAssumptionsPriceControl_FO!AG$15 -> 0 | CJ44: =+V44*KeyAssumptionsPriceControl_FO!AH$15 -> 0 | CK44: =+W44*KeyAssumptionsPriceControl_FO!AI$15 -> 0 | CL44: =+X44*KeyAssumptionsPriceControl_FO!AJ$15 -> 0 | CM44: =+Y44*KeyAssumptionsPriceControl_FO!AK$15 -> 0 | CN44: =+Z44*KeyAssumptionsPriceControl_FO!AL$15 -> 0 | CP44: 0.1004375029 | CQ44: 0.2421259299 | CR44: 0.2833768539 | CS44: 0.2833768539 | CT44: 0.2833768539 | CU44: 0.2833768539 | CV44: 0.2833768539 | CW44: 0.2833768539 | CX44: 0.2833768539 | CY44: 0.2833768539
C45: MGP booster Pump station | E45: Water | F45: Growth | G45: Pipelines/network | H45: Top 10 Major Projects | J45: Straight line | K45: 2026-27 | L45: 70 | M45: 50 | Q45: 1.580539462 | R45: 7.25114514 | S45: 9.14274822 | T45: 0.5254453 | U45: 0 | V45: 0 | W45: 0 | X45: 0 | Y45: 0 | Z45: 0 | AM45: 1.355205733 | AN45: 1.359292154 | AO45: 1.381210229 | AP45: 1.384925157 | AQ45: 1.368950966 | AR45: 1.395985215 | AS45: 1.423105222 | AT45: 1.450238432 | AU45: 1.476998469 | AV45: 1.503397225 | AX45: 0.2253337295 | AY45: 5.891852986 | AZ45: 7.761537991 | BA45: -0.8594798569 | BB45: -1.368950966 | BC45: -1.395985215 | BD45: -1.423105222 | BE45: -1.450238432 | BF45: -1.476998469 | BG45: -1.503397225 | BI45: 0 | BJ45: 0 | BK45: 0 | BL45: 0.09299460607 | BM45: 0.176210991 | BN45: 0.1564614468 | BO45: 0.1363250865 | BP45: 0.1158012033 | BQ45: 0.09489236828 | BR45: 0.07360382761 | BT45: =+IF($K45="Ongoing",AX45,IF(RIGHT($K45,2)=RIGHT(BT$39,2),SUM($AX45:AX45),0)+IF(RIGHT(BT$39,2)>RIGHT($K45,2),AX45,0)) -> 0 | BU45: =+IF($K45="Ongoing",AY45,IF(RIGHT($K45,2)=RIGHT(BU$39,2),SUM($AX45:AY45),0)+IF(RIGHT(BU$39,2)>RIGHT($K45,2),AY45,0)) -> 0 | BV45: =+IF($K45="Ongoing",AZ45,IF(RIGHT($K45,2)=RIGHT(BV$39,2),SUM($AX45:AZ45),0)+IF(RIGHT(BV$39,2)>RIGHT($K45,2),AZ45,0)) -> 0 | BW45: =+IF($K45="Ongoing",BA45,IF(RIGHT($K45,2)=RIGHT(BW$39,2),SUM($AX45:BA45),0)+IF(RIGHT(BW$39,2)>RIGHT($K45,2),BA45,0)) -> 13.01924485 | BX45: =+IF($K45="Ongoing",BB45,IF(RIGHT($K45,2)=RIGHT(BX$39,2),SUM($AX45:BB45),0)+IF(RIGHT(BX$39,2)>RIGHT($K45,2),BB45,0)) -> -1.368950966 | BY45: =+IF($K45="Ongoing",BC45,IF(RIGHT($K45,2)=RIGHT(BY$39,2),SUM($AX45:BC45),0)+IF(RIGHT(BY$39,2)>RIGHT($K45,2),BC45,0)) -> -1.395985215 | BZ45: =+IF($K45="Ongoing",BD45,IF(RIGHT($K45,2)=RIGHT(BZ$39,2),SUM($AX45:BD45),0)+IF(RIGHT(BZ$39,2)>RIGHT($K45,2),BD45,0)) -> -1.423105222 | CA45: =+IF($K45="Ongoing",BE45,IF(RIGHT($K45,2)=RIGHT(CA$39,2),SUM($AX45:BE45),0)+IF(RIGHT(CA$39,2)>RIGHT($K45,2),BE45,0)) -> -1.450238432 | CB45: =+IF($K45="Ongoing",BF45,IF(RIGHT($K45,2)=RIGHT(CB$39,2),SUM($AX45:BF45),0)+IF(RIGHT(CB$39,2)>RIGHT($K45,2),BF45,0)) -> -1.476998469 | CC45: =+IF($K45="Ongoing",BG45,IF(RIGHT($K45,2)=RIGHT(CC$39,2),SUM($AX45:BG45),0)+IF(RIGHT(CC$39,2)>RIGHT($K45,2),BG45,0)) -> -1.503397225 | CE45: =+Q45*KeyAssumptionsPriceControl_FO!AC$15 -> 1.627955646 | CF45: =+R45*KeyAssumptionsPriceControl_FO!AD$15 -> 7.692739879 | CG45: =+S45*KeyAssumptionsPriceControl_FO!AE$15 -> 9.990527834 | CH45: =+T45*KeyAssumptionsPriceControl_FO!AF$15 -> 0.5913933143 | CI45: =+U45*KeyAssumptionsPriceControl_FO!AG$15 -> 0 | CJ45: =+V45*KeyAssumptionsPriceControl_FO!AH$15 -> 0 | CK45: =+W45*KeyAssumptionsPriceControl_FO!AI$15 -> 0 | CL45: =+X45*KeyAssumptionsPriceControl_FO!AJ$15 -> 0 | CM45: =+Y45*KeyAssumptionsPriceControl_FO!AK$15 -> 0 | CN45: =+Z45*KeyAssumptionsPriceControl_FO!AL$15 -> 0 | CP45: 0.01627955646 | CQ45: 0.1094865117 | CR45: 0.2863191888 | CS45: 0.3921384003 | CT45: 0.3980523335 | CU45: 0.3980523335 | CV45: 0.3980523335 | CW45: 0.3980523335 | CX45: 0.3980523335 | CY45: 0.3980523335
C46: Pettavel Basin Augm Stg 2 50ML Basin | E46: Water | F46: Growth | G46: Pipelines/network | H46: Top 10 Major Projects | J46: Straight line | K46: 2027-28 | L46: 70 | M46: 50 | Q46: 0.15763359 | R46: 0.36781171 | S46: 0.5254453 | T46: 3.1526718 | U46: 13.27808155 | V46: 0 | W46: 0 | X46: 0 | Y46: 0 | Z46: 0 | AM46: 1.280615145 | AN46: 1.284476649 | AO46: 1.305188352 | AP46: 1.30869881 | AQ46: 1.29360384 | AR46: 1.319150122 | AS46: 1.344777443 | AT46: 1.37041724 | AU46: 1.395704403 | AV46: 1.42065017 | AX46: -1.122981555 | AY46: -0.9166649387 | AZ46: -0.779743052 | BA46: 1.84397299 | BB46: 11.98447771 | BC46: -1.319150122 | BD46: -1.344777443 | BE46: -1.37041724 | BF46: -1.395704403 | BG46: -1.42065017 | BI46: 0 | BJ46: 0 | BK46: 0 | BL46: 0 | BM46: 0.07863615109 | BN46: 0.1478498013 | BO46: 0.1288217473 | BP46: 0.1094274995 | BQ46: 0.0896694878 | BR46: 0.06955266942 | BT46: =+IF($K46="Ongoing",AX46,IF(RIGHT($K46,2)=RIGHT(BT$39,2),SUM($AX46:AX46),0)+IF(RIGHT(BT$39,2)>RIGHT($K46,2),AX46,0)) -> 0 | BU46: =+IF($K46="Ongoing",AY46,IF(RIGHT($K46,2)=RIGHT(BU$39,2),SUM($AX46:AY46),0)+IF(RIGHT(BU$39,2)>RIGHT($K46,2),AY46,0)) -> 0 | BV46: =+IF($K46="Ongoing",AZ46,IF(RIGHT($K46,2)=RIGHT(BV$39,2),SUM($AX46:AZ46),0)+IF(RIGHT(BV$39,2)>RIGHT($K46,2),AZ46,0)) -> 0 | BW46: =+IF($K46="Ongoing",BA46,IF(RIGHT($K46,2)=RIGHT(BW$39,2),SUM($AX46:BA46),0)+IF(RIGHT(BW$39,2)>RIGHT($K46,2),BA46,0)) -> 0 | BX46: =+IF($K46="Ongoing",BB46,IF(RIGHT($K46,2)=RIGHT(BX$39,2),SUM($AX46:BB46),0)+IF(RIGHT(BX$39,2)>RIGHT($K46,2),BB46,0)) -> 11.00906115 | BY46: =+IF($K46="Ongoing",BC46,IF(RIGHT($K46,2)=RIGHT(BY$39,2),SUM($AX46:BC46),0)+IF(RIGHT(BY$39,2)>RIGHT($K46,2),BC46,0)) -> -1.319150122 | BZ46: =+IF($K46="Ongoing",BD46,IF(RIGHT($K46,2)=RIGHT(BZ$39,2),SUM($AX46:BD46),0)+IF(RIGHT(BZ$39,2)>RIGHT($K46,2),BD46,0)) -> -1.344777443 | CA46: =+IF($K46="Ongoing",BE46,IF(RIGHT($K46,2)=RIGHT(CA$39,2),SUM($AX46:BE46),0)+IF(RIGHT(CA$39,2)>RIGHT($K46,2),BE46,0)) -> -1.37041724 | CB46: =+IF($K46="Ongoing",BF46,IF(RIGHT($K46,2)=RIGHT(CB$39,2),SUM($AX46:BF46),0)+IF(RIGHT(CB$39,2)>RIGHT($K46,2),BF46,0)) -> -1.395704403 | CC46: =+IF($K46="Ongoing",BG46,IF(RIGHT($K46,2)=RIGHT(CC$39,2),SUM($AX46:BG46),0)+IF(RIGHT(CC$39,2)>RIGHT($K46,2),BG46,0)) -> -1.42065017 | CE46: =+Q46*KeyAssumptionsPriceControl_FO!AC$15 -> 0.1623625977 | CF46: =+R46*KeyAssumptionsPriceControl_FO!AD$15 -> 0.3902114431 | CG46: =+S46*KeyAssumptionsPriceControl_FO!AE$15 -> 0.5741682663 | CH46: =+T46*KeyAssumptionsPriceControl_FO!AF$15 -> 3.548359886 | CI46: =+U46*KeyAssumptionsPriceControl_FO!AG$15 -> 15.39293569 | CJ46: =+V46*KeyAssumptionsPriceControl_FO!AH$15 -> 0 | CK46: =+W46*KeyAssumptionsPriceControl_FO!AI$15 -> 0 | CL46: =+X46*KeyAssumptionsPriceControl_FO!AJ$15 -> 0 | CM46: =+Y46*KeyAssumptionsPriceControl_FO!AK$15 -> 0 | CN46: =+Z46*KeyAssumptionsPriceControl_FO!AL$15 -> 0 | CP46: 0.001623625977 | CQ46: 0.007149366385 | CR46: 0.01679316348 | CS46: 0.058018445 | CT46: 0.2474314008 | CU46: 0.4013607578 | CV46: 0.4013607578 | CW46: 0.4013607578 | CX46: 0.4013607578 | CY46: 0.4013607578
C47: Bannockburn South Pump Station & RM | E47: Sewerage | F47: Growth | G47: Pipelines/network | H47: Top 10 Major Projects | J47: Straight line | K47: 2027-28 | L47: 70 | M47: 50 | Q47: 0.26272265 | R47: 0.5254453 | S47: 0.5254453 | T47: 2.1017812 | U47: 5.020027681 | V47: 0 | W47: 0 | X47: 0 | Y47: 0 | Z47: 0 | AM47: 0.6179355537 | AN47: 0.6197988462 | AO47: 0.6297928697 | AP47: 0.631486772 | AQ47: 0.6242029922 | AR47: 0.6365298461 | AS47: 0.648895804 | AT47: 0.6612677818 | AU47: 0.6734696028 | AV47: 0.6855066905 | AX47: -0.3552129037 | AY47: -0.09435354625 | AZ47: -0.1043475697 | BA47: 1.470294428 | BB47: 4.395824689 | BC47: -0.6365298461 | BD47: -0.648895804 | BE47: -0.6612677818 | BF47: -0.6734696028 | BG47: -0.6855066905 | BI47: 0 | BJ47: 0 | BK47: 0 | BL47: 0 | BM47: 0.03794432212 | BN47: 0.07134200249 | BO47: 0.0621603907 | BP47: 0.05280207938 | BQ47: 0.04326824091 | BR47: 0.03356126739 | BT47: =+IF($K47="Ongoing",AX47,IF(RIGHT($K47,2)=RIGHT(BT$39,2),SUM($AX47:AX47),0)+IF(RIGHT(BT$39,2)>RIGHT($K47,2),AX47,0)) -> 0 | BU47: =+IF($K47="Ongoing",AY47,IF(RIGHT($K47,2)=RIGHT(BU$39,2),SUM($AX47:AY47),0)+IF(RIGHT(BU$39,2)>RIGHT($K47,2),AY47,0)) -> 0 | BV47: =+IF($K47="Ongoing",AZ47,IF(RIGHT($K47,2)=RIGHT(BV$39,2),SUM($AX47:AZ47),0)+IF(RIGHT(BV$39,2)>RIGHT($K47,2),AZ47,0)) -> 0 | BW47: =+IF($K47="Ongoing",BA47,IF(RIGHT($K47,2)=RIGHT(BW$39,2),SUM($AX47:BA47),0)+IF(RIGHT(BW$39,2)>RIGHT($K47,2),BA47,0)) -> 0 | BX47: =+IF($K47="Ongoing",BB47,IF(RIGHT($K47,2)=RIGHT(BX$39,2),SUM($AX47:BB47),0)+IF(RIGHT(BX$39,2)>RIGHT($K47,2),BB47,0)) -> 5.312205097 | BY47: =+IF($K47="Ongoing",BC47,IF(RIGHT($K47,2)=RIGHT(BY$39,2),SUM($AX47:BC47),0)+IF(RIGHT(BY$39,2)>RIGHT($K47,2),BC47,0)) -> -0.6365298461 | BZ47: =+IF($K47="Ongoing",BD47,IF(RIGHT($K47,2)=RIGHT(BZ$39,2),SUM($AX47:BD47),0)+IF(RIGHT(BZ$39,2)>RIGHT($K47,2),BD47,0)) -> -0.648895804 | CA47: =+IF($K47="Ongoing",BE47,IF(RIGHT($K47,2)=RIGHT(CA$39,2),SUM($AX47:BE47),0)+IF(RIGHT(CA$39,2)>RIGHT($K47,2),BE47,0)) -> -0.6612677818 | CB47: =+IF($K47="Ongoing",BF47,IF(RIGHT($K47,2)=RIGHT(CB$39,2),SUM($AX47:BF47),0)+IF(RIGHT(CB$39,2)>RIGHT($K47,2),BF47,0)) -> -0.6734696028 | CC47: =+IF($K47="Ongoing",BG47,IF(RIGHT($K47,2)=RIGHT(CC$39,2),SUM($AX47:BG47),0)+IF(RIGHT(CC$39,2)>RIGHT($K47,2),BG47,0)) -> -0.6855066905 | CE47: =+Q47*KeyAssumptionsPriceControl_FO!AC$15 -> 0.2706043295 | CF47: =+R47*KeyAssumptionsPriceControl_FO!AD$15 -> 0.5574449188 | CG47: =+S47*KeyAssumptionsPriceControl_FO!AE$15 -> 0.5741682663 | CH47: =+T47*KeyAssumptionsPriceControl_FO!AF$15 -> 2.365573257 | CI47: =+U47*KeyAssumptionsPriceControl_FO!AG$15 -> 5.819587943 | CJ47: =+V47*KeyAssumptionsPriceControl_FO!AH$15 -> 0 | CK47: =+W47*KeyAssumptionsPriceControl_FO!AI$15 -> 0 | CL47: =+X47*KeyAssumptionsPriceControl_FO!AJ$15 -> 0 | CM47: =+Y47*KeyAssumptionsPriceControl_FO!AK$15 -> 0 | CN47: =+Z47*KeyAssumptionsPriceControl_FO!AL$15 -> 0 | CP47: 0.002706043295 | CQ47: 0.01098653578 | CR47: 0.02230266763 | CS47: 0.05170008286 | CT47: 0.1335516949 | CU47: 0.1917475743 | CV47: 0.1917475743 | CW47: 0.1917475743 | CX47: 0.1917475743 | CY47: 0.1917475743
C48: Clifton Springs Tank Upgrade | E48: Water | F48: Renewals | G48: Pipelines/network | H48: Top 10 Major Projects | J48: Straight line | K48: 2026-27 | L48: 70 | M48: 50 | Q48: 0 | R48: 0.2900458056 | S48: 1.5763359 | T48: 5.308615902 | U48: 0 | V48: 0 | W48: 0 | X48: 0 | Y48: 0 | Z48: 0 | AM48: 0 | AN48: 0 | AO48: 0 | AP48: 0 | AQ48: 0 | AR48: 0 | AS48: 0 | AT48: 0 | AU48: 0 | AV48: 0 | AX48: 0 | AY48: 0.2900458056 | AZ48: 1.5763359 | BA48: 5.308615902 | BB48: 0 | BC48: 0 | BD48: 0 | BE48: 0 | BF48: 0 | BG48: 0 | BI48: 0 | BJ48: 0 | BK48: 0 | BL48: 0.05124998291 | BM48: 0.1024999658 | BN48: 0.1024999658 | BO48: 0.1024999658 | BP48: 0.1024999658 | BQ48: 0.1024999658 | BR48: 0.1024999658 | BT48: =+IF($K48="Ongoing",AX48,IF(RIGHT($K48,2)=RIGHT(BT$39,2),SUM($AX48:AX48),0)+IF(RIGHT(BT$39,2)>RIGHT($K48,2),AX48,0)) -> 0 | BU48: =+IF($K48="Ongoing",AY48,IF(RIGHT($K48,2)=RIGHT(BU$39,2),SUM($AX48:AY48),0)+IF(RIGHT(BU$39,2)>RIGHT($K48,2),AY48,0)) -> 0 | BV48: =+IF($K48="Ongoing",AZ48,IF(RIGHT($K48,2)=RIGHT(BV$39,2),SUM($AX48:AZ48),0)+IF(RIGHT(BV$39,2)>RIGHT($K48,2),AZ48,0)) -> 0 | BW48: =+IF($K48="Ongoing",BA48,IF(RIGHT($K48,2)=RIGHT(BW$39,2),SUM($AX48:BA48),0)+IF(RIGHT(BW$39,2)>RIGHT($K48,2),BA48,0)) -> 7.174997607 | BX48: =+IF($K48="Ongoing",BB48,IF(RIGHT($K48,2)=RIGHT(BX$39,2),SUM($AX48:BB48),0)+IF(RIGHT(BX$39,2)>RIGHT($K48,2),BB48,0)) -> 0 | BY48: =+IF($K48="Ongoing",BC48,IF(RIGHT($K48,2)=RIGHT(BY$39,2),SUM($AX48:BC48),0)+IF(RIGHT(BY$39,2)>RIGHT($K48,2),BC48,0)) -> 0 | BZ48: =+IF($K48="Ongoing",BD48,IF(RIGHT($K48,2)=RIGHT(BZ$39,2),SUM($AX48:BD48),0)+IF(RIGHT(BZ$39,2)>RIGHT($K48,2),BD48,0)) -> 0 | CA48: =+IF($K48="Ongoing",BE48,IF(RIGHT($K48,2)=RIGHT(CA$39,2),SUM($AX48:BE48),0)+IF(RIGHT(CA$39,2)>RIGHT($K48,2),BE48,0)) -> 0 | CB48: =+IF($K48="Ongoing",BF48,IF(RIGHT($K48,2)=RIGHT(CB$39,2),SUM($AX48:BF48),0)+IF(RIGHT(CB$39,2)>RIGHT($K48,2),BF48,0)) -> 0 | CC48: =+IF($K48="Ongoing",BG48,IF(RIGHT($K48,2)=RIGHT(CC$39,2),SUM($AX48:BG48),0)+IF(RIGHT(CC$39,2)>RIGHT($K48,2),BG48,0)) -> 0 | CE48: =+Q48*KeyAssumptionsPriceControl_FO!AC$15 -> 0 | CF48: =+R48*KeyAssumptionsPriceControl_FO!AD$15 -> 0.3077095952 | CG48: =+S48*KeyAssumptionsPriceControl_FO!AE$15 -> 1.722504799 | CH48: =+T48*KeyAssumptionsPriceControl_FO!AF$15 -> 5.974893966 | CI48: =+U48*KeyAssumptionsPriceControl_FO!AG$15 -> 0 | CJ48: =+V48*KeyAssumptionsPriceControl_FO!AH$15 -> 0 | CK48: =+W48*KeyAssumptionsPriceControl_FO!AI$15 -> 0 | CL48: =+X48*KeyAssumptionsPriceControl_FO!AJ$15 -> 0 | CM48: =+Y48*KeyAssumptionsPriceControl_FO!AK$15 -> 0 | CN48: =+Z48*KeyAssumptionsPriceControl_FO!AL$15 -> 0 | CP48: 0 | CQ48: 0.003077095952 | CR48: 0.02337923989 | CS48: 0.1003532275 | CT48: 0.1601021672 | CU48: 0.1601021672 | CV48: 0.1601021672 | CW48: 0.1601021672 | CX48: 0.1601021672 | CY48: 0.1601021672
C49: Queenscliff Transfer Main Replacement | E49: Water | F49: Growth | G49: Pipelines/network | H49: Top 10 Major Projects | J49: Straight line | K49: 2026-27 | L49: 70 | M49: 50 | Q49: 0.5254453 | R49: 2.1017812 | S49: 3.66130285 | T49: 0.31526718 | U49: 0 | V49: 0 | W49: 0 | X49: 0 | Y49: 0 | Z49: 0 | AM49: 0.4837601014 | AN49: 0.4852188079 | AO49: 0.4930427788 | AP49: 0.4943688756 | AQ49: 0.4886666595 | AR49: 0.4983169217 | AS49: 0.5079977969 | AT49: 0.517683385 | AU49: 0.5272357633 | AV49: 0.5366591777 | AX49: 0.04168519857 | AY49: 1.616562392 | AZ49: 3.168260072 | BA49: -0.1791016956 | BB49: -0.4886666595 | BC49: -0.4983169217 | BD49: -0.5079977969 | BE49: -0.517683385 | BF49: -0.5272357633 | BG49: -0.5366591777 | BI49: 0 | BJ49: 0 | BK49: 0 | BL49: 0.03319575691 | BM49: 0.06290103767 | BN49: 0.05585115495 | BO49: 0.04866319267 | BP49: 0.04133689852 | BQ49: 0.03387319031 | BR49: 0.02627394073 | BT49: =+IF($K49="Ongoing",AX49,IF(RIGHT($K49,2)=RIGHT(BT$39,2),SUM($AX49:AX49),0)+IF(RIGHT(BT$39,2)>RIGHT($K49,2),AX49,0)) -> 0 | BU49: =+IF($K49="Ongoing",AY49,IF(RIGHT($K49,2)=RIGHT(BU$39,2),SUM($AX49:AY49),0)+IF(RIGHT(BU$39,2)>RIGHT($K49,2),AY49,0)) -> 0 | BV49: =+IF($K49="Ongoing",AZ49,IF(RIGHT($K49,2)=RIGHT(BV$39,2),SUM($AX49:AZ49),0)+IF(RIGHT(BV$39,2)>RIGHT($K49,2),AZ49,0)) -> 0 | BW49: =+IF($K49="Ongoing",BA49,IF(RIGHT($K49,2)=RIGHT(BW$39,2),SUM($AX49:BA49),0)+IF(RIGHT(BW$39,2)>RIGHT($K49,2),BA49,0)) -> 4.647405967 | BX49: =+IF($K49="Ongoing",BB49,IF(RIGHT($K49,2)=RIGHT(BX$39,2),SUM($AX49:BB49),0)+IF(RIGHT(BX$39,2)>RIGHT($K49,2),BB49,0)) -> -0.4886666595 | BY49: =+IF($K49="Ongoing",BC49,IF(RIGHT($K49,2)=RIGHT(BY$39,2),SUM($AX49:BC49),0)+IF(RIGHT(BY$39,2)>RIGHT($K49,2),BC49,0)) -> -0.4983169217 | BZ49: =+IF($K49="Ongoing",BD49,IF(RIGHT($K49,2)=RIGHT(BZ$39,2),SUM($AX49:BD49),0)+IF(RIGHT(BZ$39,2)>RIGHT($K49,2),BD49,0)) -> -0.5079977969 | CA49: =+IF($K49="Ongoing",BE49,IF(RIGHT($K49,2)=RIGHT(CA$39,2),SUM($AX49:BE49),0)+IF(RIGHT(CA$39,2)>RIGHT($K49,2),BE49,0)) -> -0.517683385 | CB49: =+IF($K49="Ongoing",BF49,IF(RIGHT($K49,2)=RIGHT(CB$39,2),SUM($AX49:BF49),0)+IF(RIGHT(CB$39,2)>RIGHT($K49,2),BF49,0)) -> -0.5272357633 | CC49: =+IF($K49="Ongoing",BG49,IF(RIGHT($K49,2)=RIGHT(CC$39,2),SUM($AX49:BG49),0)+IF(RIGHT(CC$39,2)>RIGHT($K49,2),BG49,0)) -> -0.5366591777 | CE49: =+Q49*KeyAssumptionsPriceControl_FO!AC$15 -> 0.541208659 | CF49: =+R49*KeyAssumptionsPriceControl_FO!AD$15 -> 2.229779675 | CG49: =+S49*KeyAssumptionsPriceControl_FO!AE$15 -> 4.00080448 | CH49: =+T49*KeyAssumptionsPriceControl_FO!AF$15 -> 0.3548359886 | CI49: =+U49*KeyAssumptionsPriceControl_FO!AG$15 -> 0 | CJ49: =+V49*KeyAssumptionsPriceControl_FO!AH$15 -> 0 | CK49: =+W49*KeyAssumptionsPriceControl_FO!AI$15 -> 0 | CL49: =+X49*KeyAssumptionsPriceControl_FO!AJ$15 -> 0 | CM49: =+Y49*KeyAssumptionsPriceControl_FO!AK$15 -> 0 | CN49: =+Z49*KeyAssumptionsPriceControl_FO!AL$15 -> 0 | CP49: 0.00541208659 | CQ49: 0.03312196993 | CR49: 0.09542781148 | CS49: 0.1389842162 | CT49: 0.142532576 | CU49: 0.142532576 | CV49: 0.142532576 | CW49: 0.142532576 | CX49: 0.142532576 | CY49: 0.142532576
C50: Portarlington 6ML Tank Improvements Stg2 | E50: Water | F50: Growth | G50: Pipelines/network | H50: Top 10 Major Projects | J50: Straight line | K50: 2026-27 | L50: 70 | M50: 50 | Q50: 0.31526718 | R50: 1.0508906 | S50: 2.94249368 | T50: 0.8015457873 | U50: 0 | V50: 0 | W50: 0 | X50: 0 | Y50: 0 | Z50: 0 | AM50: 0.3743467152 | AN50: 0.3754755018 | AO50: 0.3815299032 | AP50: 0.3825560729 | AQ50: 0.3781435431 | AR50: 0.3856111783 | AS50: 0.3931025027 | AT50: 0.400597474 | AU50: 0.407989364 | AV50: 0.4152814582 | AX50: -0.05907953515 | AY50: 0.6754150982 | AZ50: 2.560963777 | BA50: 0.4189897144 | BB50: -0.3781435431 | BC50: -0.3856111783 | BD50: -0.3931025027 | BE50: -0.400597474 | BF50: -0.407989364 | BG50: -0.4152814582 | BI50: 0 | BJ50: 0 | BK50: 0 | BL50: 0.02568777896 | BM50: 0.04867453261 | BN50: 0.04321914174 | BO50: 0.03765690116 | BP50: 0.03198761561 | BQ50: 0.02621199534 | BR50: 0.02033148947 | BT50: =+IF($K50="Ongoing",AX50,IF(RIGHT($K50,2)=RIGHT(BT$39,2),SUM($AX50:AX50),0)+IF(RIGHT(BT$39,2)>RIGHT($K50,2),AX50,0)) -> 0 | BU50: =+IF($K50="Ongoing",AY50,IF(RIGHT($K50,2)=RIGHT(BU$39,2),SUM($AX50:AY50),0)+IF(RIGHT(BU$39,2)>RIGHT($K50,2),AY50,0)) -> 0 | BV50: =+IF($K50="Ongoing",AZ50,IF(RIGHT($K50,2)=RIGHT(BV$39,2),SUM($AX50:AZ50),0)+IF(RIGHT(BV$39,2)>RIGHT($K50,2),AZ50,0)) -> 0 | BW50: =+IF($K50="Ongoing",BA50,IF(RIGHT($K50,2)=RIGHT(BW$39,2),SUM($AX50:BA50),0)+IF(RIGHT(BW$39,2)>RIGHT($K50,2),BA50,0)) -> 3.596289054 | BX50: =+IF($K50="Ongoing",BB50,IF(RIGHT($K50,2)=RIGHT(BX$39,2),SUM($AX50:BB50),0)+IF(RIGHT(BX$39,2)>RIGHT($K50,2),BB50,0)) -> -0.3781435431 | BY50: =+IF($K50="Ongoing",BC50,IF(RIGHT($K50,2)=RIGHT(BY$39,2),SUM($AX50:BC50),0)+IF(RIGHT(BY$39,2)>RIGHT($K50,2),BC50,0)) -> -0.3856111783 | BZ50: =+IF($K50="Ongoing",BD50,IF(RIGHT($K50,2)=RIGHT(BZ$39,2),SUM($AX50:BD50),0)+IF(RIGHT(BZ$39,2)>RIGHT($K50,2),BD50,0)) -> -0.3931025027 | CA50: =+IF($K50="Ongoing",BE50,IF(RIGHT($K50,2)=RIGHT(CA$39,2),SUM($AX50:BE50),0)+IF(RIGHT(CA$39,2)>RIGHT($K50,2),BE50,0)) -> -0.400597474 | CB50: =+IF($K50="Ongoing",BF50,IF(RIGHT($K50,2)=RIGHT(CB$39,2),SUM($AX50:BF50),0)+IF(RIGHT(CB$39,2)>RIGHT($K50,2),BF50,0)) -> -0.407989364 | CC50: =+IF($K50="Ongoing",BG50,IF(RIGHT($K50,2)=RIGHT(CC$39,2),SUM($AX50:BG50),0)+IF(RIGHT(CC$39,2)>RIGHT($K50,2),BG50,0)) -> -0.4152814582 | CE50: =+Q50*KeyAssumptionsPriceControl_FO!AC$15 -> 0.3247251954 | CF50: =+R50*KeyAssumptionsPriceControl_FO!AD$15 -> 1.114889838 | CG50: =+S50*KeyAssumptionsPriceControl_FO!AE$15 -> 3.215342291 | CH50: =+T50*KeyAssumptionsPriceControl_FO!AF$15 -> 0.9021468453 | CI50: =+U50*KeyAssumptionsPriceControl_FO!AG$15 -> 0 | CJ50: =+V50*KeyAssumptionsPriceControl_FO!AH$15 -> 0 | CK50: =+W50*KeyAssumptionsPriceControl_FO!AI$15 -> 0 | CL50: =+X50*KeyAssumptionsPriceControl_FO!AJ$15 -> 0 | CM50: =+Y50*KeyAssumptionsPriceControl_FO!AK$15 -> 0 | CN50: =+Z50*KeyAssumptionsPriceControl_FO!AL$15 -> 0 | CP50: 0.003247251954 | CQ50: 0.01764340228 | CR50: 0.06094572357 | CS50: 0.1021206149 | CT50: 0.1111420834 | CU50: 0.1111420834 | CV50: 0.1111420834 | CW50: 0.1111420834 | CX50: 0.1111420834 | CY50: 0.1111420834
C51: Indented Head St Leonards FM Stage 3 | E51: Water | F51: Growth | G51: Pipelines/network | H51: Top 10 Major Projects | J51: Straight line | K51: 2027-28 | L51: 70 | M51: 50 | Q51: 0 | R51: 0.131361325 | S51: 0.5254453 | T51: 0.84071248 | U51: 3.417180964 | V51: 0 | W51: 0 | X51: 0 | Y51: 0 | Z51: 0 | AM51: 0.3600255994 | AN51: 0.3611112029 | AO51: 0.3669339853 | AP51: 0.3679208976 | AQ51: 0.3636771748 | AR51: 0.370859126 | AS51: 0.3780638601 | AT51: 0.3852721016 | AU51: 0.3923812054 | AV51: 0.399394331 | AX51: -0.3600255994 | AY51: -0.2297498779 | AZ51: 0.1585113147 | BA51: 0.4727915824 | BB51: 3.053503789 | BC51: -0.370859126 | BD51: -0.3780638601 | BE51: -0.3852721016 | BF51: -0.3923812054 | BG51: -0.399394331 | BI51: 0 | BJ51: 0 | BK51: 0 | BL51: 0 | BM51: 0.02210736578 | BN51: 0.0415657378 | BO51: 0.0362162879 | BP51: 0.03076388817 | BQ51: 0.0252092217 | BR51: 0.01955368215 | BT51: =+IF($K51="Ongoing",AX51,IF(RIGHT($K51,2)=RIGHT(BT$39,2),SUM($AX51:AX51),0)+IF(RIGHT(BT$39,2)>RIGHT($K51,2),AX51,0)) -> 0 | BU51: =+IF($K51="Ongoing",AY51,IF(RIGHT($K51,2)=RIGHT(BU$39,2),SUM($AX51:AY51),0)+IF(RIGHT(BU$39,2)>RIGHT($K51,2),AY51,0)) -> 0 | BV51: =+IF($K51="Ongoing",AZ51,IF(RIGHT($K51,2)=RIGHT(BV$39,2),SUM($AX51:AZ51),0)+IF(RIGHT(BV$39,2)>RIGHT($K51,2),AZ51,0)) -> 0 | BW51: =+IF($K51="Ongoing",BA51,IF(RIGHT($K51,2)=RIGHT(BW$39,2),SUM($AX51:BA51),0)+IF(RIGHT(BW$39,2)>RIGHT($K51,2),BA51,0)) -> 0 | BX51: =+IF($K51="Ongoing",BB51,IF(RIGHT($K51,2)=RIGHT(BX$39,2),SUM($AX51:BB51),0)+IF(RIGHT(BX$39,2)>RIGHT($K51,2),BB51,0)) -> 3.095031209 | BY51: =+IF($K51="Ongoing",BC51,IF(RIGHT($K51,2)=RIGHT(BY$39,2),SUM($AX51:BC51),0)+IF(RIGHT(BY$39,2)>RIGHT($K51,2),BC51,0)) -> -0.370859126 | BZ51: =+IF($K51="Ongoing",BD51,IF(RIGHT($K51,2)=RIGHT(BZ$39,2),SUM($AX51:BD51),0)+IF(RIGHT(BZ$39,2)>RIGHT($K51,2),BD51,0)) -> -0.3780638601 | CA51: =+IF($K51="Ongoing",BE51,IF(RIGHT($K51,2)=RIGHT(CA$39,2),SUM($AX51:BE51),0)+IF(RIGHT(CA$39,2)>RIGHT($K51,2),BE51,0)) -> -0.3852721016 | CB51: =+IF($K51="Ongoing",BF51,IF(RIGHT($K51,2)=RIGHT(CB$39,2),SUM($AX51:BF51),0)+IF(RIGHT(CB$39,2)>RIGHT($K51,2),BF51,0)) -> -0.3923812054 | CC51: =+IF($K51="Ongoing",BG51,IF(RIGHT($K51,2)=RIGHT(CC$39,2),SUM($AX51:BG51),0)+IF(RIGHT(CC$39,2)>RIGHT($K51,2),BG51,0)) -> -0.399394331 | CE51: =+Q51*KeyAssumptionsPriceControl_FO!AC$15 -> 0 | CF51: =+R51*KeyAssumptionsPriceControl_FO!AD$15 -> 0.1393612297 | CG51: =+S51*KeyAssumptionsPriceControl_FO!AE$15 -> 0.5741682663 | CH51: =+T51*KeyAssumptionsPriceControl_FO!AF$15 -> 0.9462293029 | CI51: =+U51*KeyAssumptionsPriceControl_FO!AG$15 -> 3.961449299 | CJ51: =+V51*KeyAssumptionsPriceControl_FO!AH$15 -> 0 | CK51: =+W51*KeyAssumptionsPriceControl_FO!AI$15 -> 0 | CL51: =+X51*KeyAssumptionsPriceControl_FO!AJ$15 -> 0 | CM51: =+Y51*KeyAssumptionsPriceControl_FO!AK$15 -> 0 | CN51: =+Z51*KeyAssumptionsPriceControl_FO!AL$15 -> 0 | CP51: 0 | CQ51: 0.001393612297 | CR51: 0.008528907257 | CS51: 0.02373288295 | CT51: 0.07280966897 | CU51: 0.112424162 | CV51: 0.112424162 | CW51: 0.112424162 | CX51: 0.112424162 | CY51: 0.112424162
C53: Main Sewer Lining 2021-25 | E53: Sewerage | F53: Renewals | G53: Pipelines/network | H53: Other Capital expenditure | J53: Straight line | K53: 2024-25 | L53: 70 | M53: 50 | Q53: 0.6057491052 | R53: 0.007350979747 | S53: 0 | T53: 0 | U53: 0 | V53: 0 | W53: 0 | X53: 0 | Y53: 0 | Z53: 0 | AM53: 0 | AN53: 0 | AO53: 0 | AP53: 0 | AQ53: 0 | AR53: 0 | AS53: 0 | AT53: 0 | AU53: 0 | AV53: 0 | AX53: =+Q53-AB53-AM53 -> 0.6057491052 | AY53: =+R53-AC53-AN53 -> 0.007350979747 | AZ53: =+S53-AD53-AO53 -> 0 | BA53: =+T53-AE53-AP53 -> 0 | BB53: =+U53-AF53-AQ53 -> 0 | BC53: =+V53-AG53-AR53 -> 0 | BD53: =+W53-AH53-AS53 -> 0 | BE53: =+X53-AI53-AT53 -> 0 | BF53: =+Y53-AJ53-AU53 -> 0 | BG53: =+Z53-AK53-AV53 -> 0 | BI53: =IF($L53=0,0, IF($L53<=0.5,BT53, IF($J53="straight line", IF((LEFT(BI$39,4)*1)-INT($L53)<LEFT($BI$39,4)*1,0,((OFFSET(BT53,0,-INT($L53+0.5),1,1))/$L53)*(IF($L53-INT($L53)>0.5,$L53-0.5-INT($L53),IF($L53-INT($L53)<=0.5,$L53-0.5-INT($L53)+1,0)))) +BT53/$L53*0.5, IF($J53="Declining Balance",-$BI$38,0)))) -> 0 | BJ53: =IF($L53=0,0, IF($L53<=0.5,BU53, IF(AND($J53="straight line",$L53<1.51),(BT53-((BT53/$L53)*0.5))+BU53/$L53*0.5, IF($J53="straight line", IF((LEFT(BJ$39,4)*1)-INT($L53)<LEFT($BI$39,4)*1,0,((OFFSET(BU53,0,-INT($L53+0.5),1,1))/$L53)*(IF($L53-INT($L53)>0.5,$L53-0.5-INT($L53),IF($L53-INT($L53)<=0.5,$L53-0.5-INT($L53)+1,0)))) +BU53/$L53*0.5 +SUM(OFFSET(BU53,0,MAX(-INT($L53+(0.5-(10^-12))),-BJ$40)+1,1,MIN(INT($L53+(0.5-(10^-12))),BJ$40)-1))*1/$L53, IF($J53="Declining Balance",-$BI$38,0))))) -> 0.004379286321 | BK53: =IF($L53=0,0, IF($L53<=0.5,BV53, IF(AND($J53="straight line",$L53<1.51),(BU53-((BU53/$L53)*0.5))+BV53/$L53*0.5, IF($J53="straight line", IF((LEFT(BK$39,4)*1)-INT($L53)<LEFT($BI$39,4)*1,0,((OFFSET(BV53,0,-INT($L53+0.5),1,1))/$L53)*(IF($L53-INT($L53)>0.5,$L53-0.5-INT($L53),IF($L53-INT($L53)<=0.5,$L53-0.5-INT($L53)+1,0)))) +BV53/$L53*0.5 +SUM(OFFSET(BV53,0,MAX(-INT($L53+(0.5-(10^-12))),-BK$40)+1,1,MIN(INT($L53+(0.5-(10^-12))),BK$40)-1))*1/$L53, IF($J53="Declining Balance",-$BI$38,0))))) -> 0.008758572642 | BL53: =IF($L53=0,0, IF($L53<=0.5,BW53, IF(AND($J53="straight line",$L53<1.51),(BV53-((BV53/$L53)*0.5))+BW53/$L53*0.5, IF($J53="straight line", IF((LEFT(BL$39,4)*1)-INT($L53)<LEFT($BI$39,4)*1,0,((OFFSET(BW53,0,-INT($L53+0.5),1,1))/$L53)*(IF($L53-INT($L53)>0.5,$L53-0.5-INT($L53),IF($L53-INT($L53)<=0.5,$L53-0.5-INT($L53)+1,0)))) +BW53/$L53*0.5 +SUM(OFFSET(BW53,0,MAX(-INT($L53+(0.5-(10^-12))),-BL$40)+1,1,MIN(INT($L53+(0.5-(10^-12))),BL$40)-1))*1/$L53, IF($J53="Declining Balance",-$BI$38,0))))) -> 0.008758572642 | BM53: =IF($L53=0,0, IF($L53<=0.5,BX53, IF(AND($J53="straight line",$L53<1.51),(BW53-((BW53/$L53)*0.5))+BX53/$L53*0.5, IF($J53="straight line", IF((LEFT(BM$39,4)*1)-INT($L53)<LEFT($BI$39,4)*1,0,((OFFSET(BX53,0,-INT($L53+0.5),1,1))/$L53)*(IF($L53-INT($L53)>0.5,$L53-0.5-INT($L53),IF($L53-INT($L53)<=0.5,$L53-0.5-INT($L53)+1,0)))) +BX53/$L53*0.5 +SUM(OFFSET(BX53,0,MAX(-INT($L53+(0.5-(10^-12))),-BM$40)+1,1,MIN(INT($L53+(0.5-(10^-12))),BM$40)-1))*1/$L53, IF($J53="Declining Balance",-$BI$38,0))))) -> 0.008758572642 | BN53: =IF($L53=0,0, IF($L53<=0.5,BY53, IF(AND($J53="straight line",$L53<1.51),(BX53-((BX53/$L53)*0.5))+BY53/$L53*0.5, IF($J53="straight line", IF((LEFT(BN$39,4)*1)-INT($L53)<LEFT($BI$39,4)*1,0,((OFFSET(BY53,0,-INT($L53+0.5),1,1))/$L53)*(IF($L53-INT($L53)>0.5,$L53-0.5-INT($L53),IF($L53-INT($L53)<=0.5,$L53-0.5-INT($L53)+1,0)))) +BY53/$L53*0.5 +SUM(OFFSET(BY53,0,MAX(-INT($L53+(0.5-(10^-12))),-BN$40)+1,1,MIN(INT($L53+(0.5-(10^-12))),BN$40)-1))*1/$L53, IF($J53="Declining Balance",-$BI$38,0))))) -> 0.008758572642 | BO53: =IF($L53=0,0, IF($L53<=0.5,BZ53, IF(AND($J53="straight line",$L53<1.51),(BY53-((BY53/$L53)*0.5))+BZ53/$L53*0.5, IF($J53="straight line", IF((LEFT(BO$39,4)*1)-INT($L53)<LEFT($BI$39,4)*1,0,((OFFSET(BZ53,0,-INT($L53+0.5),1,1))/$L53)*(IF($L53-INT($L53)>0.5,$L53-0.5-INT($L53),IF($L53-INT($L53)<=0.5,$L53-0.5-INT($L53)+1,0)))) +BZ53/$L53*0.5 +SUM(OFFSET(BZ53,0,MAX(-INT($L53+(0.5-(10^-12))),-BO$40)+1,1,MIN(INT($L53+(0.5-(10^-12))),BO$40)-1))*1/$L53, IF($J53="Declining Balance",-$BI$38,0))))) -> 0.008758572642 | BP53: =IF($L53=0,0, IF($L53<=0.5,CA53, IF(AND($J53="straight line",$L53<1.51),(BZ53-((BZ53/$L53)*0.5))+CA53/$L53*0.5, IF($J53="straight line", IF((LEFT(BP$39,4)*1)-INT($L53)<LEFT($BI$39,4)*1,0,((OFFSET(CA53,0,-INT($L53+0.5),1,1))/$L53)*(IF($L53-INT($L53)>0.5,$L53-0.5-INT($L53),IF($L53-INT($L53)<=0.5,$L53-0.5-INT($L53)+1,0)))) +CA53/$L53*0.5 +SUM(OFFSET(CA53,0,MAX(-INT($L53+(0.5-(10^-12))),-BP$40)+1,1,MIN(INT($L53+(0.5-(10^-12))),BP$40)-1))*1/$L53, IF($J53="Declining Balance",-$BI$38,0))))) -> 0.008758572642 | BQ53: =IF($L53=0,0, IF($L53<=0.5,CB53, IF(AND($J53="straight line",$L53<1.51),(CA53-((CA53/$L53)*0.5))+CB53/$L53*0.5, IF($J53="straight line", IF((LEFT(BQ$39,4)*1)-INT($L53)<LEFT($BI$39,4)*1,0,((OFFSET(CB53,0,-INT($L53+0.5),1,1))/$L53)*(IF($L53-INT($L53)>0.5,$L53-0.5-INT($L53),IF($L53-INT($L53)<=0.5,$L53-0.5-INT($L53)+1,0)))) +CB53/$L53*0.5 +SUM(OFFSET(CB53,0,MAX(-INT($L53+(0.5-(10^-12))),-BQ$40)+1,1,MIN(INT($L53+(0.5-(10^-12))),BQ$40)-1))*1/$L53, IF($J53="Declining Balance",-$BI$38,0))))) -> 0.008758572642 | BR53: =IF($L53=0,0, IF($L53<=0.5,CC53, IF(AND($J53="straight line",$L53<1.51),(CB53-((CB53/$L53)*0.5))+CC53/$L53*0.5, IF($J53="straight line", IF((LEFT(BR$39,4)*1)-INT($L53)<LEFT($BI$39,4)*1,0,((OFFSET(CC53,0,-INT($L53+0.5),1,1))/$L53)*(IF($L53-INT($L53)>0.5,$L53-0.5-INT($L53),IF($L53-INT($L53)<=0.5,$L53-0.5-INT($L53)+1,0)))) +CC53/$L53*0.5 +SUM(OFFSET(CC53,0,MAX(-INT($L53+(0.5-(10^-12))),-BR$40)+1,1,MIN(INT($L53+(0.5-(10^-12))),BR$40)-1))*1/$L53, IF($J53="Declining Balance",-$BI$38,0))))) -> 0.008758572642 | BT53: =+IF($K53="Ongoing",AX53,IF(RIGHT($K53,2)=RIGHT(BT$39,2),SUM($AX53:AX53),0)+IF(RIGHT(BT$39,2)>RIGHT($K53,2),AX53,0)) -> 0 | BU53: =+IF($K53="Ongoing",AY53,IF(RIGHT($K53,2)=RIGHT(BU$39,2),SUM($AX53:AY53),0)+IF(RIGHT(BU$39,2)>RIGHT($K53,2),AY53,0)) -> 0.6131000849 | BV53: =+IF($K53="Ongoing",AZ53,IF(RIGHT($K53,2)=RIGHT(BV$39,2),SUM($AX53:AZ53),0)+IF(RIGHT(BV$39,2)>RIGHT($K53,2),AZ53,0)) -> 0 | BW53: =+IF($K53="Ongoing",BA53,IF(RIGHT($K53,2)=RIGHT(BW$39,2),SUM($AX53:BA53),0)+IF(RIGHT(BW$39,2)>RIGHT($K53,2),BA53,0)) -> 0 | BX53: =+IF($K53="Ongoing",BB53,IF(RIGHT($K53,2)=RIGHT(BX$39,2),SUM($AX53:BB53),0)+IF(RIGHT(BX$39,2)>RIGHT($K53,2),BB53,0)) -> 0 | BY53: =+IF($K53="Ongoing",BC53,IF(RIGHT($K53,2)=RIGHT(BY$39,2),SUM($AX53:BC53),0)+IF(RIGHT(BY$39,2)>RIGHT($K53,2),BC53,0)) -> 0 | BZ53: =+IF($K53="Ongoing",BD53,IF(RIGHT($K53,2)=RIGHT(BZ$39,2),SUM($AX53:BD53),0)+IF(RIGHT(BZ$39,2)>RIGHT($K53,2),BD53,0)) -> 0 | CA53: =+IF($K53="Ongoing",BE53,IF(RIGHT($K53,2)=RIGHT(CA$39,2),SUM($AX53:BE53),0)+IF(RIGHT(CA$39,2)>RIGHT($K53,2),BE53,0)) -> 0 | CB53: =+IF($K53="Ongoing",BF53,IF(RIGHT($K53,2)=RIGHT(CB$39,2),SUM($AX53:BF53),0)+IF(RIGHT(CB$39,2)>RIGHT($K53,2),BF53,0)) -> 0 | CC53: =+IF($K53="Ongoing",BG53,IF(RIGHT($K53,2)=RIGHT(CC$39,2),SUM($AX53:BG53),0)+IF(RIGHT(CC$39,2)>RIGHT($K53,2),BG53,0)) -> 0 | CE53: =+Q53*KeyAssumptionsPriceControl_FO!AC$15 -> 0.6239215784 | CF53: =+R53*KeyAssumptionsPriceControl_FO!AD$15 -> 0.007798654414 | CG53: =+S53*KeyAssumptionsPriceControl_FO!AE$15 -> 0 | CH53: =+T53*KeyAssumptionsPriceControl_FO!AF$15 -> 0 | CI53: =+U53*KeyAssumptionsPriceControl_FO!AG$15 -> 0 | CJ53: =+V53*KeyAssumptionsPriceControl_FO!AH$15 -> 0 | CK53: =+W53*KeyAssumptionsPriceControl_FO!AI$15 -> 0 | CL53: =+X53*KeyAssumptionsPriceControl_FO!AJ$15 -> 0 | CM53: =+Y53*KeyAssumptionsPriceControl_FO!AK$15 -> 0 | CN53: =+Z53*KeyAssumptionsPriceControl_FO!AL$15 -> 0 | CP53: =IF($M53=0,0, IF($M53<=0.5,CE53, IF($J53="straight line", IF((LEFT(CP$39,4)*1)-INT($M53)<LEFT($CP$39,4)*1,0,((OFFSET(CE53,0,-INT($M53+0.5),1,1))/$M53)*(IF($M53-INT($M53)>0.5,$M53-0.5-INT($M53),IF($M53-INT($M53)<=0.5,$M53-0.5-INT($M53)+1,0)))) +CE53/$M53*0.5, IF($J53="Declining Balance",-$CP$38,0)))) -> 0.006239215784 | CQ53: =IF($M53=0,0, IF($M53<=0.5,CF53, IF(AND($J53="straight line",$M53<1.51),(CE53-((CE53/$M53)*0.5))+CF53/$M53*0.5, IF($J53="straight line", IF((LEFT(CQ$39,4)*1)-INT($M53)<LEFT($CP$39,4)*1,0,((OFFSET(CF53,0,-INT($M53+0.5),1,1))/$M53)*(IF($M53-INT($M53)>0.5,$M53-0.5-INT($M53),IF($M53-INT($M53)<=0.5,$M53-0.5-INT($M53)+1,0)))) +CF53/$M53*0.5 +SUM(OFFSET(CF53,0,MAX(-INT($M53+(0.5-(10^-12))),-CQ$40)+1,1,MIN(INT($M53+(0.5-(10^-12))),CQ$40)-1))*1/$M53, IF($J53="Declining Balance",-$CP$38,0))))) -> 0.01255641811 | CR53: =IF($M53=0,0, IF($M53<=0.5,CG53, IF(AND($J53="straight line",$M53<1.51),(CF53-((CF53/$M53)*0.5))+CG53/$M53*0.5, IF($J53="straight line", IF((LEFT(CR$39,4)*1)-INT($M53)<LEFT($CP$39,4)*1,0,((OFFSET(CG53,0,-INT($M53+0.5),1,1))/$M53)*(IF($M53-INT($M53)>0.5,$M53-0.5-INT($M53),IF($M53-INT($M53)<=0.5,$M53-0.5-INT($M53)+1,0)))) +CG53/$M53*0.5 +SUM(OFFSET(CG53,0,MAX(-INT($M53+(0.5-(10^-12))),-CR$40)+1,1,MIN(INT($M53+(0.5-(10^-12))),CR$40)-1))*1/$M53, IF($J53="Declining Balance",-$CP$38,0))))) -> 0.01263440466 | CS53: =IF($M53=0,0, IF($M53<=0.5,CH53, IF(AND($J53="straight line",$M53<1.51),(CG53-((CG53/$M53)*0.5))+CH53/$M53*0.5, IF($J53="straight line", IF((LEFT(CS$39,4)*1)-INT($M53)<LEFT($CP$39,4)*1,0,((OFFSET(CH53,0,-INT($M53+0.5),1,1))/$M53)*(IF($M53-INT($M53)>0.5,$M53-0.5-INT($M53),IF($M53-INT($M53)<=0.5,$M53-0.5-INT($M53)+1,0)))) +CH53/$M53*0.5 +SUM(OFFSET(CH53,0,MAX(-INT($M53+(0.5-(10^-12))),-CS$40)+1,1,MIN(INT($M53+(0.5-(10^-12))),CS$40)-1))*1/$M53, IF($J53="Declining Balance",-$CP$38,0))))) -> 0.01263440466 | CT53: =IF($M53=0,0, IF($M53<=0.5,CI53, IF(AND($J53="straight line",$M53<1.51),(CH53-((CH53/$M53)*0.5))+CI53/$M53*0.5, IF($J53="straight line", IF((LEFT(CT$39,4)*1)-INT($M53)<LEFT($CP$39,4)*1,0,((OFFSET(CI53,0,-INT($M53+0.5),1,1))/$M53)*(IF($M53-INT($M53)>0.5,$M53-0.5-INT($M53),IF($M53-INT($M53)<=0.5,$M53-0.5-INT($M53)+1,0)))) +CI53/$M53*0.5 +SUM(OFFSET(CI53,0,MAX(-INT($M53+(0.5-(10^-12))),-CT$40)+1,1,MIN(INT($M53+(0.5-(10^-12))),CT$40)-1))*1/$M53, IF($J53="Declining Balance",-$CP$38,0))))) -> 0.01263440466 | CU53: =IF($M53=0,0, IF($M53<=0.5,CJ53, IF(AND($J53="straight line",$M53<1.51),(CI53-((CI53/$M53)*0.5))+CJ53/$M53*0.5, IF($J53="straight line", IF((LEFT(CU$39,4)*1)-INT($M53)<LEFT($CP$39,4)*1,0,((OFFSET(CJ53,0,-INT($M53+0.5),1,1))/$M53)*(IF($M53-INT($M53)>0.5,$M53-0.5-INT($M53),IF($M53-INT($M53)<=0.5,$M53-0.5-INT($M53)+1,0)))) +CJ53/$M53*0.5 +SUM(OFFSET(CJ53,0,MAX(-INT($M53+(0.5-(10^-12))),-CU$40)+1,1,MIN(INT($M53+(0.5-(10^-12))),CU$40)-1))*1/$M53, IF($J53="Declining Balance",-$CP$38,0))))) -> 0.01263440466 | CV53: =IF($M53=0,0, IF($M53<=0.5,CK53, IF(AND($J53="straight line",$M53<1.51),(CJ53-((CJ53/$M53)*0.5))+CK53/$M53*0.5, IF($J53="straight line", IF((LEFT(CV$39,4)*1)-INT($M53)<LEFT($CP$39,4)*1,0,((OFFSET(CK53,0,-INT($M53+0.5),1,1))/$M53)*(IF($M53-INT($M53)>0.5,$M53-0.5-INT($M53),IF($M53-INT($M53)<=0.5,$M53-0.5-INT($M53)+1,0)))) +CK53/$M53*0.5 +SUM(OFFSET(CK53,0,MAX(-INT($M53+(0.5-(10^-12))),-CV$40)+1,1,MIN(INT($M53+(0.5-(10^-12))),CV$40)-1))*1/$M53, IF($J53="Declining Balance",-$CP$38,0))))) -> 0.01263440466 | CW53: =IF($M53=0,0, IF($M53<=0.5,CL53, IF(AND($J53="straight line",$M53<1.51),(CK53-((CK53/$M53)*0.5))+CL53/$M53*0.5, IF($J53="straight line", IF((LEFT(CW$39,4)*1)-INT($M53)<LEFT($CP$39,4)*1,0,((OFFSET(CL53,0,-INT($M53+0.5),1,1))/$M53)*(IF($M53-INT($M53)>0.5,$M53-0.5-INT($M53),IF($M53-INT($M53)<=0.5,$M53-0.5-INT($M53)+1,0)))) +CL53/$M53*0.5 +SUM(OFFSET(CL53,0,MAX(-INT($M53+(0.5-(10^-12))),-CW$40)+1,1,MIN(INT($M53+(0.5-(10^-12))),CW$40)-1))*1/$M53, IF($J53="Declining Balance",-$CP$38,0))))) -> 0.01263440466 | CX53: =IF($M53=0,0, IF($M53<=0.5,CM53, IF(AND($J53="straight line",$M53<1.51),(CL53-((CL53/$M53)*0.5))+CM53/$M53*0.5, IF($J53="straight line", IF((LEFT(CX$39,4)*1)-INT($M53)<LEFT($CP$39,4)*1,0,((OFFSET(CM53,0,-INT($M53+0.5),1,1))/$M53)*(IF($M53-INT($M53)>0.5,$M53-0.5-INT($M53),IF($M53-INT($M53)<=0.5,$M53-0.5-INT($M53)+1,0)))) +CM53/$M53*0.5 +SUM(OFFSET(CM53,0,MAX(-INT($M53+(0.5-(10^-12))),-CX$40)+1,1,MIN(INT($M53+(0.5-(10^-12))),CX$40)-1))*1/$M53, IF($J53="Declining Balance",-$CP$38,0))))) -> 0.01263440466 | CY53: =IF($M53=0,0, IF($M53<=0.5,CN53, IF(AND($J53="straight line",$M53<1.51),(CM53-((CM53/$M53)*0.5))+CN53/$M53*0.5, IF($J53="straight line", IF((LEFT(CY$39,4)*1)-INT($M53)<LEFT($CP$39,4)*1,0,((OFFSET(CN53,0,-INT($M53+0.5),1,1))/$M53)*(IF($M53-INT($M53)>0.5,$M53-0.5-INT($M53),IF($M53-INT($M53)<=0.5,$M53-0.5-INT($M53)+1,0)))) +CN53/$M53*0.5 +SUM(OFFSET(CN53,0,MAX(-INT($M53+(0.5-(10^-12))),-CY$40)+1,1,MIN(INT($M53+(0.5-(10^-12))),CY$40)-1))*1/$M53, IF($J53="Declining Balance",-$CP$38,0))))) -> 0.01263440466
C54: Bellarine Transfer Main Stage 5B | E54: Water | F54: Growth | G54: Pipelines/network | H54: Other Capital expenditure | J54: Straight line | K54: Ongoing | L54: 70 | M54: 50 | Q54: 0 | R54: 0 | S54: 0 | T54: 0 | U54: 0 | V54: 0 | W54: 0 | X54: 0 | Y54: 0 | Z54: 0 | AM54: 0 | AN54: 0 | AO54: 0 | AP54: 0 | AQ54: 0 | AR54: 0 | AS54: 0 | AT54: 0 | AU54: 0 | AV54: 0 | AX54: 0 | AY54: 0 | AZ54: 0 | BA54: 0 | BB54: 0 | BC54: 0 | BD54: 0 | BE54: 0 | BF54: 0 | BG54: 0 | BI54: 0 | BJ54: 0 | BK54: 0 | BL54: 0 | BM54: 0 | BN54: 0 | BO54: 0 | BP54: 0 | BQ54: 0 | BR54: 0 | BT54: =+IF($K54="Ongoing",AX54,IF(RIGHT($K54,2)=RIGHT(BT$39,2),SUM($AX54:AX54),0)+IF(RIGHT(BT$39,2)>RIGHT($K54,2),AX54,0)) -> 0 | BU54: =+IF($K54="Ongoing",AY54,IF(RIGHT($K54,2)=RIGHT(BU$39,2),SUM($AX54:AY54),0)+IF(RIGHT(BU$39,2)>RIGHT($K54,2),AY54,0)) -> 0 | BV54: =+IF($K54="Ongoing",AZ54,IF(RIGHT($K54,2)=RIGHT(BV$39,2),SUM($AX54:AZ54),0)+IF(RIGHT(BV$39,2)>RIGHT($K54,2),AZ54,0)) -> 0 | BW54: =+IF($K54="Ongoing",BA54,IF(RIGHT($K54,2)=RIGHT(BW$39,2),SUM($AX54:BA54),0)+IF(RIGHT(BW$39,2)>RIGHT($K54,2),BA54,0)) -> 0 | BX54: =+IF($K54="Ongoing",BB54,IF(RIGHT($K54,2)=RIGHT(BX$39,2),SUM($AX54:BB54),0)+IF(RIGHT(BX$39,2)>RIGHT($K54,2),BB54,0)) -> 0 | BY54: =+IF($K54="Ongoing",BC54,IF(RIGHT($K54,2)=RIGHT(BY$39,2),SUM($AX54:BC54),0)+IF(RIGHT(BY$39,2)>RIGHT($K54,2),BC54,0)) -> 0 | BZ54: =+IF($K54="Ongoing",BD54,IF(RIGHT($K54,2)=RIGHT(BZ$39,2),SUM($AX54:BD54),0)+IF(RIGHT(BZ$39,2)>RIGHT($K54,2),BD54,0)) -> 0 | CA54: =+IF($K54="Ongoing",BE54,IF(RIGHT($K54,2)=RIGHT(CA$39,2),SUM($AX54:BE54),0)+IF(RIGHT(CA$39,2)>RIGHT($K54,2),BE54,0)) -> 0 | CB54: =+IF($K54="Ongoing",BF54,IF(RIGHT($K54,2)=RIGHT(CB$39,2),SUM($AX54:BF54),0)+IF(RIGHT(CB$39,2)>RIGHT($K54,2),BF54,0)) -> 0 | CC54: =+IF($K54="Ongoing",BG54,IF(RIGHT($K54,2)=RIGHT(CC$39,2),SUM($AX54:BG54),0)+IF(RIGHT(CC$39,2)>RIGHT($K54,2),BG54,0)) -> 0 | CE54: =+Q54*KeyAssumptionsPriceControl_FO!AC$15 -> 0 | CF54: =+R54*KeyAssumptionsPriceControl_FO!AD$15 -> 0 | CG54: =+S54*KeyAssumptionsPriceControl_FO!AE$15 -> 0 | CH54: =+T54*KeyAssumptionsPriceControl_FO!AF$15 -> 0 | CI54: =+U54*KeyAssumptionsPriceControl_FO!AG$15 -> 0 | CJ54: =+V54*KeyAssumptionsPriceControl_FO!AH$15 -> 0 | CK54: =+W54*KeyAssumptionsPriceControl_FO!AI$15 -> 0 | CL54: =+X54*KeyAssumptionsPriceControl_FO!AJ$15 -> 0 | CM54: =+Y54*KeyAssumptionsPriceControl_FO!AK$15 -> 0 | CN54: =+Z54*KeyAssumptionsPriceControl_FO!AL$15 -> 0 | CP54: 0 | CQ54: 0 | CR54: 0 | CS54: 0 | CT54: 0 | CU54: 0 | CV54: 0 | CW54: 0 | CX54: 0 | CY54: 0
C55: Forrest WTP Upgrade | E55: Water | F55: Renewals | G55: Treatment | H55: Significant projects | J55: Straight line | K55: 2024-25 | L55: 70 | M55: 50 | Q55: 3.856768502 | R55: 0.5296488624 | S55: 0 | T55: 0 | U55: 0 | V55: 0 | W55: 0 | X55: 0 | Y55: 0 | Z55: 0 | AM55: 0 | AN55: 0 | AO55: 0 | AP55: 0 | AQ55: 0 | AR55: 0 | AS55: 0 | AT55: 0 | AU55: 0 | AV55: 0 | AX55: 3.856768502 | AY55: 0.5296488624 | AZ55: 0 | BA55: 0 | BB55: 0 | BC55: 0 | BD55: 0 | BE55: 0 | BF55: 0 | BG55: 0 | BI55: 0 | BJ55: 0.0313315526 | BK55: 0.06266310521 | BL55: 0.06266310521 | BM55: 0.06266310521 | BN55: 0.06266310521 | BO55: 0.06266310521 | BP55: 0.06266310521 | BQ55: 0.06266310521 | BR55: 0.06266310521 | BT55: =+IF($K55="Ongoing",AX55,IF(RIGHT($K55,2)=RIGHT(BT$39,2),SUM($AX55:AX55),0)+IF(RIGHT(BT$39,2)>RIGHT($K55,2),AX55,0)) -> 0 | BU55: =+IF($K55="Ongoing",AY55,IF(RIGHT($K55,2)=RIGHT(BU$39,2),SUM($AX55:AY55),0)+IF(RIGHT(BU$39,2)>RIGHT($K55,2),AY55,0)) -> 4.386417364 | BV55: =+IF($K55="Ongoing",AZ55,IF(RIGHT($K55,2)=RIGHT(BV$39,2),SUM($AX55:AZ55),0)+IF(RIGHT(BV$39,2)>RIGHT($K55,2),AZ55,0)) -> 0 | BW55: =+IF($K55="Ongoing",BA55,IF(RIGHT($K55,2)=RIGHT(BW$39,2),SUM($AX55:BA55),0)+IF(RIGHT(BW$39,2)>RIGHT($K55,2),BA55,0)) -> 0 | BX55: =+IF($K55="Ongoing",BB55,IF(RIGHT($K55,2)=RIGHT(BX$39,2),SUM($AX55:BB55),0)+IF(RIGHT(BX$39,2)>RIGHT($K55,2),BB55,0)) -> 0 | BY55: =+IF($K55="Ongoing",BC55,IF(RIGHT($K55,2)=RIGHT(BY$39,2),SUM($AX55:BC55),0)+IF(RIGHT(BY$39,2)>RIGHT($K55,2),BC55,0)) -> 0 | BZ55: =+IF($K55="Ongoing",BD55,IF(RIGHT($K55,2)=RIGHT(BZ$39,2),SUM($AX55:BD55),0)+IF(RIGHT(BZ$39,2)>RIGHT($K55,2),BD55,0)) -> 0 | CA55: =+IF($K55="Ongoing",BE55,IF(RIGHT($K55,2)=RIGHT(CA$39,2),SUM($AX55:BE55),0)+IF(RIGHT(CA$39,2)>RIGHT($K55,2),BE55,0)) -> 0 | CB55: =+IF($K55="Ongoing",BF55,IF(RIGHT($K55,2)=RIGHT(CB$39,2),SUM($AX55:BF55),0)+IF(RIGHT(CB$39,2)>RIGHT($K55,2),BF55,0)) -> 0 | CC55: =+IF($K55="Ongoing",BG55,IF(RIGHT($K55,2)=RIGHT(CC$39,2),SUM($AX55:BG55),0)+IF(RIGHT(CC$39,2)>RIGHT($K55,2),BG55,0)) -> 0 | CE55: =+Q55*KeyAssumptionsPriceControl_FO!AC$15 -> 3.972471557 | CF55: =+R55*KeyAssumptionsPriceControl_FO!AD$15 -> 0.5619044781 | CG55: =+S55*KeyAssumptionsPriceControl_FO!AE$15 -> 0 | CH55: =+T55*KeyAssumptionsPriceControl_FO!AF$15 -> 0 | CI55: =+U55*KeyAssumptionsPriceControl_FO!AG$15 -> 0 | CJ55: =+V55*KeyAssumptionsPriceControl_FO!AH$15 -> 0 | CK55: =+W55*KeyAssumptionsPriceControl_FO!AI$15 -> 0 | CL55: =+X55*KeyAssumptionsPriceControl_FO!AJ$15 -> 0 | CM55: =+Y55*KeyAssumptionsPriceControl_FO!AK$15 -> 0 | CN55: =+Z55*KeyAssumptionsPriceControl_FO!AL$15 -> 0 | CP55: 0.03972471557 | CQ55: 0.08506847592 | CR55: 0.0906875207 | CS55: 0.0906875207 | CT55: 0.0906875207 | CU55: 0.0906875207 | CV55: 0.0906875207 | CW55: 0.0906875207 | CX55: 0.0906875207 | CY55: 0.0906875207
C56: Regional Renewable Organics Network | E56: Water | F56: Improvements / Compliance | G56: Corporate | H56: Other Capital expenditure | J56: Straight line | K56: Ongoing | L56: 70 | M56: 50 | Q56: 0 | R56: 0 | S56: 0 | T56: 0 | U56: 0 | V56: 0 | W56: 0 | X56: 0 | Y56: 0 | Z56: 0 | AM56: 0 | AN56: 0 | AO56: 0 | AP56: 0 | AQ56: 0 | AR56: 0 | AS56: 0 | AT56: 0 | AU56: 0 | AV56: 0 | AX56: 0 | AY56: 0 | AZ56: 0 | BA56: 0 | BB56: 0 | BC56: 0 | BD56: 0 | BE56: 0 | BF56: 0 | BG56: 0 | BI56: 0 | BJ56: 0 | BK56: 0 | BL56: 0 | BM56: 0 | BN56: 0 | BO56: 0 | BP56: 0 | BQ56: 0 | BR56: 0 | BT56: =+IF($K56="Ongoing",AX56,IF(RIGHT($K56,2)=RIGHT(BT$39,2),SUM($AX56:AX56),0)+IF(RIGHT(BT$39,2)>RIGHT($K56,2),AX56,0)) -> 0 | BU56: =+IF($K56="Ongoing",AY56,IF(RIGHT($K56,2)=RIGHT(BU$39,2),SUM($AX56:AY56),0)+IF(RIGHT(BU$39,2)>RIGHT($K56,2),AY56,0)) -> 0 | BV56: =+IF($K56="Ongoing",AZ56,IF(RIGHT($K56,2)=RIGHT(BV$39,2),SUM($AX56:AZ56),0)+IF(RIGHT(BV$39,2)>RIGHT($K56,2),AZ56,0)) -> 0 | BW56: =+IF($K56="Ongoing",BA56,IF(RIGHT($K56,2)=RIGHT(BW$39,2),SUM($AX56:BA56),0)+IF(RIGHT(BW$39,2)>RIGHT($K56,2),BA56,0)) -> 0 | BX56: =+IF($K56="Ongoing",BB56,IF(RIGHT($K56,2)=RIGHT(BX$39,2),SUM($AX56:BB56),0)+IF(RIGHT(BX$39,2)>RIGHT($K56,2),BB56,0)) -> 0 | BY56: =+IF($K56="Ongoing",BC56,IF(RIGHT($K56,2)=RIGHT(BY$39,2),SUM($AX56:BC56),0)+IF(RIGHT(BY$39,2)>RIGHT($K56,2),BC56,0)) -> 0 | BZ56: =+IF($K56="Ongoing",BD56,IF(RIGHT($K56,2)=RIGHT(BZ$39,2),SUM($AX56:BD56),0)+IF(RIGHT(BZ$39,2)>RIGHT($K56,2),BD56,0)) -> 0 | CA56: =+IF($K56="Ongoing",BE56,IF(RIGHT($K56,2)=RIGHT(CA$39,2),SUM($AX56:BE56),0)+IF(RIGHT(CA$39,2)>RIGHT($K56,2),BE56,0)) -> 0 | CB56: =+IF($K56="Ongoing",BF56,IF(RIGHT($K56,2)=RIGHT(CB$39,2),SUM($AX56:BF56),0)+IF(RIGHT(CB$39,2)>RIGHT($K56,2),BF56,0)) -> 0 | CC56: =+IF($K56="Ongoing",BG56,IF(RIGHT($K56,2)=RIGHT(CC$39,2),SUM($AX56:BG56),0)+IF(RIGHT(CC$39,2)>RIGHT($K56,2),BG56,0)) -> 0 | CE56: =+Q56*KeyAssumptionsPriceControl_FO!AC$15 -> 0 | CF56: =+R56*KeyAssumptionsPriceControl_FO!AD$15 -> 0 | CG56: =+S56*KeyAssumptionsPriceControl_FO!AE$15 -> 0 | CH56: =+T56*KeyAssumptionsPriceControl_FO!AF$15 -> 0 | CI56: =+U56*KeyAssumptionsPriceControl_FO!AG$15 -> 0 | CJ56: =+V56*KeyAssumptionsPriceControl_FO!AH$15 -> 0 | CK56: =+W56*KeyAssumptionsPriceControl_FO!AI$15 -> 0 | CL56: =+X56*KeyAssumptionsPriceControl_FO!AJ$15 -> 0 | CM56: =+Y56*KeyAssumptionsPriceControl_FO!AK$15 -> 0 | CN56: =+Z56*KeyAssumptionsPriceControl_FO!AL$15 -> 0 | CP56: 0 | CQ56: 0 | CR56: 0 | CS56: 0 | CT56: 0 | CU56: 0 | CV56: 0 | CW56: 0 | CX56: 0 | CY56: 0
C57: Gellibrand WTP Upgrade | E57: Water | F57: Renewals | G57: Treatment | H57: Significant projects | J57: Straight line | K57: 2024-25 | L57: 70 | M57: 50 | Q57: 3.785307941 | R57: 0.7209109516 | S57: 0 | T57: 0 | U57: 0 | V57: 0 | W57: 0 | X57: 0 | Y57: 0 | Z57: 0 | AM57: 0 | AN57: 0 | AO57: 0 | AP57: 0 | AQ57: 0 | AR57: 0 | AS57: 0 | AT57: 0 | AU57: 0 | AV57: 0 | AX57: 3.785307941 | AY57: 0.7209109516 | AZ57: 0 | BA57: 0 | BB57: 0 | BC57: 0 | BD57: 0 | BE57: 0 | BF57: 0 | BG57: 0 | BI57: 0 | BJ57: 0.03218727781 | BK57: 0.06437455561 | BL57: 0.06437455561 | BM57: 0.06437455561 | BN57: 0.06437455561 | BO57: 0.06437455561 | BP57: 0.06437455561 | BQ57: 0.06437455561 | BR57: 0.06437455561 | BT57: =+IF($K57="Ongoing",AX57,IF(RIGHT($K57,2)=RIGHT(BT$39,2),SUM($AX57:AX57),0)+IF(RIGHT(BT$39,2)>RIGHT($K57,2),AX57,0)) -> 0 | BU57: =+IF($K57="Ongoing",AY57,IF(RIGHT($K57,2)=RIGHT(BU$39,2),SUM($AX57:AY57),0)+IF(RIGHT(BU$39,2)>RIGHT($K57,2),AY57,0)) -> 4.506218893 | BV57: =+IF($K57="Ongoing",AZ57,IF(RIGHT($K57,2)=RIGHT(BV$39,2),SUM($AX57:AZ57),0)+IF(RIGHT(BV$39,2)>RIGHT($K57,2),AZ57,0)) -> 0 | BW57: =+IF($K57="Ongoing",BA57,IF(RIGHT($K57,2)=RIGHT(BW$39,2),SUM($AX57:BA57),0)+IF(RIGHT(BW$39,2)>RIGHT($K57,2),BA57,0)) -> 0 | BX57: =+IF($K57="Ongoing",BB57,IF(RIGHT($K57,2)=RIGHT(BX$39,2),SUM($AX57:BB57),0)+IF(RIGHT(BX$39,2)>RIGHT($K57,2),BB57,0)) -> 0 | BY57: =+IF($K57="Ongoing",BC57,IF(RIGHT($K57,2)=RIGHT(BY$39,2),SUM($AX57:BC57),0)+IF(RIGHT(BY$39,2)>RIGHT($K57,2),BC57,0)) -> 0 | BZ57: =+IF($K57="Ongoing",BD57,IF(RIGHT($K57,2)=RIGHT(BZ$39,2),SUM($AX57:BD57),0)+IF(RIGHT(BZ$39,2)>RIGHT($K57,2),BD57,0)) -> 0 | CA57: =+IF($K57="Ongoing",BE57,IF(RIGHT($K57,2)=RIGHT(CA$39,2),SUM($AX57:BE57),0)+IF(RIGHT(CA$39,2)>RIGHT($K57,2),BE57,0)) -> 0 | CB57: =+IF($K57="Ongoing",BF57,IF(RIGHT($K57,2)=RIGHT(CB$39,2),SUM($AX57:BF57),0)+IF(RIGHT(CB$39,2)>RIGHT($K57,2),BF57,0)) -> 0 | CC57: =+IF($K57="Ongoing",BG57,IF(RIGHT($K57,2)=RIGHT(CC$39,2),SUM($AX57:BG57),0)+IF(RIGHT(CC$39,2)>RIGHT($K57,2),BG57,0)) -> 0 | CE57: =+Q57*KeyAssumptionsPriceControl_FO!AC$15 -> 3.898867179 | CF57: =+R57*KeyAssumptionsPriceControl_FO!AD$15 -> 0.7648144286 | CG57: =+S57*KeyAssumptionsPriceControl_FO!AE$15 -> 0 | CH57: =+T57*KeyAssumptionsPriceControl_FO!AF$15 -> 0 | CI57: =+U57*KeyAssumptionsPriceControl_FO!AG$15 -> 0 | CJ57: =+V57*KeyAssumptionsPriceControl_FO!AH$15 -> 0 | CK57: =+W57*KeyAssumptionsPriceControl_FO!AI$15 -> 0 | CL57: =+X57*KeyAssumptionsPriceControl_FO!AJ$15 -> 0 | CM57: =+Y57*KeyAssumptionsPriceControl_FO!AK$15 -> 0 | CN57: =+Z57*KeyAssumptionsPriceControl_FO!AL$15 -> 0 | CP57: 0.03898867179 | CQ57: 0.08562548787 | CR57: 0.09327363216 | CS57: 0.09327363216 | CT57: 0.09327363216 | CU57: 0.09327363216 | CV57: 0.09327363216 | CW57: 0.09327363216 | CX57: 0.09327363216 | CY57: 0.09327363216
C58: Sewerage Growth Assets | E58: Sewerage | F58: Growth | G58: Pipelines/network | H58: Other Capital expenditure | J58: Straight line | K58: Ongoing | L58: 70 | M58: 50 | Q58: 2.1017812 | R58: 1.0508906 | S58: 1.0508906 | T58: 1.0508906 | U58: 0.5254453 | V58: 0.5254453 | W58: 0.5254453 | X58: 0.5254453 | Y58: 0.5254453 | Z58: 0.5254453 | AM58: 0.423405563 | AN58: 0.4246822793 | AO58: 0.4315301215 | AP58: 0.4326907727 | AQ58: 0.4276999725 | AR58: 0.4361462554 | AS58: 0.4446193321 | AT58: 0.4530965337 | AU58: 0.4614571449 | AV58: 0.4697048818 | AX58: 1.678375637 | AY58: 0.6262083207 | AZ58: 0.6193604785 | BA58: 0.6181998273 | BB58: 0.09774532751 | BC58: 0.08929904455 | BD58: 0.08082596786 | BE58: 0.07234876634 | BF58: 0.06398815512 | BG58: 0.0557404182 | BI58: 0.01198839741 | BJ58: 0.02844971139 | BK58: 0.03734663138 | BL58: 0.04618634785 | BM58: 0.05130024182 | BN58: 0.05263627305 | BO58: 0.05385145171 | BP58: 0.05494555695 | BQ58: 0.0559193921 | BR58: 0.0567745962 | BT58: =+IF($K58="Ongoing",AX58,IF(RIGHT($K58,2)=RIGHT(BT$39,2),SUM($AX58:AX58),0)+IF(RIGHT(BT$39,2)>RIGHT($K58,2),AX58,0)) -> 1.678375637 | BU58: =+IF($K58="Ongoing",AY58,IF(RIGHT($K58,2)=RIGHT(BU$39,2),SUM($AX58:AY58),0)+IF(RIGHT(BU$39,2)>RIGHT($K58,2),AY58,0)) -> 0.6262083207 | BV58: =+IF($K58="Ongoing",AZ58,IF(RIGHT($K58,2)=RIGHT(BV$39,2),SUM($AX58:AZ58),0)+IF(RIGHT(BV$39,2)>RIGHT($K58,2),AZ58,0)) -> 0.6193604785 | BW58: =+IF($K58="Ongoing",BA58,IF(RIGHT($K58,2)=RIGHT(BW$39,2),SUM($AX58:BA58),0)+IF(RIGHT(BW$39,2)>RIGHT($K58,2),BA58,0)) -> 0.6181998273 | BX58: =+IF($K58="Ongoing",BB58,IF(RIGHT($K58,2)=RIGHT(BX$39,2),SUM($AX58:BB58),0)+IF(RIGHT(BX$39,2)>RIGHT($K58,2),BB58,0)) -> 0.09774532751 | BY58: =+IF($K58="Ongoing",BC58,IF(RIGHT($K58,2)=RIGHT(BY$39,2),SUM($AX58:BC58),0)+IF(RIGHT(BY$39,2)>RIGHT($K58,2),BC58,0)) -> 0.08929904455 | BZ58: =+IF($K58="Ongoing",BD58,IF(RIGHT($K58,2)=RIGHT(BZ$39,2),SUM($AX58:BD58),0)+IF(RIGHT(BZ$39,2)>RIGHT($K58,2),BD58,0)) -> 0.08082596786 | CA58: =+IF($K58="Ongoing",BE58,IF(RIGHT($K58,2)=RIGHT(CA$39,2),SUM($AX58:BE58),0)+IF(RIGHT(CA$39,2)>RIGHT($K58,2),BE58,0)) -> 0.07234876634 | CB58: =+IF($K58="Ongoing",BF58,IF(RIGHT($K58,2)=RIGHT(CB$39,2),SUM($AX58:BF58),0)+IF(RIGHT(CB$39,2)>RIGHT($K58,2),BF58,0)) -> 0.06398815512 | CC58: =+IF($K58="Ongoing",BG58,IF(RIGHT($K58,2)=RIGHT(CC$39,2),SUM($AX58:BG58),0)+IF(RIGHT(CC$39,2)>RIGHT($K58,2),BG58,0)) -> 0.0557404182 | CE58: =+Q58*KeyAssumptionsPriceControl_FO!AC$15 -> 2.164834636 | CF58: =+R58*KeyAssumptionsPriceControl_FO!AD$15 -> 1.114889838 | CG58: =+S58*KeyAssumptionsPriceControl_FO!AE$15 -> 1.148336533 | CH58: =+T58*KeyAssumptionsPriceControl_FO!AF$15 -> 1.182786629 | CI58: =+U58*KeyAssumptionsPriceControl_FO!AG$15 -> 0.6091351138 | CJ58: =+V58*KeyAssumptionsPriceControl_FO!AH$15 -> 0.6274091672 | CK58: =+W58*KeyAssumptionsPriceControl_FO!AI$15 -> 0.6462314422 | CL58: =+X58*KeyAssumptionsPriceControl_FO!AJ$15 -> 0.6656183854 | CM58: =+Y58*KeyAssumptionsPriceControl_FO!AK$15 -> 0.685586937 | CN58: =+Z58*KeyAssumptionsPriceControl_FO!AL$15 -> 0.7061545451 | CP58: 0.02164834636 | CQ58: 0.0544455911 | CR58: 0.0770778548 | CS58: 0.1003890864 | CT58: 0.1183083038 | CU58: 0.1306737466 | CV58: 0.1434101527 | CW58: 0.156528651 | CX58: 0.1700407042 | CY58: 0.1839581191
C59: Lara West - Windermere Rd PS RM | E59: Sewerage | F59: Growth | G59: Pipelines/network | H59: Other Capital expenditure | J59: Straight line | K59: 2023-24 | L59: 70 | M59: 50 | Q59: 0.0031526718 | R59: 0 | S59: 0 | T59: 0 | U59: 0 | V59: 0 | W59: 0 | X59: 0 | Y59: 0 | Z59: 0 | AM59: 0.0002309484889 | AN59: 0.0002316448796 | AO59: 0.0002353800663 | AP59: 0.0002360131487 | AQ59: 0.0002332908941 | AR59: 0.0002378979575 | AS59: 0.0002425196357 | AT59: 0.0002471435638 | AU59: 0.0002517038972 | AV59: 0.0002562026628 | AX59: 0.002921723311 | AY59: -0.0002316448796 | AZ59: -0.0002353800663 | BA59: -0.0002360131487 | BB59: -0.0002332908941 | BC59: -0.0002378979575 | BD59: -0.0002425196357 | BE59: -0.0002471435638 | BF59: -0.0002517038972 | BG59: -0.0002562026628 | BI59: 2.086945222e-05 | BJ59: 4.008429816e-05 | BK59: 3.674840569e-05 | BL59: 3.33813113e-05 | BM59: 3.002913956e-05 | BN59: 2.666350491e-05 | BO59: 2.323195067e-05 | BP59: 1.973435639e-05 | BQ59: 1.617116024e-05 | BR59: 1.254325624e-05 | BT59: =+IF($K59="Ongoing",AX59,IF(RIGHT($K59,2)=RIGHT(BT$39,2),SUM($AX59:AX59),0)+IF(RIGHT(BT$39,2)>RIGHT($K59,2),AX59,0)) -> 0.002921723311 | BU59: =+IF($K59="Ongoing",AY59,IF(RIGHT($K59,2)=RIGHT(BU$39,2),SUM($AX59:AY59),0)+IF(RIGHT(BU$39,2)>RIGHT($K59,2),AY59,0)) -> -0.0002316448796 | BV59: =+IF($K59="Ongoing",AZ59,IF(RIGHT($K59,2)=RIGHT(BV$39,2),SUM($AX59:AZ59),0)+IF(RIGHT(BV$39,2)>RIGHT($K59,2),AZ59,0)) -> -0.0002353800663 | BW59: =+IF($K59="Ongoing",BA59,IF(RIGHT($K59,2)=RIGHT(BW$39,2),SUM($AX59:BA59),0)+IF(RIGHT(BW$39,2)>RIGHT($K59,2),BA59,0)) -> -0.0002360131487 | BX59: =+IF($K59="Ongoing",BB59,IF(RIGHT($K59,2)=RIGHT(BX$39,2),SUM($AX59:BB59),0)+IF(RIGHT(BX$39,2)>RIGHT($K59,2),BB59,0)) -> -0.0002332908941 | BY59: =+IF($K59="Ongoing",BC59,IF(RIGHT($K59,2)=RIGHT(BY$39,2),SUM($AX59:BC59),0)+IF(RIGHT(BY$39,2)>RIGHT($K59,2),BC59,0)) -> -0.0002378979575 | BZ59: =+IF($K59="Ongoing",BD59,IF(RIGHT($K59,2)=RIGHT(BZ$39,2),SUM($AX59:BD59),0)+IF(RIGHT(BZ$39,2)>RIGHT($K59,2),BD59,0)) -> -0.0002425196357 | CA59: =+IF($K59="Ongoing",BE59,IF(RIGHT($K59,2)=RIGHT(CA$39,2),SUM($AX59:BE59),0)+IF(RIGHT(CA$39,2)>RIGHT($K59,2),BE59,0)) -> -0.0002471435638 | CB59: =+IF($K59="Ongoing",BF59,IF(RIGHT($K59,2)=RIGHT(CB$39,2),SUM($AX59:BF59),0)+IF(RIGHT(CB$39,2)>RIGHT($K59,2),BF59,0)) -> -0.0002517038972 | CC59: =+IF($K59="Ongoing",BG59,IF(RIGHT($K59,2)=RIGHT(CC$39,2),SUM($AX59:BG59),0)+IF(RIGHT(CC$39,2)>RIGHT($K59,2),BG59,0)) -> -0.0002562026628 | CE59: =+Q59*KeyAssumptionsPriceControl_FO!AC$15 -> 0.003247251954 | CF59: =+R59*KeyAssumptionsPriceControl_FO!AD$15 -> 0 | CG59: =+S59*KeyAssumptionsPriceControl_FO!AE$15 -> 0 | CH59: =+T59*KeyAssumptionsPriceControl_FO!AF$15 -> 0 | CI59: =+U59*KeyAssumptionsPriceControl_FO!AG$15 -> 0 | CJ59: =+V59*KeyAssumptionsPriceControl_FO!AH$15 -> 0 | CK59: =+W59*KeyAssumptionsPriceControl_FO!AI$15 -> 0 | CL59: =+X59*KeyAssumptionsPriceControl_FO!AJ$15 -> 0 | CM59: =+Y59*KeyAssumptionsPriceControl_FO!AK$15 -> 0 | CN59: =+Z59*KeyAssumptionsPriceControl_FO!AL$15 -> 0 | CP59: 3.247251954e-05 | CQ59: 6.494503908e-05 | CR59: 6.494503908e-05 | CS59: 6.494503908e-05 | CT59: 6.494503908e-05 | CU59: 6.494503908e-05 | CV59: 6.494503908e-05 | CW59: 6.494503908e-05 | CX59: 6.494503908e-05 | CY59: 6.494503908e-05
C60: Mains Replacement & Rehabilitation | E60: Sewerage | F60: Renewals | G60: Pipelines/network | H60: Capital Programs / Allocation | J60: Straight line | K60: Ongoing | L60: 70 | M60: 50 | Q60: 7.424279366 | R60: 8.4071248 | S60: 10.508906 | T60: 12.6106872 | U60: 14.7124684 | V60: 10.73269315 | W60: 10.73269315 | X60: 10.73269315 | Y60: 10.73269315 | Z60: 10.73269315 | AM60: 0 | AN60: 0 | AO60: 0 | AP60: 0 | AQ60: 0 | AR60: 0 | AS60: 0 | AT60: 0 | AU60: 0 | AV60: 0 | AX60: 7.424279366 | AY60: 8.4071248 | AZ60: 10.508906 | BA60: 12.6106872 | BB60: 14.7124684 | BC60: 10.73269315 | BD60: 10.73269315 | BE60: 10.73269315 | BF60: 10.73269315 | BG60: 10.73269315 | BI60: 0.0530305669 | BJ60: 0.1661120252 | BK60: 0.3012265309 | BL60: 0.4663664824 | BM60: 0.6615318795 | BN60: 0.8432830335 | BO60: 0.9966072214 | BP60: 1.149931409 | BQ60: 1.303255597 | BR60: 1.456579785 | BT60: =+IF($K60="Ongoing",AX60,IF(RIGHT($K60,2)=RIGHT(BT$39,2),SUM($AX60:AX60),0)+IF(RIGHT(BT$39,2)>RIGHT($K60,2),AX60,0)) -> 7.424279366 | BU60: =+IF($K60="Ongoing",AY60,IF(RIGHT($K60,2)=RIGHT(BU$39,2),SUM($AX60:AY60),0)+IF(RIGHT(BU$39,2)>RIGHT($K60,2),AY60,0)) -> 8.4071248 | BV60: =+IF($K60="Ongoing",AZ60,IF(RIGHT($K60,2)=RIGHT(BV$39,2),SUM($AX60:AZ60),0)+IF(RIGHT(BV$39,2)>RIGHT($K60,2),AZ60,0)) -> 10.508906 | BW60: =+IF($K60="Ongoing",BA60,IF(RIGHT($K60,2)=RIGHT(BW$39,2),SUM($AX60:BA60),0)+IF(RIGHT(BW$39,2)>RIGHT($K60,2),BA60,0)) -> 12.6106872 | BX60: =+IF($K60="Ongoing",BB60,IF(RIGHT($K60,2)=RIGHT(BX$39,2),SUM($AX60:BB60),0)+IF(RIGHT(BX$39,2)>RIGHT($K60,2),BB60,0)) -> 14.7124684 | BY60: =+IF($K60="Ongoing",BC60,IF(RIGHT($K60,2)=RIGHT(BY$39,2),SUM($AX60:BC60),0)+IF(RIGHT(BY$39,2)>RIGHT($K60,2),BC60,0)) -> 10.73269315 | BZ60: =+IF($K60="Ongoing",BD60,IF(RIGHT($K60,2)=RIGHT(BZ$39,2),SUM($AX60:BD60),0)+IF(RIGHT(BZ$39,2)>RIGHT($K60,2),BD60,0)) -> 10.73269315 | CA60: =+IF($K60="Ongoing",BE60,IF(RIGHT($K60,2)=RIGHT(CA$39,2),SUM($AX60:BE60),0)+IF(RIGHT(CA$39,2)>RIGHT($K60,2),BE60,0)) -> 10.73269315 | CB60: =+IF($K60="Ongoing",BF60,IF(RIGHT($K60,2)=RIGHT(CB$39,2),SUM($AX60:BF60),0)+IF(RIGHT(CB$39,2)>RIGHT($K60,2),BF60,0)) -> 10.73269315 | CC60: =+IF($K60="Ongoing",BG60,IF(RIGHT($K60,2)=RIGHT(CC$39,2),SUM($AX60:BG60),0)+IF(RIGHT(CC$39,2)>RIGHT($K60,2),BG60,0)) -> 10.73269315 | CE60: =+Q60*KeyAssumptionsPriceControl_FO!AC$15 -> 7.647007747 | CF60: =+R60*KeyAssumptionsPriceControl_FO!AD$15 -> 8.9191187 | CG60: =+S60*KeyAssumptionsPriceControl_FO!AE$15 -> 11.48336533 | CH60: =+T60*KeyAssumptionsPriceControl_FO!AF$15 -> 14.19343954 | CI60: =+U60*KeyAssumptionsPriceControl_FO!AG$15 -> 17.05578319 | CJ60: =+V60*KeyAssumptionsPriceControl_FO!AH$15 -> 12.81539691 | CK60: =+W60*KeyAssumptionsPriceControl_FO!AI$15 -> 13.19985881 | CL60: =+X60*KeyAssumptionsPriceControl_FO!AJ$15 -> 13.59585458 | CM60: =+Y60*KeyAssumptionsPriceControl_FO!AK$15 -> 14.00373022 | CN60: =+Z60*KeyAssumptionsPriceControl_FO!AL$15 -> 14.42384212 | CP60: 0.07647007747 | CQ60: 0.242131342 | CR60: 0.4461561822 | CS60: 0.7029242309 | CT60: 1.015416458 | CU60: 1.314128259 | CV60: 1.574280816 | CW60: 1.84223795 | CX60: 2.118233798 | CY60: 2.402509522
C61: Digital Strategy | E61: Water | F61: Improvements / Compliance | G61: Corporate | H61: Capital Programs / Allocation | J61: Straight line | K61: Ongoing | L61: 3.669994128 | M61: 3.669994128 | Q61: 1.883117 | R61: 2.834383 | S61: 4.978677 | T61: 3.75467 | U61: 5.203303 | V61: 3.1527 | W61: 3.1527 | X61: 3.1527 | Y61: 3.1527 | Z61: 3 | AM61: 0 | AN61: 0 | AO61: 0 | AP61: 0 | AQ61: 0 | AR61: 0 | AS61: 0 | AT61: 0 | AU61: 0 | AV61: 0 | AX61: 1.883117 | AY61: 2.834383 | AZ61: 4.978677 | BA61: 3.75467 | BB61: 5.203303 | BC61: 3.1527 | BD61: 3.1527 | BE61: 3.1527 | BF61: 3.1527 | BG61: 3 | BI61: 0.2565558601 | BJ61: 0.8992680601 | BK61: 1.963719354 | BL61: 3.15355055 | BM61: 3.948099051 | BN61: 4.358270861 | BO61: 3.960052346 | BP61: 3.739331556 | BQ61: 3.247683931 | BR61: 3.131896152 | BT61: =+IF($K61="Ongoing",AX61,IF(RIGHT($K61,2)=RIGHT(BT$39,2),SUM($AX61:AX61),0)+IF(RIGHT(BT$39,2)>RIGHT($K61,2),AX61,0)) -> 1.883117 | BU61: =+IF($K61="Ongoing",AY61,IF(RIGHT($K61,2)=RIGHT(BU$39,2),SUM($AX61:AY61),0)+IF(RIGHT(BU$39,2)>RIGHT($K61,2),AY61,0)) -> 2.834383 | BV61: =+IF($K61="Ongoing",AZ61,IF(RIGHT($K61,2)=RIGHT(BV$39,2),SUM($AX61:AZ61),0)+IF(RIGHT(BV$39,2)>RIGHT($K61,2),AZ61,0)) -> 4.978677 | BW61: =+IF($K61="Ongoing",BA61,IF(RIGHT($K61,2)=RIGHT(BW$39,2),SUM($AX61:BA61),0)+IF(RIGHT(BW$39,2)>RIGHT($K61,2),BA61,0)) -> 3.75467 | BX61: =+IF($K61="Ongoing",BB61,IF(RIGHT($K61,2)=RIGHT(BX$39,2),SUM($AX61:BB61),0)+IF(RIGHT(BX$39,2)>RIGHT($K61,2),BB61,0)) -> 5.203303 | BY61: =+IF($K61="Ongoing",BC61,IF(RIGHT($K61,2)=RIGHT(BY$39,2),SUM($AX61:BC61),0)+IF(RIGHT(BY$39,2)>RIGHT($K61,2),BC61,0)) -> 3.1527 | BZ61: =+IF($K61="Ongoing",BD61,IF(RIGHT($K61,2)=RIGHT(BZ$39,2),SUM($AX61:BD61),0)+IF(RIGHT(BZ$39,2)>RIGHT($K61,2),BD61,0)) -> 3.1527 | CA61: =+IF($K61="Ongoing",BE61,IF(RIGHT($K61,2)=RIGHT(CA$39,2),SUM($AX61:BE61),0)+IF(RIGHT(CA$39,2)>RIGHT($K61,2),BE61,0)) -> 3.1527 | CB61: =+IF($K61="Ongoing",BF61,IF(RIGHT($K61,2)=RIGHT(CB$39,2),SUM($AX61:BF61),0)+IF(RIGHT(CB$39,2)>RIGHT($K61,2),BF61,0)) -> 3.1527 | CC61: =+IF($K61="Ongoing",BG61,IF(RIGHT($K61,2)=RIGHT(CC$39,2),SUM($AX61:BG61),0)+IF(RIGHT(CC$39,2)>RIGHT($K61,2),BG61,0)) -> 3 | CE61: =+Q61*KeyAssumptionsPriceControl_FO!AC$15 -> 1.93961051 | CF61: =+R61*KeyAssumptionsPriceControl_FO!AD$15 -> 3.006996925 | CG61: =+S61*KeyAssumptionsPriceControl_FO!AE$15 -> 5.440334782 | CH61: =+T61*KeyAssumptionsPriceControl_FO!AF$15 -> 4.225914164 | CI61: =+U61*KeyAssumptionsPriceControl_FO!AG$15 -> 6.032054269 | CJ61: =+V61*KeyAssumptionsPriceControl_FO!AH$15 -> 3.764488675 | CK61: =+W61*KeyAssumptionsPriceControl_FO!AI$15 -> 3.877423336 | CL61: =+X61*KeyAssumptionsPriceControl_FO!AJ$15 -> 3.993746036 | CM61: =+Y61*KeyAssumptionsPriceControl_FO!AK$15 -> 4.113558417 | CN61: =+Z61*KeyAssumptionsPriceControl_FO!AL$15 -> 4.031749138 | CP61: 0.2642525359 | CQ61: 0.9381783328 | CR61: 2.089042805 | CS61: 3.405972561 | CT61: 4.364855867 | CU61: 4.929631695 | CV61: 4.601095575 | CW61: 4.465734636 | CX61: 4.010320057 | CY61: 3.989255246
C62: Telemetry RTU PLC HMI Hardware &Software | E62: Water | F62: Renewals | G62: Corporate | H62: Other Capital expenditure | J62: Straight line | K62: Ongoing | L62: 3.669994128 | M62: 3.669994128 | Q62: 0 | R62: 0 | S62: 0 | T62: 0 | U62: 0 | V62: 0 | W62: 0 | X62: 0 | Y62: 0 | Z62: 0 | AM62: 0 | AN62: 0 | AO62: 0 | AP62: 0 | AQ62: 0 | AR62: 0 | AS62: 0 | AT62: 0 | AU62: 0 | AV62: 0 | AX62: 0 | AY62: 0 | AZ62: 0 | BA62: 0 | BB62: 0 | BC62: 0 | BD62: 0 | BE62: 0 | BF62: 0 | BG62: 0 | BI62: 0 | BJ62: 0 | BK62: 0 | BL62: 0 | BM62: 0 | BN62: 0 | BO62: 0 | BP62: 0 | BQ62: 0 | BR62: 0 | BT62: =+IF($K62="Ongoing",AX62,IF(RIGHT($K62,2)=RIGHT(BT$39,2),SUM($AX62:AX62),0)+IF(RIGHT(BT$39,2)>RIGHT($K62,2),AX62,0)) -> 0 | BU62: =+IF($K62="Ongoing",AY62,IF(RIGHT($K62,2)=RIGHT(BU$39,2),SUM($AX62:AY62),0)+IF(RIGHT(BU$39,2)>RIGHT($K62,2),AY62,0)) -> 0 | BV62: =+IF($K62="Ongoing",AZ62,IF(RIGHT($K62,2)=RIGHT(BV$39,2),SUM($AX62:AZ62),0)+IF(RIGHT(BV$39,2)>RIGHT($K62,2),AZ62,0)) -> 0 | BW62: =+IF($K62="Ongoing",BA62,IF(RIGHT($K62,2)=RIGHT(BW$39,2),SUM($AX62:BA62),0)+IF(RIGHT(BW$39,2)>RIGHT($K62,2),BA62,0)) -> 0 | BX62: =+IF($K62="Ongoing",BB62,IF(RIGHT($K62,2)=RIGHT(BX$39,2),SUM($AX62:BB62),0)+IF(RIGHT(BX$39,2)>RIGHT($K62,2),BB62,0)) -> 0 | BY62: =+IF($K62="Ongoing",BC62,IF(RIGHT($K62,2)=RIGHT(BY$39,2),SUM($AX62:BC62),0)+IF(RIGHT(BY$39,2)>RIGHT($K62,2),BC62,0)) -> 0 | BZ62: =+IF($K62="Ongoing",BD62,IF(RIGHT($K62,2)=RIGHT(BZ$39,2),SUM($AX62:BD62),0)+IF(RIGHT(BZ$39,2)>RIGHT($K62,2),BD62,0)) -> 0 | CA62: =+IF($K62="Ongoing",BE62,IF(RIGHT($K62,2)=RIGHT(CA$39,2),SUM($AX62:BE62),0)+IF(RIGHT(CA$39,2)>RIGHT($K62,2),BE62,0)) -> 0 | CB62: =+IF($K62="Ongoing",BF62,IF(RIGHT($K62,2)=RIGHT(CB$39,2),SUM($AX62:BF62),0)+IF(RIGHT(CB$39,2)>RIGHT($K62,2),BF62,0)) -> 0 | CC62: =+IF($K62="Ongoing",BG62,IF(RIGHT($K62,2)=RIGHT(CC$39,2),SUM($AX62:BG62),0)+IF(RIGHT(CC$39,2)>RIGHT($K62,2),BG62,0)) -> 0 | CE62: =+Q62*KeyAssumptionsPriceControl_FO!AC$15 -> 0 | CF62: =+R62*KeyAssumptionsPriceControl_FO!AD$15 -> 0 | CG62: =+S62*KeyAssumptionsPriceControl_FO!AE$15 -> 0 | CH62: =+T62*KeyAssumptionsPriceControl_FO!AF$15 -> 0 | CI62: =+U62*KeyAssumptionsPriceControl_FO!AG$15 -> 0 | CJ62: =+V62*KeyAssumptionsPriceControl_FO!AH$15 -> 0 | CK62: =+W62*KeyAssumptionsPriceControl_FO!AI$15 -> 0 | CL62: =+X62*KeyAssumptionsPriceControl_FO!AJ$15 -> 0 | CM62: =+Y62*KeyAssumptionsPriceControl_FO!AK$15 -> 0 | CN62: =+Z62*KeyAssumptionsPriceControl_FO!AL$15 -> 0 | CP62: 0 | CQ62: 0 | CR62: 0 | CS62: 0 | CT62: 0 | CU62: 0 | CV62: 0 | CW62: 0 | CX62: 0 | CY62: 0
C63: Water Growth Assets | E63: Water | F63: Growth | G63: Pipelines/network | H63: Other Capital expenditure | J63: Straight line | K63: Ongoing | L63: 70 | M63: 50 | Q63: 2.1017812 | R63: 2.1017812 | S63: 2.1017812 | T63: 2.1017812 | U63: 2.1017812 | V63: 1.0508906 | W63: 1.0508906 | X63: 1.0508906 | Y63: 1.0508906 | Z63: 1.0508906 | AM63: 0.7698282964 | AN63: 0.7721495988 | AO63: 0.7846002209 | AP63: 0.7867104958 | AQ63: 0.7776363136 | AR63: 0.7929931917 | AS63: 0.8083987857 | AT63: 0.8238118794 | AU63: 0.8390129907 | AV63: 0.854008876 | AX63: 1.331952904 | AY63: 1.329631601 | AZ63: 1.317180979 | BA63: 1.315070704 | BB63: 1.324144886 | BC63: 0.2578974083 | BD63: 0.2424918143 | BE63: 0.2270787206 | BF63: 0.2118776093 | BG63: 0.196881724 | BI63: 0.009513949312 | BJ63: 0.0285252672 | BK63: 0.04743107135 | BL63: 0.06623286909 | BM63: 0.08508440902 | BN63: 0.09638471112 | BO63: 0.09995891986 | BP63: 0.1033129951 | BQ63: 0.1064483975 | BR63: 0.109368107 | BT63: =+IF($K63="Ongoing",AX63,IF(RIGHT($K63,2)=RIGHT(BT$39,2),SUM($AX63:AX63),0)+IF(RIGHT(BT$39,2)>RIGHT($K63,2),AX63,0)) -> 1.331952904 | BU63: =+IF($K63="Ongoing",AY63,IF(RIGHT($K63,2)=RIGHT(BU$39,2),SUM($AX63:AY63),0)+IF(RIGHT(BU$39,2)>RIGHT($K63,2),AY63,0)) -> 1.329631601 | BV63: =+IF($K63="Ongoing",AZ63,IF(RIGHT($K63,2)=RIGHT(BV$39,2),SUM($AX63:AZ63),0)+IF(RIGHT(BV$39,2)>RIGHT($K63,2),AZ63,0)) -> 1.317180979 | BW63: =+IF($K63="Ongoing",BA63,IF(RIGHT($K63,2)=RIGHT(BW$39,2),SUM($AX63:BA63),0)+IF(RIGHT(BW$39,2)>RIGHT($K63,2),BA63,0)) -> 1.315070704 | BX63: =+IF($K63="Ongoing",BB63,IF(RIGHT($K63,2)=RIGHT(BX$39,2),SUM($AX63:BB63),0)+IF(RIGHT(BX$39,2)>RIGHT($K63,2),BB63,0)) -> 1.324144886 | BY63: =+IF($K63="Ongoing",BC63,IF(RIGHT($K63,2)=RIGHT(BY$39,2),SUM($AX63:BC63),0)+IF(RIGHT(BY$39,2)>RIGHT($K63,2),BC63,0)) -> 0.2578974083 | BZ63: =+IF($K63="Ongoing",BD63,IF(RIGHT($K63,2)=RIGHT(BZ$39,2),SUM($AX63:BD63),0)+IF(RIGHT(BZ$39,2)>RIGHT($K63,2),BD63,0)) -> 0.2424918143 | CA63: =+IF($K63="Ongoing",BE63,IF(RIGHT($K63,2)=RIGHT(CA$39,2),SUM($AX63:BE63),0)+IF(RIGHT(CA$39,2)>RIGHT($K63,2),BE63,0)) -> 0.2270787206 | CB63: =+IF($K63="Ongoing",BF63,IF(RIGHT($K63,2)=RIGHT(CB$39,2),SUM($AX63:BF63),0)+IF(RIGHT(CB$39,2)>RIGHT($K63,2),BF63,0)) -> 0.2118776093 | CC63: =+IF($K63="Ongoing",BG63,IF(RIGHT($K63,2)=RIGHT(CC$39,2),SUM($AX63:BG63),0)+IF(RIGHT(CC$39,2)>RIGHT($K63,2),BG63,0)) -> 0.196881724 | CE63: =+Q63*KeyAssumptionsPriceControl_FO!AC$15 -> 2.164834636 | CF63: =+R63*KeyAssumptionsPriceControl_FO!AD$15 -> 2.229779675 | CG63: =+S63*KeyAssumptionsPriceControl_FO!AE$15 -> 2.296673065 | CH63: =+T63*KeyAssumptionsPriceControl_FO!AF$15 -> 2.365573257 | CI63: =+U63*KeyAssumptionsPriceControl_FO!AG$15 -> 2.436540455 | CJ63: =+V63*KeyAssumptionsPriceControl_FO!AH$15 -> 1.254818334 | CK63: =+W63*KeyAssumptionsPriceControl_FO!AI$15 -> 1.292462884 | CL63: =+X63*KeyAssumptionsPriceControl_FO!AJ$15 -> 1.331236771 | CM63: =+Y63*KeyAssumptionsPriceControl_FO!AK$15 -> 1.371173874 | CN63: =+Z63*KeyAssumptionsPriceControl_FO!AL$15 -> 1.41230909 | CP63: 0.02164834636 | CQ63: 0.06559448947 | CR63: 0.1108590169 | CS63: 0.1574814801 | CT63: 0.2055026172 | CU63: 0.2424162051 | CV63: 0.2678890173 | CW63: 0.2941260139 | CX63: 0.3211501203 | CY63: 0.3489849499
C64: Torquay High Level Feeder Main Stage 5 | E64: Water | F64: Growth | G64: Pipelines/network | H64: Other Capital expenditure | J64: Straight line | K64: 2023-24 | L64: 70 | M64: 50 | Q64: 0.3325576512 | R64: 0 | S64: 0 | T64: 0 | U64: 0 | V64: 0 | W64: 0 | X64: 0 | Y64: 0 | Z64: 0 | AM64: 0.0243614597 | AN64: 0.02443491805 | AO64: 0.02482892192 | AP64: 0.02489570224 | AQ64: 0.02460854688 | AR64: 0.02509452014 | AS64: 0.02558203503 | AT64: 0.02606978725 | AU64: 0.02655083122 | AV64: 0.02702538075 | AX64: 0.3081961915 | AY64: -0.02443491805 | AZ64: -0.02482892192 | BA64: -0.02489570224 | BB64: -0.02460854688 | BC64: -0.02509452014 | BD64: -0.02558203503 | BE64: -0.02606978725 | BF64: -0.02655083122 | BG64: -0.02702538075 | BI64: 0.002201401368 | BJ64: 0.004228267606 | BK64: 0.003876383035 | BL64: 0.003521207148 | BM64: 0.003167605369 | BN64: 0.002812583462 | BO64: 0.002450608068 | BP64: 0.00208166648 | BQ64: 0.001705804919 | BR64: 0.001323117691 | BT64: =+IF($K64="Ongoing",AX64,IF(RIGHT($K64,2)=RIGHT(BT$39,2),SUM($AX64:AX64),0)+IF(RIGHT(BT$39,2)>RIGHT($K64,2),AX64,0)) -> 0.3081961915 | BU64: =+IF($K64="Ongoing",AY64,IF(RIGHT($K64,2)=RIGHT(BU$39,2),SUM($AX64:AY64),0)+IF(RIGHT(BU$39,2)>RIGHT($K64,2),AY64,0)) -> -0.02443491805 | BV64: =+IF($K64="Ongoing",AZ64,IF(RIGHT($K64,2)=RIGHT(BV$39,2),SUM($AX64:AZ64),0)+IF(RIGHT(BV$39,2)>RIGHT($K64,2),AZ64,0)) -> -0.02482892192 | BW64: =+IF($K64="Ongoing",BA64,IF(RIGHT($K64,2)=RIGHT(BW$39,2),SUM($AX64:BA64),0)+IF(RIGHT(BW$39,2)>RIGHT($K64,2),BA64,0)) -> -0.02489570224 | BX64: =+IF($K64="Ongoing",BB64,IF(RIGHT($K64,2)=RIGHT(BX$39,2),SUM($AX64:BB64),0)+IF(RIGHT(BX$39,2)>RIGHT($K64,2),BB64,0)) -> -0.02460854688 | BY64: =+IF($K64="Ongoing",BC64,IF(RIGHT($K64,2)=RIGHT(BY$39,2),SUM($AX64:BC64),0)+IF(RIGHT(BY$39,2)>RIGHT($K64,2),BC64,0)) -> -0.02509452014 | BZ64: =+IF($K64="Ongoing",BD64,IF(RIGHT($K64,2)=RIGHT(BZ$39,2),SUM($AX64:BD64),0)+IF(RIGHT(BZ$39,2)>RIGHT($K64,2),BD64,0)) -> -0.02558203503 | CA64: =+IF($K64="Ongoing",BE64,IF(RIGHT($K64,2)=RIGHT(CA$39,2),SUM($AX64:BE64),0)+IF(RIGHT(CA$39,2)>RIGHT($K64,2),BE64,0)) -> -0.02606978725 | CB64: =+IF($K64="Ongoing",BF64,IF(RIGHT($K64,2)=RIGHT(CB$39,2),SUM($AX64:BF64),0)+IF(RIGHT(CB$39,2)>RIGHT($K64,2),BF64,0)) -> -0.02655083122 | CC64: =+IF($K64="Ongoing",BG64,IF(RIGHT($K64,2)=RIGHT(CC$39,2),SUM($AX64:BG64),0)+IF(RIGHT(CC$39,2)>RIGHT($K64,2),BG64,0)) -> -0.02702538075 | CE64: =+Q64*KeyAssumptionsPriceControl_FO!AC$15 -> 0.3425343807 | CF64: =+R64*KeyAssumptionsPriceControl_FO!AD$15 -> 0 | CG64: =+S64*KeyAssumptionsPriceControl_FO!AE$15 -> 0 | CH64: =+T64*KeyAssumptionsPriceControl_FO!AF$15 -> 0 | CI64: =+U64*KeyAssumptionsPriceControl_FO!AG$15 -> 0 | CJ64: =+V64*KeyAssumptionsPriceControl_FO!AH$15 -> 0 | CK64: =+W64*KeyAssumptionsPriceControl_FO!AI$15 -> 0 | CL64: =+X64*KeyAssumptionsPriceControl_FO!AJ$15 -> 0 | CM64: =+Y64*KeyAssumptionsPriceControl_FO!AK$15 -> 0 | CN64: =+Z64*KeyAssumptionsPriceControl_FO!AL$15 -> 0 | CP64: 0.003425343807 | CQ64: 0.006850687614 | CR64: 0.006850687614 | CS64: 0.006850687614 | CT64: 0.006850687614 | CU64: 0.006850687614 | CV64: 0.006850687614 | CW64: 0.006850687614 | CX64: 0.006850687614 | CY64: 0.006850687614
C65: Water Mains Replacements | E65: Water | F65: Renewals | G65: Pipelines/network | H65: Capital Programs / Allocation | J65: Straight line | K65: Ongoing | L65: 70 | M65: 50 | Q65: 0.9415160081 | R65: 4.744827807 | S65: 4.593560512 | T65: 4.767727764 | U65: 4.712021104 | V65: 4.560606685 | W65: 4.600905187 | X65: 4.66178012 | Y65: 4.598254841 | Z65: 4.702538918 | AM65: 0 | AN65: 0 | AO65: 0 | AP65: 0 | AQ65: 0 | AR65: 0 | AS65: 0 | AT65: 0 | AU65: 0 | AV65: 0 | AX65: 0.9415160081 | AY65: 4.744827807 | AZ65: 4.593560512 | BA65: 4.767727764 | BB65: 4.712021104 | BC65: 4.560606685 | BD65: 4.600905187 | BE65: 4.66178012 | BF65: 4.598254841 | BG65: 4.702538918 | BI65: 0.006725114344 | BJ65: 0.04734185588 | BK65: 0.1140446296 | BL65: 0.1809109744 | BM65: 0.2486234663 | BN65: 0.314856522 | BO65: 0.3802958925 | BP65: 0.4464579304 | BQ65: 0.5126010373 | BR65: 0.5790352784 | BT65: =+IF($K65="Ongoing",AX65,IF(RIGHT($K65,2)=RIGHT(BT$39,2),SUM($AX65:AX65),0)+IF(RIGHT(BT$39,2)>RIGHT($K65,2),AX65,0)) -> 0.9415160081 | BU65: =+IF($K65="Ongoing",AY65,IF(RIGHT($K65,2)=RIGHT(BU$39,2),SUM($AX65:AY65),0)+IF(RIGHT(BU$39,2)>RIGHT($K65,2),AY65,0)) -> 4.744827807 | BV65: =+IF($K65="Ongoing",AZ65,IF(RIGHT($K65,2)=RIGHT(BV$39,2),SUM($AX65:AZ65),0)+IF(RIGHT(BV$39,2)>RIGHT($K65,2),AZ65,0)) -> 4.593560512 | BW65: =+IF($K65="Ongoing",BA65,IF(RIGHT($K65,2)=RIGHT(BW$39,2),SUM($AX65:BA65),0)+IF(RIGHT(BW$39,2)>RIGHT($K65,2),BA65,0)) -> 4.767727764 | BX65: =+IF($K65="Ongoing",BB65,IF(RIGHT($K65,2)=RIGHT(BX$39,2),SUM($AX65:BB65),0)+IF(RIGHT(BX$39,2)>RIGHT($K65,2),BB65,0)) -> 4.712021104 | BY65: =+IF($K65="Ongoing",BC65,IF(RIGHT($K65,2)=RIGHT(BY$39,2),SUM($AX65:BC65),0)+IF(RIGHT(BY$39,2)>RIGHT($K65,2),BC65,0)) -> 4.560606685 | BZ65: =+IF($K65="Ongoing",BD65,IF(RIGHT($K65,2)=RIGHT(BZ$39,2),SUM($AX65:BD65),0)+IF(RIGHT(BZ$39,2)>RIGHT($K65,2),BD65,0)) -> 4.600905187 | CA65: =+IF($K65="Ongoing",BE65,IF(RIGHT($K65,2)=RIGHT(CA$39,2),SUM($AX65:BE65),0)+IF(RIGHT(CA$39,2)>RIGHT($K65,2),BE65,0)) -> 4.66178012 | CB65: =+IF($K65="Ongoing",BF65,IF(RIGHT($K65,2)=RIGHT(CB$39,2),SUM($AX65:BF65),0)+IF(RIGHT(CB$39,2)>RIGHT($K65,2),BF65,0)) -> 4.598254841 | CC65: =+IF($K65="Ongoing",BG65,IF(RIGHT($K65,2)=RIGHT(CC$39,2),SUM($AX65:BG65),0)+IF(RIGHT(CC$39,2)>RIGHT($K65,2),BG65,0)) -> 4.702538918 | CE65: =+Q65*KeyAssumptionsPriceControl_FO!AC$15 -> 0.9697614884 | CF65: =+R65*KeyAssumptionsPriceControl_FO!AD$15 -> 5.033787821 | CG65: =+S65*KeyAssumptionsPriceControl_FO!AE$15 -> 5.019507598 | CH65: =+T65*KeyAssumptionsPriceControl_FO!AF$15 -> 5.366119602 | CI65: =+U65*KeyAssumptionsPriceControl_FO!AG$15 -> 5.462523904 | CJ65: =+V65*KeyAssumptionsPriceControl_FO!AH$15 -> 5.445602886 | CK65: =+W65*KeyAssumptionsPriceControl_FO!AI$15 -> 5.658533046 | CL65: =+X65*KeyAssumptionsPriceControl_FO!AJ$15 -> 5.905403582 | CM65: =+Y65*KeyAssumptionsPriceControl_FO!AK$15 -> 5.999679609 | CN65: =+Z65*KeyAssumptionsPriceControl_FO!AL$15 -> 6.319819077 | CP65: 0.009697614884 | CQ65: 0.06973310797 | CR65: 0.1702660622 | CS65: 0.2741223342 | CT65: 0.3824087692 | CU65: 0.4914900371 | CV65: 0.6025313964 | CW65: 0.7181707627 | CX65: 0.8372215946 | CY65: 0.9604165815
C66: Computer Hware -Infrastructure | E66: Water | F66: Renewals | G66: Corporate | H66: Other Capital expenditure | J66: Straight line | K66: Ongoing | L66: 3.669994128 | M66: 3.669994128 | Q66: 1.405145821 | R66: 0.849539961 | S66: 0.5695827052 | T66: 0.8750766026 | U66: 0.9004030661 | V66: 0.84071248 | W66: 0.84071248 | X66: 0.84071248 | Y66: 0.84071248 | Z66: 0.84071248 | AM66: 0 | AN66: 0 | AO66: 0 | AP66: 0 | AQ66: 0 | AR66: 0 | AS66: 0 | AT66: 0 | AU66: 0 | AV66: 0 | AX66: 1.405145821 | AY66: 0.849539961 | AZ66: 0.5695827052 | BA66: 0.8750766026 | BB66: 0.9004030661 | BC66: 0.84071248 | BD66: 0.84071248 | BE66: 0.84071248 | BF66: 0.84071248 | BG66: 0.84071248 | BI66: 0.1914370667 | BJ66: 0.4986154577 | BK66: 0.6919567297 | BL66: 0.8887771138 | BM66: 0.8128806849 | BN66: 0.7928719549 | BO66: 0.8537817759 | BP66: 0.8585687171 | BQ66: 0.8434773479 | BR66: 0.84071248 | BT66: =+IF($K66="Ongoing",AX66,IF(RIGHT($K66,2)=RIGHT(BT$39,2),SUM($AX66:AX66),0)+IF(RIGHT(BT$39,2)>RIGHT($K66,2),AX66,0)) -> 1.405145821 | BU66: =+IF($K66="Ongoing",AY66,IF(RIGHT($K66,2)=RIGHT(BU$39,2),SUM($AX66:AY66),0)+IF(RIGHT(BU$39,2)>RIGHT($K66,2),AY66,0)) -> 0.849539961 | BV66: =+IF($K66="Ongoing",AZ66,IF(RIGHT($K66,2)=RIGHT(BV$39,2),SUM($AX66:AZ66),0)+IF(RIGHT(BV$39,2)>RIGHT($K66,2),AZ66,0)) -> 0.5695827052 | BW66: =+IF($K66="Ongoing",BA66,IF(RIGHT($K66,2)=RIGHT(BW$39,2),SUM($AX66:BA66),0)+IF(RIGHT(BW$39,2)>RIGHT($K66,2),BA66,0)) -> 0.8750766026 | BX66: =+IF($K66="Ongoing",BB66,IF(RIGHT($K66,2)=RIGHT(BX$39,2),SUM($AX66:BB66),0)+IF(RIGHT(BX$39,2)>RIGHT($K66,2),BB66,0)) -> 0.9004030661 | BY66: =+IF($K66="Ongoing",BC66,IF(RIGHT($K66,2)=RIGHT(BY$39,2),SUM($AX66:BC66),0)+IF(RIGHT(BY$39,2)>RIGHT($K66,2),BC66,0)) -> 0.84071248 | BZ66: =+IF($K66="Ongoing",BD66,IF(RIGHT($K66,2)=RIGHT(BZ$39,2),SUM($AX66:BD66),0)+IF(RIGHT(BZ$39,2)>RIGHT($K66,2),BD66,0)) -> 0.84071248 | CA66: =+IF($K66="Ongoing",BE66,IF(RIGHT($K66,2)=RIGHT(CA$39,2),SUM($AX66:BE66),0)+IF(RIGHT(CA$39,2)>RIGHT($K66,2),BE66,0)) -> 0.84071248 | CB66: =+IF($K66="Ongoing",BF66,IF(RIGHT($K66,2)=RIGHT(CB$39,2),SUM($AX66:BF66),0)+IF(RIGHT(CB$39,2)>RIGHT($K66,2),BF66,0)) -> 0.84071248 | CC66: =+IF($K66="Ongoing",BG66,IF(RIGHT($K66,2)=RIGHT(CC$39,2),SUM($AX66:BG66),0)+IF(RIGHT(CC$39,2)>RIGHT($K66,2),BG66,0)) -> 0.84071248 | CE66: =+Q66*KeyAssumptionsPriceControl_FO!AC$15 -> 1.447300196 | CF66: =+R66*KeyAssumptionsPriceControl_FO!AD$15 -> 0.9012769447 | CG66: =+S66*KeyAssumptionsPriceControl_FO!AE$15 -> 0.6223984007 | CH66: =+T66*KeyAssumptionsPriceControl_FO!AF$15 -> 0.9849064257 | CI66: =+U66*KeyAssumptionsPriceControl_FO!AG$15 -> 1.043813931 | CJ66: =+V66*KeyAssumptionsPriceControl_FO!AH$15 -> 1.003854667 | CK66: =+W66*KeyAssumptionsPriceControl_FO!AI$15 -> 1.033970307 | CL66: =+X66*KeyAssumptionsPriceControl_FO!AJ$15 -> 1.064989417 | CM66: =+Y66*KeyAssumptionsPriceControl_FO!AK$15 -> 1.096939099 | CN66: =+Z66*KeyAssumptionsPriceControl_FO!AL$15 -> 1.129847272 | CP66: 0.1971801787 | CQ66: 0.5171503283 | CR66: 0.7247358574 | CS66: 0.9437150669 | CT66: 0.892786516 | CU66: 0.900889147 | CV66: 0.9960136512 | CW66: 1.030399993 | CX66: 1.04325131 | CY66: 1.071247452
C67: Water Mains Rep 2021-24 | E67: Water | F67: Renewals | G67: Pipelines/network | H67: Capital Programs / Allocation | J67: Straight line | K67: 2023-24 | L67: 70 | M67: 50 | Q67: 3.841245797 | R67: 0 | S67: 0 | T67: 0 | U67: 0 | V67: 0 | W67: 0 | X67: 0 | Y67: 0 | Z67: 0 | AM67: 0 | AN67: 0 | AO67: 0 | AP67: 0 | AQ67: 0 | AR67: 0 | AS67: 0 | AT67: 0 | AU67: 0 | AV67: 0 | AX67: 3.841245797 | AY67: 0 | AZ67: 0 | BA67: 0 | BB67: 0 | BC67: 0 | BD67: 0 | BE67: 0 | BF67: 0 | BG67: 0 | BI67: 0.02743746998 | BJ67: 0.05487493996 | BK67: 0.05487493996 | BL67: 0.05487493996 | BM67: 0.05487493996 | BN67: 0.05487493996 | BO67: 0.05487493996 | BP67: 0.05487493996 | BQ67: 0.05487493996 | BR67: 0.05487493996 | BT67: =+IF($K67="Ongoing",AX67,IF(RIGHT($K67,2)=RIGHT(BT$39,2),SUM($AX67:AX67),0)+IF(RIGHT(BT$39,2)>RIGHT($K67,2),AX67,0)) -> 3.841245797 | BU67: =+IF($K67="Ongoing",AY67,IF(RIGHT($K67,2)=RIGHT(BU$39,2),SUM($AX67:AY67),0)+IF(RIGHT(BU$39,2)>RIGHT($K67,2),AY67,0)) -> 0 | BV67: =+IF($K67="Ongoing",AZ67,IF(RIGHT($K67,2)=RIGHT(BV$39,2),SUM($AX67:AZ67),0)+IF(RIGHT(BV$39,2)>RIGHT($K67,2),AZ67,0)) -> 0 | BW67: =+IF($K67="Ongoing",BA67,IF(RIGHT($K67,2)=RIGHT(BW$39,2),SUM($AX67:BA67),0)+IF(RIGHT(BW$39,2)>RIGHT($K67,2),BA67,0)) -> 0 | BX67: =+IF($K67="Ongoing",BB67,IF(RIGHT($K67,2)=RIGHT(BX$39,2),SUM($AX67:BB67),0)+IF(RIGHT(BX$39,2)>RIGHT($K67,2),BB67,0)) -> 0 | BY67: =+IF($K67="Ongoing",BC67,IF(RIGHT($K67,2)=RIGHT(BY$39,2),SUM($AX67:BC67),0)+IF(RIGHT(BY$39,2)>RIGHT($K67,2),BC67,0)) -> 0 | BZ67: =+IF($K67="Ongoing",BD67,IF(RIGHT($K67,2)=RIGHT(BZ$39,2),SUM($AX67:BD67),0)+IF(RIGHT(BZ$39,2)>RIGHT($K67,2),BD67,0)) -> 0 | CA67: =+IF($K67="Ongoing",BE67,IF(RIGHT($K67,2)=RIGHT(CA$39,2),SUM($AX67:BE67),0)+IF(RIGHT(CA$39,2)>RIGHT($K67,2),BE67,0)) -> 0 | CB67: =+IF($K67="Ongoing",BF67,IF(RIGHT($K67,2)=RIGHT(CB$39,2),SUM($AX67:BF67),0)+IF(RIGHT(CB$39,2)>RIGHT($K67,2),BF67,0)) -> 0 | CC67: =+IF($K67="Ongoing",BG67,IF(RIGHT($K67,2)=RIGHT(CC$39,2),SUM($AX67:BG67),0)+IF(RIGHT(CC$39,2)>RIGHT($K67,2),BG67,0)) -> 0 | CE67: =+Q67*KeyAssumptionsPriceControl_FO!AC$15 -> 3.956483171 | CF67: =+R67*KeyAssumptionsPriceControl_FO!AD$15 -> 0 | CG67: =+S67*KeyAssumptionsPriceControl_FO!AE$15 -> 0 | CH67: =+T67*KeyAssumptionsPriceControl_FO!AF$15 -> 0 | CI67: =+U67*KeyAssumptionsPriceControl_FO!AG$15 -> 0 | CJ67: =+V67*KeyAssumptionsPriceControl_FO!AH$15 -> 0 | CK67: =+W67*KeyAssumptionsPriceControl_FO!AI$15 -> 0 | CL67: =+X67*KeyAssumptionsPriceControl_FO!AJ$15 -> 0 | CM67: =+Y67*KeyAssumptionsPriceControl_FO!AK$15 -> 0 | CN67: =+Z67*KeyAssumptionsPriceControl_FO!AL$15 -> 0 | CP67: 0.03956483171 | CQ67: 0.07912966342 | CR67: 0.07912966342 | CS67: 0.07912966342 | CT67: 0.07912966342 | CU67: 0.07912966342 | CV67: 0.07912966342 | CW67: 0.07912966342 | CX67: 0.07912966342 | CY67: 0.07912966342
C68: Vehicles | E68: Water | F68: Renewals | G68: Corporate | H68: Capital Programs / Allocation | J68: Straight line | K68: Ongoing | L68: 5 | M68: 5 | Q68: 1.223236658 | R68: 2.264669243 | S68: 1.353547093 | T68: 1.324122156 | U68: 1.38402292 | V68: 1.090420764 | W68: 2.358986674 | X68: 1.47124684 | Y68: 1.47124684 | Z68: 1.47124684 | AM68: 0 | AN68: 0 | AO68: 0 | AP68: 0 | AQ68: 0 | AR68: 0 | AS68: 0 | AT68: 0 | AU68: 0 | AV68: 0 | AX68: 1.223236658 | AY68: 2.264669243 | AZ68: 1.353547093 | BA68: 1.324122156 | BB68: 1.38402292 | BC68: 1.090420764 | BD68: 2.358986674 | BE68: 1.47124684 | BF68: 1.47124684 | BG68: 1.47124684 | BI68: 0.1223236658 | BJ68: 0.471114256 | BK68: 0.8329358896 | BL68: 1.100702814 | BM68: 1.371517322 | BN68: 1.496638025 | BO68: 1.492788178 | BP68: 1.513989896 | BQ68: 1.540472339 | BR68: 1.5639072 | BT68: =+IF($K68="Ongoing",AX68,IF(RIGHT($K68,2)=RIGHT(BT$39,2),SUM($AX68:AX68),0)+IF(RIGHT(BT$39,2)>RIGHT($K68,2),AX68,0)) -> 1.223236658 | BU68: =+IF($K68="Ongoing",AY68,IF(RIGHT($K68,2)=RIGHT(BU$39,2),SUM($AX68:AY68),0)+IF(RIGHT(BU$39,2)>RIGHT($K68,2),AY68,0)) -> 2.264669243 | BV68: =+IF($K68="Ongoing",AZ68,IF(RIGHT($K68,2)=RIGHT(BV$39,2),SUM($AX68:AZ68),0)+IF(RIGHT(BV$39,2)>RIGHT($K68,2),AZ68,0)) -> 1.353547093 | BW68: =+IF($K68="Ongoing",BA68,IF(RIGHT($K68,2)=RIGHT(BW$39,2),SUM($AX68:BA68),0)+IF(RIGHT(BW$39,2)>RIGHT($K68,2),BA68,0)) -> 1.324122156 | BX68: =+IF($K68="Ongoing",BB68,IF(RIGHT($K68,2)=RIGHT(BX$39,2),SUM($AX68:BB68),0)+IF(RIGHT(BX$39,2)>RIGHT($K68,2),BB68,0)) -> 1.38402292 | BY68: =+IF($K68="Ongoing",BC68,IF(RIGHT($K68,2)=RIGHT(BY$39,2),SUM($AX68:BC68),0)+IF(RIGHT(BY$39,2)>RIGHT($K68,2),BC68,0)) -> 1.090420764 | BZ68: =+IF($K68="Ongoing",BD68,IF(RIGHT($K68,2)=RIGHT(BZ$39,2),SUM($AX68:BD68),0)+IF(RIGHT(BZ$39,2)>RIGHT($K68,2),BD68,0)) -> 2.358986674 | CA68: =+IF($K68="Ongoing",BE68,IF(RIGHT($K68,2)=RIGHT(CA$39,2),SUM($AX68:BE68),0)+IF(RIGHT(CA$39,2)>RIGHT($K68,2),BE68,0)) -> 1.47124684 | CB68: =+IF($K68="Ongoing",BF68,IF(RIGHT($K68,2)=RIGHT(CB$39,2),SUM($AX68:BF68),0)+IF(RIGHT(CB$39,2)>RIGHT($K68,2),BF68,0)) -> 1.47124684 | CC68: =+IF($K68="Ongoing",BG68,IF(RIGHT($K68,2)=RIGHT(CC$39,2),SUM($AX68:BG68),0)+IF(RIGHT(CC$39,2)>RIGHT($K68,2),BG68,0)) -> 1.47124684 | CE68: =+Q68*KeyAssumptionsPriceControl_FO!AC$15 -> 1.259933758 | CF68: =+R68*KeyAssumptionsPriceControl_FO!AD$15 -> 2.4025876 | CG68: =+S68*KeyAssumptionsPriceControl_FO!AE$15 -> 1.479057454 | CH68: =+T68*KeyAssumptionsPriceControl_FO!AF$15 -> 1.490311152 | CI68: =+U68*KeyAssumptionsPriceControl_FO!AG$15 -> 1.60446189 | CJ68: =+V68*KeyAssumptionsPriceControl_FO!AH$15 -> 1.302019418 | CK68: =+W68*KeyAssumptionsPriceControl_FO!AI$15 -> 2.90125606 | CL68: =+X68*KeyAssumptionsPriceControl_FO!AJ$15 -> 1.863731479 | CM68: =+Y68*KeyAssumptionsPriceControl_FO!AK$15 -> 1.919643424 | CN68: =+Z68*KeyAssumptionsPriceControl_FO!AL$15 -> 1.977232726 | CP68: 0.1259933758 | CQ68: 0.4922455116 | CR68: 0.880410017 | CS68: 1.177346878 | CT68: 1.486824182 | CU68: 1.651478937 | CV68: 1.705554349 | CW68: 1.793888597 | CX68: 1.875289227 | CY68: 1.955499538
C69: Sewer Retic Improvements | E69: Sewerage | F69: Renewals | G69: Pipelines/network | H69: Capital Programs / Allocation | J69: Straight line | K69: Ongoing | L69: 70 | M69: 50 | Q69: 2.485356269 | R69: 2.32982446 | S69: 2.32982446 | T69: 2.32982446 | U69: 2.32982446 | V69: 2.32982446 | W69: 2.32982446 | X69: 2.32982446 | Y69: 2.32982446 | Z69: 2.32982446 | AM69: 0 | AN69: 0 | AO69: 0 | AP69: 0 | AQ69: 0 | AR69: 0 | AS69: 0 | AT69: 0 | AU69: 0 | AV69: 0 | AX69: 2.485356269 | AY69: 2.32982446 | AZ69: 2.32982446 | BA69: 2.32982446 | BB69: 2.32982446 | BC69: 2.32982446 | BD69: 2.32982446 | BE69: 2.32982446 | BF69: 2.32982446 | BG69: 2.32982446 | BI69: 0.01775254478 | BJ69: 0.05214669284 | BK69: 0.08542989942 | BL69: 0.118713106 | BM69: 0.1519963126 | BN69: 0.1852795191 | BO69: 0.2185627257 | BP69: 0.2518459323 | BQ69: 0.2851291389 | BR69: 0.3184123454 | BT69: =+IF($K69="Ongoing",AX69,IF(RIGHT($K69,2)=RIGHT(BT$39,2),SUM($AX69:AX69),0)+IF(RIGHT(BT$39,2)>RIGHT($K69,2),AX69,0)) -> 2.485356269 | BU69: =+IF($K69="Ongoing",AY69,IF(RIGHT($K69,2)=RIGHT(BU$39,2),SUM($AX69:AY69),0)+IF(RIGHT(BU$39,2)>RIGHT($K69,2),AY69,0)) -> 2.32982446 | BV69: =+IF($K69="Ongoing",AZ69,IF(RIGHT($K69,2)=RIGHT(BV$39,2),SUM($AX69:AZ69),0)+IF(RIGHT(BV$39,2)>RIGHT($K69,2),AZ69,0)) -> 2.32982446 | BW69: =+IF($K69="Ongoing",BA69,IF(RIGHT($K69,2)=RIGHT(BW$39,2),SUM($AX69:BA69),0)+IF(RIGHT(BW$39,2)>RIGHT($K69,2),BA69,0)) -> 2.32982446 | BX69: =+IF($K69="Ongoing",BB69,IF(RIGHT($K69,2)=RIGHT(BX$39,2),SUM($AX69:BB69),0)+IF(RIGHT(BX$39,2)>RIGHT($K69,2),BB69,0)) -> 2.32982446 | BY69: =+IF($K69="Ongoing",BC69,IF(RIGHT($K69,2)=RIGHT(BY$39,2),SUM($AX69:BC69),0)+IF(RIGHT(BY$39,2)>RIGHT($K69,2),BC69,0)) -> 2.32982446 | BZ69: =+IF($K69="Ongoing",BD69,IF(RIGHT($K69,2)=RIGHT(BZ$39,2),SUM($AX69:BD69),0)+IF(RIGHT(BZ$39,2)>RIGHT($K69,2),BD69,0)) -> 2.32982446 | CA69: =+IF($K69="Ongoing",BE69,IF(RIGHT($K69,2)=RIGHT(CA$39,2),SUM($AX69:BE69),0)+IF(RIGHT(CA$39,2)>RIGHT($K69,2),BE69,0)) -> 2.32982446 | CB69: =+IF($K69="Ongoing",BF69,IF(RIGHT($K69,2)=RIGHT(CB$39,2),SUM($AX69:BF69),0)+IF(RIGHT(CB$39,2)>RIGHT($K69,2),BF69,0)) -> 2.32982446 | CC69: =+IF($K69="Ongoing",BG69,IF(RIGHT($K69,2)=RIGHT(CC$39,2),SUM($AX69:BG69),0)+IF(RIGHT(CC$39,2)>RIGHT($K69,2),BG69,0)) -> 2.32982446 | CE69: =+Q69*KeyAssumptionsPriceControl_FO!AC$15 -> 2.559916957 | CF69: =+R69*KeyAssumptionsPriceControl_FO!AD$15 -> 2.47171077 | CG69: =+S69*KeyAssumptionsPriceControl_FO!AE$15 -> 2.545862093 | CH69: =+T69*KeyAssumptionsPriceControl_FO!AF$15 -> 2.622237956 | CI69: =+U69*KeyAssumptionsPriceControl_FO!AG$15 -> 2.700905094 | CJ69: =+V69*KeyAssumptionsPriceControl_FO!AH$15 -> 2.781932247 | CK69: =+W69*KeyAssumptionsPriceControl_FO!AI$15 -> 2.865390215 | CL69: =+X69*KeyAssumptionsPriceControl_FO!AJ$15 -> 2.951351921 | CM69: =+Y69*KeyAssumptionsPriceControl_FO!AK$15 -> 3.039892479 | CN69: =+Z69*KeyAssumptionsPriceControl_FO!AL$15 -> 3.131089253 | CP69: 0.02559916957 | CQ69: 0.07591544684 | CR69: 0.1260911755 | CS69: 0.177772176 | CT69: 0.2310036065 | CU69: 0.2858319799 | CV69: 0.3423052045 | CW69: 0.4004726258 | CX69: 0.4603850698 | CY69: 0.5220948872
C70: Black Rock WRP Minor Improvemnts & Rnwl | E70: Sewerage | F70: Renewals | G70: Treatment | H70: Other Capital expenditure | J70: Straight line | K70: Ongoing | L70: 70 | M70: 50 | Q70: 2.171019873 | R70: 1.271982965 | S70: 1.337138182 | T70: 1.215234873 | U70: 0.9288671841 | V70: 2.641293417 | W70: 1.146926984 | X70: 3.2523863 | Y70: 4.714700571 | Z70: 4.079962648 | AM70: 0 | AN70: 0 | AO70: 0 | AP70: 0 | AQ70: 0 | AR70: 0 | AS70: 0 | AT70: 0 | AU70: 0 | AV70: 0 | AX70: 2.171019873 | AY70: 1.271982965 | AZ70: 1.337138182 | BA70: 1.215234873 | BB70: 0.9288671841 | BC70: 2.641293417 | BD70: 1.146926984 | BE70: 3.2523863 | BF70: 4.714700571 | BG70: 4.079962648 | BI70: 0.01550728481 | BJ70: 0.04010016223 | BK70: 0.05873674185 | BL70: 0.07696797795 | BM70: 0.09228299265 | BN70: 0.1177841398 | BO70: 0.1448428569 | BP70: 0.1762665233 | BQ70: 0.2331742866 | BR70: 0.2959933096 | BT70: =+IF($K70="Ongoing",AX70,IF(RIGHT($K70,2)=RIGHT(BT$39,2),SUM($AX70:AX70),0)+IF(RIGHT(BT$39,2)>RIGHT($K70,2),AX70,0)) -> 2.171019873 | BU70: =+IF($K70="Ongoing",AY70,IF(RIGHT($K70,2)=RIGHT(BU$39,2),SUM($AX70:AY70),0)+IF(RIGHT(BU$39,2)>RIGHT($K70,2),AY70,0)) -> 1.271982965 | BV70: =+IF($K70="Ongoing",AZ70,IF(RIGHT($K70,2)=RIGHT(BV$39,2),SUM($AX70:AZ70),0)+IF(RIGHT(BV$39,2)>RIGHT($K70,2),AZ70,0)) -> 1.337138182 | BW70: =+IF($K70="Ongoing",BA70,IF(RIGHT($K70,2)=RIGHT(BW$39,2),SUM($AX70:BA70),0)+IF(RIGHT(BW$39,2)>RIGHT($K70,2),BA70,0)) -> 1.215234873 | BX70: =+IF($K70="Ongoing",BB70,IF(RIGHT($K70,2)=RIGHT(BX$39,2),SUM($AX70:BB70),0)+IF(RIGHT(BX$39,2)>RIGHT($K70,2),BB70,0)) -> 0.9288671841 | BY70: =+IF($K70="Ongoing",BC70,IF(RIGHT($K70,2)=RIGHT(BY$39,2),SUM($AX70:BC70),0)+IF(RIGHT(BY$39,2)>RIGHT($K70,2),BC70,0)) -> 2.641293417 | BZ70: =+IF($K70="Ongoing",BD70,IF(RIGHT($K70,2)=RIGHT(BZ$39,2),SUM($AX70:BD70),0)+IF(RIGHT(BZ$39,2)>RIGHT($K70,2),BD70,0)) -> 1.146926984 | CA70: =+IF($K70="Ongoing",BE70,IF(RIGHT($K70,2)=RIGHT(CA$39,2),SUM($AX70:BE70),0)+IF(RIGHT(CA$39,2)>RIGHT($K70,2),BE70,0)) -> 3.2523863 | CB70: =+IF($K70="Ongoing",BF70,IF(RIGHT($K70,2)=RIGHT(CB$39,2),SUM($AX70:BF70),0)+IF(RIGHT(CB$39,2)>RIGHT($K70,2),BF70,0)) -> 4.714700571 | CC70: =+IF($K70="Ongoing",BG70,IF(RIGHT($K70,2)=RIGHT(CC$39,2),SUM($AX70:BG70),0)+IF(RIGHT(CC$39,2)>RIGHT($K70,2),BG70,0)) -> 4.079962648 | CE70: =+Q70*KeyAssumptionsPriceControl_FO!AC$15 -> 2.23615047 | CF70: =+R70*KeyAssumptionsPriceControl_FO!AD$15 -> 1.349446728 | CG70: =+S70*KeyAssumptionsPriceControl_FO!AE$15 -> 1.461126994 | CH70: =+T70*KeyAssumptionsPriceControl_FO!AF$15 -> 1.367757555 | CI70: =+U70*KeyAssumptionsPriceControl_FO!AG$15 -> 1.076811645 | CJ70: =+V70*KeyAssumptionsPriceControl_FO!AH$15 -> 3.15384247 | CK70: =+W70*KeyAssumptionsPriceControl_FO!AI$15 -> 1.410575523 | CL70: =+X70*KeyAssumptionsPriceControl_FO!AJ$15 -> 4.120025658 | CM70: =+Y70*KeyAssumptionsPriceControl_FO!AK$15 -> 6.151614874 | CN70: =+Z70*KeyAssumptionsPriceControl_FO!AL$15 -> 5.48312863 | CP70: 0.0223615047 | CQ70: 0.05821747667 | CR70: 0.08632321389 | CS70: 0.1146120594 | CT70: 0.1390577514 | CU70: 0.1813642925 | CV70: 0.2270084725 | CW70: 0.2823144843 | CX70: 0.3850308896 | CY70: 0.5013783246
C71: Northern WRP Minor Improvemnts & Renewal | E71: Sewerage | F71: Renewals | G71: Treatment | H71: Other Capital expenditure | J71: Straight line | K71: Ongoing | L71: 70 | M71: 50 | Q71: 1.099165015 | R71: 0.4728342171 | S71: 1.142776975 | T71: 0.9530912213 | U71: 1.210559418 | V71: 1.389105731 | W71: 0.8522057237 | X71: 0.41188256 | Y71: 2.096460194 | Z71: 1.252595042 | AM71: 0 | AN71: 0 | AO71: 0 | AP71: 0 | AQ71: 0 | AR71: 0 | AS71: 0 | AT71: 0 | AU71: 0 | AV71: 0 | AX71: 1.099165015 | AY71: 0.4728342171 | AZ71: 1.142776975 | BA71: 0.9530912213 | BB71: 1.210559418 | BC71: 1.389105731 | BD71: 0.8522057237 | BE71: 0.41188256 | BF71: 2.096460194 | BG71: 1.252595042 | BI71: 0.007851178676 | BJ71: 0.01907974462 | BK71: 0.03061982456 | BL71: 0.04559031167 | BM71: 0.0610449591 | BN71: 0.07961399588 | BO71: 0.09562336342 | BP71: 0.1046525654 | BQ71: 0.1225692994 | BR71: 0.1464911225 | BT71: =+IF($K71="Ongoing",AX71,IF(RIGHT($K71,2)=RIGHT(BT$39,2),SUM($AX71:AX71),0)+IF(RIGHT(BT$39,2)>RIGHT($K71,2),AX71,0)) -> 1.099165015 | BU71: =+IF($K71="Ongoing",AY71,IF(RIGHT($K71,2)=RIGHT(BU$39,2),SUM($AX71:AY71),0)+IF(RIGHT(BU$39,2)>RIGHT($K71,2),AY71,0)) -> 0.4728342171 | BV71: =+IF($K71="Ongoing",AZ71,IF(RIGHT($K71,2)=RIGHT(BV$39,2),SUM($AX71:AZ71),0)+IF(RIGHT(BV$39,2)>RIGHT($K71,2),AZ71,0)) -> 1.142776975 | BW71: =+IF($K71="Ongoing",BA71,IF(RIGHT($K71,2)=RIGHT(BW$39,2),SUM($AX71:BA71),0)+IF(RIGHT(BW$39,2)>RIGHT($K71,2),BA71,0)) -> 0.9530912213 | BX71: =+IF($K71="Ongoing",BB71,IF(RIGHT($K71,2)=RIGHT(BX$39,2),SUM($AX71:BB71),0)+IF(RIGHT(BX$39,2)>RIGHT($K71,2),BB71,0)) -> 1.210559418 | BY71: =+IF($K71="Ongoing",BC71,IF(RIGHT($K71,2)=RIGHT(BY$39,2),SUM($AX71:BC71),0)+IF(RIGHT(BY$39,2)>RIGHT($K71,2),BC71,0)) -> 1.389105731 | BZ71: =+IF($K71="Ongoing",BD71,IF(RIGHT($K71,2)=RIGHT(BZ$39,2),SUM($AX71:BD71),0)+IF(RIGHT(BZ$39,2)>RIGHT($K71,2),BD71,0)) -> 0.8522057237 | CA71: =+IF($K71="Ongoing",BE71,IF(RIGHT($K71,2)=RIGHT(CA$39,2),SUM($AX71:BE71),0)+IF(RIGHT(CA$39,2)>RIGHT($K71,2),BE71,0)) -> 0.41188256 | CB71: =+IF($K71="Ongoing",BF71,IF(RIGHT($K71,2)=RIGHT(CB$39,2),SUM($AX71:BF71),0)+IF(RIGHT(CB$39,2)>RIGHT($K71,2),BF71,0)) -> 2.096460194 | CC71: =+IF($K71="Ongoing",BG71,IF(RIGHT($K71,2)=RIGHT(CC$39,2),SUM($AX71:BG71),0)+IF(RIGHT(CC$39,2)>RIGHT($K71,2),BG71,0)) -> 1.252595042 | CE71: =+Q71*KeyAssumptionsPriceControl_FO!AC$15 -> 1.132139965 | CF71: =+R71*KeyAssumptionsPriceControl_FO!AD$15 -> 0.5016298209 | CG71: =+S71*KeyAssumptionsPriceControl_FO!AE$15 -> 1.248743255 | CH71: =+T71*KeyAssumptionsPriceControl_FO!AF$15 -> 1.072712566 | CI71: =+U71*KeyAssumptionsPriceControl_FO!AG$15 -> 1.403370149 | CJ71: =+V71*KeyAssumptionsPriceControl_FO!AH$15 -> 1.658664889 | CK71: =+W71*KeyAssumptionsPriceControl_FO!AI$15 -> 1.048105548 | CL71: =+X71*KeyAssumptionsPriceControl_FO!AJ$15 -> 0.5217605041 | CM71: =+Y71*KeyAssumptionsPriceControl_FO!AK$15 -> 2.735405042 | CN71: =+Z71*KeyAssumptionsPriceControl_FO!AL$15 -> 1.683382994 | CP71: 0.01132139965 | CQ71: 0.02765909751 | CR71: 0.04516282827 | CS71: 0.06837738649 | CT71: 0.09313821364 | CU71: 0.123758564 | CV71: 0.1508262684 | CW71: 0.1665249289 | CX71: 0.1990965844 | CY71: 0.2432844647
C72: Main Sewers Lining | E72: Sewerage | F72: Renewals | G72: Pipelines/network | H72: Capital Programs / Allocation | J72: Straight line | K72: Ongoing | L72: 70 | M72: 50 | Q72: 1.238485081 | R72: 1.738047996 | S72: 2.568284148 | T72: 2.568284148 | U72: 2.469605521 | V72: 1.117693614 | W72: 1.097592178 | X72: 1.17022868 | Y72: 1.307317364 | Z72: 1.341042546 | AM72: 0 | AN72: 0 | AO72: 0 | AP72: 0 | AQ72: 0 | AR72: 0 | AS72: 0 | AT72: 0 | AU72: 0 | AV72: 0 | AX72: 1.238485081 | AY72: 1.738047996 | AZ72: 2.568284148 | BA72: 2.568284148 | BB72: 2.469605521 | BC72: 1.117693614 | BD72: 1.097592178 | BE72: 1.17022868 | BF72: 1.307317364 | BG72: 1.341042546 | BI72: 0.008846322007 | BJ72: 0.03010727256 | BK72: 0.06086678788 | BL72: 0.09755656142 | BM72: 0.1335414876 | BN72: 0.1591650529 | BO72: 0.1749885228 | BP72: 0.1911872432 | BQ72: 0.2088840007 | BR72: 0.2278008572 | BT72: =+IF($K72="Ongoing",AX72,IF(RIGHT($K72,2)=RIGHT(BT$39,2),SUM($AX72:AX72),0)+IF(RIGHT(BT$39,2)>RIGHT($K72,2),AX72,0)) -> 1.238485081 | BU72: =+IF($K72="Ongoing",AY72,IF(RIGHT($K72,2)=RIGHT(BU$39,2),SUM($AX72:AY72),0)+IF(RIGHT(BU$39,2)>RIGHT($K72,2),AY72,0)) -> 1.738047996 | BV72: =+IF($K72="Ongoing",AZ72,IF(RIGHT($K72,2)=RIGHT(BV$39,2),SUM($AX72:AZ72),0)+IF(RIGHT(BV$39,2)>RIGHT($K72,2),AZ72,0)) -> 2.568284148 | BW72: =+IF($K72="Ongoing",BA72,IF(RIGHT($K72,2)=RIGHT(BW$39,2),SUM($AX72:BA72),0)+IF(RIGHT(BW$39,2)>RIGHT($K72,2),BA72,0)) -> 2.568284148 | BX72: =+IF($K72="Ongoing",BB72,IF(RIGHT($K72,2)=RIGHT(BX$39,2),SUM($AX72:BB72),0)+IF(RIGHT(BX$39,2)>RIGHT($K72,2),BB72,0)) -> 2.469605521 | BY72: =+IF($K72="Ongoing",BC72,IF(RIGHT($K72,2)=RIGHT(BY$39,2),SUM($AX72:BC72),0)+IF(RIGHT(BY$39,2)>RIGHT($K72,2),BC72,0)) -> 1.117693614 | BZ72: =+IF($K72="Ongoing",BD72,IF(RIGHT($K72,2)=RIGHT(BZ$39,2),SUM($AX72:BD72),0)+IF(RIGHT(BZ$39,2)>RIGHT($K72,2),BD72,0)) -> 1.097592178 | CA72: =+IF($K72="Ongoing",BE72,IF(RIGHT($K72,2)=RIGHT(CA$39,2),SUM($AX72:BE72),0)+IF(RIGHT(CA$39,2)>RIGHT($K72,2),BE72,0)) -> 1.17022868 | CB72: =+IF($K72="Ongoing",BF72,IF(RIGHT($K72,2)=RIGHT(CB$39,2),SUM($AX72:BF72),0)+IF(RIGHT(CB$39,2)>RIGHT($K72,2),BF72,0)) -> 1.307317364 | CC72: =+IF($K72="Ongoing",BG72,IF(RIGHT($K72,2)=RIGHT(CC$39,2),SUM($AX72:BG72),0)+IF(RIGHT(CC$39,2)>RIGHT($K72,2),BG72,0)) -> 1.341042546 | CE72: =+Q72*KeyAssumptionsPriceControl_FO!AC$15 -> 1.275639633 | CF72: =+R72*KeyAssumptionsPriceControl_FO!AD$15 -> 1.843895119 | CG72: =+S72*KeyAssumptionsPriceControl_FO!AE$15 -> 2.806433432 | CH72: =+T72*KeyAssumptionsPriceControl_FO!AF$15 -> 2.890626435 | CI72: =+U72*KeyAssumptionsPriceControl_FO!AG$15 -> 2.862949654 | CJ72: =+V72*KeyAssumptionsPriceControl_FO!AH$15 -> 1.334584626 | CK72: =+W72*KeyAssumptionsPriceControl_FO!AI$15 -> 1.349899935 | CL72: =+X72*KeyAssumptionsPriceControl_FO!AJ$15 -> 1.48241068 | CM72: =+Y72*KeyAssumptionsPriceControl_FO!AK$15 -> 1.70575264 | CN72: =+Z72*KeyAssumptionsPriceControl_FO!AL$15 -> 1.802249042 | CP72: 0.01275639633 | CQ72: 0.04395174386 | CR72: 0.09045502938 | CS72: 0.1474256281 | CT72: 0.2049613889 | CU72: 0.2469367317 | CV72: 0.2737815774 | CW72: 0.3021046835 | CX72: 0.3339863167 | CY72: 0.3690663335
C73: Water Main Replace Feeder Main | E73: Water | F73: Renewals | G73: Pipelines/network | H73: Capital Programs / Allocation | J73: Straight line | K73: Ongoing | L73: 70 | M73: 50 | Q73: 2.50532319 | R73: 3.639234148 | S73: 1.868483487 | T73: 1.591048368 | U73: 1.385073811 | V73: 1.310460578 | W73: 1.34829264 | X73: 1.2179822 | Y73: 1.40083717 | Z73: 2.072356263 | AM73: 0 | AN73: 0 | AO73: 0 | AP73: 0 | AQ73: 0 | AR73: 0 | AS73: 0 | AT73: 0 | AU73: 0 | AV73: 0 | AX73: 2.50532319 | AY73: 3.639234148 | AZ73: 1.868483487 | BA73: 1.591048368 | BB73: 1.385073811 | BC73: 1.310460578 | BD73: 1.34829264 | BE73: 1.2179822 | BF73: 1.40083717 | BG73: 2.072356263 | BI73: 0.01789516565 | BJ73: 0.06178486092 | BK73: 0.1011257012 | BL73: 0.125836643 | BM73: 0.1470946586 | BN73: 0.1663484756 | BO73: 0.18533957 | BP73: 0.2036701046 | BQ73: 0.2223759572 | BR73: 0.2471844818 | BT73: =+IF($K73="Ongoing",AX73,IF(RIGHT($K73,2)=RIGHT(BT$39,2),SUM($AX73:AX73),0)+IF(RIGHT(BT$39,2)>RIGHT($K73,2),AX73,0)) -> 2.50532319 | BU73: =+IF($K73="Ongoing",AY73,IF(RIGHT($K73,2)=RIGHT(BU$39,2),SUM($AX73:AY73),0)+IF(RIGHT(BU$39,2)>RIGHT($K73,2),AY73,0)) -> 3.639234148 | BV73: =+IF($K73="Ongoing",AZ73,IF(RIGHT($K73,2)=RIGHT(BV$39,2),SUM($AX73:AZ73),0)+IF(RIGHT(BV$39,2)>RIGHT($K73,2),AZ73,0)) -> 1.868483487 | BW73: =+IF($K73="Ongoing",BA73,IF(RIGHT($K73,2)=RIGHT(BW$39,2),SUM($AX73:BA73),0)+IF(RIGHT(BW$39,2)>RIGHT($K73,2),BA73,0)) -> 1.591048368 | BX73: =+IF($K73="Ongoing",BB73,IF(RIGHT($K73,2)=RIGHT(BX$39,2),SUM($AX73:BB73),0)+IF(RIGHT(BX$39,2)>RIGHT($K73,2),BB73,0)) -> 1.385073811 | BY73: =+IF($K73="Ongoing",BC73,IF(RIGHT($K73,2)=RIGHT(BY$39,2),SUM($AX73:BC73),0)+IF(RIGHT(BY$39,2)>RIGHT($K73,2),BC73,0)) -> 1.310460578 | BZ73: =+IF($K73="Ongoing",BD73,IF(RIGHT($K73,2)=RIGHT(BZ$39,2),SUM($AX73:BD73),0)+IF(RIGHT(BZ$39,2)>RIGHT($K73,2),BD73,0)) -> 1.34829264 | CA73: =+IF($K73="Ongoing",BE73,IF(RIGHT($K73,2)=RIGHT(CA$39,2),SUM($AX73:BE73),0)+IF(RIGHT(CA$39,2)>RIGHT($K73,2),BE73,0)) -> 1.2179822 | CB73: =+IF($K73="Ongoing",BF73,IF(RIGHT($K73,2)=RIGHT(CB$39,2),SUM($AX73:BF73),0)+IF(RIGHT(CB$39,2)>RIGHT($K73,2),BF73,0)) -> 1.40083717 | CC73: =+IF($K73="Ongoing",BG73,IF(RIGHT($K73,2)=RIGHT(CC$39,2),SUM($AX73:BG73),0)+IF(RIGHT(CC$39,2)>RIGHT($K73,2),BG73,0)) -> 2.072356263 | CE73: =+Q73*KeyAssumptionsPriceControl_FO!AC$15 -> 2.580482886 | CF73: =+R73*KeyAssumptionsPriceControl_FO!AD$15 -> 3.860863507 | CG73: =+S73*KeyAssumptionsPriceControl_FO!AE$15 -> 2.041742355 | CH73: =+T73*KeyAssumptionsPriceControl_FO!AF$15 -> 1.790738956 | CI73: =+U73*KeyAssumptionsPriceControl_FO!AG$15 -> 1.60568016 | CJ73: =+V73*KeyAssumptionsPriceControl_FO!AH$15 -> 1.564758463 | CK73: =+W73*KeyAssumptionsPriceControl_FO!AI$15 -> 1.658229881 | CL73: =+X73*KeyAssumptionsPriceControl_FO!AJ$15 -> 1.542903411 | CM73: =+Y73*KeyAssumptionsPriceControl_FO!AK$15 -> 1.827774774 | CN73: =+Z73*KeyAssumptionsPriceControl_FO!AL$15 -> 2.785073526 | CP73: 0.02580482886 | CQ73: 0.0902182928 | CR73: 0.1492443514 | CS73: 0.1875691645 | CT73: 0.2215333557 | CU73: 0.2532377419 | CV73: 0.2854676253 | CW73: 0.3174789583 | CX73: 0.3511857401 | CY73: 0.3973142231
C74: Black Rock WRP Gantry Crane Replacement | E74: Sewerage | F74: Renewals | G74: Treatment | H74: Other Capital expenditure | J74: Straight line | K74: Ongoing | L74: 70 | M74: 50 | Q74: 0 | R74: 0 | S74: 0 | T74: 0 | U74: 0 | V74: 0 | W74: 0 | X74: 0 | Y74: 0 | Z74: 0 | AM74: 0 | AN74: 0 | AO74: 0 | AP74: 0 | AQ74: 0 | AR74: 0 | AS74: 0 | AT74: 0 | AU74: 0 | AV74: 0 | AX74: 0 | AY74: 0 | AZ74: 0 | BA74: 0 | BB74: 0 | BC74: 0 | BD74: 0 | BE74: 0 | BF74: 0 | BG74: 0 | BI74: 0 | BJ74: 0 | BK74: 0 | BL74: 0 | BM74: 0 | BN74: 0 | BO74: 0 | BP74: 0 | BQ74: 0 | BR74: 0 | BT74: =+IF($K74="Ongoing",AX74,IF(RIGHT($K74,2)=RIGHT(BT$39,2),SUM($AX74:AX74),0)+IF(RIGHT(BT$39,2)>RIGHT($K74,2),AX74,0)) -> 0 | BU74: =+IF($K74="Ongoing",AY74,IF(RIGHT($K74,2)=RIGHT(BU$39,2),SUM($AX74:AY74),0)+IF(RIGHT(BU$39,2)>RIGHT($K74,2),AY74,0)) -> 0 | BV74: =+IF($K74="Ongoing",AZ74,IF(RIGHT($K74,2)=RIGHT(BV$39,2),SUM($AX74:AZ74),0)+IF(RIGHT(BV$39,2)>RIGHT($K74,2),AZ74,0)) -> 0 | BW74: =+IF($K74="Ongoing",BA74,IF(RIGHT($K74,2)=RIGHT(BW$39,2),SUM($AX74:BA74),0)+IF(RIGHT(BW$39,2)>RIGHT($K74,2),BA74,0)) -> 0 | BX74: =+IF($K74="Ongoing",BB74,IF(RIGHT($K74,2)=RIGHT(BX$39,2),SUM($AX74:BB74),0)+IF(RIGHT(BX$39,2)>RIGHT($K74,2),BB74,0)) -> 0 | BY74: =+IF($K74="Ongoing",BC74,IF(RIGHT($K74,2)=RIGHT(BY$39,2),SUM($AX74:BC74),0)+IF(RIGHT(BY$39,2)>RIGHT($K74,2),BC74,0)) -> 0 | BZ74: =+IF($K74="Ongoing",BD74,IF(RIGHT($K74,2)=RIGHT(BZ$39,2),SUM($AX74:BD74),0)+IF(RIGHT(BZ$39,2)>RIGHT($K74,2),BD74,0)) -> 0 | CA74: =+IF($K74="Ongoing",BE74,IF(RIGHT($K74,2)=RIGHT(CA$39,2),SUM($AX74:BE74),0)+IF(RIGHT(CA$39,2)>RIGHT($K74,2),BE74,0)) -> 0 | CB74: =+IF($K74="Ongoing",BF74,IF(RIGHT($K74,2)=RIGHT(CB$39,2),SUM($AX74:BF74),0)+IF(RIGHT(CB$39,2)>RIGHT($K74,2),BF74,0)) -> 0 | CC74: =+IF($K74="Ongoing",BG74,IF(RIGHT($K74,2)=RIGHT(CC$39,2),SUM($AX74:BG74),0)+IF(RIGHT(CC$39,2)>RIGHT($K74,2),BG74,0)) -> 0 | CE74: =+Q74*KeyAssumptionsPriceControl_FO!AC$15 -> 0 | CF74: =+R74*KeyAssumptionsPriceControl_FO!AD$15 -> 0 | CG74: =+S74*KeyAssumptionsPriceControl_FO!AE$15 -> 0 | CH74: =+T74*KeyAssumptionsPriceControl_FO!AF$15 -> 0 | CI74: =+U74*KeyAssumptionsPriceControl_FO!AG$15 -> 0 | CJ74: =+V74*KeyAssumptionsPriceControl_FO!AH$15 -> 0 | CK74: =+W74*KeyAssumptionsPriceControl_FO!AI$15 -> 0 | CL74: =+X74*KeyAssumptionsPriceControl_FO!AJ$15 -> 0 | CM74: =+Y74*KeyAssumptionsPriceControl_FO!AK$15 -> 0 | CN74: =+Z74*KeyAssumptionsPriceControl_FO!AL$15 -> 0 | CP74: 0 | CQ74: 0 | CR74: 0 | CS74: 0 | CT74: 0 | CU74: 0 | CV74: 0 | CW74: 0 | CX74: 0 | CY74: 0
C75: Armstrong Creek LLZ PRV3 (Boundary Horse | E75: Water | F75: Growth | G75: Pipelines/network | H75: Other Capital expenditure | J75: Straight line | K75: Ongoing | L75: 70 | M75: 50 | Q75: 0 | R75: 0 | S75: 0 | T75: 0 | U75: 0 | V75: 0 | W75: 0 | X75: 0 | Y75: 0 | Z75: 0 | AM75: 0 | AN75: 0 | AO75: 0 | AP75: 0 | AQ75: 0 | AR75: 0 | AS75: 0 | AT75: 0 | AU75: 0 | AV75: 0 | AX75: 0 | AY75: 0 | AZ75: 0 | BA75: 0 | BB75: 0 | BC75: 0 | BD75: 0 | BE75: 0 | BF75: 0 | BG75: 0 | BI75: 0 | BJ75: 0 | BK75: 0 | BL75: 0 | BM75: 0 | BN75: 0 | BO75: 0 | BP75: 0 | BQ75: 0 | BR75: 0 | BT75: =+IF($K75="Ongoing",AX75,IF(RIGHT($K75,2)=RIGHT(BT$39,2),SUM($AX75:AX75),0)+IF(RIGHT(BT$39,2)>RIGHT($K75,2),AX75,0)) -> 0 | BU75: =+IF($K75="Ongoing",AY75,IF(RIGHT($K75,2)=RIGHT(BU$39,2),SUM($AX75:AY75),0)+IF(RIGHT(BU$39,2)>RIGHT($K75,2),AY75,0)) -> 0 | BV75: =+IF($K75="Ongoing",AZ75,IF(RIGHT($K75,2)=RIGHT(BV$39,2),SUM($AX75:AZ75),0)+IF(RIGHT(BV$39,2)>RIGHT($K75,2),AZ75,0)) -> 0 | BW75: =+IF($K75="Ongoing",BA75,IF(RIGHT($K75,2)=RIGHT(BW$39,2),SUM($AX75:BA75),0)+IF(RIGHT(BW$39,2)>RIGHT($K75,2),BA75,0)) -> 0 | BX75: =+IF($K75="Ongoing",BB75,IF(RIGHT($K75,2)=RIGHT(BX$39,2),SUM($AX75:BB75),0)+IF(RIGHT(BX$39,2)>RIGHT($K75,2),BB75,0)) -> 0 | BY75: =+IF($K75="Ongoing",BC75,IF(RIGHT($K75,2)=RIGHT(BY$39,2),SUM($AX75:BC75),0)+IF(RIGHT(BY$39,2)>RIGHT($K75,2),BC75,0)) -> 0 | BZ75: =+IF($K75="Ongoing",BD75,IF(RIGHT($K75,2)=RIGHT(BZ$39,2),SUM($AX75:BD75),0)+IF(RIGHT(BZ$39,2)>RIGHT($K75,2),BD75,0)) -> 0 | CA75: =+IF($K75="Ongoing",BE75,IF(RIGHT($K75,2)=RIGHT(CA$39,2),SUM($AX75:BE75),0)+IF(RIGHT(CA$39,2)>RIGHT($K75,2),BE75,0)) -> 0 | CB75: =+IF($K75="Ongoing",BF75,IF(RIGHT($K75,2)=RIGHT(CB$39,2),SUM($AX75:BF75),0)+IF(RIGHT(CB$39,2)>RIGHT($K75,2),BF75,0)) -> 0 | CC75: =+IF($K75="Ongoing",BG75,IF(RIGHT($K75,2)=RIGHT(CC$39,2),SUM($AX75:BG75),0)+IF(RIGHT(CC$39,2)>RIGHT($K75,2),BG75,0)) -> 0 | CE75: =+Q75*KeyAssumptionsPriceControl_FO!AC$15 -> 0 | CF75: =+R75*KeyAssumptionsPriceControl_FO!AD$15 -> 0 | CG75: =+S75*KeyAssumptionsPriceControl_FO!AE$15 -> 0 | CH75: =+T75*KeyAssumptionsPriceControl_FO!AF$15 -> 0 | CI75: =+U75*KeyAssumptionsPriceControl_FO!AG$15 -> 0 | CJ75: =+V75*KeyAssumptionsPriceControl_FO!AH$15 -> 0 | CK75: =+W75*KeyAssumptionsPriceControl_FO!AI$15 -> 0 | CL75: =+X75*KeyAssumptionsPriceControl_FO!AJ$15 -> 0 | CM75: =+Y75*KeyAssumptionsPriceControl_FO!AK$15 -> 0 | CN75: =+Z75*KeyAssumptionsPriceControl_FO!AL$15 -> 0 | CP75: 0 | CQ75: 0 | CR75: 0 | CS75: 0 | CT75: 0 | CU75: 0 | CV75: 0 | CW75: 0 | CX75: 0 | CY75: 0
C76: Armstrong Creek Boundary Rd LL PRV 4 | E76: Recycled Water | F76: Growth | G76: Pipelines/network | H76: Other Capital expenditure | J76: Straight line | K76: Ongoing | L76: 70 | M76: 50 | Q76: 0 | R76: 0 | S76: 0 | T76: 0 | U76: 0 | V76: 0 | W76: 0 | X76: 0 | Y76: 0 | Z76: 0 | AM76: 0 | AN76: 0 | AO76: 0 | AP76: 0 | AQ76: 0 | AR76: 0 | AS76: 0 | AT76: 0 | AU76: 0 | AV76: 0 | AX76: 0 | AY76: 0 | AZ76: 0 | BA76: 0 | BB76: 0 | BC76: 0 | BD76: 0 | BE76: 0 | BF76: 0 | BG76: 0 | BI76: 0 | BJ76: 0 | BK76: 0 | BL76: 0 | BM76: 0 | BN76: 0 | BO76: 0 | BP76: 0 | BQ76: 0 | BR76: 0 | BT76: =+IF($K76="Ongoing",AX76,IF(RIGHT($K76,2)=RIGHT(BT$39,2),SUM($AX76:AX76),0)+IF(RIGHT(BT$39,2)>RIGHT($K76,2),AX76,0)) -> 0 | BU76: =+IF($K76="Ongoing",AY76,IF(RIGHT($K76,2)=RIGHT(BU$39,2),SUM($AX76:AY76),0)+IF(RIGHT(BU$39,2)>RIGHT($K76,2),AY76,0)) -> 0 | BV76: =+IF($K76="Ongoing",AZ76,IF(RIGHT($K76,2)=RIGHT(BV$39,2),SUM($AX76:AZ76),0)+IF(RIGHT(BV$39,2)>RIGHT($K76,2),AZ76,0)) -> 0 | BW76: =+IF($K76="Ongoing",BA76,IF(RIGHT($K76,2)=RIGHT(BW$39,2),SUM($AX76:BA76),0)+IF(RIGHT(BW$39,2)>RIGHT($K76,2),BA76,0)) -> 0 | BX76: =+IF($K76="Ongoing",BB76,IF(RIGHT($K76,2)=RIGHT(BX$39,2),SUM($AX76:BB76),0)+IF(RIGHT(BX$39,2)>RIGHT($K76,2),BB76,0)) -> 0 | BY76: =+IF($K76="Ongoing",BC76,IF(RIGHT($K76,2)=RIGHT(BY$39,2),SUM($AX76:BC76),0)+IF(RIGHT(BY$39,2)>RIGHT($K76,2),BC76,0)) -> 0 | BZ76: =+IF($K76="Ongoing",BD76,IF(RIGHT($K76,2)=RIGHT(BZ$39,2),SUM($AX76:BD76),0)+IF(RIGHT(BZ$39,2)>RIGHT($K76,2),BD76,0)) -> 0 | CA76: =+IF($K76="Ongoing",BE76,IF(RIGHT($K76,2)=RIGHT(CA$39,2),SUM($AX76:BE76),0)+IF(RIGHT(CA$39,2)>RIGHT($K76,2),BE76,0)) -> 0 | CB76: =+IF($K76="Ongoing",BF76,IF(RIGHT($K76,2)=RIGHT(CB$39,2),SUM($AX76:BF76),0)+IF(RIGHT(CB$39,2)>RIGHT($K76,2),BF76,0)) -> 0 | CC76: =+IF($K76="Ongoing",BG76,IF(RIGHT($K76,2)=RIGHT(CC$39,2),SUM($AX76:BG76),0)+IF(RIGHT(CC$39,2)>RIGHT($K76,2),BG76,0)) -> 0 | CE76: =+Q76*KeyAssumptionsPriceControl_FO!AC$15 -> 0 | CF76: =+R76*KeyAssumptionsPriceControl_FO!AD$15 -> 0 | CG76: =+S76*KeyAssumptionsPriceControl_FO!AE$15 -> 0 | CH76: =+T76*KeyAssumptionsPriceControl_FO!AF$15 -> 0 | CI76: =+U76*KeyAssumptionsPriceControl_FO!AG$15 -> 0 | CJ76: =+V76*KeyAssumptionsPriceControl_FO!AH$15 -> 0 | CK76: =+W76*KeyAssumptionsPriceControl_FO!AI$15 -> 0 | CL76: =+X76*KeyAssumptionsPriceControl_FO!AJ$15 -> 0 | CM76: =+Y76*KeyAssumptionsPriceControl_FO!AK$15 -> 0 | CN76: =+Z76*KeyAssumptionsPriceControl_FO!AL$15 -> 0 | CP76: 0 | CQ76: 0 | CR76: 0 | CS76: 0 | CT76: 0 | CU76: 0 | CV76: 0 | CW76: 0 | CX76: 0 | CY76: 0
C77: Sewer House Connections | E77: Sewerage | F77: Improvements / Compliance | G77: Pipelines/network | H77: Other Capital expenditure | J77: Straight line | K77: Ongoing | L77: 70 | M77: 50 | Q77: 0.9832364175 | R77: 1.03785612 | S77: 1.095206425 | T77: 1.155424138 | U77: 1.218651444 | V77: 1.285042372 | W77: 1.351864176 | X77: 1.42446171 | Y77: 1.494171388 | Z77: 1.568879957 | AM77: 0 | AN77: 0 | AO77: 0 | AP77: 0 | AQ77: 0 | AR77: 0 | AS77: 0 | AT77: 0 | AU77: 0 | AV77: 0 | AX77: 0.9832364175 | AY77: 1.03785612 | AZ77: 1.095206425 | BA77: 1.155424138 | BB77: 1.218651444 | BC77: 1.285042372 | BD77: 1.351864176 | BE77: 1.42446171 | BF77: 1.494171388 | BG77: 1.568879957 | BI77: 0.007023117268 | BJ77: 0.02145949254 | BK77: 0.03669565358 | BL77: 0.05277158617 | BM77: 0.0697292689 | BN77: 0.08761279616 | BO77: 0.1064478429 | BP77: 0.1262787421 | BQ77: 0.1471261214 | BR77: 0.1690050596 | BT77: =+IF($K77="Ongoing",AX77,IF(RIGHT($K77,2)=RIGHT(BT$39,2),SUM($AX77:AX77),0)+IF(RIGHT(BT$39,2)>RIGHT($K77,2),AX77,0)) -> 0.9832364175 | BU77: =+IF($K77="Ongoing",AY77,IF(RIGHT($K77,2)=RIGHT(BU$39,2),SUM($AX77:AY77),0)+IF(RIGHT(BU$39,2)>RIGHT($K77,2),AY77,0)) -> 1.03785612 | BV77: =+IF($K77="Ongoing",AZ77,IF(RIGHT($K77,2)=RIGHT(BV$39,2),SUM($AX77:AZ77),0)+IF(RIGHT(BV$39,2)>RIGHT($K77,2),AZ77,0)) -> 1.095206425 | BW77: =+IF($K77="Ongoing",BA77,IF(RIGHT($K77,2)=RIGHT(BW$39,2),SUM($AX77:BA77),0)+IF(RIGHT(BW$39,2)>RIGHT($K77,2),BA77,0)) -> 1.155424138 | BX77: =+IF($K77="Ongoing",BB77,IF(RIGHT($K77,2)=RIGHT(BX$39,2),SUM($AX77:BB77),0)+IF(RIGHT(BX$39,2)>RIGHT($K77,2),BB77,0)) -> 1.218651444 | BY77: =+IF($K77="Ongoing",BC77,IF(RIGHT($K77,2)=RIGHT(BY$39,2),SUM($AX77:BC77),0)+IF(RIGHT(BY$39,2)>RIGHT($K77,2),BC77,0)) -> 1.285042372 | BZ77: =+IF($K77="Ongoing",BD77,IF(RIGHT($K77,2)=RIGHT(BZ$39,2),SUM($AX77:BD77),0)+IF(RIGHT(BZ$39,2)>RIGHT($K77,2),BD77,0)) -> 1.351864176 | CA77: =+IF($K77="Ongoing",BE77,IF(RIGHT($K77,2)=RIGHT(CA$39,2),SUM($AX77:BE77),0)+IF(RIGHT(CA$39,2)>RIGHT($K77,2),BE77,0)) -> 1.42446171 | CB77: =+IF($K77="Ongoing",BF77,IF(RIGHT($K77,2)=RIGHT(CB$39,2),SUM($AX77:BF77),0)+IF(RIGHT(CB$39,2)>RIGHT($K77,2),BF77,0)) -> 1.494171388 | CC77: =+IF($K77="Ongoing",BG77,IF(RIGHT($K77,2)=RIGHT(CC$39,2),SUM($AX77:BG77),0)+IF(RIGHT(CC$39,2)>RIGHT($K77,2),BG77,0)) -> 1.568879957 | CE77: =+Q77*KeyAssumptionsPriceControl_FO!AC$15 -> 1.01273351 | CF77: =+R77*KeyAssumptionsPriceControl_FO!AD$15 -> 1.101061558 | CG77: =+S77*KeyAssumptionsPriceControl_FO!AE$15 -> 1.196761632 | CH77: =+T77*KeyAssumptionsPriceControl_FO!AF$15 -> 1.300440047 | CI77: =+U77*KeyAssumptionsPriceControl_FO!AG$15 -> 1.412751025 | CJ77: =+V77*KeyAssumptionsPriceControl_FO!AH$15 -> 1.534407795 | CK77: =+W77*KeyAssumptionsPriceControl_FO!AI$15 -> 1.662622419 | CL77: =+X77*KeyAssumptionsPriceControl_FO!AJ$15 -> 1.804465476 | CM77: =+Y77*KeyAssumptionsPriceControl_FO!AK$15 -> 1.949554759 | CN77: =+Z77*KeyAssumptionsPriceControl_FO!AL$15 -> 2.108443472 | CP77: 0.0101273351 | CQ77: 0.03126528578 | CR77: 0.05424351767 | CS77: 0.07921553446 | CT77: 0.1063474452 | CU77: 0.1358190334 | CV77: 0.1677893355 | CW77: 0.2024602145 | CX77: 0.2400004168 | CY77: 0.2805803991
C78: Meters - New Replace & Conver | E78: Water | F78: Improvements / Compliance | G78: Pipelines/network | H78: Other Capital expenditure | J78: Straight line | K78: Ongoing | L78: 70 | M78: 50 | Q78: 0.872239198 | R78: 0.872239198 | S78: 0.903765916 | T78: 0.903765916 | U78: 0.909020369 | V78: 0.909020369 | W78: 0.909020369 | X78: 0.90902036 | Y78: 0.909020369 | Z78: 0.909020369 | AM78: 0 | AN78: 0 | AO78: 0 | AP78: 0 | AQ78: 0 | AR78: 0 | AS78: 0 | AT78: 0 | AU78: 0 | AV78: 0 | AX78: 0.872239198 | AY78: 0.872239198 | AZ78: 0.903765916 | BA78: 0.903765916 | BB78: 0.909020369 | BC78: 0.909020369 | BD78: 0.909020369 | BE78: 0.90902036 | BF78: 0.909020369 | BG78: 0.909020369 | BI78: 0.006230279986 | BJ78: 0.01869083996 | BK78: 0.03137659077 | BL78: 0.04428753243 | BM78: 0.05723600589 | BN78: 0.07022201116 | BO78: 0.08320801644 | BP78: 0.09619402164 | BQ78: 0.1091800269 | BR78: 0.1221660321 | BT78: =+IF($K78="Ongoing",AX78,IF(RIGHT($K78,2)=RIGHT(BT$39,2),SUM($AX78:AX78),0)+IF(RIGHT(BT$39,2)>RIGHT($K78,2),AX78,0)) -> 0.872239198 | BU78: =+IF($K78="Ongoing",AY78,IF(RIGHT($K78,2)=RIGHT(BU$39,2),SUM($AX78:AY78),0)+IF(RIGHT(BU$39,2)>RIGHT($K78,2),AY78,0)) -> 0.872239198 | BV78: =+IF($K78="Ongoing",AZ78,IF(RIGHT($K78,2)=RIGHT(BV$39,2),SUM($AX78:AZ78),0)+IF(RIGHT(BV$39,2)>RIGHT($K78,2),AZ78,0)) -> 0.903765916 | BW78: =+IF($K78="Ongoing",BA78,IF(RIGHT($K78,2)=RIGHT(BW$39,2),SUM($AX78:BA78),0)+IF(RIGHT(BW$39,2)>RIGHT($K78,2),BA78,0)) -> 0.903765916 | BX78: =+IF($K78="Ongoing",BB78,IF(RIGHT($K78,2)=RIGHT(BX$39,2),SUM($AX78:BB78),0)+IF(RIGHT(BX$39,2)>RIGHT($K78,2),BB78,0)) -> 0.909020369 | BY78: =+IF($K78="Ongoing",BC78,IF(RIGHT($K78,2)=RIGHT(BY$39,2),SUM($AX78:BC78),0)+IF(RIGHT(BY$39,2)>RIGHT($K78,2),BC78,0)) -> 0.909020369 | BZ78: =+IF($K78="Ongoing",BD78,IF(RIGHT($K78,2)=RIGHT(BZ$39,2),SUM($AX78:BD78),0)+IF(RIGHT(BZ$39,2)>RIGHT($K78,2),BD78,0)) -> 0.909020369 | CA78: =+IF($K78="Ongoing",BE78,IF(RIGHT($K78,2)=RIGHT(CA$39,2),SUM($AX78:BE78),0)+IF(RIGHT(CA$39,2)>RIGHT($K78,2),BE78,0)) -> 0.90902036 | CB78: =+IF($K78="Ongoing",BF78,IF(RIGHT($K78,2)=RIGHT(CB$39,2),SUM($AX78:BF78),0)+IF(RIGHT(CB$39,2)>RIGHT($K78,2),BF78,0)) -> 0.909020369 | CC78: =+IF($K78="Ongoing",BG78,IF(RIGHT($K78,2)=RIGHT(CC$39,2),SUM($AX78:BG78),0)+IF(RIGHT(CC$39,2)>RIGHT($K78,2),BG78,0)) -> 0.909020369 | CE78: =+Q78*KeyAssumptionsPriceControl_FO!AC$15 -> 0.8984063739 | CF78: =+R78*KeyAssumptionsPriceControl_FO!AD$15 -> 0.9253585652 | CG78: =+S78*KeyAssumptionsPriceControl_FO!AE$15 -> 0.9875694181 | CH78: =+T78*KeyAssumptionsPriceControl_FO!AF$15 -> 1.017196501 | CI78: =+U78*KeyAssumptionsPriceControl_FO!AG$15 -> 1.053803747 | CJ78: =+V78*KeyAssumptionsPriceControl_FO!AH$15 -> 1.085417859 | CK78: =+W78*KeyAssumptionsPriceControl_FO!AI$15 -> 1.117980395 | CL78: =+X78*KeyAssumptionsPriceControl_FO!AJ$15 -> 1.151519795 | CM78: =+Y78*KeyAssumptionsPriceControl_FO!AK$15 -> 1.186065401 | CN78: =+Z78*KeyAssumptionsPriceControl_FO!AL$15 -> 1.221647363 | CP78: 0.008984063739 | CQ78: 0.02722171313 | CR78: 0.04635099296 | CS78: 0.06639865215 | CT78: 0.08710865462 | CU78: 0.1085008707 | CV78: 0.1305348532 | CW78: 0.1532298551 | CX78: 0.1766057071 | CY78: 0.2006828347
C79: WBWTP Rnwl & Sys Upg' | E79: Water | F79: Renewals | G79: Treatment | H79: Other Capital expenditure | J79: Straight line | K79: Ongoing | L79: 70 | M79: 50 | Q79: 0.8779980785 | R79: 0.3945884025 | S79: 1.054547699 | T79: 0.1633924705 | U79: 0.4261151205 | V79: 0.3767232623 | W79: 0.5995120695 | X79: 0.52069527 | Y79: 0.1465782209 | Z79: 0.1612906893 | AM79: 0 | AN79: 0 | AO79: 0 | AP79: 0 | AQ79: 0 | AR79: 0 | AS79: 0 | AT79: 0 | AU79: 0 | AV79: 0 | AX79: 0.8779980785 | AY79: 0.3945884025 | AZ79: 1.054547699 | BA79: 0.1633924705 | BB79: 0.4261151205 | BC79: 0.3767232623 | BD79: 0.5995120695 | BE79: 0.52069527 | BF79: 0.1465782209 | BG79: 0.1612906893 | BI79: 0.006271414846 | BJ79: 0.01536131828 | BK79: 0.02571229044 | BL79: 0.03441186308 | BM79: 0.03862263159 | BN79: 0.04435719146 | BO79: 0.05133030098 | BP79: 0.05933178197 | BQ79: 0.06409802119 | BR79: 0.06629708484 | BT79: =+IF($K79="Ongoing",AX79,IF(RIGHT($K79,2)=RIGHT(BT$39,2),SUM($AX79:AX79),0)+IF(RIGHT(BT$39,2)>RIGHT($K79,2),AX79,0)) -> 0.8779980785 | BU79: =+IF($K79="Ongoing",AY79,IF(RIGHT($K79,2)=RIGHT(BU$39,2),SUM($AX79:AY79),0)+IF(RIGHT(BU$39,2)>RIGHT($K79,2),AY79,0)) -> 0.3945884025 | BV79: =+IF($K79="Ongoing",AZ79,IF(RIGHT($K79,2)=RIGHT(BV$39,2),SUM($AX79:AZ79),0)+IF(RIGHT(BV$39,2)>RIGHT($K79,2),AZ79,0)) -> 1.054547699 | BW79: =+IF($K79="Ongoing",BA79,IF(RIGHT($K79,2)=RIGHT(BW$39,2),SUM($AX79:BA79),0)+IF(RIGHT(BW$39,2)>RIGHT($K79,2),BA79,0)) -> 0.1633924705 | BX79: =+IF($K79="Ongoing",BB79,IF(RIGHT($K79,2)=RIGHT(BX$39,2),SUM($AX79:BB79),0)+IF(RIGHT(BX$39,2)>RIGHT($K79,2),BB79,0)) -> 0.4261151205 | BY79: =+IF($K79="Ongoing",BC79,IF(RIGHT($K79,2)=RIGHT(BY$39,2),SUM($AX79:BC79),0)+IF(RIGHT(BY$39,2)>RIGHT($K79,2),BC79,0)) -> 0.3767232623 | BZ79: =+IF($K79="Ongoing",BD79,IF(RIGHT($K79,2)=RIGHT(BZ$39,2),SUM($AX79:BD79),0)+IF(RIGHT(BZ$39,2)>RIGHT($K79,2),BD79,0)) -> 0.5995120695 | CA79: =+IF($K79="Ongoing",BE79,IF(RIGHT($K79,2)=RIGHT(CA$39,2),SUM($AX79:BE79),0)+IF(RIGHT(CA$39,2)>RIGHT($K79,2),BE79,0)) -> 0.52069527 | CB79: =+IF($K79="Ongoing",BF79,IF(RIGHT($K79,2)=RIGHT(CB$39,2),SUM($AX79:BF79),0)+IF(RIGHT(CB$39,2)>RIGHT($K79,2),BF79,0)) -> 0.1465782209 | CC79: =+IF($K79="Ongoing",BG79,IF(RIGHT($K79,2)=RIGHT(CC$39,2),SUM($AX79:BG79),0)+IF(RIGHT(CC$39,2)>RIGHT($K79,2),BG79,0)) -> 0.1612906893 | CE79: =+Q79*KeyAssumptionsPriceControl_FO!AC$15 -> 0.9043380208 | CF79: =+R79*KeyAssumptionsPriceControl_FO!AD$15 -> 0.4186188362 | CG79: =+S79*KeyAssumptionsPriceControl_FO!AE$15 -> 1.152332744 | CH79: =+T79*KeyAssumptionsPriceControl_FO!AF$15 -> 0.183899665 | CI79: =+U79*KeyAssumptionsPriceControl_FO!AG$15 -> 0.4939842118 | CJ79: =+V79*KeyAssumptionsPriceControl_FO!AH$15 -> 0.4498272765 | CK79: =+W79*KeyAssumptionsPriceControl_FO!AI$15 -> 0.7373242263 | CL79: =+X79*KeyAssumptionsPriceControl_FO!AJ$15 -> 0.6596011896 | CM79: =+Y79*KeyAssumptionsPriceControl_FO!AK$15 -> 0.1912513319 | CN79: =+Z79*KeyAssumptionsPriceControl_FO!AL$15 -> 0.2167611992 | CP79: 0.009043380208 | CQ79: 0.02227294878 | CR79: 0.03798246458 | CS79: 0.05134478867 | CT79: 0.05812362744 | CU79: 0.06756174232 | CV79: 0.07943325735 | CW79: 0.09340251151 | CX79: 0.1019110367 | CY79: 0.105991162
C80: Water Meter Replacement Program | E80: Water | F80: Improvements / Compliance | G80: Pipelines/network | H80: Other Capital expenditure | J80: Straight line | K80: Ongoing | L80: 70 | M80: 50 | Q80: 0.798676856 | R80: 0.84071248 | S80: 0.809185762 | T80: 0.809185762 | U80: 0.89325701 | V80: 0.89325701 | W80: 0.89325701 | X80: 0.89325701 | Y80: 0.89325701 | Z80: 0.89325701 | AM80: 0 | AN80: 0 | AO80: 0 | AP80: 0 | AQ80: 0 | AR80: 0 | AS80: 0 | AT80: 0 | AU80: 0 | AV80: 0 | AX80: 0.798676856 | AY80: 0.84071248 | AZ80: 0.809185762 | BA80: 0.809185762 | BB80: 0.89325701 | BC80: 0.89325701 | BD80: 0.89325701 | BE80: 0.89325701 | BF80: 0.89325701 | BG80: 0.89325701 | BI80: 0.005704834686 | BJ80: 0.01741475851 | BK80: 0.02919974596 | BL80: 0.04075954256 | BM80: 0.05291984807 | BN80: 0.0656806625 | BO80: 0.07844147693 | BP80: 0.09120229136 | BQ80: 0.1039631058 | BR80: 0.1167239202 | BT80: =+IF($K80="Ongoing",AX80,IF(RIGHT($K80,2)=RIGHT(BT$39,2),SUM($AX80:AX80),0)+IF(RIGHT(BT$39,2)>RIGHT($K80,2),AX80,0)) -> 0.798676856 | BU80: =+IF($K80="Ongoing",AY80,IF(RIGHT($K80,2)=RIGHT(BU$39,2),SUM($AX80:AY80),0)+IF(RIGHT(BU$39,2)>RIGHT($K80,2),AY80,0)) -> 0.84071248 | BV80: =+IF($K80="Ongoing",AZ80,IF(RIGHT($K80,2)=RIGHT(BV$39,2),SUM($AX80:AZ80),0)+IF(RIGHT(BV$39,2)>RIGHT($K80,2),AZ80,0)) -> 0.809185762 | BW80: =+IF($K80="Ongoing",BA80,IF(RIGHT($K80,2)=RIGHT(BW$39,2),SUM($AX80:BA80),0)+IF(RIGHT(BW$39,2)>RIGHT($K80,2),BA80,0)) -> 0.809185762 | BX80: =+IF($K80="Ongoing",BB80,IF(RIGHT($K80,2)=RIGHT(BX$39,2),SUM($AX80:BB80),0)+IF(RIGHT(BX$39,2)>RIGHT($K80,2),BB80,0)) -> 0.89325701 | BY80: =+IF($K80="Ongoing",BC80,IF(RIGHT($K80,2)=RIGHT(BY$39,2),SUM($AX80:BC80),0)+IF(RIGHT(BY$39,2)>RIGHT($K80,2),BC80,0)) -> 0.89325701 | BZ80: =+IF($K80="Ongoing",BD80,IF(RIGHT($K80,2)=RIGHT(BZ$39,2),SUM($AX80:BD80),0)+IF(RIGHT(BZ$39,2)>RIGHT($K80,2),BD80,0)) -> 0.89325701 | CA80: =+IF($K80="Ongoing",BE80,IF(RIGHT($K80,2)=RIGHT(CA$39,2),SUM($AX80:BE80),0)+IF(RIGHT(CA$39,2)>RIGHT($K80,2),BE80,0)) -> 0.89325701 | CB80: =+IF($K80="Ongoing",BF80,IF(RIGHT($K80,2)=RIGHT(CB$39,2),SUM($AX80:BF80),0)+IF(RIGHT(CB$39,2)>RIGHT($K80,2),BF80,0)) -> 0.89325701 | CC80: =+IF($K80="Ongoing",BG80,IF(RIGHT($K80,2)=RIGHT(CC$39,2),SUM($AX80:BG80),0)+IF(RIGHT(CC$39,2)>RIGHT($K80,2),BG80,0)) -> 0.89325701 | CE80: =+Q80*KeyAssumptionsPriceControl_FO!AC$15 -> 0.8226371617 | CF80: =+R80*KeyAssumptionsPriceControl_FO!AD$15 -> 0.89191187 | CG80: =+S80*KeyAssumptionsPriceControl_FO!AE$15 -> 0.8842191302 | CH80: =+T80*KeyAssumptionsPriceControl_FO!AF$15 -> 0.9107457041 | CI80: =+U80*KeyAssumptionsPriceControl_FO!AG$15 -> 1.035529693 | CJ80: =+V80*KeyAssumptionsPriceControl_FO!AH$15 -> 1.066595584 | CK80: =+W80*KeyAssumptionsPriceControl_FO!AI$15 -> 1.098593452 | CL80: =+X80*KeyAssumptionsPriceControl_FO!AJ$15 -> 1.131551255 | CM80: =+Y80*KeyAssumptionsPriceControl_FO!AK$15 -> 1.165497793 | CN80: =+Z80*KeyAssumptionsPriceControl_FO!AL$15 -> 1.200462727 | CP80: 0.008226371617 | CQ80: 0.02537186193 | CR80: 0.04313317194 | CS80: 0.06108282028 | CT80: 0.08054557425 | CU80: 0.101566827 | CV80: 0.1232187174 | CW80: 0.1455201645 | CX80: 0.1684906549 | CY80: 0.1921502601
C81: Portarlington WRP Inlet Odour Control | E81: Sewerage | F81: Improvements / Compliance | G81: Treatment | H81: Significant projects | J81: Straight line | K81: 2024-25 | L81: 70 | M81: 50 | Q81: 2.1017812 | R81: 2.748708402 | S81: 0 | T81: 0 | U81: 0 | V81: 0 | W81: 0 | X81: 0 | Y81: 0 | Z81: 0 | AM81: 0 | AN81: 0 | AO81: 0 | AP81: 0 | AQ81: 0 | AR81: 0 | AS81: 0 | AT81: 0 | AU81: 0 | AV81: 0 | AX81: 2.1017812 | AY81: 2.748708402 | AZ81: 0 | BA81: 0 | BB81: 0 | BC81: 0 | BD81: 0 | BE81: 0 | BF81: 0 | BG81: 0 | BI81: 0 | BJ81: 0.0346463543 | BK81: 0.06929270861 | BL81: 0.06929270861 | BM81: 0.06929270861 | BN81: 0.06929270861 | BO81: 0.06929270861 | BP81: 0.06929270861 | BQ81: 0.06929270861 | BR81: 0.06929270861 | BT81: =+IF($K81="Ongoing",AX81,IF(RIGHT($K81,2)=RIGHT(BT$39,2),SUM($AX81:AX81),0)+IF(RIGHT(BT$39,2)>RIGHT($K81,2),AX81,0)) -> 0 | BU81: =+IF($K81="Ongoing",AY81,IF(RIGHT($K81,2)=RIGHT(BU$39,2),SUM($AX81:AY81),0)+IF(RIGHT(BU$39,2)>RIGHT($K81,2),AY81,0)) -> 4.850489602 | BV81: =+IF($K81="Ongoing",AZ81,IF(RIGHT($K81,2)=RIGHT(BV$39,2),SUM($AX81:AZ81),0)+IF(RIGHT(BV$39,2)>RIGHT($K81,2),AZ81,0)) -> 0 | BW81: =+IF($K81="Ongoing",BA81,IF(RIGHT($K81,2)=RIGHT(BW$39,2),SUM($AX81:BA81),0)+IF(RIGHT(BW$39,2)>RIGHT($K81,2),BA81,0)) -> 0 | BX81: =+IF($K81="Ongoing",BB81,IF(RIGHT($K81,2)=RIGHT(BX$39,2),SUM($AX81:BB81),0)+IF(RIGHT(BX$39,2)>RIGHT($K81,2),BB81,0)) -> 0 | BY81: =+IF($K81="Ongoing",BC81,IF(RIGHT($K81,2)=RIGHT(BY$39,2),SUM($AX81:BC81),0)+IF(RIGHT(BY$39,2)>RIGHT($K81,2),BC81,0)) -> 0 | BZ81: =+IF($K81="Ongoing",BD81,IF(RIGHT($K81,2)=RIGHT(BZ$39,2),SUM($AX81:BD81),0)+IF(RIGHT(BZ$39,2)>RIGHT($K81,2),BD81,0)) -> 0 | CA81: =+IF($K81="Ongoing",BE81,IF(RIGHT($K81,2)=RIGHT(CA$39,2),SUM($AX81:BE81),0)+IF(RIGHT(CA$39,2)>RIGHT($K81,2),BE81,0)) -> 0 | CB81: =+IF($K81="Ongoing",BF81,IF(RIGHT($K81,2)=RIGHT(CB$39,2),SUM($AX81:BF81),0)+IF(RIGHT(CB$39,2)>RIGHT($K81,2),BF81,0)) -> 0 | CC81: =+IF($K81="Ongoing",BG81,IF(RIGHT($K81,2)=RIGHT(CC$39,2),SUM($AX81:BG81),0)+IF(RIGHT(CC$39,2)>RIGHT($K81,2),BG81,0)) -> 0 | CE81: =+Q81*KeyAssumptionsPriceControl_FO!AC$15 -> 2.164834636 | CF81: =+R81*KeyAssumptionsPriceControl_FO!AD$15 -> 2.916104744 | CG81: =+S81*KeyAssumptionsPriceControl_FO!AE$15 -> 0 | CH81: =+T81*KeyAssumptionsPriceControl_FO!AF$15 -> 0 | CI81: =+U81*KeyAssumptionsPriceControl_FO!AG$15 -> 0 | CJ81: =+V81*KeyAssumptionsPriceControl_FO!AH$15 -> 0 | CK81: =+W81*KeyAssumptionsPriceControl_FO!AI$15 -> 0 | CL81: =+X81*KeyAssumptionsPriceControl_FO!AJ$15 -> 0 | CM81: =+Y81*KeyAssumptionsPriceControl_FO!AK$15 -> 0 | CN81: =+Z81*KeyAssumptionsPriceControl_FO!AL$15 -> 0 | CP81: 0.02164834636 | CQ81: 0.07245774016 | CR81: 0.1016187876 | CS81: 0.1016187876 | CT81: 0.1016187876 | CU81: 0.1016187876 | CV81: 0.1016187876 | CW81: 0.1016187876 | CX81: 0.1016187876 | CY81: 0.1016187876
C82: Replacement of Highton Basin Cover and Liner | E82: Water | F82: Renewals | G82: Pipelines/network | H82: Other Capital expenditure | J82: Straight line | K82: 2024-25 | L82: 70 | M82: 50 | Q82: 0.1284640196 | R82: 0.005254453 | S82: 0 | T82: 0 | U82: 0 | V82: 0 | W82: 0 | X82: 0 | Y82: 0 | Z82: 0 | AM82: 0 | AN82: 0 | AO82: 0 | AP82: 0 | AQ82: 0 | AR82: 0 | AS82: 0 | AT82: 0 | AU82: 0 | AV82: 0 | AX82: 0.1284640196 | AY82: 0.005254453 | AZ82: 0 | BA82: 0 | BB82: 0 | BC82: 0 | BD82: 0 | BE82: 0 | BF82: 0 | BG82: 0 | BI82: 0 | BJ82: 0.0009551319473 | BK82: 0.001910263895 | BL82: 0.001910263895 | BM82: 0.001910263895 | BN82: 0.001910263895 | BO82: 0.001910263895 | BP82: 0.001910263895 | BQ82: 0.001910263895 | BR82: 0.001910263895 | BT82: =+IF($K82="Ongoing",AX82,IF(RIGHT($K82,2)=RIGHT(BT$39,2),SUM($AX82:AX82),0)+IF(RIGHT(BT$39,2)>RIGHT($K82,2),AX82,0)) -> 0 | BU82: =+IF($K82="Ongoing",AY82,IF(RIGHT($K82,2)=RIGHT(BU$39,2),SUM($AX82:AY82),0)+IF(RIGHT(BU$39,2)>RIGHT($K82,2),AY82,0)) -> 0.1337184726 | BV82: =+IF($K82="Ongoing",AZ82,IF(RIGHT($K82,2)=RIGHT(BV$39,2),SUM($AX82:AZ82),0)+IF(RIGHT(BV$39,2)>RIGHT($K82,2),AZ82,0)) -> 0 | BW82: =+IF($K82="Ongoing",BA82,IF(RIGHT($K82,2)=RIGHT(BW$39,2),SUM($AX82:BA82),0)+IF(RIGHT(BW$39,2)>RIGHT($K82,2),BA82,0)) -> 0 | BX82: =+IF($K82="Ongoing",BB82,IF(RIGHT($K82,2)=RIGHT(BX$39,2),SUM($AX82:BB82),0)+IF(RIGHT(BX$39,2)>RIGHT($K82,2),BB82,0)) -> 0 | BY82: =+IF($K82="Ongoing",BC82,IF(RIGHT($K82,2)=RIGHT(BY$39,2),SUM($AX82:BC82),0)+IF(RIGHT(BY$39,2)>RIGHT($K82,2),BC82,0)) -> 0 | BZ82: =+IF($K82="Ongoing",BD82,IF(RIGHT($K82,2)=RIGHT(BZ$39,2),SUM($AX82:BD82),0)+IF(RIGHT(BZ$39,2)>RIGHT($K82,2),BD82,0)) -> 0 | CA82: =+IF($K82="Ongoing",BE82,IF(RIGHT($K82,2)=RIGHT(CA$39,2),SUM($AX82:BE82),0)+IF(RIGHT(CA$39,2)>RIGHT($K82,2),BE82,0)) -> 0 | CB82: =+IF($K82="Ongoing",BF82,IF(RIGHT($K82,2)=RIGHT(CB$39,2),SUM($AX82:BF82),0)+IF(RIGHT(CB$39,2)>RIGHT($K82,2),BF82,0)) -> 0 | CC82: =+IF($K82="Ongoing",BG82,IF(RIGHT($K82,2)=RIGHT(CC$39,2),SUM($AX82:BG82),0)+IF(RIGHT(CC$39,2)>RIGHT($K82,2),BG82,0)) -> 0 | CE82: =+Q82*KeyAssumptionsPriceControl_FO!AC$15 -> 0.1323179402 | CF82: =+R82*KeyAssumptionsPriceControl_FO!AD$15 -> 0.005574449188 | CG82: =+S82*KeyAssumptionsPriceControl_FO!AE$15 -> 0 | CH82: =+T82*KeyAssumptionsPriceControl_FO!AF$15 -> 0 | CI82: =+U82*KeyAssumptionsPriceControl_FO!AG$15 -> 0 | CJ82: =+V82*KeyAssumptionsPriceControl_FO!AH$15 -> 0 | CK82: =+W82*KeyAssumptionsPriceControl_FO!AI$15 -> 0 | CL82: =+X82*KeyAssumptionsPriceControl_FO!AJ$15 -> 0 | CM82: =+Y82*KeyAssumptionsPriceControl_FO!AK$15 -> 0 | CN82: =+Z82*KeyAssumptionsPriceControl_FO!AL$15 -> 0 | CP82: 0.001323179402 | CQ82: 0.002702103296 | CR82: 0.002757847788 | CS82: 0.002757847788 | CT82: 0.002757847788 | CU82: 0.002757847788 | CV82: 0.002757847788 | CW82: 0.002757847788 | CX82: 0.002757847788 | CY82: 0.002757847788
C83: Sewer Pump Replacements | E83: Sewerage | F83: Renewals | G83: Pipelines/network | H83: Capital Programs / Allocation | J83: Straight line | K83: Ongoing | L83: 70 | M83: 50 | Q83: 1.258993211 | R83: 2.104434699 | S83: 1.339386342 | T83: 1.632584819 | U83: 1.454984308 | V83: 0.8634379892 | W83: 1.079396008 | X83: 1.22494435 | Y83: 1.861784059 | Z83: 1.558076676 | AM83: 0 | AN83: 0 | AO83: 0 | AP83: 0 | AQ83: 0 | AR83: 0 | AS83: 0 | AT83: 0 | AU83: 0 | AV83: 0 | AX83: 1.258993211 | AY83: 2.104434699 | AZ83: 1.339386342 | BA83: 1.632584819 | BB83: 1.454984308 | BC83: 0.8634379892 | BD83: 1.079396008 | BE83: 1.22494435 | BF83: 1.861784059 | BG83: 1.558076676 | BI83: 0.00899280865 | BJ83: 0.03301729372 | BK83: 0.05761601544 | BL83: 0.07884438088 | BM83: 0.1008984461 | BN83: 0.1174586053 | BO83: 0.131335991 | BP83: 0.147795565 | BQ83: 0.1698436251 | BR83: 0.1942712018 | BT83: =+IF($K83="Ongoing",AX83,IF(RIGHT($K83,2)=RIGHT(BT$39,2),SUM($AX83:AX83),0)+IF(RIGHT(BT$39,2)>RIGHT($K83,2),AX83,0)) -> 1.258993211 | BU83: =+IF($K83="Ongoing",AY83,IF(RIGHT($K83,2)=RIGHT(BU$39,2),SUM($AX83:AY83),0)+IF(RIGHT(BU$39,2)>RIGHT($K83,2),AY83,0)) -> 2.104434699 | BV83: =+IF($K83="Ongoing",AZ83,IF(RIGHT($K83,2)=RIGHT(BV$39,2),SUM($AX83:AZ83),0)+IF(RIGHT(BV$39,2)>RIGHT($K83,2),AZ83,0)) -> 1.339386342 | BW83: =+IF($K83="Ongoing",BA83,IF(RIGHT($K83,2)=RIGHT(BW$39,2),SUM($AX83:BA83),0)+IF(RIGHT(BW$39,2)>RIGHT($K83,2),BA83,0)) -> 1.632584819 | BX83: =+IF($K83="Ongoing",BB83,IF(RIGHT($K83,2)=RIGHT(BX$39,2),SUM($AX83:BB83),0)+IF(RIGHT(BX$39,2)>RIGHT($K83,2),BB83,0)) -> 1.454984308 | BY83: =+IF($K83="Ongoing",BC83,IF(RIGHT($K83,2)=RIGHT(BY$39,2),SUM($AX83:BC83),0)+IF(RIGHT(BY$39,2)>RIGHT($K83,2),BC83,0)) -> 0.8634379892 | BZ83: =+IF($K83="Ongoing",BD83,IF(RIGHT($K83,2)=RIGHT(BZ$39,2),SUM($AX83:BD83),0)+IF(RIGHT(BZ$39,2)>RIGHT($K83,2),BD83,0)) -> 1.079396008 | CA83: =+IF($K83="Ongoing",BE83,IF(RIGHT($K83,2)=RIGHT(CA$39,2),SUM($AX83:BE83),0)+IF(RIGHT(CA$39,2)>RIGHT($K83,2),BE83,0)) -> 1.22494435 | CB83: =+IF($K83="Ongoing",BF83,IF(RIGHT($K83,2)=RIGHT(CB$39,2),SUM($AX83:BF83),0)+IF(RIGHT(CB$39,2)>RIGHT($K83,2),BF83,0)) -> 1.861784059 | CC83: =+IF($K83="Ongoing",BG83,IF(RIGHT($K83,2)=RIGHT(CC$39,2),SUM($AX83:BG83),0)+IF(RIGHT(CC$39,2)>RIGHT($K83,2),BG83,0)) -> 1.558076676 | CE83: =+Q83*KeyAssumptionsPriceControl_FO!AC$15 -> 1.296763007 | CF83: =+R83*KeyAssumptionsPriceControl_FO!AD$15 -> 2.232594772 | CG83: =+S83*KeyAssumptionsPriceControl_FO!AE$15 -> 1.463583619 | CH83: =+T83*KeyAssumptionsPriceControl_FO!AF$15 -> 1.837488597 | CI83: =+U83*KeyAssumptionsPriceControl_FO!AG$15 -> 1.686725587 | CJ83: =+V83*KeyAssumptionsPriceControl_FO!AH$15 -> 1.030990114 | CK83: =+W83*KeyAssumptionsPriceControl_FO!AI$15 -> 1.32752094 | CL83: =+X83*KeyAssumptionsPriceControl_FO!AJ$15 -> 1.551722854 | CM83: =+Y83*KeyAssumptionsPriceControl_FO!AK$15 -> 2.429205915 | CN83: =+Z83*KeyAssumptionsPriceControl_FO!AL$15 -> 2.093924765 | CP83: 0.01296763007 | CQ83: 0.04826120787 | CR83: 0.08522299178 | CS83: 0.1182337139 | CT83: 0.1534758558 | CU83: 0.1806530128 | CV83: 0.2042381233 | CW83: 0.2330305613 | CX83: 0.272839849 | CY83: 0.3180711558
C84: Plant & Machinery | E84: Water | F84: Renewals | G84: Corporate | H84: Other Capital expenditure | J84: Straight line | K84: Ongoing | L84: 70 | M84: 50 | Q84: 0.57798983 | R84: 0.57798983 | S84: 0.57798983 | T84: 0.6288562979 | U84: 0.57798983 | V84: 0.57798983 | W84: 0.57798983 | X84: 0.57798983 | Y84: 0.57798983 | Z84: 0.57798983 | AM84: 0 | AN84: 0 | AO84: 0 | AP84: 0 | AQ84: 0 | AR84: 0 | AS84: 0 | AT84: 0 | AU84: 0 | AV84: 0 | AX84: 0.57798983 | AY84: 0.57798983 | AZ84: 0.57798983 | BA84: 0.6288562979 | BB84: 0.57798983 | BC84: 0.57798983 | BD84: 0.57798983 | BE84: 0.57798983 | BF84: 0.57798983 | BG84: 0.57798983 | BI84: 0.004128498786 | BJ84: 0.01238549636 | BK84: 0.02064249393 | BL84: 0.02926282341 | BM84: 0.0378831529 | BN84: 0.04614015047 | BO84: 0.05439714804 | BP84: 0.06265414561 | BQ84: 0.07091114318 | BR84: 0.07916814076 | BT84: =+IF($K84="Ongoing",AX84,IF(RIGHT($K84,2)=RIGHT(BT$39,2),SUM($AX84:AX84),0)+IF(RIGHT(BT$39,2)>RIGHT($K84,2),AX84,0)) -> 0.57798983 | BU84: =+IF($K84="Ongoing",AY84,IF(RIGHT($K84,2)=RIGHT(BU$39,2),SUM($AX84:AY84),0)+IF(RIGHT(BU$39,2)>RIGHT($K84,2),AY84,0)) -> 0.57798983 | BV84: =+IF($K84="Ongoing",AZ84,IF(RIGHT($K84,2)=RIGHT(BV$39,2),SUM($AX84:AZ84),0)+IF(RIGHT(BV$39,2)>RIGHT($K84,2),AZ84,0)) -> 0.57798983 | BW84: =+IF($K84="Ongoing",BA84,IF(RIGHT($K84,2)=RIGHT(BW$39,2),SUM($AX84:BA84),0)+IF(RIGHT(BW$39,2)>RIGHT($K84,2),BA84,0)) -> 0.6288562979 | BX84: =+IF($K84="Ongoing",BB84,IF(RIGHT($K84,2)=RIGHT(BX$39,2),SUM($AX84:BB84),0)+IF(RIGHT(BX$39,2)>RIGHT($K84,2),BB84,0)) -> 0.57798983 | BY84: =+IF($K84="Ongoing",BC84,IF(RIGHT($K84,2)=RIGHT(BY$39,2),SUM($AX84:BC84),0)+IF(RIGHT(BY$39,2)>RIGHT($K84,2),BC84,0)) -> 0.57798983 | BZ84: =+IF($K84="Ongoing",BD84,IF(RIGHT($K84,2)=RIGHT(BZ$39,2),SUM($AX84:BD84),0)+IF(RIGHT(BZ$39,2)>RIGHT($K84,2),BD84,0)) -> 0.57798983 | CA84: =+IF($K84="Ongoing",BE84,IF(RIGHT($K84,2)=RIGHT(CA$39,2),SUM($AX84:BE84),0)+IF(RIGHT(CA$39,2)>RIGHT($K84,2),BE84,0)) -> 0.57798983 | CB84: =+IF($K84="Ongoing",BF84,IF(RIGHT($K84,2)=RIGHT(CB$39,2),SUM($AX84:BF84),0)+IF(RIGHT(CB$39,2)>RIGHT($K84,2),BF84,0)) -> 0.57798983 | CC84: =+IF($K84="Ongoing",BG84,IF(RIGHT($K84,2)=RIGHT(CC$39,2),SUM($AX84:BG84),0)+IF(RIGHT(CC$39,2)>RIGHT($K84,2),BG84,0)) -> 0.57798983 | CE84: =+Q84*KeyAssumptionsPriceControl_FO!AC$15 -> 0.5953295249 | CF84: =+R84*KeyAssumptionsPriceControl_FO!AD$15 -> 0.6131894106 | CG84: =+S84*KeyAssumptionsPriceControl_FO!AE$15 -> 0.631585093 | CH84: =+T84*KeyAssumptionsPriceControl_FO!AF$15 -> 0.7077833035 | CI84: =+U84*KeyAssumptionsPriceControl_FO!AG$15 -> 0.6700486251 | CJ84: =+V84*KeyAssumptionsPriceControl_FO!AH$15 -> 0.6901500839 | CK84: =+W84*KeyAssumptionsPriceControl_FO!AI$15 -> 0.7108545864 | CL84: =+X84*KeyAssumptionsPriceControl_FO!AJ$15 -> 0.732180224 | CM84: =+Y84*KeyAssumptionsPriceControl_FO!AK$15 -> 0.7541456307 | CN84: =+Z84*KeyAssumptionsPriceControl_FO!AL$15 -> 0.7767699996 | CP84: 0.005953295249 | CQ84: 0.0180384846 | CR84: 0.03048622964 | CS84: 0.04387991361 | CT84: 0.05765823289 | CU84: 0.07126021998 | CV84: 0.08527026668 | CW84: 0.09970061479 | CX84: 0.1145638733 | CY84: 0.1298730296
C85: Winchelsea WRP Recycled Water Infrastruc | E85: Recycled Water | F85: Growth | G85: Pipelines/network | H85: Other Capital expenditure | J85: Straight line | K85: 2024-25 | L85: 70 | M85: 50 | Q85: 2.487671381 | R85: 0.1020183577 | S85: 0 | T85: 0 | U85: 0 | V85: 0 | W85: 0 | X85: 0 | Y85: 0 | Z85: 0 | AM85: 0.1897073244 | AN85: 0.1902793585 | AO85: 0.1933475417 | AP85: 0.1938675727 | AQ85: 0.1916314393 | AR85: 0.1954158055 | AS85: 0.1992121768 | AT85: 0.2030103962 | AU85: 0.2067563772 | AV85: 0.2104517847 | AX85: =+Q85-AB85-AM85 -> 2.297964057 | AY85: =+R85-AC85-AN85 -> -0.08826100088 | AZ85: =+S85-AD85-AO85 -> -0.1933475417 | BA85: =+T85-AE85-AP85 -> -0.1938675727 | BB85: =+U85-AF85-AQ85 -> -0.1916314393 | BC85: =+V85-AG85-AR85 -> -0.1954158055 | BD85: =+W85-AH85-AS85 -> -0.1992121768 | BE85: =+X85-AI85-AT85 -> -0.2030103962 | BF85: -0.2067563772 | BG85: -0.2104517847 | BI85: 0 | BJ85: 0.01578359326 | BK85: 0.03018613264 | BL85: 0.0274203104 | BM85: 0.02466674602 | BN85: 0.02190212285 | BO85: 0.01908335154 | BP85: 0.01621033317 | BQ85: 0.01328342764 | BR85: 0.01030336934 | BT85: =+IF($K85="Ongoing",AX85,IF(RIGHT($K85,2)=RIGHT(BT$39,2),SUM($AX85:AX85),0)+IF(RIGHT(BT$39,2)>RIGHT($K85,2),AX85,0)) -> 0 | BU85: =+IF($K85="Ongoing",AY85,IF(RIGHT($K85,2)=RIGHT(BU$39,2),SUM($AX85:AY85),0)+IF(RIGHT(BU$39,2)>RIGHT($K85,2),AY85,0)) -> 2.209703056 | BV85: =+IF($K85="Ongoing",AZ85,IF(RIGHT($K85,2)=RIGHT(BV$39,2),SUM($AX85:AZ85),0)+IF(RIGHT(BV$39,2)>RIGHT($K85,2),AZ85,0)) -> -0.1933475417 | BW85: =+IF($K85="Ongoing",BA85,IF(RIGHT($K85,2)=RIGHT(BW$39,2),SUM($AX85:BA85),0)+IF(RIGHT(BW$39,2)>RIGHT($K85,2),BA85,0)) -> -0.1938675727 | BX85: =+IF($K85="Ongoing",BB85,IF(RIGHT($K85,2)=RIGHT(BX$39,2),SUM($AX85:BB85),0)+IF(RIGHT(BX$39,2)>RIGHT($K85,2),BB85,0)) -> -0.1916314393 | BY85: =+IF($K85="Ongoing",BC85,IF(RIGHT($K85,2)=RIGHT(BY$39,2),SUM($AX85:BC85),0)+IF(RIGHT(BY$39,2)>RIGHT($K85,2),BC85,0)) -> -0.1954158055 | BZ85: =+IF($K85="Ongoing",BD85,IF(RIGHT($K85,2)=RIGHT(BZ$39,2),SUM($AX85:BD85),0)+IF(RIGHT(BZ$39,2)>RIGHT($K85,2),BD85,0)) -> -0.1992121768 | CA85: =+IF($K85="Ongoing",BE85,IF(RIGHT($K85,2)=RIGHT(CA$39,2),SUM($AX85:BE85),0)+IF(RIGHT(CA$39,2)>RIGHT($K85,2),BE85,0)) -> -0.2030103962 | CB85: =+IF($K85="Ongoing",BF85,IF(RIGHT($K85,2)=RIGHT(CB$39,2),SUM($AX85:BF85),0)+IF(RIGHT(CB$39,2)>RIGHT($K85,2),BF85,0)) -> -0.2067563772 | CC85: =+IF($K85="Ongoing",BG85,IF(RIGHT($K85,2)=RIGHT(CC$39,2),SUM($AX85:BG85),0)+IF(RIGHT(CC$39,2)>RIGHT($K85,2),BG85,0)) -> -0.2104517847 | CE85: =+Q85*KeyAssumptionsPriceControl_FO!AC$15 -> 2.562301522 | CF85: =+R85*KeyAssumptionsPriceControl_FO!AD$15 -> 0.1082312756 | CG85: =+S85*KeyAssumptionsPriceControl_FO!AE$15 -> 0 | CH85: =+T85*KeyAssumptionsPriceControl_FO!AF$15 -> 0 | CI85: =+U85*KeyAssumptionsPriceControl_FO!AG$15 -> 0 | CJ85: =+V85*KeyAssumptionsPriceControl_FO!AH$15 -> 0 | CK85: =+W85*KeyAssumptionsPriceControl_FO!AI$15 -> 0 | CL85: =+X85*KeyAssumptionsPriceControl_FO!AJ$15 -> 0 | CM85: =+Y85*KeyAssumptionsPriceControl_FO!AK$15 -> 0 | CN85: =+Z85*KeyAssumptionsPriceControl_FO!AL$15 -> 0 | CP85: =IF($M85=0,0, IF($M85<=0.5,CE85, IF($J85="straight line", IF((LEFT(CP$39,4)*1)-INT($M85)<LEFT($CP$39,4)*1,0,((OFFSET(CE85,0,-INT($M85+0.5),1,1))/$M85)*(IF($M85-INT($M85)>0.5,$M85-0.5-INT($M85),IF($M85-INT($M85)<=0.5,$M85-0.5-INT($M85)+1,0)))) +CE85/$M85*0.5, IF($J85="Declining Balance",-$CP$38,0)))) -> 0.02562301522 | CQ85: =IF($M85=0,0, IF($M85<=0.5,CF85, IF(AND($J85="straight line",$M85<1.51),(CE85-((CE85/$M85)*0.5))+CF85/$M85*0.5, IF($J85="straight line", IF((LEFT(CQ$39,4)*1)-INT($M85)<LEFT($CP$39,4)*1,0,((OFFSET(CF85,0,-INT($M85+0.5),1,1))/$M85)*(IF($M85-INT($M85)>0.5,$M85-0.5-INT($M85),IF($M85-INT($M85)<=0.5,$M85-0.5-INT($M85)+1,0)))) +CF85/$M85*0.5 +SUM(OFFSET(CF85,0,MAX(-INT($M85+(0.5-(10^-12))),-CQ$40)+1,1,MIN(INT($M85+(0.5-(10^-12))),CQ$40)-1))*1/$M85, IF($J85="Declining Balance",-$CP$38,0))))) -> 0.0523283432 | CR85: =IF($M85=0,0, IF($M85<=0.5,CG85, IF(AND($J85="straight line",$M85<1.51),(CF85-((CF85/$M85)*0.5))+CG85/$M85*0.5, IF($J85="straight line", IF((LEFT(CR$39,4)*1)-INT($M85)<LEFT($CP$39,4)*1,0,((OFFSET(CG85,0,-INT($M85+0.5),1,1))/$M85)*(IF($M85-INT($M85)>0.5,$M85-0.5-INT($M85),IF($M85-INT($M85)<=0.5,$M85-0.5-INT($M85)+1,0)))) +CG85/$M85*0.5 +SUM(OFFSET(CG85,0,MAX(-INT($M85+(0.5-(10^-12))),-CR$40)+1,1,MIN(INT($M85+(0.5-(10^-12))),CR$40)-1))*1/$M85, IF($J85="Declining Balance",-$CP$38,0))))) -> 0.05341065596 | CS85: =IF($M85=0,0, IF($M85<=0.5,CH85, IF(AND($J85="straight line",$M85<1.51),(CG85-((CG85/$M85)*0.5))+CH85/$M85*0.5, IF($J85="straight line", IF((LEFT(CS$39,4)*1)-INT($M85)<LEFT($CP$39,4)*1,0,((OFFSET(CH85,0,-INT($M85+0.5),1,1))/$M85)*(IF($M85-INT($M85)>0.5,$M85-0.5-INT($M85),IF($M85-INT($M85)<=0.5,$M85-0.5-INT($M85)+1,0)))) +CH85/$M85*0.5 +SUM(OFFSET(CH85,0,MAX(-INT($M85+(0.5-(10^-12))),-CS$40)+1,1,MIN(INT($M85+(0.5-(10^-12))),CS$40)-1))*1/$M85, IF($J85="Declining Balance",-$CP$38,0))))) -> 0.05341065596 | CT85: =IF($M85=0,0, IF($M85<=0.5,CI85, IF(AND($J85="straight line",$M85<1.51),(CH85-((CH85/$M85)*0.5))+CI85/$M85*0.5, IF($J85="straight line", IF((LEFT(CT$39,4)*1)-INT($M85)<LEFT($CP$39,4)*1,0,((OFFSET(CI85,0,-INT($M85+0.5),1,1))/$M85)*(IF($M85-INT($M85)>0.5,$M85-0.5-INT($M85),IF($M85-INT($M85)<=0.5,$M85-0.5-INT($M85)+1,0)))) +CI85/$M85*0.5 +SUM(OFFSET(CI85,0,MAX(-INT($M85+(0.5-(10^-12))),-CT$40)+1,1,MIN(INT($M85+(0.5-(10^-12))),CT$40)-1))*1/$M85, IF($J85="Declining Balance",-$CP$38,0))))) -> 0.05341065596 | CU85: =IF($M85=0,0, IF($M85<=0.5,CJ85, IF(AND($J85="straight line",$M85<1.51),(CI85-((CI85/$M85)*0.5))+CJ85/$M85*0.5, IF($J85="straight line", IF((LEFT(CU$39,4)*1)-INT($M85)<LEFT($CP$39,4)*1,0,((OFFSET(CJ85,0,-INT($M85+0.5),1,1))/$M85)*(IF($M85-INT($M85)>0.5,$M85-0.5-INT($M85),IF($M85-INT($M85)<=0.5,$M85-0.5-INT($M85)+1,0)))) +CJ85/$M85*0.5 +SUM(OFFSET(CJ85,0,MAX(-INT($M85+(0.5-(10^-12))),-CU$40)+1,1,MIN(INT($M85+(0.5-(10^-12))),CU$40)-1))*1/$M85, IF($J85="Declining Balance",-$CP$38,0))))) -> 0.05341065596 | CV85: =IF($M85=0,0, IF($M85<=0.5,CK85, IF(AND($J85="straight line",$M85<1.51),(CJ85-((CJ85/$M85)*0.5))+CK85/$M85*0.5, IF($J85="straight line", IF((LEFT(CV$39,4)*1)-INT($M85)<LEFT($CP$39,4)*1,0,((OFFSET(CK85,0,-INT($M85+0.5),1,1))/$M85)*(IF($M85-INT($M85)>0.5,$M85-0.5-INT($M85),IF($M85-INT($M85)<=0.5,$M85-0.5-INT($M85)+1,0)))) +CK85/$M85*0.5 +SUM(OFFSET(CK85,0,MAX(-INT($M85+(0.5-(10^-12))),-CV$40)+1,1,MIN(INT($M85+(0.5-(10^-12))),CV$40)-1))*1/$M85, IF($J85="Declining Balance",-$CP$38,0))))) -> 0.05341065596 | CW85: =IF($M85=0,0, IF($M85<=0.5,CL85, IF(AND($J85="straight line",$M85<1.51),(CK85-((CK85/$M85)*0.5))+CL85/$M85*0.5, IF($J85="straight line", IF((LEFT(CW$39,4)*1)-INT($M85)<LEFT($CP$39,4)*1,0,((OFFSET(CL85,0,-INT($M85+0.5),1,1))/$M85)*(IF($M85-INT($M85)>0.5,$M85-0.5-INT($M85),IF($M85-INT($M85)<=0.5,$M85-0.5-INT($M85)+1,0)))) +CL85/$M85*0.5 +SUM(OFFSET(CL85,0,MAX(-INT($M85+(0.5-(10^-12))),-CW$40)+1,1,MIN(INT($M85+(0.5-(10^-12))),CW$40)-1))*1/$M85, IF($J85="Declining Balance",-$CP$38,0))))) -> 0.05341065596 | CX85: =IF($M85=0,0, IF($M85<=0.5,CM85, IF(AND($J85="straight line",$M85<1.51),(CL85-((CL85/$M85)*0.5))+CM85/$M85*0.5, IF($J85="straight line", IF((LEFT(CX$39,4)*1)-INT($M85)<LEFT($CP$39,4)*1,0,((OFFSET(CM85,0,-INT($M85+0.5),1,1))/$M85)*(IF($M85-INT($M85)>0.5,$M85-0.5-INT($M85),IF($M85-INT($M85)<=0.5,$M85-0.5-INT($M85)+1,0)))) +CM85/$M85*0.5 +SUM(OFFSET(CM85,0,MAX(-INT($M85+(0.5-(10^-12))),-CX$40)+1,1,MIN(INT($M85+(0.5-(10^-12))),CX$40)-1))*1/$M85, IF($J85="Declining Balance",-$CP$38,0))))) -> 0.05341065596 | CY85: =IF($M85=0,0, IF($M85<=0.5,CN85, IF(AND($J85="straight line",$M85<1.51),(CM85-((CM85/$M85)*0.5))+CN85/$M85*0.5, IF($J85="straight line", IF((LEFT(CY$39,4)*1)-INT($M85)<LEFT($CP$39,4)*1,0,((OFFSET(CN85,0,-INT($M85+0.5),1,1))/$M85)*(IF($M85-INT($M85)>0.5,$M85-0.5-INT($M85),IF($M85-INT($M85)<=0.5,$M85-0.5-INT($M85)+1,0)))) +CN85/$M85*0.5 +SUM(OFFSET(CN85,0,MAX(-INT($M85+(0.5-(10^-12))),-CY$40)+1,1,MIN(INT($M85+(0.5-(10^-12))),CY$40)-1))*1/$M85, IF($J85="Declining Balance",-$CP$38,0))))) -> 0.05341065596
C86: Water House Connections | E86: Water | F86: Improvements / Compliance | G86: Pipelines/network | H86: Other Capital expenditure | J86: Straight line | K86: Ongoing | L86: 70 | M86: 50 | Q86: 0.9371316926 | R86: 0.9586749499 | S86: 0.9586749499 | T86: 0.9909898358 | U86: 1.001761464 | V86: 1.001761464 | W86: 1.03407635 | X86: 1.0556196 | Y86: 1.077162865 | Z86: 1.131021008 | AM86: 0 | AN86: 0 | AO86: 0 | AP86: 0 | AQ86: 0 | AR86: 0 | AS86: 0 | AT86: 0 | AU86: 0 | AV86: 0 | AX86: 0.9371316926 | AY86: 0.9586749499 | AZ86: 0.9586749499 | BA86: 0.9909898358 | BB86: 1.001761464 | BC86: 1.001761464 | BD86: 1.03407635 | BE86: 1.0556196 | BF86: 1.077162865 | BG86: 1.131021008 | BI86: 0.006693797804 | BJ86: 0.02023527382 | BK86: 0.03393063025 | BL86: 0.04785680729 | BM86: 0.06209074515 | BN86: 0.07640162321 | BO86: 0.09094332189 | BP86: 0.1058697215 | BQ86: 0.121103882 | BR86: 0.1368766239 | BT86: =+IF($K86="Ongoing",AX86,IF(RIGHT($K86,2)=RIGHT(BT$39,2),SUM($AX86:AX86),0)+IF(RIGHT(BT$39,2)>RIGHT($K86,2),AX86,0)) -> 0.9371316926 | BU86: =+IF($K86="Ongoing",AY86,IF(RIGHT($K86,2)=RIGHT(BU$39,2),SUM($AX86:AY86),0)+IF(RIGHT(BU$39,2)>RIGHT($K86,2),AY86,0)) -> 0.9586749499 | BV86: =+IF($K86="Ongoing",AZ86,IF(RIGHT($K86,2)=RIGHT(BV$39,2),SUM($AX86:AZ86),0)+IF(RIGHT(BV$39,2)>RIGHT($K86,2),AZ86,0)) -> 0.9586749499 | BW86: =+IF($K86="Ongoing",BA86,IF(RIGHT($K86,2)=RIGHT(BW$39,2),SUM($AX86:BA86),0)+IF(RIGHT(BW$39,2)>RIGHT($K86,2),BA86,0)) -> 0.9909898358 | BX86: =+IF($K86="Ongoing",BB86,IF(RIGHT($K86,2)=RIGHT(BX$39,2),SUM($AX86:BB86),0)+IF(RIGHT(BX$39,2)>RIGHT($K86,2),BB86,0)) -> 1.001761464 | BY86: =+IF($K86="Ongoing",BC86,IF(RIGHT($K86,2)=RIGHT(BY$39,2),SUM($AX86:BC86),0)+IF(RIGHT(BY$39,2)>RIGHT($K86,2),BC86,0)) -> 1.001761464 | BZ86: =+IF($K86="Ongoing",BD86,IF(RIGHT($K86,2)=RIGHT(BZ$39,2),SUM($AX86:BD86),0)+IF(RIGHT(BZ$39,2)>RIGHT($K86,2),BD86,0)) -> 1.03407635 | CA86: =+IF($K86="Ongoing",BE86,IF(RIGHT($K86,2)=RIGHT(CA$39,2),SUM($AX86:BE86),0)+IF(RIGHT(CA$39,2)>RIGHT($K86,2),BE86,0)) -> 1.0556196 | CB86: =+IF($K86="Ongoing",BF86,IF(RIGHT($K86,2)=RIGHT(CB$39,2),SUM($AX86:BF86),0)+IF(RIGHT(CB$39,2)>RIGHT($K86,2),BF86,0)) -> 1.077162865 | CC86: =+IF($K86="Ongoing",BG86,IF(RIGHT($K86,2)=RIGHT(CC$39,2),SUM($AX86:BG86),0)+IF(RIGHT(CC$39,2)>RIGHT($K86,2),BG86,0)) -> 1.131021008 | CE86: =+Q86*KeyAssumptionsPriceControl_FO!AC$15 -> 0.9652456433 | CF86: =+R86*KeyAssumptionsPriceControl_FO!AD$15 -> 1.017058254 | CG86: =+S86*KeyAssumptionsPriceControl_FO!AE$15 -> 1.047570002 | CH86: =+T86*KeyAssumptionsPriceControl_FO!AF$15 -> 1.115367791 | CI86: =+U86*KeyAssumptionsPriceControl_FO!AG$15 -> 1.161316094 | CJ86: =+V86*KeyAssumptionsPriceControl_FO!AH$15 -> 1.196155577 | CK86: =+W86*KeyAssumptionsPriceControl_FO!AI$15 -> 1.271783478 | CL86: =+X86*KeyAssumptionsPriceControl_FO!AJ$15 -> 1.337227327 | CM86: =+Y86*KeyAssumptionsPriceControl_FO!AK$15 -> 1.405453221 | CN86: =+Z86*KeyAssumptionsPriceControl_FO!AL$15 -> 1.519997658 | CP86: 0.009652456433 | CQ86: 0.02947549541 | CR86: 0.05012177797 | CS86: 0.0717511559 | CT86: 0.09451799475 | CU86: 0.1180927115 | CV86: 0.142772102 | CW86: 0.1688622101 | CX86: 0.1962890155 | CY86: 0.2255435243
C87: Energy Efficiency Project | E87: Water | F87: Improvements / Compliance | G87: Corporate | H87: Other Capital expenditure | J87: Straight line | K87: Ongoing | L87: 70 | M87: 50 | Q87: 0 | R87: 0 | S87: 0 | T87: 0 | U87: 0 | V87: 0 | W87: 0 | X87: 0 | Y87: 0 | Z87: 0 | AM87: 0 | AN87: 0 | AO87: 0 | AP87: 0 | AQ87: 0 | AR87: 0 | AS87: 0 | AT87: 0 | AU87: 0 | AV87: 0 | AX87: 0 | AY87: 0 | AZ87: 0 | BA87: 0 | BB87: 0 | BC87: 0 | BD87: 0 | BE87: 0 | BF87: 0 | BG87: 0 | BI87: 0 | BJ87: 0 | BK87: 0 | BL87: 0 | BM87: 0 | BN87: 0 | BO87: 0 | BP87: 0 | BQ87: 0 | BR87: 0 | BT87: =+IF($K87="Ongoing",AX87,IF(RIGHT($K87,2)=RIGHT(BT$39,2),SUM($AX87:AX87),0)+IF(RIGHT(BT$39,2)>RIGHT($K87,2),AX87,0)) -> 0 | BU87: =+IF($K87="Ongoing",AY87,IF(RIGHT($K87,2)=RIGHT(BU$39,2),SUM($AX87:AY87),0)+IF(RIGHT(BU$39,2)>RIGHT($K87,2),AY87,0)) -> 0 | BV87: =+IF($K87="Ongoing",AZ87,IF(RIGHT($K87,2)=RIGHT(BV$39,2),SUM($AX87:AZ87),0)+IF(RIGHT(BV$39,2)>RIGHT($K87,2),AZ87,0)) -> 0 | BW87: =+IF($K87="Ongoing",BA87,IF(RIGHT($K87,2)=RIGHT(BW$39,2),SUM($AX87:BA87),0)+IF(RIGHT(BW$39,2)>RIGHT($K87,2),BA87,0)) -> 0 | BX87: =+IF($K87="Ongoing",BB87,IF(RIGHT($K87,2)=RIGHT(BX$39,2),SUM($AX87:BB87),0)+IF(RIGHT(BX$39,2)>RIGHT($K87,2),BB87,0)) -> 0 | BY87: =+IF($K87="Ongoing",BC87,IF(RIGHT($K87,2)=RIGHT(BY$39,2),SUM($AX87:BC87),0)+IF(RIGHT(BY$39,2)>RIGHT($K87,2),BC87,0)) -> 0 | BZ87: =+IF($K87="Ongoing",BD87,IF(RIGHT($K87,2)=RIGHT(BZ$39,2),SUM($AX87:BD87),0)+IF(RIGHT(BZ$39,2)>RIGHT($K87,2),BD87,0)) -> 0 | CA87: =+IF($K87="Ongoing",BE87,IF(RIGHT($K87,2)=RIGHT(CA$39,2),SUM($AX87:BE87),0)+IF(RIGHT(CA$39,2)>RIGHT($K87,2),BE87,0)) -> 0 | CB87: =+IF($K87="Ongoing",BF87,IF(RIGHT($K87,2)=RIGHT(CB$39,2),SUM($AX87:BF87),0)+IF(RIGHT(CB$39,2)>RIGHT($K87,2),BF87,0)) -> 0 | CC87: =+IF($K87="Ongoing",BG87,IF(RIGHT($K87,2)=RIGHT(CC$39,2),SUM($AX87:BG87),0)+IF(RIGHT(CC$39,2)>RIGHT($K87,2),BG87,0)) -> 0 | CE87: =+Q87*KeyAssumptionsPriceControl_FO!AC$15 -> 0 | CF87: =+R87*KeyAssumptionsPriceControl_FO!AD$15 -> 0 | CG87: =+S87*KeyAssumptionsPriceControl_FO!AE$15 -> 0 | CH87: =+T87*KeyAssumptionsPriceControl_FO!AF$15 -> 0 | CI87: =+U87*KeyAssumptionsPriceControl_FO!AG$15 -> 0 | CJ87: =+V87*KeyAssumptionsPriceControl_FO!AH$15 -> 0 | CK87: =+W87*KeyAssumptionsPriceControl_FO!AI$15 -> 0 | CL87: =+X87*KeyAssumptionsPriceControl_FO!AJ$15 -> 0 | CM87: =+Y87*KeyAssumptionsPriceControl_FO!AK$15 -> 0 | CN87: =+Z87*KeyAssumptionsPriceControl_FO!AL$15 -> 0 | CP87: 0 | CQ87: 0 | CR87: 0 | CS87: 0 | CT87: 0 | CU87: 0 | CV87: 0 | CW87: 0 | CX87: 0 | CY87: 0
C88: Distribution-Minor Proj/Improv | E88: Water | F88: Renewals | G88: Pipelines/network | H88: Other Capital expenditure | J88: Straight line | K88: Ongoing | L88: 70 | M88: 50 | Q88: 1.038748284 | R88: 0.990602446 | S88: 0.990602446 | T88: 0.990602446 | U88: 0.990602446 | V88: 0.9906028348 | W88: 0.9906028348 | X88: 0.9906026 | Y88: 0.9906026036 | Z88: 0.9906026036 | AM88: 0 | AN88: 0 | AO88: 0 | AP88: 0 | AQ88: 0 | AR88: 0 | AS88: 0 | AT88: 0 | AU88: 0 | AV88: 0 | AX88: 1.038748284 | AY88: 0.990602446 | AZ88: 0.990602446 | BA88: 0.990602446 | BB88: 0.990602446 | BC88: 0.9906028348 | BD88: 0.9906028348 | BE88: 0.9906026 | BF88: 0.9906026036 | BG88: 0.9906026036 | BI88: 0.007419630602 | BJ88: 0.02191499296 | BK88: 0.03606645647 | BL88: 0.05021791999 | BM88: 0.0643693835 | BN88: 0.07852084979 | BO88: 0.09267231886 | BP88: 0.1068237863 | BQ88: 0.120975252 | BR88: 0.1351267178 | BT88: =+IF($K88="Ongoing",AX88,IF(RIGHT($K88,2)=RIGHT(BT$39,2),SUM($AX88:AX88),0)+IF(RIGHT(BT$39,2)>RIGHT($K88,2),AX88,0)) -> 1.038748284 | BU88: =+IF($K88="Ongoing",AY88,IF(RIGHT($K88,2)=RIGHT(BU$39,2),SUM($AX88:AY88),0)+IF(RIGHT(BU$39,2)>RIGHT($K88,2),AY88,0)) -> 0.990602446 | BV88: =+IF($K88="Ongoing",AZ88,IF(RIGHT($K88,2)=RIGHT(BV$39,2),SUM($AX88:AZ88),0)+IF(RIGHT(BV$39,2)>RIGHT($K88,2),AZ88,0)) -> 0.990602446 | BW88: =+IF($K88="Ongoing",BA88,IF(RIGHT($K88,2)=RIGHT(BW$39,2),SUM($AX88:BA88),0)+IF(RIGHT(BW$39,2)>RIGHT($K88,2),BA88,0)) -> 0.990602446 | BX88: =+IF($K88="Ongoing",BB88,IF(RIGHT($K88,2)=RIGHT(BX$39,2),SUM($AX88:BB88),0)+IF(RIGHT(BX$39,2)>RIGHT($K88,2),BB88,0)) -> 0.990602446 | BY88: =+IF($K88="Ongoing",BC88,IF(RIGHT($K88,2)=RIGHT(BY$39,2),SUM($AX88:BC88),0)+IF(RIGHT(BY$39,2)>RIGHT($K88,2),BC88,0)) -> 0.9906028348 | BZ88: =+IF($K88="Ongoing",BD88,IF(RIGHT($K88,2)=RIGHT(BZ$39,2),SUM($AX88:BD88),0)+IF(RIGHT(BZ$39,2)>RIGHT($K88,2),BD88,0)) -> 0.9906028348 | CA88: =+IF($K88="Ongoing",BE88,IF(RIGHT($K88,2)=RIGHT(CA$39,2),SUM($AX88:BE88),0)+IF(RIGHT(CA$39,2)>RIGHT($K88,2),BE88,0)) -> 0.9906026 | CB88: =+IF($K88="Ongoing",BF88,IF(RIGHT($K88,2)=RIGHT(CB$39,2),SUM($AX88:BF88),0)+IF(RIGHT(CB$39,2)>RIGHT($K88,2),BF88,0)) -> 0.9906026036 | CC88: =+IF($K88="Ongoing",BG88,IF(RIGHT($K88,2)=RIGHT(CC$39,2),SUM($AX88:BG88),0)+IF(RIGHT(CC$39,2)>RIGHT($K88,2),BG88,0)) -> 0.9906026036 | CE88: =+Q88*KeyAssumptionsPriceControl_FO!AC$15 -> 1.069910733 | CF88: =+R88*KeyAssumptionsPriceControl_FO!AD$15 -> 1.050930135 | CG88: =+S88*KeyAssumptionsPriceControl_FO!AE$15 -> 1.082458039 | CH88: =+T88*KeyAssumptionsPriceControl_FO!AF$15 -> 1.11493178 | CI88: =+U88*KeyAssumptionsPriceControl_FO!AG$15 -> 1.148379734 | CJ88: =+V88*KeyAssumptionsPriceControl_FO!AH$15 -> 1.18283159 | CK88: =+W88*KeyAssumptionsPriceControl_FO!AI$15 -> 1.218316538 | CL88: =+X88*KeyAssumptionsPriceControl_FO!AJ$15 -> 1.254865736 | CM88: =+Y88*KeyAssumptionsPriceControl_FO!AK$15 -> 1.292511713 | CN88: =+Z88*KeyAssumptionsPriceControl_FO!AL$15 -> 1.331287064 | CP88: 0.01069910733 | CQ88: 0.031907516 | CR88: 0.05324139774 | CS88: 0.07521529594 | CT88: 0.09784841107 | CU88: 0.1211605243 | CV88: 0.1451720056 | CW88: 0.1699038283 | CX88: 0.1953776028 | CY88: 0.2216155906
C89: Pump Station OH&S Issues | E89: Sewerage | F89: Improvements / Compliance | G89: Pipelines/network | H89: Other Capital expenditure | J89: Straight line | K89: Ongoing | L89: 70 | M89: 50 | Q89: 0.252213744 | R89: 0.252213744 | S89: 0.252213744 | T89: 0.252213744 | U89: 0.252213744 | V89: 0.084071248 | W89: 0.084071248 | X89: 0.08407124 | Y89: 0.084071248 | Z89: 0.084071248 | AM89: 0 | AN89: 0 | AO89: 0 | AP89: 0 | AQ89: 0 | AR89: 0 | AS89: 0 | AT89: 0 | AU89: 0 | AV89: 0 | AX89: 0.252213744 | AY89: 0.252213744 | AZ89: 0.252213744 | BA89: 0.252213744 | BB89: 0.252213744 | BC89: 0.084071248 | BD89: 0.084071248 | BE89: 0.08407124 | BF89: 0.084071248 | BG89: 0.084071248 | BI89: 0.001801526743 | BJ89: 0.005404580229 | BK89: 0.009007633714 | BL89: 0.0126106872 | BM89: 0.01621374069 | BN89: 0.01861577634 | BO89: 0.01981679417 | BP89: 0.02101781194 | BQ89: 0.02221882971 | BR89: 0.02341984754 | BT89: =+IF($K89="Ongoing",AX89,IF(RIGHT($K89,2)=RIGHT(BT$39,2),SUM($AX89:AX89),0)+IF(RIGHT(BT$39,2)>RIGHT($K89,2),AX89,0)) -> 0.252213744 | BU89: =+IF($K89="Ongoing",AY89,IF(RIGHT($K89,2)=RIGHT(BU$39,2),SUM($AX89:AY89),0)+IF(RIGHT(BU$39,2)>RIGHT($K89,2),AY89,0)) -> 0.252213744 | BV89: =+IF($K89="Ongoing",AZ89,IF(RIGHT($K89,2)=RIGHT(BV$39,2),SUM($AX89:AZ89),0)+IF(RIGHT(BV$39,2)>RIGHT($K89,2),AZ89,0)) -> 0.252213744 | BW89: =+IF($K89="Ongoing",BA89,IF(RIGHT($K89,2)=RIGHT(BW$39,2),SUM($AX89:BA89),0)+IF(RIGHT(BW$39,2)>RIGHT($K89,2),BA89,0)) -> 0.252213744 | BX89: =+IF($K89="Ongoing",BB89,IF(RIGHT($K89,2)=RIGHT(BX$39,2),SUM($AX89:BB89),0)+IF(RIGHT(BX$39,2)>RIGHT($K89,2),BB89,0)) -> 0.252213744 | BY89: =+IF($K89="Ongoing",BC89,IF(RIGHT($K89,2)=RIGHT(BY$39,2),SUM($AX89:BC89),0)+IF(RIGHT(BY$39,2)>RIGHT($K89,2),BC89,0)) -> 0.084071248 | BZ89: =+IF($K89="Ongoing",BD89,IF(RIGHT($K89,2)=RIGHT(BZ$39,2),SUM($AX89:BD89),0)+IF(RIGHT(BZ$39,2)>RIGHT($K89,2),BD89,0)) -> 0.084071248 | CA89: =+IF($K89="Ongoing",BE89,IF(RIGHT($K89,2)=RIGHT(CA$39,2),SUM($AX89:BE89),0)+IF(RIGHT(CA$39,2)>RIGHT($K89,2),BE89,0)) -> 0.08407124 | CB89: =+IF($K89="Ongoing",BF89,IF(RIGHT($K89,2)=RIGHT(CB$39,2),SUM($AX89:BF89),0)+IF(RIGHT(CB$39,2)>RIGHT($K89,2),BF89,0)) -> 0.084071248 | CC89: =+IF($K89="Ongoing",BG89,IF(RIGHT($K89,2)=RIGHT(CC$39,2),SUM($AX89:BG89),0)+IF(RIGHT(CC$39,2)>RIGHT($K89,2),BG89,0)) -> 0.084071248 | CE89: =+Q89*KeyAssumptionsPriceControl_FO!AC$15 -> 0.2597801563 | CF89: =+R89*KeyAssumptionsPriceControl_FO!AD$15 -> 0.267573561 | CG89: =+S89*KeyAssumptionsPriceControl_FO!AE$15 -> 0.2756007678 | CH89: =+T89*KeyAssumptionsPriceControl_FO!AF$15 -> 0.2838687909 | CI89: =+U89*KeyAssumptionsPriceControl_FO!AG$15 -> 0.2923848546 | CJ89: =+V89*KeyAssumptionsPriceControl_FO!AH$15 -> 0.1003854667 | CK89: =+W89*KeyAssumptionsPriceControl_FO!AI$15 -> 0.1033970307 | CL89: =+X89*KeyAssumptionsPriceControl_FO!AJ$15 -> 0.1064989315 | CM89: =+Y89*KeyAssumptionsPriceControl_FO!AK$15 -> 0.1096939099 | CN89: =+Z89*KeyAssumptionsPriceControl_FO!AL$15 -> 0.1129847272 | CP89: 0.002597801563 | CQ89: 0.007871338736 | CR89: 0.01330308202 | CS89: 0.01889777761 | CT89: 0.02466031407 | CU89: 0.02858801728 | CV89: 0.03062584226 | CW89: 0.03272480188 | CX89: 0.03488673029 | CY89: 0.03711351666
C90: Installation of meters to RW areas | E90: Water | F90: Improvements / Compliance | G90: Corporate | H90: Other Capital expenditure | J90: Straight line | K90: Ongoing | L90: 70 | M90: 50 | Q90: 0.2737900203 | R90: 0.2787180456 | S90: 0.2837343879 | T90: 0.2888412222 | U90: 0.2940417646 | V90: 0.2993349429 | W90: 0.3047229115 | X90: 0.30472291 | Y90: 0.3123772308 | Z90: 0.3279960924 | AM90: 0 | AN90: 0 | AO90: 0 | AP90: 0 | AQ90: 0 | AR90: 0 | AS90: 0 | AT90: 0 | AU90: 0 | AV90: 0 | AX90: 0.2737900203 | AY90: 0.2787180456 | AZ90: 0.2837343879 | BA90: 0.2888412222 | BB90: 0.2940417646 | BC90: 0.2993349429 | BD90: 0.3047229115 | BE90: 0.30472291 | BF90: 0.3123772308 | BG90: 0.3279960924 | BI90: 0.001955643002 | BJ90: 0.005902129187 | BK90: 0.009919646569 | BL90: 0.01400947236 | BM90: 0.01817292226 | BN90: 0.02241132731 | BO90: 0.02672602627 | BP90: 0.03107921071 | BQ90: 0.03548706886 | BR90: 0.04006116403 | BT90: =+IF($K90="Ongoing",AX90,IF(RIGHT($K90,2)=RIGHT(BT$39,2),SUM($AX90:AX90),0)+IF(RIGHT(BT$39,2)>RIGHT($K90,2),AX90,0)) -> 0.2737900203 | BU90: =+IF($K90="Ongoing",AY90,IF(RIGHT($K90,2)=RIGHT(BU$39,2),SUM($AX90:AY90),0)+IF(RIGHT(BU$39,2)>RIGHT($K90,2),AY90,0)) -> 0.2787180456 | BV90: =+IF($K90="Ongoing",AZ90,IF(RIGHT($K90,2)=RIGHT(BV$39,2),SUM($AX90:AZ90),0)+IF(RIGHT(BV$39,2)>RIGHT($K90,2),AZ90,0)) -> 0.2837343879 | BW90: =+IF($K90="Ongoing",BA90,IF(RIGHT($K90,2)=RIGHT(BW$39,2),SUM($AX90:BA90),0)+IF(RIGHT(BW$39,2)>RIGHT($K90,2),BA90,0)) -> 0.2888412222 | BX90: =+IF($K90="Ongoing",BB90,IF(RIGHT($K90,2)=RIGHT(BX$39,2),SUM($AX90:BB90),0)+IF(RIGHT(BX$39,2)>RIGHT($K90,2),BB90,0)) -> 0.2940417646 | BY90: =+IF($K90="Ongoing",BC90,IF(RIGHT($K90,2)=RIGHT(BY$39,2),SUM($AX90:BC90),0)+IF(RIGHT(BY$39,2)>RIGHT($K90,2),BC90,0)) -> 0.2993349429 | BZ90: =+IF($K90="Ongoing",BD90,IF(RIGHT($K90,2)=RIGHT(BZ$39,2),SUM($AX90:BD90),0)+IF(RIGHT(BZ$39,2)>RIGHT($K90,2),BD90,0)) -> 0.3047229115 | CA90: =+IF($K90="Ongoing",BE90,IF(RIGHT($K90,2)=RIGHT(CA$39,2),SUM($AX90:BE90),0)+IF(RIGHT(CA$39,2)>RIGHT($K90,2),BE90,0)) -> 0.30472291 | CB90: =+IF($K90="Ongoing",BF90,IF(RIGHT($K90,2)=RIGHT(CB$39,2),SUM($AX90:BF90),0)+IF(RIGHT(CB$39,2)>RIGHT($K90,2),BF90,0)) -> 0.3123772308 | CC90: =+IF($K90="Ongoing",BG90,IF(RIGHT($K90,2)=RIGHT(CC$39,2),SUM($AX90:BG90),0)+IF(RIGHT(CC$39,2)>RIGHT($K90,2),BG90,0)) -> 0.3279960924 | CE90: =+Q90*KeyAssumptionsPriceControl_FO!AC$15 -> 0.2820037209 | CF90: =+R90*KeyAssumptionsPriceControl_FO!AD$15 -> 0.2956919746 | CG90: =+S90*KeyAssumptionsPriceControl_FO!AE$15 -> 0.3100442264 | CH90: =+T90*KeyAssumptionsPriceControl_FO!AF$15 -> 0.3250933403 | CI90: =+U90*KeyAssumptionsPriceControl_FO!AG$15 -> 0.3408749944 | CJ90: =+V90*KeyAssumptionsPriceControl_FO!AH$15 -> 0.357421576 | CK90: =+W90*KeyAssumptionsPriceControl_FO!AI$15 -> 0.3747707451 | CL90: =+X90*KeyAssumptionsPriceControl_FO!AJ$15 -> 0.3860138655 | CM90: =+Y90*KeyAssumptionsPriceControl_FO!AK$15 -> 0.4075814341 | CN90: =+Z90*KeyAssumptionsPriceControl_FO!AL$15 -> 0.4407993209 | CP90: 0.002820037209 | CQ90: 0.008596994164 | CR90: 0.01465435617 | CS90: 0.02100573184 | CT90: 0.02766541519 | CU90: 0.03464838089 | CV90: 0.0419703041 | CW90: 0.04957815021 | CX90: 0.05751410321 | CY90: 0.06599791076
C91: Apollo Bay WRP Minor Improvt & Renewals | E91: Sewerage | F91: Renewals | G91: Treatment | H91: Other Capital expenditure | J91: Straight line | K91: Ongoing | L91: 70 | M91: 50 | Q91: 0.09321399622 | R91: 0.11738448 | S91: 0.101621121 | T91: 0.2025066186 | U91: 0.05958549702 | V91: 0.4158374104 | W91: 0.16238887 | X91: 1.40840358 | Y91: 0.07745063722 | Z91: 0.259254711 | AM91: 0 | AN91: 0 | AO91: 0 | AP91: 0 | AQ91: 0 | AR91: 0 | AS91: 0 | AT91: 0 | AU91: 0 | AV91: 0 | AX91: 0.09321399622 | AY91: 0.11738448 | AZ91: 0.101621121 | BA91: 0.2025066186 | BB91: 0.05958549702 | BC91: 0.4158374104 | BD91: 0.16238887 | BE91: 1.40840358 | BF91: 0.07745063722 | BG91: 0.259254711 | BI91: 0.0006658142587 | BJ91: 0.002170089089 | BK91: 0.003734414811 | BL91: 0.005906755808 | BM91: 0.007778842348 | BN91: 0.01117472026 | BO91: 0.01530490798 | BP91: 0.02652485405 | BQ91: 0.03713809846 | BR91: 0.03954313666 | BT91: =+IF($K91="Ongoing",AX91,IF(RIGHT($K91,2)=RIGHT(BT$39,2),SUM($AX91:AX91),0)+IF(RIGHT(BT$39,2)>RIGHT($K91,2),AX91,0)) -> 0.09321399622 | BU91: =+IF($K91="Ongoing",AY91,IF(RIGHT($K91,2)=RIGHT(BU$39,2),SUM($AX91:AY91),0)+IF(RIGHT(BU$39,2)>RIGHT($K91,2),AY91,0)) -> 0.11738448 | BV91: =+IF($K91="Ongoing",AZ91,IF(RIGHT($K91,2)=RIGHT(BV$39,2),SUM($AX91:AZ91),0)+IF(RIGHT(BV$39,2)>RIGHT($K91,2),AZ91,0)) -> 0.101621121 | BW91: =+IF($K91="Ongoing",BA91,IF(RIGHT($K91,2)=RIGHT(BW$39,2),SUM($AX91:BA91),0)+IF(RIGHT(BW$39,2)>RIGHT($K91,2),BA91,0)) -> 0.2025066186 | BX91: =+IF($K91="Ongoing",BB91,IF(RIGHT($K91,2)=RIGHT(BX$39,2),SUM($AX91:BB91),0)+IF(RIGHT(BX$39,2)>RIGHT($K91,2),BB91,0)) -> 0.05958549702 | BY91: =+IF($K91="Ongoing",BC91,IF(RIGHT($K91,2)=RIGHT(BY$39,2),SUM($AX91:BC91),0)+IF(RIGHT(BY$39,2)>RIGHT($K91,2),BC91,0)) -> 0.4158374104 | BZ91: =+IF($K91="Ongoing",BD91,IF(RIGHT($K91,2)=RIGHT(BZ$39,2),SUM($AX91:BD91),0)+IF(RIGHT(BZ$39,2)>RIGHT($K91,2),BD91,0)) -> 0.16238887 | CA91: =+IF($K91="Ongoing",BE91,IF(RIGHT($K91,2)=RIGHT(CA$39,2),SUM($AX91:BE91),0)+IF(RIGHT(CA$39,2)>RIGHT($K91,2),BE91,0)) -> 1.40840358 | CB91: =+IF($K91="Ongoing",BF91,IF(RIGHT($K91,2)=RIGHT(CB$39,2),SUM($AX91:BF91),0)+IF(RIGHT(CB$39,2)>RIGHT($K91,2),BF91,0)) -> 0.07745063722 | CC91: =+IF($K91="Ongoing",BG91,IF(RIGHT($K91,2)=RIGHT(CC$39,2),SUM($AX91:BG91),0)+IF(RIGHT(CC$39,2)>RIGHT($K91,2),BG91,0)) -> 0.259254711 | CE91: =+Q91*KeyAssumptionsPriceControl_FO!AC$15 -> 0.09601041611 | CF91: =+R91*KeyAssumptionsPriceControl_FO!AD$15 -> 0.1245331949 | CG91: =+S91*KeyAssumptionsPriceControl_FO!AE$15 -> 0.1110441427 | CH91: =+T91*KeyAssumptionsPriceControl_FO!AF$15 -> 0.2279229833 | CI91: =+U91*KeyAssumptionsPriceControl_FO!AG$15 -> 0.0690759219 | CJ91: =+V91*KeyAssumptionsPriceControl_FO!AH$15 -> 0.4965316149 | CK91: =+W91*KeyAssumptionsPriceControl_FO!AI$15 -> 0.1997178272 | CL91: =+X91*KeyAssumptionsPriceControl_FO!AJ$15 -> 1.784123518 | CM91: =+Y91*KeyAssumptionsPriceControl_FO!AK$15 -> 0.1010555145 | CN91: =+Z91*KeyAssumptionsPriceControl_FO!AL$15 -> 0.3484166526 | CP91: 0.0009601041611 | CQ91: 0.003165540271 | CR91: 0.005521313646 | CS91: 0.008910984907 | CT91: 0.01188097396 | CU91: 0.01753704933 | CV91: 0.02449954375 | CW91: 0.0443379572 | CX91: 0.06318974752 | CY91: 0.06768446919
C92: Black Rock WRP Inlet Hydraulic Cap Up | E92: Sewerage | F92: Growth | G92: Treatment | H92: Other Capital expenditure | J92: Straight line | K92: Ongoing | L92: 70 | M92: 50 | Q92: 0 | R92: 0 | S92: 0 | T92: 0 | U92: 0 | V92: 0 | W92: 0 | X92: 0 | Y92: 0 | Z92: 0 | AM92: 0 | AN92: 0 | AO92: 0 | AP92: 0 | AQ92: 0 | AR92: 0 | AS92: 0 | AT92: 0 | AU92: 0 | AV92: 0 | AX92: 0 | AY92: 0 | AZ92: 0 | BA92: 0 | BB92: 0 | BC92: 0 | BD92: 0 | BE92: 0 | BF92: 0 | BG92: 0 | BI92: 0 | BJ92: 0 | BK92: 0 | BL92: 0 | BM92: 0 | BN92: 0 | BO92: 0 | BP92: 0 | BQ92: 0 | BR92: 0 | BT92: =+IF($K92="Ongoing",AX92,IF(RIGHT($K92,2)=RIGHT(BT$39,2),SUM($AX92:AX92),0)+IF(RIGHT(BT$39,2)>RIGHT($K92,2),AX92,0)) -> 0 | BU92: =+IF($K92="Ongoing",AY92,IF(RIGHT($K92,2)=RIGHT(BU$39,2),SUM($AX92:AY92),0)+IF(RIGHT(BU$39,2)>RIGHT($K92,2),AY92,0)) -> 0 | BV92: =+IF($K92="Ongoing",AZ92,IF(RIGHT($K92,2)=RIGHT(BV$39,2),SUM($AX92:AZ92),0)+IF(RIGHT(BV$39,2)>RIGHT($K92,2),AZ92,0)) -> 0 | BW92: =+IF($K92="Ongoing",BA92,IF(RIGHT($K92,2)=RIGHT(BW$39,2),SUM($AX92:BA92),0)+IF(RIGHT(BW$39,2)>RIGHT($K92,2),BA92,0)) -> 0 | BX92: =+IF($K92="Ongoing",BB92,IF(RIGHT($K92,2)=RIGHT(BX$39,2),SUM($AX92:BB92),0)+IF(RIGHT(BX$39,2)>RIGHT($K92,2),BB92,0)) -> 0 | BY92: =+IF($K92="Ongoing",BC92,IF(RIGHT($K92,2)=RIGHT(BY$39,2),SUM($AX92:BC92),0)+IF(RIGHT(BY$39,2)>RIGHT($K92,2),BC92,0)) -> 0 | BZ92: =+IF($K92="Ongoing",BD92,IF(RIGHT($K92,2)=RIGHT(BZ$39,2),SUM($AX92:BD92),0)+IF(RIGHT(BZ$39,2)>RIGHT($K92,2),BD92,0)) -> 0 | CA92: =+IF($K92="Ongoing",BE92,IF(RIGHT($K92,2)=RIGHT(CA$39,2),SUM($AX92:BE92),0)+IF(RIGHT(CA$39,2)>RIGHT($K92,2),BE92,0)) -> 0 | CB92: =+IF($K92="Ongoing",BF92,IF(RIGHT($K92,2)=RIGHT(CB$39,2),SUM($AX92:BF92),0)+IF(RIGHT(CB$39,2)>RIGHT($K92,2),BF92,0)) -> 0 | CC92: =+IF($K92="Ongoing",BG92,IF(RIGHT($K92,2)=RIGHT(CC$39,2),SUM($AX92:BG92),0)+IF(RIGHT(CC$39,2)>RIGHT($K92,2),BG92,0)) -> 0 | CE92: =+Q92*KeyAssumptionsPriceControl_FO!AC$15 -> 0 | CF92: =+R92*KeyAssumptionsPriceControl_FO!AD$15 -> 0 | CG92: =+S92*KeyAssumptionsPriceControl_FO!AE$15 -> 0 | CH92: =+T92*KeyAssumptionsPriceControl_FO!AF$15 -> 0 | CI92: =+U92*KeyAssumptionsPriceControl_FO!AG$15 -> 0 | CJ92: =+V92*KeyAssumptionsPriceControl_FO!AH$15 -> 0 | CK92: =+W92*KeyAssumptionsPriceControl_FO!AI$15 -> 0 | CL92: =+X92*KeyAssumptionsPriceControl_FO!AJ$15 -> 0 | CM92: =+Y92*KeyAssumptionsPriceControl_FO!AK$15 -> 0 | CN92: =+Z92*KeyAssumptionsPriceControl_FO!AL$15 -> 0 | CP92: 0 | CQ92: 0 | CR92: 0 | CS92: 0 | CT92: 0 | CU92: 0 | CV92: 0 | CW92: 0 | CX92: 0 | CY92: 0
C93: Recycled Water Growth Assets | E93: Recycled Water | F93: Growth | G93: Pipelines/network | H93: Other Capital expenditure | J93: Straight line | K93: Ongoing | L93: 70 | M93: 50 | Q93: 0.5254453 | R93: 0.5366263766 | S93: 0.7001558623 | T93: 0.7001558623 | U93: 0.7001558623 | V93: 0.7001558623 | W93: 0.7001558623 | X93: 0.70015586 | Y93: 0.7001558623 | Z93: 0.5254453 | AM93: 0.2316713284 | AN93: 0.2323698988 | AO93: 0.2361167761 | AP93: 0.23675184 | AQ93: 0.234021065 | AR93: 0.238642548 | AS93: 0.2432786915 | AT93: 0.2479170919 | AU93: 0.2524916985 | AV93: 0.2570045447 | AX93: 0.2937739716 | AY93: 0.3042564779 | AZ93: 0.4640390862 | BA93: 0.4634040222 | BB93: 0.4661347972 | BC93: 0.4615133143 | BD93: 0.4568771708 | BE93: 0.4522387681 | BF93: 0.4476641637 | BG93: 0.2684407553 | BI93: 0.002098385511 | BJ93: 0.006370031579 | BK93: 0.01185785704 | BL93: 0.01848245067 | BM93: 0.02512201366 | BN93: 0.0317480716 | BO93: 0.03830800364 | BP93: 0.04480168892 | BQ93: 0.051229567 | BR93: 0.05634460214 | BT93: =+IF($K93="Ongoing",AX93,IF(RIGHT($K93,2)=RIGHT(BT$39,2),SUM($AX93:AX93),0)+IF(RIGHT(BT$39,2)>RIGHT($K93,2),AX93,0)) -> 0.2937739716 | BU93: =+IF($K93="Ongoing",AY93,IF(RIGHT($K93,2)=RIGHT(BU$39,2),SUM($AX93:AY93),0)+IF(RIGHT(BU$39,2)>RIGHT($K93,2),AY93,0)) -> 0.3042564779 | BV93: =+IF($K93="Ongoing",AZ93,IF(RIGHT($K93,2)=RIGHT(BV$39,2),SUM($AX93:AZ93),0)+IF(RIGHT(BV$39,2)>RIGHT($K93,2),AZ93,0)) -> 0.4640390862 | BW93: =+IF($K93="Ongoing",BA93,IF(RIGHT($K93,2)=RIGHT(BW$39,2),SUM($AX93:BA93),0)+IF(RIGHT(BW$39,2)>RIGHT($K93,2),BA93,0)) -> 0.4634040222 | BX93: =+IF($K93="Ongoing",BB93,IF(RIGHT($K93,2)=RIGHT(BX$39,2),SUM($AX93:BB93),0)+IF(RIGHT(BX$39,2)>RIGHT($K93,2),BB93,0)) -> 0.4661347972 | BY93: =+IF($K93="Ongoing",BC93,IF(RIGHT($K93,2)=RIGHT(BY$39,2),SUM($AX93:BC93),0)+IF(RIGHT(BY$39,2)>RIGHT($K93,2),BC93,0)) -> 0.4615133143 | BZ93: =+IF($K93="Ongoing",BD93,IF(RIGHT($K93,2)=RIGHT(BZ$39,2),SUM($AX93:BD93),0)+IF(RIGHT(BZ$39,2)>RIGHT($K93,2),BD93,0)) -> 0.4568771708 | CA93: =+IF($K93="Ongoing",BE93,IF(RIGHT($K93,2)=RIGHT(CA$39,2),SUM($AX93:BE93),0)+IF(RIGHT(CA$39,2)>RIGHT($K93,2),BE93,0)) -> 0.4522387681 | CB93: =+IF($K93="Ongoing",BF93,IF(RIGHT($K93,2)=RIGHT(CB$39,2),SUM($AX93:BF93),0)+IF(RIGHT(CB$39,2)>RIGHT($K93,2),BF93,0)) -> 0.4476641637 | CC93: =+IF($K93="Ongoing",BG93,IF(RIGHT($K93,2)=RIGHT(CC$39,2),SUM($AX93:BG93),0)+IF(RIGHT(CC$39,2)>RIGHT($K93,2),BG93,0)) -> 0.2684407553 | CE93: =+Q93*KeyAssumptionsPriceControl_FO!AC$15 -> 0.541208659 | CF93: =+R93*KeyAssumptionsPriceControl_FO!AD$15 -> 0.569306923 | CG93: =+S93*KeyAssumptionsPriceControl_FO!AE$15 -> 0.7650792149 | CH93: =+T93*KeyAssumptionsPriceControl_FO!AF$15 -> 0.7880315913 | CI93: =+U93*KeyAssumptionsPriceControl_FO!AG$15 -> 0.8116725391 | CJ93: =+V93*KeyAssumptionsPriceControl_FO!AH$15 -> 0.8360227152 | CK93: =+W93*KeyAssumptionsPriceControl_FO!AI$15 -> 0.8611033967 | CL93: =+X93*KeyAssumptionsPriceControl_FO!AJ$15 -> 0.8869364958 | CM93: =+Y93*KeyAssumptionsPriceControl_FO!AK$15 -> 0.9135445936 | CN93: =+Z93*KeyAssumptionsPriceControl_FO!AL$15 -> 0.7061545451 | CP93: 0.00541208659 | CQ93: 0.01651724241 | CR93: 0.02986110379 | CS93: 0.04539221185 | CT93: 0.06138925315 | CU93: 0.0778662057 | CV93: 0.09483746682 | CW93: 0.1123178657 | CX93: 0.1303226766 | CY93: 0.146519668
C94: Harriot Estate SPS and RM | E94: Sewerage | F94: Growth | G94: Pipelines/network | H94: Other Capital expenditure | J94: Straight line | K94: Ongoing | L94: 70 | M94: 50 | Q94: 0 | R94: 0 | S94: 0 | T94: 0 | U94: 0 | V94: 0 | W94: 0 | X94: 0 | Y94: 0 | Z94: 0 | AM94: 0 | AN94: 0 | AO94: 0 | AP94: 0 | AQ94: 0 | AR94: 0 | AS94: 0 | AT94: 0 | AU94: 0 | AV94: 0 | AX94: 0 | AY94: 0 | AZ94: 0 | BA94: 0 | BB94: 0 | BC94: 0 | BD94: 0 | BE94: 0 | BF94: 0 | BG94: 0 | BI94: 0 | BJ94: 0 | BK94: 0 | BL94: 0 | BM94: 0 | BN94: 0 | BO94: 0 | BP94: 0 | BQ94: 0 | BR94: 0 | BT94: =+IF($K94="Ongoing",AX94,IF(RIGHT($K94,2)=RIGHT(BT$39,2),SUM($AX94:AX94),0)+IF(RIGHT(BT$39,2)>RIGHT($K94,2),AX94,0)) -> 0 | BU94: =+IF($K94="Ongoing",AY94,IF(RIGHT($K94,2)=RIGHT(BU$39,2),SUM($AX94:AY94),0)+IF(RIGHT(BU$39,2)>RIGHT($K94,2),AY94,0)) -> 0 | BV94: =+IF($K94="Ongoing",AZ94,IF(RIGHT($K94,2)=RIGHT(BV$39,2),SUM($AX94:AZ94),0)+IF(RIGHT(BV$39,2)>RIGHT($K94,2),AZ94,0)) -> 0 | BW94: =+IF($K94="Ongoing",BA94,IF(RIGHT($K94,2)=RIGHT(BW$39,2),SUM($AX94:BA94),0)+IF(RIGHT(BW$39,2)>RIGHT($K94,2),BA94,0)) -> 0 | BX94: =+IF($K94="Ongoing",BB94,IF(RIGHT($K94,2)=RIGHT(BX$39,2),SUM($AX94:BB94),0)+IF(RIGHT(BX$39,2)>RIGHT($K94,2),BB94,0)) -> 0 | BY94: =+IF($K94="Ongoing",BC94,IF(RIGHT($K94,2)=RIGHT(BY$39,2),SUM($AX94:BC94),0)+IF(RIGHT(BY$39,2)>RIGHT($K94,2),BC94,0)) -> 0 | BZ94: =+IF($K94="Ongoing",BD94,IF(RIGHT($K94,2)=RIGHT(BZ$39,2),SUM($AX94:BD94),0)+IF(RIGHT(BZ$39,2)>RIGHT($K94,2),BD94,0)) -> 0 | CA94: =+IF($K94="Ongoing",BE94,IF(RIGHT($K94,2)=RIGHT(CA$39,2),SUM($AX94:BE94),0)+IF(RIGHT(CA$39,2)>RIGHT($K94,2),BE94,0)) -> 0 | CB94: =+IF($K94="Ongoing",BF94,IF(RIGHT($K94,2)=RIGHT(CB$39,2),SUM($AX94:BF94),0)+IF(RIGHT(CB$39,2)>RIGHT($K94,2),BF94,0)) -> 0 | CC94: =+IF($K94="Ongoing",BG94,IF(RIGHT($K94,2)=RIGHT(CC$39,2),SUM($AX94:BG94),0)+IF(RIGHT(CC$39,2)>RIGHT($K94,2),BG94,0)) -> 0 | CE94: =+Q94*KeyAssumptionsPriceControl_FO!AC$15 -> 0 | CF94: =+R94*KeyAssumptionsPriceControl_FO!AD$15 -> 0 | CG94: =+S94*KeyAssumptionsPriceControl_FO!AE$15 -> 0 | CH94: =+T94*KeyAssumptionsPriceControl_FO!AF$15 -> 0 | CI94: =+U94*KeyAssumptionsPriceControl_FO!AG$15 -> 0 | CJ94: =+V94*KeyAssumptionsPriceControl_FO!AH$15 -> 0 | CK94: =+W94*KeyAssumptionsPriceControl_FO!AI$15 -> 0 | CL94: =+X94*KeyAssumptionsPriceControl_FO!AJ$15 -> 0 | CM94: =+Y94*KeyAssumptionsPriceControl_FO!AK$15 -> 0 | CN94: =+Z94*KeyAssumptionsPriceControl_FO!AL$15 -> 0 | CP94: 0 | CQ94: 0 | CR94: 0 | CS94: 0 | CT94: 0 | CU94: 0 | CV94: 0 | CW94: 0 | CX94: 0 | CY94: 0
C95: Dam Safety Upgrades (Portfolio) | E95: Water | F95: Improvements / Compliance | G95: Headworks | H95: Other Capital expenditure | J95: Straight line | K95: Ongoing | L95: 70 | M95: 50 | Q95: 4.174358329 | R95: 0 | S95: 0 | T95: 0.26272265 | U95: 0.26272265 | V95: 9.404072135 | W95: 0.430865146 | X95: 9.17470475 | Y95: 0.1077162865 | Z95: 0 | AM95: 0 | AN95: 0 | AO95: 0 | AP95: 0 | AQ95: 0 | AR95: 0 | AS95: 0 | AT95: 0 | AU95: 0 | AV95: 0 | AX95: 4.174358329 | AY95: 0 | AZ95: 0 | BA95: 0.26272265 | BB95: 0.26272265 | BC95: 9.404072135 | BD95: 0.430865146 | BE95: 9.17470475 | BF95: 0.1077162865 | BG95: 0 | BI95: 0.02981684521 | BJ95: 0.05963369041 | BK95: 0.05963369041 | BL95: 0.06151028077 | BM95: 0.06526346148 | BN95: 0.1343119957 | BO95: 0.2045615477 | BP95: 0.2731727612 | BQ95: 0.3394757686 | BR95: 0.3402451707 | BT95: =+IF($K95="Ongoing",AX95,IF(RIGHT($K95,2)=RIGHT(BT$39,2),SUM($AX95:AX95),0)+IF(RIGHT(BT$39,2)>RIGHT($K95,2),AX95,0)) -> 4.174358329 | BU95: =+IF($K95="Ongoing",AY95,IF(RIGHT($K95,2)=RIGHT(BU$39,2),SUM($AX95:AY95),0)+IF(RIGHT(BU$39,2)>RIGHT($K95,2),AY95,0)) -> 0 | BV95: =+IF($K95="Ongoing",AZ95,IF(RIGHT($K95,2)=RIGHT(BV$39,2),SUM($AX95:AZ95),0)+IF(RIGHT(BV$39,2)>RIGHT($K95,2),AZ95,0)) -> 0 | BW95: =+IF($K95="Ongoing",BA95,IF(RIGHT($K95,2)=RIGHT(BW$39,2),SUM($AX95:BA95),0)+IF(RIGHT(BW$39,2)>RIGHT($K95,2),BA95,0)) -> 0.26272265 | BX95: =+IF($K95="Ongoing",BB95,IF(RIGHT($K95,2)=RIGHT(BX$39,2),SUM($AX95:BB95),0)+IF(RIGHT(BX$39,2)>RIGHT($K95,2),BB95,0)) -> 0.26272265 | BY95: =+IF($K95="Ongoing",BC95,IF(RIGHT($K95,2)=RIGHT(BY$39,2),SUM($AX95:BC95),0)+IF(RIGHT(BY$39,2)>RIGHT($K95,2),BC95,0)) -> 9.404072135 | BZ95: =+IF($K95="Ongoing",BD95,IF(RIGHT($K95,2)=RIGHT(BZ$39,2),SUM($AX95:BD95),0)+IF(RIGHT(BZ$39,2)>RIGHT($K95,2),BD95,0)) -> 0.430865146 | CA95: =+IF($K95="Ongoing",BE95,IF(RIGHT($K95,2)=RIGHT(CA$39,2),SUM($AX95:BE95),0)+IF(RIGHT(CA$39,2)>RIGHT($K95,2),BE95,0)) -> 9.17470475 | CB95: =+IF($K95="Ongoing",BF95,IF(RIGHT($K95,2)=RIGHT(CB$39,2),SUM($AX95:BF95),0)+IF(RIGHT(CB$39,2)>RIGHT($K95,2),BF95,0)) -> 0.1077162865 | CC95: =+IF($K95="Ongoing",BG95,IF(RIGHT($K95,2)=RIGHT(CC$39,2),SUM($AX95:BG95),0)+IF(RIGHT(CC$39,2)>RIGHT($K95,2),BG95,0)) -> 0 | CE95: =+Q95*KeyAssumptionsPriceControl_FO!AC$15 -> 4.299589079 | CF95: =+R95*KeyAssumptionsPriceControl_FO!AD$15 -> 0 | CG95: =+S95*KeyAssumptionsPriceControl_FO!AE$15 -> 0 | CH95: =+T95*KeyAssumptionsPriceControl_FO!AF$15 -> 0.2956966572 | CI95: =+U95*KeyAssumptionsPriceControl_FO!AG$15 -> 0.3045675569 | CJ95: =+V95*KeyAssumptionsPriceControl_FO!AH$15 -> 11.22895393 | CK95: =+W95*KeyAssumptionsPriceControl_FO!AI$15 -> 0.5299097826 | CL95: =+X95*KeyAssumptionsPriceControl_FO!AJ$15 -> 11.62224148 | CM95: =+Y95*KeyAssumptionsPriceControl_FO!AK$15 -> 0.1405453221 | CN95: =+Z95*KeyAssumptionsPriceControl_FO!AL$15 -> 0 | CP95: 0.04299589079 | CQ95: 0.08599178157 | CR95: 0.08599178157 | CS95: 0.08894874815 | CT95: 0.09495139029 | CU95: 0.2102866051 | CV95: 0.3278752423 | CW95: 0.4493967549 | CX95: 0.567024623 | CY95: 0.5684300762
C96: Bellbrae Primary School Water and Sewer Infrastructure | E96: Water | F96: Improvements / Compliance | G96: Pipelines/network | H96: Other Capital expenditure | J96: Straight line | K96: Ongoing | L96: 70 | M96: 50 | Q96: 0 | R96: 0 | S96: 0 | T96: 0 | U96: 0 | V96: 0 | W96: 0 | X96: 0 | Y96: 0 | Z96: 0 | AM96: 0 | AN96: 0 | AO96: 0 | AP96: 0 | AQ96: 0 | AR96: 0 | AS96: 0 | AT96: 0 | AU96: 0 | AV96: 0 | AX96: 0 | AY96: 0 | AZ96: 0 | BA96: 0 | BB96: 0 | BC96: 0 | BD96: 0 | BE96: 0 | BF96: 0 | BG96: 0 | BI96: 0 | BJ96: 0 | BK96: 0 | BL96: 0 | BM96: 0 | BN96: 0 | BO96: 0 | BP96: 0 | BQ96: 0 | BR96: 0 | BT96: =+IF($K96="Ongoing",AX96,IF(RIGHT($K96,2)=RIGHT(BT$39,2),SUM($AX96:AX96),0)+IF(RIGHT(BT$39,2)>RIGHT($K96,2),AX96,0)) -> 0 | BU96: =+IF($K96="Ongoing",AY96,IF(RIGHT($K96,2)=RIGHT(BU$39,2),SUM($AX96:AY96),0)+IF(RIGHT(BU$39,2)>RIGHT($K96,2),AY96,0)) -> 0 | BV96: =+IF($K96="Ongoing",AZ96,IF(RIGHT($K96,2)=RIGHT(BV$39,2),SUM($AX96:AZ96),0)+IF(RIGHT(BV$39,2)>RIGHT($K96,2),AZ96,0)) -> 0 | BW96: =+IF($K96="Ongoing",BA96,IF(RIGHT($K96,2)=RIGHT(BW$39,2),SUM($AX96:BA96),0)+IF(RIGHT(BW$39,2)>RIGHT($K96,2),BA96,0)) -> 0 | BX96: =+IF($K96="Ongoing",BB96,IF(RIGHT($K96,2)=RIGHT(BX$39,2),SUM($AX96:BB96),0)+IF(RIGHT(BX$39,2)>RIGHT($K96,2),BB96,0)) -> 0 | BY96: =+IF($K96="Ongoing",BC96,IF(RIGHT($K96,2)=RIGHT(BY$39,2),SUM($AX96:BC96),0)+IF(RIGHT(BY$39,2)>RIGHT($K96,2),BC96,0)) -> 0 | BZ96: =+IF($K96="Ongoing",BD96,IF(RIGHT($K96,2)=RIGHT(BZ$39,2),SUM($AX96:BD96),0)+IF(RIGHT(BZ$39,2)>RIGHT($K96,2),BD96,0)) -> 0 | CA96: =+IF($K96="Ongoing",BE96,IF(RIGHT($K96,2)=RIGHT(CA$39,2),SUM($AX96:BE96),0)+IF(RIGHT(CA$39,2)>RIGHT($K96,2),BE96,0)) -> 0 | CB96: =+IF($K96="Ongoing",BF96,IF(RIGHT($K96,2)=RIGHT(CB$39,2),SUM($AX96:BF96),0)+IF(RIGHT(CB$39,2)>RIGHT($K96,2),BF96,0)) -> 0 | CC96: =+IF($K96="Ongoing",BG96,IF(RIGHT($K96,2)=RIGHT(CC$39,2),SUM($AX96:BG96),0)+IF(RIGHT(CC$39,2)>RIGHT($K96,2),BG96,0)) -> 0 | CE96: =+Q96*KeyAssumptionsPriceControl_FO!AC$15 -> 0 | CF96: =+R96*KeyAssumptionsPriceControl_FO!AD$15 -> 0 | CG96: =+S96*KeyAssumptionsPriceControl_FO!AE$15 -> 0 | CH96: =+T96*KeyAssumptionsPriceControl_FO!AF$15 -> 0 | CI96: =+U96*KeyAssumptionsPriceControl_FO!AG$15 -> 0 | CJ96: =+V96*KeyAssumptionsPriceControl_FO!AH$15 -> 0 | CK96: =+W96*KeyAssumptionsPriceControl_FO!AI$15 -> 0 | CL96: =+X96*KeyAssumptionsPriceControl_FO!AJ$15 -> 0 | CM96: =+Y96*KeyAssumptionsPriceControl_FO!AK$15 -> 0 | CN96: =+Z96*KeyAssumptionsPriceControl_FO!AL$15 -> 0 | CP96: 0 | CQ96: 0 | CR96: 0 | CS96: 0 | CT96: 0 | CU96: 0 | CV96: 0 | CW96: 0 | CX96: 0 | CY96: 0
C97: Water Headworks and Networks – OH&S upgr | E97: Water | F97: Improvements / Compliance | G97: Headworks | H97: Other Capital expenditure | J97: Straight line | K97: 2023-24 | L97: 70 | M97: 50 | Q97: 0.31526718 | R97: 0 | S97: 0 | T97: 0 | U97: 0 | V97: 0 | W97: 0 | X97: 0 | Y97: 0 | Z97: 0 | AM97: 0 | AN97: 0 | AO97: 0 | AP97: 0 | AQ97: 0 | AR97: 0 | AS97: 0 | AT97: 0 | AU97: 0 | AV97: 0 | AX97: 0.31526718 | AY97: 0 | AZ97: 0 | BA97: 0 | BB97: 0 | BC97: 0 | BD97: 0 | BE97: 0 | BF97: 0 | BG97: 0 | BI97: 0.002251908429 | BJ97: 0.004503816857 | BK97: 0.004503816857 | BL97: 0.004503816857 | BM97: 0.004503816857 | BN97: 0.004503816857 | BO97: 0.004503816857 | BP97: 0.004503816857 | BQ97: 0.004503816857 | BR97: 0.004503816857 | BT97: =+IF($K97="Ongoing",AX97,IF(RIGHT($K97,2)=RIGHT(BT$39,2),SUM($AX97:AX97),0)+IF(RIGHT(BT$39,2)>RIGHT($K97,2),AX97,0)) -> 0.31526718 | BU97: =+IF($K97="Ongoing",AY97,IF(RIGHT($K97,2)=RIGHT(BU$39,2),SUM($AX97:AY97),0)+IF(RIGHT(BU$39,2)>RIGHT($K97,2),AY97,0)) -> 0 | BV97: =+IF($K97="Ongoing",AZ97,IF(RIGHT($K97,2)=RIGHT(BV$39,2),SUM($AX97:AZ97),0)+IF(RIGHT(BV$39,2)>RIGHT($K97,2),AZ97,0)) -> 0 | BW97: =+IF($K97="Ongoing",BA97,IF(RIGHT($K97,2)=RIGHT(BW$39,2),SUM($AX97:BA97),0)+IF(RIGHT(BW$39,2)>RIGHT($K97,2),BA97,0)) -> 0 | BX97: =+IF($K97="Ongoing",BB97,IF(RIGHT($K97,2)=RIGHT(BX$39,2),SUM($AX97:BB97),0)+IF(RIGHT(BX$39,2)>RIGHT($K97,2),BB97,0)) -> 0 | BY97: =+IF($K97="Ongoing",BC97,IF(RIGHT($K97,2)=RIGHT(BY$39,2),SUM($AX97:BC97),0)+IF(RIGHT(BY$39,2)>RIGHT($K97,2),BC97,0)) -> 0 | BZ97: =+IF($K97="Ongoing",BD97,IF(RIGHT($K97,2)=RIGHT(BZ$39,2),SUM($AX97:BD97),0)+IF(RIGHT(BZ$39,2)>RIGHT($K97,2),BD97,0)) -> 0 | CA97: =+IF($K97="Ongoing",BE97,IF(RIGHT($K97,2)=RIGHT(CA$39,2),SUM($AX97:BE97),0)+IF(RIGHT(CA$39,2)>RIGHT($K97,2),BE97,0)) -> 0 | CB97: =+IF($K97="Ongoing",BF97,IF(RIGHT($K97,2)=RIGHT(CB$39,2),SUM($AX97:BF97),0)+IF(RIGHT(CB$39,2)>RIGHT($K97,2),BF97,0)) -> 0 | CC97: =+IF($K97="Ongoing",BG97,IF(RIGHT($K97,2)=RIGHT(CC$39,2),SUM($AX97:BG97),0)+IF(RIGHT(CC$39,2)>RIGHT($K97,2),BG97,0)) -> 0 | CE97: =+Q97*KeyAssumptionsPriceControl_FO!AC$15 -> 0.3247251954 | CF97: =+R97*KeyAssumptionsPriceControl_FO!AD$15 -> 0 | CG97: =+S97*KeyAssumptionsPriceControl_FO!AE$15 -> 0 | CH97: =+T97*KeyAssumptionsPriceControl_FO!AF$15 -> 0 | CI97: =+U97*KeyAssumptionsPriceControl_FO!AG$15 -> 0 | CJ97: =+V97*KeyAssumptionsPriceControl_FO!AH$15 -> 0 | CK97: =+W97*KeyAssumptionsPriceControl_FO!AI$15 -> 0 | CL97: =+X97*KeyAssumptionsPriceControl_FO!AJ$15 -> 0 | CM97: =+Y97*KeyAssumptionsPriceControl_FO!AK$15 -> 0 | CN97: =+Z97*KeyAssumptionsPriceControl_FO!AL$15 -> 0 | CP97: 0.003247251954 | CQ97: 0.006494503908 | CR97: 0.006494503908 | CS97: 0.006494503908 | CT97: 0.006494503908 | CU97: 0.006494503908 | CV97: 0.006494503908 | CW97: 0.006494503908 | CX97: 0.006494503908 | CY97: 0.006494503908
C98: Birregurra WRP Effluent Disposal Upgrade | E98: Sewerage | F98: Growth | G98: Treatment | H98: Other Capital expenditure | J98: Straight line | K98: 2024-25 | L98: 70 | M98: 50 | Q98: 1.147108042 | R98: 1.147108042 | S98: 0 | T98: 0 | U98: 0 | V98: 0 | W98: 0 | X98: 0 | Y98: 0 | Z98: 0 | AM98: 0.1680624471 | AN98: 0.1685692143 | AO98: 0.1712873296 | AP98: 0.1717480271 | AQ98: 0.1697670278 | AR98: 0.1731196125 | AS98: 0.1764828323 | AT98: 0.1798476895 | AU98: 0.1831662684 | AV98: 0.1864400441 | AX98: 0.9790455945 | AY98: 0.9785388272 | AZ98: -0.1712873296 | BA98: -0.1717480271 | BB98: -0.1697670278 | BC98: -0.1731196125 | BD98: -0.1764828323 | BE98: -0.1798476895 | BF98: -0.1831662684 | BG98: -0.1864400441 | BI98: 0 | BJ98: 0.01398274587 | BK98: 0.02674201081 | BL98: 0.02429175826 | BM98: 0.02185236502 | BN98: 0.01940317473 | BO98: 0.01690601441 | BP98: 0.01436079639 | BQ98: 0.01176783955 | BR98: 0.009127794462 | BT98: =+IF($K98="Ongoing",AX98,IF(RIGHT($K98,2)=RIGHT(BT$39,2),SUM($AX98:AX98),0)+IF(RIGHT(BT$39,2)>RIGHT($K98,2),AX98,0)) -> 0 | BU98: =+IF($K98="Ongoing",AY98,IF(RIGHT($K98,2)=RIGHT(BU$39,2),SUM($AX98:AY98),0)+IF(RIGHT(BU$39,2)>RIGHT($K98,2),AY98,0)) -> 1.957584422 | BV98: =+IF($K98="Ongoing",AZ98,IF(RIGHT($K98,2)=RIGHT(BV$39,2),SUM($AX98:AZ98),0)+IF(RIGHT(BV$39,2)>RIGHT($K98,2),AZ98,0)) -> -0.1712873296 | BW98: =+IF($K98="Ongoing",BA98,IF(RIGHT($K98,2)=RIGHT(BW$39,2),SUM($AX98:BA98),0)+IF(RIGHT(BW$39,2)>RIGHT($K98,2),BA98,0)) -> -0.1717480271 | BX98: =+IF($K98="Ongoing",BB98,IF(RIGHT($K98,2)=RIGHT(BX$39,2),SUM($AX98:BB98),0)+IF(RIGHT(BX$39,2)>RIGHT($K98,2),BB98,0)) -> -0.1697670278 | BY98: =+IF($K98="Ongoing",BC98,IF(RIGHT($K98,2)=RIGHT(BY$39,2),SUM($AX98:BC98),0)+IF(RIGHT(BY$39,2)>RIGHT($K98,2),BC98,0)) -> -0.1731196125 | BZ98: =+IF($K98="Ongoing",BD98,IF(RIGHT($K98,2)=RIGHT(BZ$39,2),SUM($AX98:BD98),0)+IF(RIGHT(BZ$39,2)>RIGHT($K98,2),BD98,0)) -> -0.1764828323 | CA98: =+IF($K98="Ongoing",BE98,IF(RIGHT($K98,2)=RIGHT(CA$39,2),SUM($AX98:BE98),0)+IF(RIGHT(CA$39,2)>RIGHT($K98,2),BE98,0)) -> -0.1798476895 | CB98: =+IF($K98="Ongoing",BF98,IF(RIGHT($K98,2)=RIGHT(CB$39,2),SUM($AX98:BF98),0)+IF(RIGHT(CB$39,2)>RIGHT($K98,2),BF98,0)) -> -0.1831662684 | CC98: =+IF($K98="Ongoing",BG98,IF(RIGHT($K98,2)=RIGHT(CC$39,2),SUM($AX98:BG98),0)+IF(RIGHT(CC$39,2)>RIGHT($K98,2),BG98,0)) -> -0.1864400441 | CE98: =+Q98*KeyAssumptionsPriceControl_FO!AC$15 -> 1.181521283 | CF98: =+R98*KeyAssumptionsPriceControl_FO!AD$15 -> 1.216966921 | CG98: =+S98*KeyAssumptionsPriceControl_FO!AE$15 -> 0 | CH98: =+T98*KeyAssumptionsPriceControl_FO!AF$15 -> 0 | CI98: =+U98*KeyAssumptionsPriceControl_FO!AG$15 -> 0 | CJ98: =+V98*KeyAssumptionsPriceControl_FO!AH$15 -> 0 | CK98: =+W98*KeyAssumptionsPriceControl_FO!AI$15 -> 0 | CL98: =+X98*KeyAssumptionsPriceControl_FO!AJ$15 -> 0 | CM98: =+Y98*KeyAssumptionsPriceControl_FO!AK$15 -> 0 | CN98: =+Z98*KeyAssumptionsPriceControl_FO!AL$15 -> 0 | CP98: 0.01181521283 | CQ98: 0.03580009487 | CR98: 0.04796976408 | CS98: 0.04796976408 | CT98: 0.04796976408 | CU98: 0.04796976408 | CV98: 0.04796976408 | CW98: 0.04796976408 | CX98: 0.04796976408 | CY98: 0.04796976408
C99: Water Pump Stations (Portfolio) | E99: Water | F99: Renewals | G99: Pipelines/network | H99: Other Capital expenditure | J99: Straight line | K99: Ongoing | L99: 70 | M99: 50 | Q99: 0.3430548292 | R99: 0.4218716242 | S99: 0.409260937 | T99: 0.3535637352 | U99: 0.3535637352 | V99: 0.5315488726 | W99: 0.5798898402 | X99: 0.58094073 | Y99: 0.7438287738 | Z99: 0.5052766076 | AM99: 0 | AN99: 0 | AO99: 0 | AP99: 0 | AQ99: 0 | AR99: 0 | AS99: 0 | AT99: 0 | AU99: 0 | AV99: 0 | AX99: 0.3430548292 | AY99: 0.4218716242 | AZ99: 0.409260937 | BA99: 0.3535637352 | BB99: 0.3535637352 | BC99: 0.5315488726 | BD99: 0.5798898402 | BE99: 0.58094073 | BF99: 0.7438287738 | BG99: 0.5052766076 | BI99: 0.002450391637 | BJ99: 0.00791415202 | BK99: 0.01385081317 | BL99: 0.01929956083 | BM99: 0.02435047133 | BN99: 0.03067270425 | BO99: 0.0386115522 | BP99: 0.04690319913 | BQ99: 0.05636583844 | BR99: 0.06528801973 | BT99: =+IF($K99="Ongoing",AX99,IF(RIGHT($K99,2)=RIGHT(BT$39,2),SUM($AX99:AX99),0)+IF(RIGHT(BT$39,2)>RIGHT($K99,2),AX99,0)) -> 0.3430548292 | BU99: =+IF($K99="Ongoing",AY99,IF(RIGHT($K99,2)=RIGHT(BU$39,2),SUM($AX99:AY99),0)+IF(RIGHT(BU$39,2)>RIGHT($K99,2),AY99,0)) -> 0.4218716242 | BV99: =+IF($K99="Ongoing",AZ99,IF(RIGHT($K99,2)=RIGHT(BV$39,2),SUM($AX99:AZ99),0)+IF(RIGHT(BV$39,2)>RIGHT($K99,2),AZ99,0)) -> 0.409260937 | BW99: =+IF($K99="Ongoing",BA99,IF(RIGHT($K99,2)=RIGHT(BW$39,2),SUM($AX99:BA99),0)+IF(RIGHT(BW$39,2)>RIGHT($K99,2),BA99,0)) -> 0.3535637352 | BX99: =+IF($K99="Ongoing",BB99,IF(RIGHT($K99,2)=RIGHT(BX$39,2),SUM($AX99:BB99),0)+IF(RIGHT(BX$39,2)>RIGHT($K99,2),BB99,0)) -> 0.3535637352 | BY99: =+IF($K99="Ongoing",BC99,IF(RIGHT($K99,2)=RIGHT(BY$39,2),SUM($AX99:BC99),0)+IF(RIGHT(BY$39,2)>RIGHT($K99,2),BC99,0)) -> 0.5315488726 | BZ99: =+IF($K99="Ongoing",BD99,IF(RIGHT($K99,2)=RIGHT(BZ$39,2),SUM($AX99:BD99),0)+IF(RIGHT(BZ$39,2)>RIGHT($K99,2),BD99,0)) -> 0.5798898402 | CA99: =+IF($K99="Ongoing",BE99,IF(RIGHT($K99,2)=RIGHT(CA$39,2),SUM($AX99:BE99),0)+IF(RIGHT(CA$39,2)>RIGHT($K99,2),BE99,0)) -> 0.58094073 | CB99: =+IF($K99="Ongoing",BF99,IF(RIGHT($K99,2)=RIGHT(CB$39,2),SUM($AX99:BF99),0)+IF(RIGHT(CB$39,2)>RIGHT($K99,2),BF99,0)) -> 0.7438287738 | CC99: =+IF($K99="Ongoing",BG99,IF(RIGHT($K99,2)=RIGHT(CC$39,2),SUM($AX99:BG99),0)+IF(RIGHT(CC$39,2)>RIGHT($K99,2),BG99,0)) -> 0.5052766076 | CE99: =+Q99*KeyAssumptionsPriceControl_FO!AC$15 -> 0.3533464741 | CF99: =+R99*KeyAssumptionsPriceControl_FO!AD$15 -> 0.4475636062 | CG99: =+S99*KeyAssumptionsPriceControl_FO!AE$15 -> 0.447210476 | CH99: =+T99*KeyAssumptionsPriceControl_FO!AF$15 -> 0.3979390989 | CI99: =+U99*KeyAssumptionsPriceControl_FO!AG$15 -> 0.4098772719 | CJ99: =+V99*KeyAssumptionsPriceControl_FO!AH$15 -> 0.6346971521 | CK99: =+W99*KeyAssumptionsPriceControl_FO!AI$15 -> 0.7131913593 | CL99: =+X99*KeyAssumptionsPriceControl_FO!AJ$15 -> 0.7359183358 | CM99: =+Y99*KeyAssumptionsPriceControl_FO!AK$15 -> 0.9705278374 | CN99: =+Z99*KeyAssumptionsPriceControl_FO!AL$15 -> 0.6790495091 | CP99: 0.003533464741 | CQ99: 0.01154256554 | CR99: 0.02049030637 | CS99: 0.02894180211 | CT99: 0.03701996582 | CU99: 0.04746571006 | CV99: 0.06094459517 | CW99: 0.07543569213 | CX99: 0.09250015386 | CY99: 0.1089959273
